Workbook

Sheet Sample Report (hidden)
A2: Date
A3: Hen
A4: Program
A5: Start at 999999
A6: Sequence component 1 | B6: Time 1 | C6: Seqeunce Component 2 | D6: Time 2 | E6: Seqeunce Component 3 | F6: Time 3 | G6: Correct 0 = No 1=Yes | J6: Seqeunce | K6: Time
A7: 12 | B7: 7 | C7: 12 | D7: 42 | E7: 13 | F7: 18 | G7: if 77 new line, if 31 or 41 = yes new line on 77, | J7: =string of Seqeunce compponent 1, 2 & 3 | K7: =time 3
A8: This continues until ther is a 1 on its own to indicate start of summary data
J9: 10-19 =1
A10: Summary Data | J10: 20-29 =2
A11: Correct | B11: Incorrect | C11: Rft | D11: total | E11: Av Correct | F11: Av Incorrect | G11: Percent correct | H11: Time | J11: in this example the seqeunce would be 111
A12: 40 | B12: 33 | C12: 40 | D12: 73 | E12: 23.95 | F12: 15 | G12: 54 | H12: 806

Sheet Summary
A2: Day | B2: Date | C2: Average Response Rate | D2: Target % | E2: RF for non correct sequence | F2: U Value | K2: Block 1 | L2: Block 2 | M2: Block 3 | N2: Block 4 | O2: Block 5 | P2: Block 6
A3: 1 | B3: ='!M914B10.104'!B2:C2 -> <date> | C3: =('!M914B10.104'!D7/60)/'!M914B10.104'!Q3 -> 0.001131221719 | D3: ='!M914B10.104'!N20/'!M914B10.104'!Q3 -> 0.01809954751 | E3: =SUM('!M914B10.104'!L20:Q20)/'!M914B10.104'!Q3 -> 0.4027149321 | F3: ='!M914B10.104'!Q16 -> 0.0592959754 | J3: Average Response Rate | K3: =AVERAGE(C3:C7) -> 0.006835781743 | L3: =AVERAGE(C8:C12) -> 0.006414166212 | M3: =AVERAGE(C13:C17) -> 0.007824769433 | N3: =AVERAGE(C18:C22) -> 0.008844753804 | O3: =AVERAGE(C23:C27) -> 0.008782679739 | P3: =AVERAGE(C28:C32) -> 0.01300290487
A4: 2 | B4: ='!M915930.104'!B2:C2 -> <date> | C4: =('!M915930.104'!D7/60)/'!M915930.104'!Q3 -> 0.008854166667 | D4: ='!M915930.104'!N20/'!M915930.104'!Q3 -> 0.4166666667 | E4: =SUM('!M915930.104'!L20:Q20)/'!M915930.104'!Q3 -> 0.96875 | F4: ='!M915930.104'!Q16 -> 0.253832605 | J4: Target % | K4: =AVERAGE(D3:D7) -> 0.4460660935 | L4: =AVERAGE(D8:D12) -> 0.7286173244 | M4: =AVERAGE(D13:D17) -> 0.8931049627 | N4: =AVERAGE(D18:D22) -> 0.8948033162 | O4: =AVERAGE(D23:D27) -> 0.8039215686 | P4: =AVERAGE(D28:D32) -> 0.8156491911
A5: 3 | B5: ='!M916B10.104'!B2:C2 -> <date> | C5: =('!M916B10.104'!D7/60)/'!M916B10.104'!Q3 -> 0.006222222222 | D5: ='!M916B10.104'!N20/'!M916B10.104'!Q3 -> 0.5333333333 | E5: =SUM('!M916B10.104'!L20:Q20)/'!M916B10.104'!Q3 -> 1.16 | F5: ='!M916B10.104'!Q16 -> 0.2454785387 | J5: CCRF | K5: =AVERAGE(E3:E7) -> 0.9680835931 | L5: =AVERAGE(E8:E12) -> 1.281697884 | M5: =AVERAGE(E13:E17) -> 1.541405358 | N5: =AVERAGE(E18:E22) -> 1.540726017 | O5: =AVERAGE(E23:E27) -> 1.378431373 | P5: =AVERAGE(E28:E32) -> 1.518333102
A6: 4 | B6: ='!M917940.104'!B2:C2 -> <date> | C6: =('!M917940.104'!D7/60)/'!M917940.104'!Q3 -> 0.008447488584 | D6: ='!M917940.104'!N20/'!M917940.104'!Q3 -> 0.5479452055 | E6: =SUM('!M917940.104'!L20:Q20)/'!M917940.104'!Q3 -> 1.04109589 | F6: ='!M917940.104'!Q16 -> 0.2517458164 | J6: U Value | K6: =AVERAGE(F3:F7) -> 0.207009676 | L6: =AVERAGE(F8:F12) -> 0.1828502074 | M6: =AVERAGE(F13:F17) -> 0.1098732693 | N6: =AVERAGE(F18:F22) -> 0.107602882 | O6: =AVERAGE(F23:F27) -> 0.1700951314 | P6: =AVERAGE(F28:F32) -> 0.1622544519
A7: 5 | B7: ='!M918C10.104'!B2:C2 -> <date> | C7: =('!M918C10.104'!D7/60)/'!M918C10.104'!Q3 -> 0.009523809524 | D7: ='!M918C10.104'!N20/'!M918C10.104'!Q3 -> 0.7142857143 | E7: =SUM('!M918C10.104'!L20:Q20)/'!M918C10.104'!Q3 -> 1.267857143 | F7: ='!M918C10.104'!Q16 -> 0.2246954444
A8: 6 | B8: ='!M919A50.104'!B2:C2 -> <date> | C8: =('!M919A50.104'!D7/60)/'!M919A50.104'!Q3 -> 0.007092198582 | D8: ='!M919A50.104'!N20/'!M919A50.104'!Q3 -> 0.8510638298 | E8: =SUM('!M919A50.104'!L20:Q20)/'!M919A50.104'!Q3 -> 1.446808511 | F8: ='!M919A50.104'!Q16 -> 0.1251745451
A9: 7 | B9: ='!M920B00.104'!B2:C2 -> <date> | C9: =('!M920B00.104'!D7/60)/'!M920B00.104'!Q3 -> 0.005 | D9: ='!M920B00.104'!N20/'!M920B00.104'!Q3 -> 0.6666666667 | E9: =SUM('!M920B00.104'!L20:Q20)/'!M920B00.104'!Q3 -> 1.2 | F9: ='!M920B00.104'!Q16 -> 0.2366527767 | G9: =K3 -> 0.006835781743 | H9: 0.006414166212 | I9: 0.007824769433 | J9: 0.008844753804 | K9: 0.008782679739 | L9: 0.01300290487 | M9: =K4 -> 0.4460660935 | N9: 0.7286173244 | O9: 0.8931049627 | P9: 0.8948033162 | Q9: 0.8039215686 | R9: 0.8156491911 | S9: =K6 -> 0.207009676 | T9: 0.1828502074 | U9: 0.1098732693 | V9: 0.107602882 | W9: 0.1700951314 | X9: 0.1622544519
A10: 8 | B10: ='!M921A40.104'!B2:C2 -> <date> | C10: =('!M921A40.104'!D7/60)/'!M921A40.104'!Q3 -> 0.005448717949 | D10: ='!M921A40.104'!N20/'!M921A40.104'!Q3 -> 0.7692307692 | E10: =SUM('!M921A40.104'!L20:Q20)/'!M921A40.104'!Q3 -> 1.326923077 | F10: ='!M921A40.104'!Q16 -> 0.1738925959
A11: 9 | B11: ='!M922A10.104'!B2:C2 -> <date> | C11: =('!M922A10.104'!D7/60)/'!M922A10.104'!Q3 -> 0.008974358974 | D11: ='!M922A10.104'!N20/'!M922A10.104'!Q3 -> 0.6153846154 | E11: =SUM('!M922A10.104'!L20:Q20)/'!M922A10.104'!Q3 -> 1.138461538 | F11: ='!M922A10.104'!Q16 -> 0.2084108219
A12: 10 | B12: ='!M923B20.104'!B2:C2 -> <date> | C12: =('!M923B20.104'!D7/60)/'!M923B20.104'!Q3 -> 0.005555555556 | D12: ='!M923B20.104'!N20/'!M923B20.104'!Q3 -> 0.7407407407 | E12: =SUM('!M923B20.104'!L20:Q20)/'!M923B20.104'!Q3 -> 1.296296296 | F12: ='!M923B20.104'!Q16 -> 0.1701202972
A13: 11 | B13: ='!M924A50.104'!B2:C2 -> <date> | C13: =('!M924A50.104'!D7/60)/'!M924A50.104'!Q3 -> 0.007777777778 | D13: ='!M924A50.104'!N20/'!M924A50.104'!Q3 -> 0.8888888889 | E13: =SUM('!M924A50.104'!L20:Q20)/'!M924A50.104'!Q3 -> 1.488888889 | F13: ='!M924A50.104'!Q16 -> 0.122428886
A14: 12 | B14: ='!M925820.104'!B2:C2 -> <date> | C14: =('!M925820.104'!D7/60)/'!M925820.104'!Q3 -> 0.007608695652 | D14: ='!M925820.104'!N20/'!M925820.104'!Q3 -> 0.8695652174 | E14: =SUM('!M925820.104'!L20:Q20)/'!M925820.104'!Q3 -> 1.456521739 | F14: ='!M925820.104'!Q16 -> 0.1164855055
A15: 13 | B15: ='!M926840.104'!B2:C2 -> <date> | C15: =('!M926840.104'!D7/60)/'!M926840.104'!Q3 -> 0.01060606061 | D15: ='!M926840.104'!N20/'!M926840.104'!Q3 -> 0.9090909091 | E15: =SUM('!M926840.104'!L20:Q20)/'!M926840.104'!Q3 -> 1.75 | F15: ='!M926840.104'!Q16 -> 0.09401153445
A16: 14 | B16: ='!M927930.104'!B2:C2 -> <date> | C16: =('!M927930.104'!D7/60)/'!M927930.104'!Q3 -> 0.007575757576 | D16: ='!M927930.104'!N20/'!M927930.104'!Q3 -> 0.9090909091 | E16: =SUM('!M927930.104'!L20:Q20)/'!M927930.104'!Q3 -> 1.522727273 | F16: ='!M927930.104'!Q16 -> 0.09401153445
A17: 15 | B17: ='!M928A50.104'!B2:C2 -> <date> | C17: =('!M928A50.104'!D7/60)/'!M928A50.104'!Q3 -> 0.005555555556 | D17: ='!M928A50.104'!N20/'!M928A50.104'!Q3 -> 0.8888888889 | E17: =SUM('!M928A50.104'!L20:Q20)/'!M928A50.104'!Q3 -> 1.488888889 | F17: ='!M928A50.104'!Q16 -> 0.122428886
A18: 16 | B18: ='!M930A20.104'!B2:C2 -> <date> | C18: =('!M930A20.104'!D7/60)/'!M930A20.104'!Q3 -> 0.006504065041 | D18: ='!M930A20.104'!N20/'!M930A20.104'!Q3 -> 0.9756097561 | E18: =SUM('!M930A20.104'!L20:Q20)/'!M930A20.104'!Q3 -> 1.609756098 | F18: ='!M930A20.104'!Q16 -> 0.03087735478
A19: 17 | B19: ='!MA01830.104'!B2:C2 -> <date> | C19: =('!MA01830.104'!D7/60)/'!MA01830.104'!Q3 -> 0.00615942029 | D19: ='!MA01830.104'!N20/'!MA01830.104'!Q3 -> 0.8695652174 | E19: =SUM('!MA01830.104'!L20:Q20)/'!MA01830.104'!Q3 -> 1.456521739 | F19: ='!MA01830.104'!Q16 -> 0.1385634159
A20: 18 | B20: ='!MA02920.104'!B2:C2 -> <date> | C20: =('!MA02920.104'!D7/60)/'!MA02920.104'!Q3 -> 0.005555555556 | D20: ='!MA02920.104'!N20/'!MA02920.104'!Q3 -> 0.8888888889 | E20: =SUM('!MA02920.104'!L20:Q20)/'!MA02920.104'!Q3 -> 1.488888889 | F20: ='!MA02920.104'!Q16 -> 0.1062432948
A21: 19 | B21: ='!MA03820.104'!B2:C2 -> <date> | C21: =('!MA03820.104'!D7/60)/'!MA03820.104'!Q3 -> 0.01489361702 | D21: ='!MA03820.104'!N20/'!MA03820.104'!Q3 -> 0.8510638298 | E21: =SUM('!MA03820.104'!L20:Q20)/'!MA03820.104'!Q3 -> 1.659574468 | F21: ='!MA03820.104'!Q16 -> 0.1510488293
A22: 20 | B22: ='!MA04930.104'!B2:C2 -> <date> | C22: =('!MA04930.104'!D7/60)/'!MA04930.104'!Q3 -> 0.01111111111 | D22: ='!MA04930.104'!N20/'!MA04930.104'!Q3 -> 0.8888888889 | E22: =SUM('!MA04930.104'!L20:Q20)/'!MA04930.104'!Q3 -> 1.488888889 | F22: ='!MA04930.104'!Q16 -> 0.1112815153
A23: 21 | B23: ='!MA05930.104'!B2:C2 -> <date> | C23: =('!MA05930.104'!D7/60)/'!MA05930.104'!Q3 -> 0.01307189542 | D23: ='!MA05930.104'!N20/'!MA05930.104'!Q3 -> 0.7843137255 | E23: =SUM('!MA05930.104'!L20:Q20)/'!MA05930.104'!Q3 -> 1.352941176 | F23: ='!MA05930.104'!Q16 -> 0.179783376
A24: 22 | B24: ='!MA06900.104'!B2:C2 -> <date> | C24: =('!MA06900.104'!D7/60)/'!MA06900.104'!Q3 -> 0.01209150327 | D24: ='!MA06900.104'!N20/'!MA06900.104'!Q3 -> 0.7843137255 | E24: =SUM('!MA06900.104'!L20:Q20)/'!MA06900.104'!Q3 -> 1.352941176 | F24: ='!MA06900.104'!Q16 -> 0.1924054433
A25: 23 | B25: ='!MA07C20.104'!B2:C2 -> <date> | C25: =('!MA07C20.104'!D7/60)/'!MA07C20.104'!Q3 -> 0.005902777778 | D25: ='!MA07C20.104'!N20/'!MA07C20.104'!Q3 -> 0.8333333333 | E25: =SUM('!MA07C20.104'!L20:Q20)/'!MA07C20.104'!Q3 -> 1.416666667 | F25: ='!MA07C20.104'!Q16 -> 0.1448702217
A26: 24 | B26: ='!MA08A10.104'!B2:C2 -> <date> | C26: =('!MA08A10.104'!D7/60)/'!MA08A10.104'!Q3 -> 0.007291666667 | D26: ='!MA08A10.104'!N20/'!MA08A10.104'!Q3 -> 0.8333333333 | E26: =SUM('!MA08A10.104'!L20:Q20)/'!MA08A10.104'!Q3 -> 1.416666667 | F26: ='!MA08A10.104'!Q16 -> 0.1462300039
A27: 25 | B27: ='!MA09A20.104'!B2:C2 -> <date> | C27: =('!MA09A20.104'!D7/60)/'!MA09A20.104'!Q3 -> 0.005555555556 | D27: ='!MA09A20.104'!N20/'!MA09A20.104'!Q3 -> 0.7843137255 | E27: =SUM('!MA09A20.104'!L20:Q20)/'!MA09A20.104'!Q3 -> 1.352941176 | F27: ='!MA09A20.104'!Q16 -> 0.1871866119
A28: 26 | B28: ='!MA10B40.104'!B2:C2 -> <date> | C28: =('!MA10B40.104'!D7/60)/'!MA10B40.104'!Q3 -> 0.02056737589 | D28: ='!MA10B40.104'!N20/'!MA10B40.104'!Q3 -> 0.8510638298 | E28: =SUM('!MA10B40.104'!L20:Q20)/'!MA10B40.104'!Q3 -> 1.446808511 | F28: ='!MA10B40.104'!Q16 -> 0.1481572676
A29: 27 | B29: ='!MA11A20.104'!B2:C2 -> <date> | C29: =('!MA11A20.104'!D7/60)/'!MA11A20.104'!Q3 -> 0.006382978723 | D29: ='!MA11A20.104'!N20/'!MA11A20.104'!Q3 -> 0.8510638298 | E29: =SUM('!MA11A20.104'!L20:Q20)/'!MA11A20.104'!Q3 -> 1.659574468 | F29: ='!MA11A20.104'!Q16 -> 0.1251745451
A30: 28 | B30: ='!MA12C20.104'!B2:C2 -> <date> | C30: =('!MA12C20.104'!D7/60)/'!MA12C20.104'!Q3 -> 0.01470588235 | D30: ='!MA12C20.104'!N20/'!MA12C20.104'!Q3 -> 0.7843137255 | E30: =SUM('!MA12C20.104'!L20:Q20)/'!MA12C20.104'!Q3 -> 1.529411765 | F30: ='!MA12C20.104'!Q16 -> 0.1894508232
A31: 29 | B31: ='!MA13A20.104'!B2:C2 -> <date> | C31: =('!MA13A20.104'!D7/60)/'!MA13A20.104'!Q3 -> 0.01697530864 | D31: ='!MA13A20.104'!N20/'!MA13A20.104'!Q3 -> 0.7407407407 | E31: =SUM('!MA13A20.104'!L20:Q20)/'!MA13A20.104'!Q3 -> 1.296296296 | F31: ='!MA13A20.104'!Q16 -> 0.1974407946
A32: 30 | B32: ='!MA14B40.104'!B2:C2 -> <date> | C32: =('!MA14B40.104'!D7/60)/'!MA14B40.104'!Q3 -> 0.006382978723 | D32: ='!MA14B40.104'!N20/'!MA14B40.104'!Q3 -> 0.8510638298 | E32: =SUM('!MA14B40.104'!L20:Q20)/'!MA14B40.104'!Q3 -> 1.659574468 | F32: ='!MA14B40.104'!Q16 -> 0.1510488293

Sheet Start
F1: Use Folder 51 | H1: Auto Clean Up | J1: Correct sequence
F2: FALSE | H2: TRUE | J2: 12
A4: Working with Folder | G4: Process All/Or Pick A number: ALL or an integer
A5: E:\Hen Data\Raw Data\104_184\phase 4 con\ | G5: ALL
A6: Filenames:
A7: !M924A50.104 | G7: Paint Cells
A8: !M925820.104 | G8: FALSE
A9: !M926840.104
A10: !M927930.104
A11: !M928A50.104
A12: !M930A20.104
A13: !MA01830.104
A14: !MA02920.104
A15: !MA03820.104
A16: !MA04930.104
A17: !MA05930.104
A18: !MA06900.104
A19: !MA07C20.104
A20: !MA08A10.104
A21: !MA09A20.104
A22: !MA10B40.104
A23: !MA11A20.104
A24: !MA12C20.104
A25: !MA13A20.104
A26: !MA14B40.104
A27: !M914B10.104
A28: !M915930.104
A29: !M916B10.104
A30: !M917940.104
A31: !M918C10.104
A32: !M919A50.104
A33: !M920B00.104
A34: !M921A40.104
A35: !M922A10.104
A36: !M923B20.104

Sheet !M914B10.104
A1: Report for:!M914B10.104
A2: Date: | B2: <date>
A3: Hen: | B3: <hen> | F3: Correct Sequence | G3: =Start!J2 -> 12 | P3: Total Sequences in Data | Q3: =4994-COUNTBLANK(L7:L5000) -> 221 | V3: Total Sequences in Block Data | W3: =COUNTA(L7:L43) -> 37 | AA3: Total Sequences in Block Data | AB3: =COUNTA(L44:L80) -> 37 | AF3: Total Sequences in Block Data | AG3: =COUNTA(L81:L116) -> 36 | AK3: Total Sequences in Block Data | AL3: =COUNTA(L117:L153) -> 37 | AP3: Total Sequences in Block Data | AQ3: =COUNTA(L154:L190) -> 37 | AU3: Total Sequences in Block Data | AV3: =COUNTA(L191:L227) -> 37
P4: Total Sequences in Summary | Q4: =SUM(O7:O14) -> 221 | V4: Total Sequences in Block Summary | W4: =SUM(U7:U14) -> 37 | AA4: Total Sequences in Block Summary | AB4: =SUM(Z7:Z14) -> 37 | AF4: Total Sequences in Block Summary | AG4: =SUM(AE7:AE14) -> 36 | AK4: Total Sequences in Block Summary | AL4: =SUM(AJ7:AJ14) -> 37 | AP4: Total Sequences in Block Summary | AQ4: =SUM(AO7:AO14) -> 37 | AU4: Total Sequences in Block Summary | AV4: =SUM(AT7:AT14) -> 37
T5: Block 1 | Y5: Block 2 | AD5: Block 3 | AI5: Block 4 | AN5: Block 5 | AS5: Block 6
A6: Sequence Component 1 | B6: Time 1 | C6: Sequence Component 2 | D6: Time 2 | E6: Sequence Component 3 | F6: Time 3 | G6: Sequence Component 4 | H6: Time 4 | I6: Sequence Component 5 | J6: Time 5 | K6: Correct? 0=No 1=Yes | L6: Sequence | N6: Frequency | P6: Relative Frequency | Q6: Variability | T6: Frequency | V6: Relative Frequency | W6: Variability | Y6: Frequency | AA6: Relative Frequency | AB6: Variability | AD6: Frequency | AF6: Relative Frequency | AG6: Variability | AI6: Frequency | AK6: Relative Frequency | AL6: Variability | AN6: Frequency | AP6: Relative Frequency | AQ6: Variability | AS6: Frequency | AU6: Relative Frequency | AV6: Variability
A7: 11 | B7: 11 | C7: 12 | D7: 15 | K7: 0 | L7: 11 | N7: 11 | O7: =COUNTIF($L$7:$L$500,N7) -> 206 | P7: =O7/$Q$4 -> 0.9321266968 | Q7: =IF(P7=0,0,(P7*((LOG(P7))/LOG(2)))) -> -0.09451954133 | T7: =N7 -> 11 | U7: =COUNTIF(L7:L43,T7) -> 37 | V7: =U7/(W4-U8) -> 1 | W7: =IF(V7=0,0,(V7*((LOG(V7))/LOG(2)))) -> 0 | Y7: =N7 -> 11 | Z7: =COUNTIF(L44:L80,Y7) -> 37 | AA7: =Z7/(AB4-Z8) -> 1 | AB7: =IF(AA7=0,0,(AA7*((LOG(AA7))/LOG(2)))) -> 0 | AD7: =N7 -> 11 | AE7: =COUNTIF(L81:L116,AD7) -> 33 | AF7: =AE7/(AG4-AE8) -> 0.9428571429 | AG7: =IF(AF7=0,0,(AF7*((LOG(AF7))/LOG(2)))) -> -0.08003810344 | AI7: =N7 -> 11 | AJ7: =COUNTIF(L117:L153,AI7) -> 36 | AK7: =AJ7/(AL4-AJ8) -> 0.972972973 | AL7: =IF(AK7=0,0,(AK7*((LOG(AK7))/LOG(2)))) -> -0.03846003002 | AN7: =N7 -> 11 | AO7: =COUNTIF(L154:L190,AN7) -> 31 | AP7: =AO7/(AQ4-AO8) -> 0.8378378378 | AQ7: =IF(AP7=0,0,(AP7*((LOG(AP7))/LOG(2)))) -> -0.2138640193 | AS7: =N7 -> 11 | AT7: =COUNTIF(L191:L227,AS7) -> 32 | AU7: =AT7/(AV4-AT8) -> 0.9411764706 | AV7: =IF(AU7=0,0,(AU7*((LOG(AU7))/LOG(2)))) -> -0.08231796824
A8: 11 | B8: 118 | C8: 12 | D8: 122 | K8: 0 | L8: 11 | N8: 12 | O8: =COUNTIF($L$7:$L$500,N8) -> 4 | P8: =O8/$Q$4 -> 0.01809954751 | Q8: =IF(P8=0,0,(P8*((LOG(P8))/LOG(2)))) -> -0.1047584174 | T8: =N8 -> 12 | U8: =COUNTIF(L7:L43,T8) -> 0 | Y8: =N8 -> 12 | Z8: =COUNTIF(L44:L80,Y8) -> 0 | AD8: =N8 -> 12 | AE8: =COUNTIF(L81:L116,AD8) -> 1 | AI8: =N8 -> 12 | AJ8: =COUNTIF(L117:L153,AI8) -> 0 | AN8: =N8 -> 12 | AO8: =COUNTIF(L154:L190,AN8) -> 0 | AS8: =N8 -> 12 | AT8: =COUNTIF(L191:L227,AS8) -> 3
A9: 11 | B9: 223 | C9: 12 | D9: 227 | K9: 0 | L9: 11 | N9: 21 | O9: =COUNTIF($L$7:$L$500,N9) -> 4 | P9: =O9/$Q$4 -> 0.01809954751 | Q9: =IF(P9=0,0,(P9*((LOG(P9))/LOG(2)))) -> -0.1047584174 | T9: =N9 -> 21 | U9: =COUNTIF(L7:L43,T9) -> 0 | V9: =U9/(W4-U8) -> 0 | W9: =IF(V9=0,0,(V9*((LOG(V9))/LOG(2)))) -> 0 | Y9: =N9 -> 21 | Z9: =COUNTIF(L44:L80,Y9) -> 0 | AA9: =Z9/(AB4-Z8) -> 0 | AB9: =IF(AA9=0,0,(AA9*((LOG(AA9))/LOG(2)))) -> 0 | AD9: =N9 -> 21 | AE9: =COUNTIF(L81:L116,AD9) -> 1 | AF9: =AE9/(AG4-AE8) -> 0.02857142857 | AG9: =IF(AF9=0,0,(AF9*((LOG(AF9))/LOG(2)))) -> -0.1465509433 | AI9: =N9 -> 21 | AJ9: =COUNTIF(L117:L153,AI9) -> 1 | AK9: =AJ9/(AL4-AJ8) -> 0.02702702703 | AL9: =IF(AK9=0,0,(AK9*((LOG(AK9))/LOG(2)))) -> -0.1407960369 | AN9: =N9 -> 21 | AO9: =COUNTIF(L154:L190,AN9) -> 2 | AP9: =AO9/(AQ4-AO8) -> 0.05405405405 | AQ9: =IF(AP9=0,0,(AP9*((LOG(AP9))/LOG(2)))) -> -0.2275380198 | AS9: =N9 -> 21 | AT9: =COUNTIF(L191:L227,AS9) -> 0 | AU9: =AT9/(AV4-AT8) -> 0 | AV9: =IF(AU9=0,0,(AU9*((LOG(AU9))/LOG(2)))) -> 0
A10: 11 | B10: 331 | C10: 12 | D10: 335 | K10: 0 | L10: 11 | N10: 22 | O10: =COUNTIF($L$7:$L$500,N10) -> 7 | P10: =O10/$Q$4 -> 0.03167420814 | Q10: =IF(P10=0,0,(P10*((LOG(P10))/LOG(2)))) -> -0.1577549025 | T10: =N10 -> 22 | U10: =COUNTIF(L7:L43,T10) -> 0 | V10: =U10/(W4-U8) -> 0 | W10: =IF(V10=0,0,(V10*((LOG(V10))/LOG(2)))) -> 0 | Y10: =N10 -> 22 | Z10: =COUNTIF(L44:L80,Y10) -> 0 | AA10: =Z10/(AB4-Z8) -> 0 | AB10: =IF(AA10=0,0,(AA10*((LOG(AA10))/LOG(2)))) -> 0 | AD10: =N10 -> 22 | AE10: =COUNTIF(L81:L116,AD10) -> 1 | AF10: =AE10/(AG4-AE8) -> 0.02857142857 | AG10: =IF(AF10=0,0,(AF10*((LOG(AF10))/LOG(2)))) -> -0.1465509433 | AI10: =N10 -> 22 | AJ10: =COUNTIF(L117:L153,AI10) -> 0 | AK10: =AJ10/(AL4-AJ8) -> 0 | AL10: =IF(AK10=0,0,(AK10*((LOG(AK10))/LOG(2)))) -> 0 | AN10: =N10 -> 22 | AO10: =COUNTIF(L154:L190,AN10) -> 4 | AP10: =AO10/(AQ4-AO8) -> 0.1081081081 | AQ10: =IF(AP10=0,0,(AP10*((LOG(AP10))/LOG(2)))) -> -0.3469679314 | AS10: =N10 -> 22 | AT10: =COUNTIF(L191:L227,AS10) -> 2 | AU10: =AT10/(AV4-AT8) -> 0.05882352941 | AV10: =IF(AU10=0,0,(AU10*((LOG(AU10))/LOG(2)))) -> -0.2404389907
A11: 11 | B11: 437 | C11: 12 | D11: 441 | K11: 0 | L11: 11 | T11: =N11 -> 0 | U11: =COUNTIF(L7:L43,T11) -> 0 | V11: =U11/(W4-U8) -> 0 | W11: =IF(V11=0,0,(V11*((LOG(V11))/LOG(2)))) -> 0 | Y11: =N11 -> 0 | Z11: =COUNTIF(L44:L80,Y11) -> 0 | AA11: =Z11/(AB4-Z8) -> 0 | AB11: =IF(AA11=0,0,(AA11*((LOG(AA11))/LOG(2)))) -> 0 | AD11: =N11 -> 0 | AE11: =COUNTIF(L81:L116,AD11) -> 0 | AF11: =AE11/(AG4-AE8) -> 0 | AG11: =IF(AF11=0,0,(AF11*((LOG(AF11))/LOG(2)))) -> 0 | AI11: =N11 -> 0 | AJ11: =COUNTIF(L117:L153,AI11) -> 0 | AK11: =AJ11/(AL4-AJ8) -> 0 | AL11: =IF(AK11=0,0,(AK11*((LOG(AK11))/LOG(2)))) -> 0 | AN11: =N11 -> 0 | AO11: =COUNTIF(L154:L190,AN11) -> 0 | AP11: =AO11/(AQ4-AO8) -> 0 | AQ11: =IF(AP11=0,0,(AP11*((LOG(AP11))/LOG(2)))) -> 0 | AS11: =N11 -> 0 | AT11: =COUNTIF(L191:L227,AS11) -> 0 | AU11: =AT11/(AV4-AT8) -> 0 | AV11: =IF(AU11=0,0,(AU11*((LOG(AU11))/LOG(2)))) -> 0
A12: 11 | B12: 537 | C12: 12 | D12: 541 | K12: 0 | L12: 11 | T12: =N12 -> 0 | U12: =COUNTIF(L7:L43,T12) -> 0 | V12: =U12/(W4-U8) -> 0 | W12: =IF(V12=0,0,(V12*((LOG(V12))/LOG(2)))) -> 0 | Y12: =N12 -> 0 | Z12: =COUNTIF(L44:L80,Y12) -> 0 | AA12: =Z12/(AB4-Z8) -> 0 | AB12: =IF(AA12=0,0,(AA12*((LOG(AA12))/LOG(2)))) -> 0 | AD12: =N12 -> 0 | AE12: =COUNTIF(L81:L116,AD12) -> 0 | AF12: =AE12/(AG4-AE8) -> 0 | AG12: =IF(AF12=0,0,(AF12*((LOG(AF12))/LOG(2)))) -> 0 | AI12: =N12 -> 0 | AJ12: =COUNTIF(L117:L153,AI12) -> 0 | AK12: =AJ12/(AL4-AJ8) -> 0 | AL12: =IF(AK12=0,0,(AK12*((LOG(AK12))/LOG(2)))) -> 0 | AN12: =N12 -> 0 | AO12: =COUNTIF(L154:L190,AN12) -> 0 | AP12: =AO12/(AQ4-AO8) -> 0 | AQ12: =IF(AP12=0,0,(AP12*((LOG(AP12))/LOG(2)))) -> 0 | AS12: =N12 -> 0 | AT12: =COUNTIF(L191:L227,AS12) -> 0 | AU12: =AT12/(AV4-AT8) -> 0 | AV12: =IF(AU12=0,0,(AU12*((LOG(AU12))/LOG(2)))) -> 0
A13: 11 | B13: 639 | C13: 12 | D13: 643 | K13: 0 | L13: 11 | T13: =N13 -> 0 | U13: =COUNTIF(L7:L43,T13) -> 0 | V13: =U13/(W4-U8) -> 0 | W13: =IF(V13=0,0,(V13*((LOG(V13))/LOG(2)))) -> 0 | Y13: =N13 -> 0 | Z13: =COUNTIF(L44:L80,Y13) -> 0 | AA13: =Z13/(AB4-Z8) -> 0 | AB13: =IF(AA13=0,0,(AA13*((LOG(AA13))/LOG(2)))) -> 0 | AD13: =N13 -> 0 | AE13: =COUNTIF(L81:L116,AD13) -> 0 | AF13: =AE13/(AG4-AE8) -> 0 | AG13: =IF(AF13=0,0,(AF13*((LOG(AF13))/LOG(2)))) -> 0 | AI13: =N13 -> 0 | AJ13: =COUNTIF(L117:L153,AI13) -> 0 | AK13: =AJ13/(AL4-AJ8) -> 0 | AL13: =IF(AK13=0,0,(AK13*((LOG(AK13))/LOG(2)))) -> 0 | AN13: =N13 -> 0 | AO13: =COUNTIF(L154:L190,AN13) -> 0 | AP13: =AO13/(AQ4-AO8) -> 0 | AQ13: =IF(AP13=0,0,(AP13*((LOG(AP13))/LOG(2)))) -> 0 | AS13: =N13 -> 0 | AT13: =COUNTIF(L191:L227,AS13) -> 0 | AU13: =AT13/(AV4-AT8) -> 0 | AV13: =IF(AU13=0,0,(AU13*((LOG(AU13))/LOG(2)))) -> 0
A14: 11 | B14: 747 | C14: 12 | D14: 751 | K14: 0 | L14: 11 | T14: =N14 -> 0 | U14: =COUNTIF(L7:L43,T14) -> 0 | V14: =U14/(W4-U8) -> 0 | W14: =IF(V14=0,0,(V14*((LOG(V14))/LOG(2)))) -> 0 | Y14: =N14 -> 0 | Z14: =COUNTIF(L44:L80,Y14) -> 0 | AA14: =Z14/(AB4-Z8) -> 0 | AB14: =IF(AA14=0,0,(AA14*((LOG(AA14))/LOG(2)))) -> 0 | AD14: =N14 -> 0 | AE14: =COUNTIF(L81:L116,AD14) -> 0 | AF14: =AE14/(AG4-AE8) -> 0 | AG14: =IF(AF14=0,0,(AF14*((LOG(AF14))/LOG(2)))) -> 0 | AI14: =N14 -> 0 | AJ14: =COUNTIF(L117:L153,AI14) -> 0 | AK14: =AJ14/(AL4-AJ8) -> 0 | AL14: =IF(AK14=0,0,(AK14*((LOG(AK14))/LOG(2)))) -> 0 | AN14: =N14 -> 0 | AO14: =COUNTIF(L154:L190,AN14) -> 0 | AP14: =AO14/(AQ4-AO8) -> 0 | AQ14: =IF(AP14=0,0,(AP14*((LOG(AP14))/LOG(2)))) -> 0 | AS14: =N14 -> 0 | AT14: =COUNTIF(L191:L227,AS14) -> 0 | AU14: =AT14/(AV4-AT8) -> 0 | AV14: =IF(AU14=0,0,(AU14*((LOG(AU14))/LOG(2)))) -> 0
A15: 11 | B15: 852 | C15: 12 | D15: 857 | K15: 0 | L15: 11 | P15: =SUM(P7:P14) -> 1 | Q15: =-SUM(Q7:Q14) -> 0.4617912786 | V15: =SUM(V7:V14) -> 1 | W15: =-SUM(W7:W14) -> 0 | AA15: =SUM(AA7:AA14) -> 1 | AB15: =-SUM(AB7:AB14) -> 0 | AF15: =SUM(AF7:AF14) -> 1 | AG15: =-SUM(AG7:AG14) -> 0.3731399901 | AK15: =SUM(AK7:AK14) -> 1 | AL15: =-SUM(AL7:AL14) -> 0.1792560669 | AP15: =SUM(AP7:AP14) -> 1 | AQ15: =-SUM(AQ7:AQ14) -> 0.7883699704 | AU15: =SUM(AU7:AU14) -> 1 | AV15: =-SUM(AV7:AV14) -> 0.3227569589
A16: 11 | B16: 953 | C16: 12 | D16: 958 | K16: 0 | L16: 11 | P16: U= | Q16: =Q15/(LOG(Q4)/LOG(2)) -> 0.0592959754 | V16: U1= | W16: =W15/(LOG(W4)/LOG(2)) -> 0 | AA16: U2= | AB16: =AB15/(LOG(AB4)/LOG(2)) -> 0 | AF16: U3= | AG16: =AG15/(LOG(AG4)/LOG(2)) -> 0.07217512633 | AK16: U4= | AL16: =AL15/(LOG(AL4)/LOG(2)) -> 0.03440976516 | AP16: U5= | AQ16: =AQ15/(LOG(AQ4)/LOG(2)) -> 0.1513344904 | AU16: U6= | AV16: =AV15/(LOG(AV4)/LOG(2)) -> 0.0619560127
A17: 11 | B17: 1061 | C17: 12 | D17: 1065 | K17: 0 | L17: 11
A18: 11 | B18: 1170 | C18: 12 | D18: 1174 | K18: 0 | L18: 11
A19: 11 | B19: 1271 | C19: 12 | D19: 1275 | K19: 0 | L19: 11 | N19: Total Target Seq
A20: 11 | B20: 1373 | C20: 12 | D20: 1379 | K20: 0 | L20: 11 | N20: =COUNTIF(L7:L227,G3) -> 4 | P20: 37 | Q20: 37 | R20: 36 | S20: 37 | T20: 37 | U20: 37
A21: 11 | B21: 1484 | C21: 12 | D21: 1488 | K21: 0 | L21: 11 | P21: % of reinforcement given in 6 equal intervals based on number of trials
A22: 11 | B22: 1606 | C22: 12 | D22: 1612 | K22: 0 | L22: 11 | P22: %_1 | Q22: %_2 | R22: %_3 | S22: %_4 | T22: %_5 | U22: %_6
A23: 11 | B23: 1715 | C23: 12 | D23: 1720 | K23: 0 | L23: 11 | O23: target sequence | P23: =$G$3 -> 12 | Q23: =$G$3 -> 12 | R23: =$G$3 -> 12 | S23: =$G$3 -> 12 | T23: =$G$3 -> 12 | U23: =$G$3 -> 12
A24: 11 | B24: 1822 | C24: 12 | D24: 1827 | K24: 0 | L24: 11 | O24: total reinforcement | P24: =U8 -> 0 | Q24: =Z8 -> 0 | R24: =AE8 -> 1 | S24: =AJ8 -> 0 | T24: =AO8 -> 0 | U24: =AT8 -> 3
A25: 11 | B25: 1928 | C25: 12 | D25: 1932 | K25: 0 | L25: 11 | O25: % target
A26: 11 | B26: 2030 | C26: 12 | D26: 2035 | K26: 0 | L26: 11 | O26: CCRF
A27: 11 | B27: 2136 | C27: 12 | D27: 2140 | K27: 0 | L27: 11 | O27: % CCRf
A28: 11 | B28: 2240 | C28: 12 | D28: 2244 | K28: 0 | L28: 11 | O28: average response rate | P28: =D43/P20 -> 103.4594595 | Q28: =(D80-D43)/Q20 -> 108.027027 | R28: =(D116-D80)/R20 -> 112.8888889 | S28: =(D153-D116)/S20 -> 105.0540541 | T28: =(D190-D153)/T20 -> 108.8918919 | U28: =(D227-D190)/U20 -> 111.0810811
A29: 11 | B29: 2344 | C29: 12 | D29: 2348 | K29: 0 | L29: 11
A30: 11 | B30: 2452 | C30: 12 | D30: 2457 | K30: 0 | L30: 11
A31: 11 | B31: 2559 | C31: 12 | D31: 2564 | K31: 0 | L31: 11
A32: 11 | B32: 2660 | C32: 12 | D32: 2664 | K32: 0 | L32: 11
A33: 11 | B33: 2766 | C33: 12 | D33: 2770 | K33: 0 | L33: 11
A34: 11 | B34: 2871 | C34: 12 | D34: 2876 | K34: 0 | L34: 11
A35: 11 | B35: 2976 | C35: 12 | D35: 2980 | K35: 0 | L35: 11
A36: 11 | B36: 3082 | C36: 12 | D36: 3086 | K36: 0 | L36: 11
A37: 11 | B37: 3186 | C37: 12 | D37: 3191 | K37: 0 | L37: 11
A38: 11 | B38: 3293 | C38: 12 | D38: 3298 | K38: 0 | L38: 11
A39: 11 | B39: 3400 | C39: 12 | D39: 3404 | K39: 0 | L39: 11
A40: 11 | B40: 3507 | C40: 12 | D40: 3512 | K40: 0 | L40: 11
A41: 11 | B41: 3616 | C41: 12 | D41: 3620 | K41: 0 | L41: 11
A42: 11 | B42: 3723 | C42: 12 | D42: 3727 | K42: 0 | L42: 11
A43: 11 | B43: 3824 | C43: 12 | D43: 3828 | K43: 0 | L43: 11
A44: 11 | B44: 3938 | C44: 12 | D44: 3942 | K44: 0 | L44: 11
A45: 11 | B45: 4042 | C45: 12 | D45: 4047 | K45: 0 | L45: 11
A46: 11 | B46: 4142 | C46: 12 | D46: 4146 | K46: 0 | L46: 11
A47: 11 | B47: 4242 | C47: 12 | D47: 4247 | K47: 0 | L47: 11
A48: 11 | B48: 4350 | C48: 12 | D48: 4354 | K48: 0 | L48: 11
A49: 11 | B49: 4450 | C49: 12 | D49: 4454 | K49: 0 | L49: 11
A50: 11 | B50: 4565 | C50: 12 | D50: 4569 | K50: 0 | L50: 11
A51: 11 | B51: 4674 | C51: 12 | D51: 4678 | K51: 0 | L51: 11
A52: 11 | B52: 4779 | C52: 12 | D52: 4783 | K52: 0 | L52: 11
A53: 11 | B53: 4879 | C53: 12 | D53: 4884 | K53: 0 | L53: 11
A54: 11 | B54: 4988 | C54: 12 | D54: 4992 | K54: 0 | L54: 11
A55: 11 | B55: 5106 | C55: 12 | D55: 5111 | K55: 0 | L55: 11
A56: 11 | B56: 5222 | C56: 12 | D56: 5227 | K56: 0 | L56: 11
A57: 11 | B57: 5324 | C57: 12 | D57: 5329 | K57: 0 | L57: 11
A58: 11 | B58: 5427 | C58: 12 | D58: 5431 | K58: 0 | L58: 11
A59: 11 | B59: 5526 | C59: 12 | D59: 5531 | K59: 0 | L59: 11
A60: 11 | B60: 5644 | C60: 12 | D60: 5658 | K60: 0 | L60: 11
A61: 11 | B61: 5755 | C61: 12 | D61: 5758 | K61: 0 | L61: 11
A62: 11 | B62: 5878 | C62: 12 | D62: 5884 | K62: 0 | L62: 11
A63: 11 | B63: 5982 | C63: 12 | D63: 5985 | K63: 0 | L63: 11
A64: 11 | B64: 6083 | C64: 12 | D64: 6086 | K64: 0 | L64: 11
A65: 11 | B65: 6190 | C65: 12 | D65: 6195 | K65: 0 | L65: 11
A66: 11 | B66: 6297 | C66: 12 | D66: 6301 | K66: 0 | L66: 11
A67: 11 | B67: 6402 | C67: 12 | D67: 6407 | K67: 0 | L67: 11
A68: 11 | B68: 6512 | C68: 12 | D68: 6516 | K68: 0 | L68: 11
A69: 11 | B69: 6614 | C69: 12 | D69: 6618 | K69: 0 | L69: 11
A70: 11 | B70: 6715 | C70: 12 | D70: 6719 | K70: 0 | L70: 11
A71: 11 | B71: 6818 | C71: 12 | D71: 6823 | K71: 0 | L71: 11
A72: 11 | B72: 6926 | C72: 12 | D72: 6930 | K72: 0 | L72: 11
A73: 11 | B73: 7029 | C73: 12 | D73: 7037 | K73: 0 | L73: 11
A74: 11 | B74: 7142 | C74: 12 | D74: 7145 | K74: 0 | L74: 11
A75: 11 | B75: 7252 | C75: 12 | D75: 7259 | K75: 0 | L75: 11
A76: 11 | B76: 7365 | C76: 12 | D76: 7383 | K76: 0 | L76: 11
A77: 11 | B77: 7493 | C77: 12 | D77: 7506 | K77: 0 | L77: 11
A78: 11 | B78: 7607 | C78: 12 | D78: 7611 | K78: 0 | L78: 11
A79: 11 | B79: 7719 | C79: 12 | D79: 7723 | K79: 0 | L79: 11
A80: 11 | B80: 7821 | C80: 12 | D80: 7825 | K80: 0 | L80: 11
A81: 11 | B81: 7942 | C81: 12 | D81: 7947 | K81: 0 | L81: 11
A82: 11 | B82: 8049 | C82: 12 | D82: 8053 | K82: 0 | L82: 11
A83: 11 | B83: 8180 | C83: 12 | D83: 8184 | K83: 0 | L83: 11
A84: 11 | B84: 8283 | C84: 12 | D84: 8287 | K84: 0 | L84: 11
A85: 11 | B85: 8612 | C85: 12 | D85: 8619 | K85: 0 | L85: 11
A86: 11 | B86: 8726 | C86: 21 | D86: 8730 | K86: 0 | L86: 12
A87: 11 | B87: 8823 | C87: 12 | D87: 8830 | K87: 0 | L87: 11
A88: 11 | B88: 8932 | C88: 12 | D88: 8941 | K88: 0 | L88: 11
A89: 11 | B89: 9051 | C89: 12 | D89: 9056 | K89: 0 | L89: 11
A90: 11 | B90: 9156 | C90: 12 | D90: 9160 | K90: 0 | L90: 11
A91: 11 | B91: 9256 | C91: 12 | D91: 9260 | K91: 0 | L91: 11
A92: 11 | B92: 9358 | C92: 12 | D92: 9362 | K92: 0 | L92: 11
A93: 22 | B93: 9464 | C93: 14 | D93: 9475 | K93: 0 | L93: 21
A94: 11 | B94: 9571 | C94: 12 | D94: 9583 | K94: 0 | L94: 11
A95: 11 | B95: 9680 | C95: 12 | D95: 9683 | K95: 0 | L95: 11
A96: 11 | B96: 9784 | C96: 12 | D96: 9789 | K96: 0 | L96: 11
A97: 11 | B97: 9901 | C97: 12 | D97: 9906 | K97: 0 | L97: 11
A98: 11 | B98: 10007 | C98: 12 | D98: 10010 | K98: 0 | L98: 11
A99: 11 | B99: 10111 | C99: 12 | D99: 10115 | K99: 0 | L99: 11
A100: 11 | B100: 10212 | C100: 12 | D100: 10216 | K100: 0 | L100: 11
A101: 11 | B101: 10317 | C101: 12 | D101: 10324 | K101: 0 | L101: 11
A102: 11 | B102: 10422 | C102: 12 | D102: 10426 | K102: 0 | L102: 11
A103: 11 | B103: 10523 | C103: 12 | D103: 10527 | K103: 0 | L103: 11
A104: 11 | B104: 10629 | C104: 12 | D104: 10632 | K104: 0 | L104: 11
A105: 11 | B105: 10731 | C105: 12 | D105: 10734 | K105: 0 | L105: 11
A106: 11 | B106: 10834 | C106: 12 | D106: 10839 | K106: 0 | L106: 11
A107: 11 | B107: 10939 | C107: 12 | D107: 10944 | K107: 0 | L107: 11
A108: 11 | B108: 11044 | C108: 12 | D108: 11048 | K108: 0 | L108: 11
A109: 11 | B109: 11149 | C109: 12 | D109: 11154 | K109: 0 | L109: 11
A110: 11 | B110: 11254 | C110: 12 | D110: 11258 | K110: 0 | L110: 11
A111: 11 | B111: 11358 | C111: 12 | D111: 11363 | K111: 0 | L111: 11
A112: 11 | B112: 11461 | C112: 12 | D112: 11464 | K112: 0 | L112: 11
A113: 22 | B113: 11566 | C113: 23 | D113: 11574 | K113: 0 | L113: 22
A114: 11 | B114: 11677 | C114: 12 | D114: 11681 | K114: 0 | L114: 11
A115: 11 | B115: 11782 | C115: 12 | D115: 11786 | K115: 0 | L115: 11
A116: 11 | B116: 11885 | C116: 12 | D116: 11889 | K116: 0 | L116: 11
A117: 11 | B117: 11986 | C117: 12 | D117: 11990 | K117: 0 | L117: 11
A118: 11 | B118: 12094 | C118: 12 | D118: 12097 | K118: 0 | L118: 11
A119: 11 | B119: 12196 | C119: 12 | D119: 12200 | K119: 0 | L119: 11
A120: 11 | B120: 12299 | C120: 12 | D120: 12303 | K120: 0 | L120: 11
A121: 11 | B121: 12405 | C121: 12 | D121: 12414 | K121: 0 | L121: 11
A122: 11 | B122: 12512 | C122: 12 | D122: 12516 | K122: 0 | L122: 11
A123: 11 | B123: 12617 | C123: 12 | D123: 12621 | K123: 0 | L123: 11
A124: 11 | B124: 12724 | C124: 12 | D124: 12729 | K124: 0 | L124: 11
A125: 22 | B125: 12832 | C125: 14 | D125: 12842 | K125: 0 | L125: 21
A126: 11 | B126: 12942 | C126: 12 | D126: 12946 | K126: 0 | L126: 11
A127: 11 | B127: 13044 | C127: 12 | D127: 13052 | K127: 0 | L127: 11
A128: 11 | B128: 13148 | C128: 12 | D128: 13154 | K128: 0 | L128: 11
A129: 11 | B129: 13251 | C129: 12 | D129: 13255 | K129: 0 | L129: 11
A130: 11 | B130: 13354 | C130: 12 | D130: 13358 | K130: 0 | L130: 11
A131: 11 | B131: 13461 | C131: 12 | D131: 13465 | K131: 0 | L131: 11
A132: 11 | B132: 13564 | C132: 12 | D132: 13569 | K132: 0 | L132: 11
A133: 11 | B133: 13676 | C133: 12 | D133: 13680 | K133: 0 | L133: 11
A134: 11 | B134: 13777 | C134: 12 | D134: 13780 | K134: 0 | L134: 11
A135: 11 | B135: 13876 | C135: 12 | D135: 13886 | K135: 0 | L135: 11
A136: 11 | B136: 13985 | C136: 12 | D136: 13990 | K136: 0 | L136: 11
A137: 11 | B137: 14087 | C137: 12 | D137: 14092 | K137: 0 | L137: 11
A138: 11 | B138: 14192 | C138: 12 | D138: 14199 | K138: 0 | L138: 11
A139: 11 | B139: 14296 | C139: 12 | D139: 14300 | K139: 0 | L139: 11
A140: 11 | B140: 14399 | C140: 12 | D140: 14406 | K140: 0 | L140: 11
A141: 11 | B141: 14505 | C141: 12 | D141: 14509 | K141: 0 | L141: 11
A142: 11 | B142: 14606 | C142: 12 | D142: 14610 | K142: 0 | L142: 11
A143: 11 | B143: 14707 | C143: 12 | D143: 14711 | K143: 0 | L143: 11
A144: 11 | B144: 14813 | C144: 12 | D144: 14816 | K144: 0 | L144: 11
A145: 11 | B145: 14933 | C145: 12 | D145: 14939 | K145: 0 | L145: 11
A146: 11 | B146: 15039 | C146: 12 | D146: 15043 | K146: 0 | L146: 11
A147: 11 | B147: 15142 | C147: 12 | D147: 15146 | K147: 0 | L147: 11
A148: 11 | B148: 15250 | C148: 12 | D148: 15257 | K148: 0 | L148: 11
A149: 11 | B149: 15356 | C149: 12 | D149: 15359 | K149: 0 | L149: 11
A150: 11 | B150: 15461 | C150: 12 | D150: 15465 | K150: 0 | L150: 11
A151: 11 | B151: 15566 | C151: 12 | D151: 15571 | K151: 0 | L151: 11
A152: 11 | B152: 15670 | C152: 12 | D152: 15675 | K152: 0 | L152: 11
A153: 11 | B153: 15772 | C153: 12 | D153: 15776 | K153: 0 | L153: 11
A154: 11 | B154: 15877 | C154: 12 | D154: 15882 | K154: 0 | L154: 11
A155: 11 | B155: 15981 | C155: 12 | D155: 15985 | K155: 0 | L155: 11
A156: 11 | B156: 16082 | C156: 12 | D156: 16086 | K156: 0 | L156: 11
A157: 11 | B157: 16183 | C157: 12 | D157: 16187 | K157: 0 | L157: 11
A158: 11 | B158: 16284 | C158: 12 | D158: 16288 | K158: 0 | L158: 11
A159: 11 | B159: 16386 | C159: 12 | D159: 16391 | K159: 0 | L159: 11
A160: 11 | B160: 16491 | C160: 12 | D160: 16496 | K160: 0 | L160: 11
A161: 11 | B161: 16594 | C161: 12 | D161: 16599 | K161: 0 | L161: 11
A162: 11 | B162: 16695 | C162: 12 | D162: 16700 | K162: 0 | L162: 11
A163: 11 | B163: 16798 | C163: 12 | D163: 16807 | K163: 0 | L163: 11
A164: 11 | B164: 16912 | C164: 12 | D164: 16916 | K164: 0 | L164: 11
A165: 11 | B165: 17012 | C165: 12 | D165: 17016 | K165: 0 | L165: 11
A166: 11 | B166: 17115 | C166: 12 | D166: 17120 | K166: 0 | L166: 11
A167: 11 | B167: 17216 | C167: 12 | D167: 17220 | K167: 0 | L167: 11
A168: 11 | B168: 17343 | C168: 12 | D168: 17347 | K168: 0 | L168: 11
A169: 11 | B169: 17472 | C169: 12 | D169: 17478 | K169: 0 | L169: 11
A170: 11 | B170: 17574 | C170: 12 | D170: 17579 | K170: 0 | L170: 11
A171: 11 | B171: 17676 | C171: 12 | D171: 17681 | K171: 0 | L171: 11
A172: 22 | B172: 17791 | C172: 14 | D172: 17806 | K172: 0 | L172: 21
A173: 22 | B173: 17912 | C173: 23 | D173: 17920 | K173: 0 | L173: 22
A174: 11 | B174: 18016 | C174: 12 | D174: 18020 | K174: 0 | L174: 11
A175: 11 | B175: 18124 | C175: 12 | D175: 18128 | K175: 0 | L175: 11
A176: 11 | B176: 18224 | C176: 12 | D176: 18228 | K176: 0 | L176: 11
A177: 11 | B177: 18335 | C177: 12 | D177: 18339 | K177: 0 | L177: 11
A178: 22 | B178: 18453 | C178: 14 | D178: 18467 | K178: 0 | L178: 21
A179: 22 | B179: 18575 | C179: 23 | D179: 18586 | K179: 0 | L179: 22
A180: 11 | B180: 18683 | C180: 12 | D180: 18687 | K180: 0 | L180: 11
A181: 11 | B181: 18796 | C181: 12 | D181: 18800 | K181: 0 | L181: 11
A182: 11 | B182: 18898 | C182: 12 | D182: 18902 | K182: 0 | L182: 11
A183: 11 | B183: 19012 | C183: 12 | D183: 19019 | K183: 0 | L183: 11
A184: 11 | B184: 19120 | C184: 12 | D184: 19124 | K184: 0 | L184: 11
A185: 11 | B185: 19224 | C185: 12 | D185: 19228 | K185: 0 | L185: 11
A186: 22 | B186: 19348 | C186: 23 | D186: 19365 | K186: 0 | L186: 22
A187: 22 | B187: 19477 | C187: 23 | D187: 19486 | K187: 0 | L187: 22
A188: 11 | B188: 19582 | C188: 12 | D188: 19586 | K188: 0 | L188: 11
A189: 11 | B189: 19689 | C189: 12 | D189: 19692 | K189: 0 | L189: 11
A190: 11 | B190: 19801 | C190: 12 | D190: 19805 | K190: 0 | L190: 11
A191: 11 | B191: 19917 | C191: 12 | D191: 19924 | K191: 0 | L191: 11
A192: 11 | B192: 20037 | C192: 12 | D192: 20045 | K192: 0 | L192: 11
A193: 11 | B193: 20158 | C193: 12 | D193: 20163 | K193: 0 | L193: 11
A194: 11 | B194: 20267 | C194: 12 | D194: 20270 | K194: 0 | L194: 11
A195: 11 | B195: 20373 | C195: 12 | D195: 20376 | K195: 0 | L195: 11
A196: 11 | B196: 20473 | C196: 12 | D196: 20477 | K196: 0 | L196: 11
A197: 11 | B197: 20586 | C197: 12 | D197: 20591 | K197: 0 | L197: 11
A198: 11 | B198: 20695 | C198: 12 | D198: 20699 | K198: 0 | L198: 11
A199: 11 | B199: 20800 | C199: 12 | D199: 20804 | K199: 0 | L199: 11
A200: 11 | B200: 20904 | C200: 12 | D200: 20908 | K200: 0 | L200: 11
... 27 more rows

Sheet !M915930.104
A1: Report for:!M915930.104
A2: Date: | B2: <date>
A3: Hen: | B3: <hen> | F3: Correct Sequence | G3: =Start!J2 -> 12 | P3: Total Sequences in Data | Q3: =4994-COUNTBLANK(L7:L5000) -> 96 | V3: Total Sequences in Block Data | W3: =COUNTA(L7:L22) -> 16 | AA3: Total Sequences in Block Data | AB3: =COUNTA(L23:L38) -> 16 | AF3: Total Sequences in Block Data | AG3: =COUNTA(L39:L54) -> 16 | AK3: Total Sequences in Block Data | AL3: =COUNTA(L55:L70) -> 16 | AP3: Total Sequences in Block Data | AQ3: =COUNTA(L71:L86) -> 16 | AU3: Total Sequences in Block Data | AV3: =COUNTA(L87:L102) -> 16
P4: Total Sequences in Summary | Q4: =SUM(O7:O14) -> 96 | V4: Total Sequences in Block Summary | W4: =SUM(U7:U14) -> 16 | AA4: Total Sequences in Block Summary | AB4: =SUM(Z7:Z14) -> 16 | AF4: Total Sequences in Block Summary | AG4: =SUM(AE7:AE14) -> 16 | AK4: Total Sequences in Block Summary | AL4: =SUM(AJ7:AJ14) -> 16 | AP4: Total Sequences in Block Summary | AQ4: =SUM(AO7:AO14) -> 16 | AU4: Total Sequences in Block Summary | AV4: =SUM(AT7:AT14) -> 16
T5: Block 1 | Y5: Block 2 | AD5: Block 3 | AI5: Block 4 | AN5: Block 5 | AS5: Block 6
A6: Sequence Component 1 | B6: Time 1 | C6: Sequence Component 2 | D6: Time 2 | E6: Sequence Component 3 | F6: Time 3 | G6: Sequence Component 4 | H6: Time 4 | I6: Sequence Component 5 | J6: Time 5 | K6: Correct? 0=No 1=Yes | L6: Sequence | N6: Frequency | P6: Relative Frequency | Q6: Variability | T6: Frequency | V6: Relative Frequency | W6: Variability | Y6: Frequency | AA6: Relative Frequency | AB6: Variability | AD6: Frequency | AF6: Relative Frequency | AG6: Variability | AI6: Frequency | AK6: Relative Frequency | AL6: Variability | AN6: Frequency | AP6: Relative Frequency | AQ6: Variability | AS6: Frequency | AU6: Relative Frequency | AV6: Variability
A7: 22 | B7: 42 | C7: 23 | D7: 51 | K7: 0 | L7: 22 | N7: 11 | O7: =COUNTIF($L$7:$L$500,N7) -> 28 | P7: =O7/$Q$4 -> 0.2916666667 | Q7: =IF(P7=0,0,(P7*((LOG(P7))/LOG(2)))) -> -0.5184688771 | T7: =N7 -> 11 | U7: =COUNTIF(L7:L22,T7) -> 7 | V7: =U7/(W4-U8) -> 0.5833333333 | W7: =IF(V7=0,0,(V7*((LOG(V7))/LOG(2)))) -> -0.4536044209 | Y7: =N7 -> 11 | Z7: =COUNTIF(L23:L38,Y7) -> 11 | AA7: =Z7/(AB4-Z8) -> 0.7333333333 | AB7: =IF(AA7=0,0,(AA7*((LOG(AA7))/LOG(2)))) -> -0.3281365831 | AD7: =N7 -> 11 | AE7: =COUNTIF(L39:L54,AD7) -> 3 | AF7: =AE7/(AG4-AE8) -> 0.4285714286 | AG7: =IF(AF7=0,0,(AF7*((LOG(AF7))/LOG(2)))) -> -0.5238824663 | AI7: =N7 -> 11 | AJ7: =COUNTIF(L55:L70,AI7) -> 3 | AK7: =AJ7/(AL4-AJ8) -> 0.5 | AL7: =IF(AK7=0,0,(AK7*((LOG(AK7))/LOG(2)))) -> -0.5 | AN7: =N7 -> 11 | AO7: =COUNTIF(L71:L86,AN7) -> 3 | AP7: =AO7/(AQ4-AO8) -> 0.3333333333 | AQ7: =IF(AP7=0,0,(AP7*((LOG(AP7))/LOG(2)))) -> -0.5283208336 | AS7: =N7 -> 11 | AT7: =COUNTIF(L87:L102,AS7) -> 1 | AU7: =AT7/(AV4-AT8) -> 0.1428571429 | AV7: =IF(AU7=0,0,(AU7*((LOG(AU7))/LOG(2)))) -> -0.4010507032
A8: 22 | B8: 164 | C8: 23 | D8: 173 | K8: 0 | L8: 22 | N8: 12 | O8: =COUNTIF($L$7:$L$500,N8) -> 40 | P8: =O8/$Q$4 -> 0.4166666667 | Q8: =IF(P8=0,0,(P8*((LOG(P8))/LOG(2)))) -> -0.5262643358 | T8: =N8 -> 12 | U8: =COUNTIF(L7:L22,T8) -> 4 | Y8: =N8 -> 12 | Z8: =COUNTIF(L23:L38,Y8) -> 1 | AD8: =N8 -> 12 | AE8: =COUNTIF(L39:L54,AD8) -> 9 | AI8: =N8 -> 12 | AJ8: =COUNTIF(L55:L70,AI8) -> 10 | AN8: =N8 -> 12 | AO8: =COUNTIF(L71:L86,AN8) -> 7 | AS8: =N8 -> 12 | AT8: =COUNTIF(L87:L102,AS8) -> 9
A9: 11 | B9: 271 | C9: 21 | D9: 284 | K9: 0 | L9: 12 | N9: 21 | O9: =COUNTIF($L$7:$L$500,N9) -> 2 | P9: =O9/$Q$4 -> 0.02083333333 | Q9: =IF(P9=0,0,(P9*((LOG(P9))/LOG(2)))) -> -0.1163533854 | T9: =N9 -> 21 | U9: =COUNTIF(L7:L22,T9) -> 1 | V9: =U9/(W4-U8) -> 0.08333333333 | W9: =IF(V9=0,0,(V9*((LOG(V9))/LOG(2)))) -> -0.2987468751 | Y9: =N9 -> 21 | Z9: =COUNTIF(L23:L38,Y9) -> 0 | AA9: =Z9/(AB4-Z8) -> 0 | AB9: =IF(AA9=0,0,(AA9*((LOG(AA9))/LOG(2)))) -> 0 | AD9: =N9 -> 21 | AE9: =COUNTIF(L39:L54,AD9) -> 0 | AF9: =AE9/(AG4-AE8) -> 0 | AG9: =IF(AF9=0,0,(AF9*((LOG(AF9))/LOG(2)))) -> 0 | AI9: =N9 -> 21 | AJ9: =COUNTIF(L55:L70,AI9) -> 0 | AK9: =AJ9/(AL4-AJ8) -> 0 | AL9: =IF(AK9=0,0,(AK9*((LOG(AK9))/LOG(2)))) -> 0 | AN9: =N9 -> 21 | AO9: =COUNTIF(L71:L86,AN9) -> 1 | AP9: =AO9/(AQ4-AO8) -> 0.1111111111 | AQ9: =IF(AP9=0,0,(AP9*((LOG(AP9))/LOG(2)))) -> -0.352213889 | AS9: =N9 -> 21 | AT9: =COUNTIF(L87:L102,AS9) -> 0 | AU9: =AT9/(AV4-AT8) -> 0 | AV9: =IF(AU9=0,0,(AU9*((LOG(AU9))/LOG(2)))) -> 0
A10: 11 | B10: 397 | C10: 21 | D10: 408 | K10: 0 | L10: 12 | N10: 22 | O10: =COUNTIF($L$7:$L$500,N10) -> 26 | P10: =O10/$Q$4 -> 0.2708333333 | Q10: =IF(P10=0,0,(P10*((LOG(P10))/LOG(2)))) -> -0.5103915869 | T10: =N10 -> 22 | U10: =COUNTIF(L7:L22,T10) -> 4 | V10: =U10/(W4-U8) -> 0.3333333333 | W10: =IF(V10=0,0,(V10*((LOG(V10))/LOG(2)))) -> -0.5283208336 | Y10: =N10 -> 22 | Z10: =COUNTIF(L23:L38,Y10) -> 4 | AA10: =Z10/(AB4-Z8) -> 0.2666666667 | AB10: =IF(AA10=0,0,(AA10*((LOG(AA10))/LOG(2)))) -> -0.5085041588 | AD10: =N10 -> 22 | AE10: =COUNTIF(L39:L54,AD10) -> 4 | AF10: =AE10/(AG4-AE8) -> 0.5714285714 | AG10: =IF(AF10=0,0,(AF10*((LOG(AF10))/LOG(2)))) -> -0.4613456697 | AI10: =N10 -> 22 | AJ10: =COUNTIF(L55:L70,AI10) -> 3 | AK10: =AJ10/(AL4-AJ8) -> 0.5 | AL10: =IF(AK10=0,0,(AK10*((LOG(AK10))/LOG(2)))) -> -0.5 | AN10: =N10 -> 22 | AO10: =COUNTIF(L71:L86,AN10) -> 5 | AP10: =AO10/(AQ4-AO8) -> 0.5555555556 | AQ10: =IF(AP10=0,0,(AP10*((LOG(AP10))/LOG(2)))) -> -0.4711093925 | AS10: =N10 -> 22 | AT10: =COUNTIF(L87:L102,AS10) -> 6 | AU10: =AT10/(AV4-AT8) -> 0.8571428571 | AV10: =IF(AU10=0,0,(AU10*((LOG(AU10))/LOG(2)))) -> -0.1906220754
A11: 11 | B11: 505 | C11: 21 | D11: 516 | K11: 0 | L11: 12 | T11: =N11 -> 0 | U11: =COUNTIF(L7:L22,T11) -> 0 | V11: =U11/(W4-U8) -> 0 | W11: =IF(V11=0,0,(V11*((LOG(V11))/LOG(2)))) -> 0 | Y11: =N11 -> 0 | Z11: =COUNTIF(L23:L38,Y11) -> 0 | AA11: =Z11/(AB4-Z8) -> 0 | AB11: =IF(AA11=0,0,(AA11*((LOG(AA11))/LOG(2)))) -> 0 | AD11: =N11 -> 0 | AE11: =COUNTIF(L39:L54,AD11) -> 0 | AF11: =AE11/(AG4-AE8) -> 0 | AG11: =IF(AF11=0,0,(AF11*((LOG(AF11))/LOG(2)))) -> 0 | AI11: =N11 -> 0 | AJ11: =COUNTIF(L55:L70,AI11) -> 0 | AK11: =AJ11/(AL4-AJ8) -> 0 | AL11: =IF(AK11=0,0,(AK11*((LOG(AK11))/LOG(2)))) -> 0 | AN11: =N11 -> 0 | AO11: =COUNTIF(L71:L86,AN11) -> 0 | AP11: =AO11/(AQ4-AO8) -> 0 | AQ11: =IF(AP11=0,0,(AP11*((LOG(AP11))/LOG(2)))) -> 0 | AS11: =N11 -> 0 | AT11: =COUNTIF(L87:L102,AS11) -> 0 | AU11: =AT11/(AV4-AT8) -> 0 | AV11: =IF(AU11=0,0,(AU11*((LOG(AU11))/LOG(2)))) -> 0
A12: 11 | B12: 611 | C12: 21 | D12: 620 | K12: 0 | L12: 12 | T12: =N12 -> 0 | U12: =COUNTIF(L7:L22,T12) -> 0 | V12: =U12/(W4-U8) -> 0 | W12: =IF(V12=0,0,(V12*((LOG(V12))/LOG(2)))) -> 0 | Y12: =N12 -> 0 | Z12: =COUNTIF(L23:L38,Y12) -> 0 | AA12: =Z12/(AB4-Z8) -> 0 | AB12: =IF(AA12=0,0,(AA12*((LOG(AA12))/LOG(2)))) -> 0 | AD12: =N12 -> 0 | AE12: =COUNTIF(L39:L54,AD12) -> 0 | AF12: =AE12/(AG4-AE8) -> 0 | AG12: =IF(AF12=0,0,(AF12*((LOG(AF12))/LOG(2)))) -> 0 | AI12: =N12 -> 0 | AJ12: =COUNTIF(L55:L70,AI12) -> 0 | AK12: =AJ12/(AL4-AJ8) -> 0 | AL12: =IF(AK12=0,0,(AK12*((LOG(AK12))/LOG(2)))) -> 0 | AN12: =N12 -> 0 | AO12: =COUNTIF(L71:L86,AN12) -> 0 | AP12: =AO12/(AQ4-AO8) -> 0 | AQ12: =IF(AP12=0,0,(AP12*((LOG(AP12))/LOG(2)))) -> 0 | AS12: =N12 -> 0 | AT12: =COUNTIF(L87:L102,AS12) -> 0 | AU12: =AT12/(AV4-AT8) -> 0 | AV12: =IF(AU12=0,0,(AU12*((LOG(AU12))/LOG(2)))) -> 0
A13: 11 | B13: 721 | C13: 12 | D13: 730 | K13: 0 | L13: 11 | T13: =N13 -> 0 | U13: =COUNTIF(L7:L22,T13) -> 0 | V13: =U13/(W4-U8) -> 0 | W13: =IF(V13=0,0,(V13*((LOG(V13))/LOG(2)))) -> 0 | Y13: =N13 -> 0 | Z13: =COUNTIF(L23:L38,Y13) -> 0 | AA13: =Z13/(AB4-Z8) -> 0 | AB13: =IF(AA13=0,0,(AA13*((LOG(AA13))/LOG(2)))) -> 0 | AD13: =N13 -> 0 | AE13: =COUNTIF(L39:L54,AD13) -> 0 | AF13: =AE13/(AG4-AE8) -> 0 | AG13: =IF(AF13=0,0,(AF13*((LOG(AF13))/LOG(2)))) -> 0 | AI13: =N13 -> 0 | AJ13: =COUNTIF(L55:L70,AI13) -> 0 | AK13: =AJ13/(AL4-AJ8) -> 0 | AL13: =IF(AK13=0,0,(AK13*((LOG(AK13))/LOG(2)))) -> 0 | AN13: =N13 -> 0 | AO13: =COUNTIF(L71:L86,AN13) -> 0 | AP13: =AO13/(AQ4-AO8) -> 0 | AQ13: =IF(AP13=0,0,(AP13*((LOG(AP13))/LOG(2)))) -> 0 | AS13: =N13 -> 0 | AT13: =COUNTIF(L87:L102,AS13) -> 0 | AU13: =AT13/(AV4-AT8) -> 0 | AV13: =IF(AU13=0,0,(AU13*((LOG(AU13))/LOG(2)))) -> 0
A14: 22 | B14: 832 | C14: 23 | D14: 840 | K14: 0 | L14: 22 | T14: =N14 -> 0 | U14: =COUNTIF(L7:L22,T14) -> 0 | V14: =U14/(W4-U8) -> 0 | W14: =IF(V14=0,0,(V14*((LOG(V14))/LOG(2)))) -> 0 | Y14: =N14 -> 0 | Z14: =COUNTIF(L23:L38,Y14) -> 0 | AA14: =Z14/(AB4-Z8) -> 0 | AB14: =IF(AA14=0,0,(AA14*((LOG(AA14))/LOG(2)))) -> 0 | AD14: =N14 -> 0 | AE14: =COUNTIF(L39:L54,AD14) -> 0 | AF14: =AE14/(AG4-AE8) -> 0 | AG14: =IF(AF14=0,0,(AF14*((LOG(AF14))/LOG(2)))) -> 0 | AI14: =N14 -> 0 | AJ14: =COUNTIF(L55:L70,AI14) -> 0 | AK14: =AJ14/(AL4-AJ8) -> 0 | AL14: =IF(AK14=0,0,(AK14*((LOG(AK14))/LOG(2)))) -> 0 | AN14: =N14 -> 0 | AO14: =COUNTIF(L71:L86,AN14) -> 0 | AP14: =AO14/(AQ4-AO8) -> 0 | AQ14: =IF(AP14=0,0,(AP14*((LOG(AP14))/LOG(2)))) -> 0 | AS14: =N14 -> 0 | AT14: =COUNTIF(L87:L102,AS14) -> 0 | AU14: =AT14/(AV4-AT8) -> 0 | AV14: =IF(AU14=0,0,(AU14*((LOG(AU14))/LOG(2)))) -> 0
A15: 11 | B15: 940 | C15: 12 | D15: 944 | K15: 0 | L15: 11 | P15: =SUM(P7:P14) -> 1 | Q15: =-SUM(Q7:Q14) -> 1.671478185 | V15: =SUM(V7:V14) -> 1 | W15: =-SUM(W7:W14) -> 1.28067213 | AA15: =SUM(AA7:AA14) -> 1 | AB15: =-SUM(AB7:AB14) -> 0.8366407419 | AF15: =SUM(AF7:AF14) -> 1 | AG15: =-SUM(AG7:AG14) -> 0.985228136 | AK15: =SUM(AK7:AK14) -> 1 | AL15: =-SUM(AL7:AL14) -> 1 | AP15: =SUM(AP7:AP14) -> 1 | AQ15: =-SUM(AQ7:AQ14) -> 1.351644115 | AU15: =SUM(AU7:AU14) -> 1 | AV15: =-SUM(AV7:AV14) -> 0.5916727786
A16: 11 | B16: 1042 | C16: 12 | D16: 1048 | K16: 0 | L16: 11 | P16: U= | Q16: =Q15/(LOG(Q4)/LOG(2)) -> 0.253832605 | V16: U1= | W16: =W15/(LOG(W4)/LOG(2)) -> 0.3201680324 | AA16: U2= | AB16: =AB15/(LOG(AB4)/LOG(2)) -> 0.2091601855 | AF16: U3= | AG16: =AG15/(LOG(AG4)/LOG(2)) -> 0.246307034 | AK16: U4= | AL16: =AL15/(LOG(AL4)/LOG(2)) -> 0.25 | AP16: U5= | AQ16: =AQ15/(LOG(AQ4)/LOG(2)) -> 0.3379110288 | AU16: U6= | AV16: =AV15/(LOG(AV4)/LOG(2)) -> 0.1479181946
A17: 11 | B17: 1163 | C17: 12 | D17: 1167 | K17: 0 | L17: 11
A18: 11 | B18: 1263 | C18: 12 | D18: 1268 | K18: 0 | L18: 11
A19: 11 | B19: 1368 | C19: 12 | D19: 1373 | K19: 0 | L19: 11 | N19: Total Target Seq
A20: 22 | B20: 1473 | C20: 14 | D20: 1486 | K20: 0 | L20: 21 | N20: =COUNTIF(L7:L102,G3) -> 40 | P20: 16 | Q20: 16 | R20: 16 | S20: 16 | T20: 16 | U20: 16
A21: 22 | B21: 1596 | C21: 23 | D21: 1614 | K21: 0 | L21: 22 | P21: % of reinforcement given in 6 equal intervals based on number of trials
A22: 11 | B22: 1711 | C22: 12 | D22: 1715 | K22: 0 | L22: 11 | P22: %_1 | Q22: %_2 | R22: %_3 | S22: %_4 | T22: %_5 | U22: %_6
A23: 22 | B23: 1827 | C23: 23 | D23: 1837 | K23: 0 | L23: 22 | O23: target sequence | P23: =$G$3 -> 12 | Q23: =$G$3 -> 12 | R23: =$G$3 -> 12 | S23: =$G$3 -> 12 | T23: =$G$3 -> 12 | U23: =$G$3 -> 12
A24: 11 | B24: 1934 | C24: 12 | D24: 1939 | K24: 0 | L24: 11 | O24: total reinforcement | P24: =U8 -> 4 | Q24: =Z8 -> 1 | R24: =AE8 -> 9 | S24: =AJ8 -> 10 | T24: =AO8 -> 7 | U24: =AT8 -> 9
A25: 11 | B25: 2036 | C25: 12 | D25: 2040 | K25: 0 | L25: 11 | O25: % target
A26: 11 | B26: 2145 | C26: 12 | D26: 2150 | K26: 0 | L26: 11 | O26: CCRF
A27: 22 | B27: 2247 | C27: 23 | D27: 2255 | K27: 0 | L27: 22 | O27: % CCRf
A28: 11 | B28: 2355 | C28: 12 | D28: 2360 | K28: 0 | L28: 11 | O28: average response rate | P28: =D22/P20 -> 107.1875 | Q28: =(D38-D22)/Q20 -> 110.0625 | R28: =(D54-D38)/R20 -> 109.625 | S28: =(D70-D54)/S20 -> 109.4375 | T28: =(D86-D70)/T20 -> 113.5 | U28: =(D102-D86)/U20 -> 110.5625
A29: 11 | B29: 2462 | C29: 12 | D29: 2466 | K29: 0 | L29: 11
A30: 11 | B30: 2563 | C30: 12 | D30: 2568 | K30: 0 | L30: 11
A31: 11 | B31: 2675 | C31: 12 | D31: 2680 | K31: 0 | L31: 11
A32: 11 | B32: 2777 | C32: 12 | D32: 2782 | K32: 0 | L32: 11
A33: 11 | B33: 2881 | C33: 12 | D33: 2885 | K33: 0 | L33: 11
A34: 11 | B34: 2994 | C34: 12 | D34: 2999 | K34: 0 | L34: 11
A35: 22 | B35: 3115 | C35: 23 | D35: 3128 | K35: 0 | L35: 22
A36: 11 | B36: 3226 | C36: 21 | D36: 3246 | K36: 0 | L36: 12
A37: 11 | B37: 3349 | C37: 12 | D37: 3357 | K37: 0 | L37: 11
A38: 22 | B38: 3466 | C38: 23 | D38: 3476 | K38: 0 | L38: 22
A39: 11 | B39: 3573 | C39: 12 | D39: 3578 | K39: 0 | L39: 11
A40: 22 | B40: 3679 | C40: 23 | D40: 3692 | K40: 0 | L40: 22
A41: 22 | B41: 3801 | C41: 23 | D41: 3810 | K41: 0 | L41: 22
A42: 11 | B42: 3908 | C42: 21 | D42: 3919 | K42: 0 | L42: 12
A43: 11 | B43: 4016 | C43: 12 | D43: 4021 | K43: 0 | L43: 11
A44: 11 | B44: 4117 | C44: 21 | D44: 4139 | K44: 0 | L44: 12
A45: 22 | B45: 4242 | C45: 23 | D45: 4255 | K45: 0 | L45: 22
A46: 11 | B46: 4357 | C46: 21 | D46: 4368 | K46: 0 | L46: 12
A47: 11 | B47: 4461 | C47: 21 | D47: 4481 | K47: 0 | L47: 12
A48: 11 | B48: 4574 | C48: 21 | D48: 4584 | K48: 0 | L48: 12
A49: 11 | B49: 4682 | C49: 12 | D49: 4687 | K49: 0 | L49: 11
A50: 11 | B50: 4790 | C50: 21 | D50: 4810 | K50: 0 | L50: 12
A51: 11 | B51: 4901 | C51: 21 | D51: 4920 | K51: 0 | L51: 12
A52: 11 | B52: 5008 | C52: 21 | D52: 5017 | K52: 0 | L52: 12
A53: 11 | B53: 5110 | C53: 21 | D53: 5122 | K53: 0 | L53: 12
A54: 22 | B54: 5220 | C54: 23 | D54: 5230 | K54: 0 | L54: 22
A55: 11 | B55: 5326 | C55: 12 | D55: 5331 | K55: 0 | L55: 11
A56: 11 | B56: 5427 | C56: 12 | D56: 5432 | K56: 0 | L56: 11
A57: 11 | B57: 5527 | C57: 21 | D57: 5545 | K57: 0 | L57: 12
A58: 11 | B58: 5642 | C58: 12 | D58: 5649 | K58: 0 | L58: 11
A59: 11 | B59: 5749 | C59: 21 | D59: 5760 | K59: 0 | L59: 12
A60: 11 | B60: 5875 | C60: 21 | D60: 5886 | K60: 0 | L60: 12
A61: 11 | B61: 5984 | C61: 21 | D61: 6001 | K61: 0 | L61: 12
A62: 11 | B62: 6089 | C62: 21 | D62: 6101 | K62: 0 | L62: 12
A63: 11 | B63: 6189 | C63: 21 | D63: 6201 | K63: 0 | L63: 12
A64: 11 | B64: 6289 | C64: 21 | D64: 6300 | K64: 0 | L64: 12
A65: 11 | B65: 6399 | C65: 21 | D65: 6416 | K65: 0 | L65: 12
A66: 22 | B66: 6521 | C66: 23 | D66: 6529 | K66: 0 | L66: 22
A67: 11 | B67: 6625 | C67: 21 | D67: 6637 | K67: 0 | L67: 12
A68: 11 | B68: 6729 | C68: 21 | D68: 6741 | K68: 0 | L68: 12
A69: 22 | B69: 6836 | C69: 23 | D69: 6844 | K69: 0 | L69: 22
A70: 22 | B70: 6967 | C70: 23 | D70: 6981 | K70: 0 | L70: 22
A71: 11 | B71: 7084 | C71: 21 | D71: 7097 | K71: 0 | L71: 12
A72: 22 | B72: 7196 | C72: 23 | D72: 7204 | K72: 0 | L72: 22
A73: 11 | B73: 7302 | C73: 21 | D73: 7346 | K73: 0 | L73: 12
A74: 11 | B74: 7433 | C74: 21 | D74: 7443 | K74: 0 | L74: 12
A75: 11 | B75: 7536 | C75: 21 | D75: 7547 | K75: 0 | L75: 12
A76: 22 | B76: 7663 | C76: 23 | D76: 7677 | K76: 0 | L76: 22
A77: 11 | B77: 7782 | C77: 12 | D77: 7796 | K77: 0 | L77: 11
A78: 22 | B78: 7903 | C78: 23 | D78: 7911 | K78: 0 | L78: 22
A79: 22 | B79: 8019 | C79: 23 | D79: 8033 | K79: 0 | L79: 22
A80: 11 | B80: 8129 | C80: 21 | D80: 8140 | K80: 0 | L80: 12
A81: 11 | B81: 8235 | C81: 12 | D81: 8241 | K81: 0 | L81: 11
A82: 11 | B82: 8336 | C82: 21 | D82: 8348 | K82: 0 | L82: 12
A83: 11 | B83: 8438 | C83: 21 | D83: 8449 | K83: 0 | L83: 12
A84: 11 | B84: 8559 | C84: 12 | D84: 8567 | K84: 0 | L84: 11
A85: 22 | B85: 8674 | C85: 14 | D85: 8686 | K85: 0 | L85: 21
A86: 22 | B86: 8790 | C86: 23 | D86: 8797 | K86: 0 | L86: 22
A87: 22 | B87: 8905 | C87: 23 | D87: 8915 | K87: 0 | L87: 22
A88: 11 | B88: 9011 | C88: 21 | D88: 9044 | K88: 0 | L88: 12
A89: 11 | B89: 9134 | C89: 12 | D89: 9142 | K89: 0 | L89: 11
A90: 11 | B90: 9237 | C90: 21 | D90: 9248 | K90: 0 | L90: 12
A91: 22 | B91: 9349 | C91: 23 | D91: 9361 | K91: 0 | L91: 22
A92: 11 | B92: 9455 | C92: 21 | D92: 9466 | K92: 0 | L92: 12
A93: 22 | B93: 9569 | C93: 23 | D93: 9577 | K93: 0 | L93: 22
A94: 22 | B94: 9685 | C94: 23 | D94: 9694 | K94: 0 | L94: 22
A95: 11 | B95: 9789 | C95: 21 | D95: 9810 | K95: 0 | L95: 12
A96: 11 | B96: 9904 | C96: 21 | D96: 9915 | K96: 0 | L96: 12
A97: 11 | B97: 9998 | C97: 21 | D97: 10015 | K97: 0 | L97: 12
A98: 22 | B98: 10115 | C98: 23 | D98: 10123 | K98: 0 | L98: 22
A99: 11 | B99: 10224 | C99: 21 | D99: 10249 | K99: 0 | L99: 12
A100: 22 | B100: 10350 | C100: 23 | D100: 10358 | K100: 0 | L100: 22
A101: 11 | B101: 10453 | C101: 21 | D101: 10464 | K101: 0 | L101: 12
A102: 11 | B102: 10552 | C102: 21 | D102: 10566 | K102: 1 | L102: 12

Sheet !M916B10.104
A1: Report for:!M916B10.104
A2: Date: | B2: <date>
A3: Hen: | B3: <hen> | F3: Correct Sequence | G3: =Start!J2 -> 12 | P3: Total Sequences in Data | Q3: =4994-COUNTBLANK(L7:L5000) -> 75 | V3: Total Sequences in Block Data | W3: =COUNTA(L7:L19) -> 13 | AA3: Total Sequences in Block Data | AB3: =COUNTA(L20:L31) -> 12 | AF3: Total Sequences in Block Data | AG3: =COUNTA(L32:L44) -> 13 | AK3: Total Sequences in Block Data | AL3: =COUNTA(L45:L56) -> 12 | AP3: Total Sequences in Block Data | AQ3: =COUNTA(L57:L69) -> 13 | AU3: Total Sequences in Block Data | AV3: =COUNTA(L70:L81) -> 12
P4: Total Sequences in Summary | Q4: =SUM(O7:O14) -> 75 | V4: Total Sequences in Block Summary | W4: =SUM(U7:U14) -> 13 | AA4: Total Sequences in Block Summary | AB4: =SUM(Z7:Z14) -> 12 | AF4: Total Sequences in Block Summary | AG4: =SUM(AE7:AE14) -> 13 | AK4: Total Sequences in Block Summary | AL4: =SUM(AJ7:AJ14) -> 12 | AP4: Total Sequences in Block Summary | AQ4: =SUM(AO7:AO14) -> 13 | AU4: Total Sequences in Block Summary | AV4: =SUM(AT7:AT14) -> 12
T5: Block 1 | Y5: Block 2 | AD5: Block 3 | AI5: Block 4 | AN5: Block 5 | AS5: Block 6
A6: Sequence Component 1 | B6: Time 1 | C6: Sequence Component 2 | D6: Time 2 | E6: Sequence Component 3 | F6: Time 3 | G6: Sequence Component 4 | H6: Time 4 | I6: Sequence Component 5 | J6: Time 5 | K6: Correct? 0=No 1=Yes | L6: Sequence | N6: Frequency | P6: Relative Frequency | Q6: Variability | T6: Frequency | V6: Relative Frequency | W6: Variability | Y6: Frequency | AA6: Relative Frequency | AB6: Variability | AD6: Frequency | AF6: Relative Frequency | AG6: Variability | AI6: Frequency | AK6: Relative Frequency | AL6: Variability | AN6: Frequency | AP6: Relative Frequency | AQ6: Variability | AS6: Frequency | AU6: Relative Frequency | AV6: Variability
A7: 22 | B7: 18 | C7: 23 | D7: 28 | K7: 0 | L7: 22 | N7: 11 | O7: =COUNTIF($L$7:$L$500,N7) -> 4 | P7: =O7/$Q$4 -> 0.05333333333 | Q7: =IF(P7=0,0,(P7*((LOG(P7))/LOG(2)))) -> -0.2255369968 | T7: =N7 -> 11 | U7: =COUNTIF(L7:L19,T7) -> 0 | V7: =U7/(W4-U8) -> 0 | W7: =IF(V7=0,0,(V7*((LOG(V7))/LOG(2)))) -> 0 | Y7: =N7 -> 11 | Z7: =COUNTIF(L20:L31,Y7) -> 1 | AA7: =Z7/(AB4-Z8) -> 0.125 | AB7: =IF(AA7=0,0,(AA7*((LOG(AA7))/LOG(2)))) -> -0.375 | AD7: =N7 -> 11 | AE7: =COUNTIF(L32:L44,AD7) -> 0 | AF7: =AE7/(AG4-AE8) -> 0 | AG7: =IF(AF7=0,0,(AF7*((LOG(AF7))/LOG(2)))) -> 0 | AI7: =N7 -> 11 | AJ7: =COUNTIF(L45:L56,AI7) -> 0 | AK7: =AJ7/(AL4-AJ8) -> 0 | AL7: =IF(AK7=0,0,(AK7*((LOG(AK7))/LOG(2)))) -> 0 | AN7: =N7 -> 11 | AO7: =COUNTIF(L57:L69,AN7) -> 2 | AP7: =AO7/(AQ4-AO8) -> 0.3333333333 | AQ7: =IF(AP7=0,0,(AP7*((LOG(AP7))/LOG(2)))) -> -0.5283208336 | AS7: =N7 -> 11 | AT7: =COUNTIF(L70:L81,AS7) -> 1 | AU7: =AT7/(AV4-AT8) -> 0.2 | AV7: =IF(AU7=0,0,(AU7*((LOG(AU7))/LOG(2)))) -> -0.464385619
A8: 11 | B8: 154 | C8: 21 | D8: 162 | K8: 0 | L8: 12 | N8: 12 | O8: =COUNTIF($L$7:$L$500,N8) -> 40 | P8: =O8/$Q$4 -> 0.5333333333 | Q8: =IF(P8=0,0,(P8*((LOG(P8))/LOG(2)))) -> -0.4836749843 | T8: =N8 -> 12 | U8: =COUNTIF(L7:L19,T8) -> 8 | Y8: =N8 -> 12 | Z8: =COUNTIF(L20:L31,Y8) -> 4 | AD8: =N8 -> 12 | AE8: =COUNTIF(L32:L44,AD8) -> 7 | AI8: =N8 -> 12 | AJ8: =COUNTIF(L45:L56,AI8) -> 7 | AN8: =N8 -> 12 | AO8: =COUNTIF(L57:L69,AN8) -> 7 | AS8: =N8 -> 12 | AT8: =COUNTIF(L70:L81,AS8) -> 7
A9: 11 | B9: 259 | C9: 21 | D9: 266 | K9: 0 | L9: 12 | N9: 21 | O9: =COUNTIF($L$7:$L$500,N9) -> 6 | P9: =O9/$Q$4 -> 0.08 | Q9: =IF(P9=0,0,(P9*((LOG(P9))/LOG(2)))) -> -0.2915084952 | T9: =N9 -> 21 | U9: =COUNTIF(L7:L19,T9) -> 0 | V9: =U9/(W4-U8) -> 0 | W9: =IF(V9=0,0,(V9*((LOG(V9))/LOG(2)))) -> 0 | Y9: =N9 -> 21 | Z9: =COUNTIF(L20:L31,Y9) -> 2 | AA9: =Z9/(AB4-Z8) -> 0.25 | AB9: =IF(AA9=0,0,(AA9*((LOG(AA9))/LOG(2)))) -> -0.5 | AD9: =N9 -> 21 | AE9: =COUNTIF(L32:L44,AD9) -> 1 | AF9: =AE9/(AG4-AE8) -> 0.1666666667 | AG9: =IF(AF9=0,0,(AF9*((LOG(AF9))/LOG(2)))) -> -0.4308270835 | AI9: =N9 -> 21 | AJ9: =COUNTIF(L45:L56,AI9) -> 1 | AK9: =AJ9/(AL4-AJ8) -> 0.2 | AL9: =IF(AK9=0,0,(AK9*((LOG(AK9))/LOG(2)))) -> -0.464385619 | AN9: =N9 -> 21 | AO9: =COUNTIF(L57:L69,AN9) -> 0 | AP9: =AO9/(AQ4-AO8) -> 0 | AQ9: =IF(AP9=0,0,(AP9*((LOG(AP9))/LOG(2)))) -> 0 | AS9: =N9 -> 21 | AT9: =COUNTIF(L70:L81,AS9) -> 2 | AU9: =AT9/(AV4-AT8) -> 0.4 | AV9: =IF(AU9=0,0,(AU9*((LOG(AU9))/LOG(2)))) -> -0.528771238
A10: 22 | B10: 356 | C10: 23 | D10: 365 | K10: 0 | L10: 22 | N10: 22 | O10: =COUNTIF($L$7:$L$500,N10) -> 25 | P10: =O10/$Q$4 -> 0.3333333333 | Q10: =IF(P10=0,0,(P10*((LOG(P10))/LOG(2)))) -> -0.5283208336 | T10: =N10 -> 22 | U10: =COUNTIF(L7:L19,T10) -> 5 | V10: =U10/(W4-U8) -> 1 | W10: =IF(V10=0,0,(V10*((LOG(V10))/LOG(2)))) -> 0 | Y10: =N10 -> 22 | Z10: =COUNTIF(L20:L31,Y10) -> 5 | AA10: =Z10/(AB4-Z8) -> 0.625 | AB10: =IF(AA10=0,0,(AA10*((LOG(AA10))/LOG(2)))) -> -0.4237949407 | AD10: =N10 -> 22 | AE10: =COUNTIF(L32:L44,AD10) -> 5 | AF10: =AE10/(AG4-AE8) -> 0.8333333333 | AG10: =IF(AF10=0,0,(AF10*((LOG(AF10))/LOG(2)))) -> -0.2191953382 | AI10: =N10 -> 22 | AJ10: =COUNTIF(L45:L56,AI10) -> 4 | AK10: =AJ10/(AL4-AJ8) -> 0.8 | AL10: =IF(AK10=0,0,(AK10*((LOG(AK10))/LOG(2)))) -> -0.2575424759 | AN10: =N10 -> 22 | AO10: =COUNTIF(L57:L69,AN10) -> 4 | AP10: =AO10/(AQ4-AO8) -> 0.6666666667 | AQ10: =IF(AP10=0,0,(AP10*((LOG(AP10))/LOG(2)))) -> -0.3899750005 | AS10: =N10 -> 22 | AT10: =COUNTIF(L70:L81,AS10) -> 2 | AU10: =AT10/(AV4-AT8) -> 0.4 | AV10: =IF(AU10=0,0,(AU10*((LOG(AU10))/LOG(2)))) -> -0.528771238
A11: 22 | B11: 464 | C11: 23 | D11: 473 | K11: 0 | L11: 22 | T11: =N11 -> 0 | U11: =COUNTIF(L7:L19,T11) -> 0 | V11: =U11/(W4-U8) -> 0 | W11: =IF(V11=0,0,(V11*((LOG(V11))/LOG(2)))) -> 0 | Y11: =N11 -> 0 | Z11: =COUNTIF(L20:L31,Y11) -> 0 | AA11: =Z11/(AB4-Z8) -> 0 | AB11: =IF(AA11=0,0,(AA11*((LOG(AA11))/LOG(2)))) -> 0 | AD11: =N11 -> 0 | AE11: =COUNTIF(L32:L44,AD11) -> 0 | AF11: =AE11/(AG4-AE8) -> 0 | AG11: =IF(AF11=0,0,(AF11*((LOG(AF11))/LOG(2)))) -> 0 | AI11: =N11 -> 0 | AJ11: =COUNTIF(L45:L56,AI11) -> 0 | AK11: =AJ11/(AL4-AJ8) -> 0 | AL11: =IF(AK11=0,0,(AK11*((LOG(AK11))/LOG(2)))) -> 0 | AN11: =N11 -> 0 | AO11: =COUNTIF(L57:L69,AN11) -> 0 | AP11: =AO11/(AQ4-AO8) -> 0 | AQ11: =IF(AP11=0,0,(AP11*((LOG(AP11))/LOG(2)))) -> 0 | AS11: =N11 -> 0 | AT11: =COUNTIF(L70:L81,AS11) -> 0 | AU11: =AT11/(AV4-AT8) -> 0 | AV11: =IF(AU11=0,0,(AU11*((LOG(AU11))/LOG(2)))) -> 0
A12: 11 | B12: 570 | C12: 21 | D12: 580 | K12: 0 | L12: 12 | T12: =N12 -> 0 | U12: =COUNTIF(L7:L19,T12) -> 0 | V12: =U12/(W4-U8) -> 0 | W12: =IF(V12=0,0,(V12*((LOG(V12))/LOG(2)))) -> 0 | Y12: =N12 -> 0 | Z12: =COUNTIF(L20:L31,Y12) -> 0 | AA12: =Z12/(AB4-Z8) -> 0 | AB12: =IF(AA12=0,0,(AA12*((LOG(AA12))/LOG(2)))) -> 0 | AD12: =N12 -> 0 | AE12: =COUNTIF(L32:L44,AD12) -> 0 | AF12: =AE12/(AG4-AE8) -> 0 | AG12: =IF(AF12=0,0,(AF12*((LOG(AF12))/LOG(2)))) -> 0 | AI12: =N12 -> 0 | AJ12: =COUNTIF(L45:L56,AI12) -> 0 | AK12: =AJ12/(AL4-AJ8) -> 0 | AL12: =IF(AK12=0,0,(AK12*((LOG(AK12))/LOG(2)))) -> 0 | AN12: =N12 -> 0 | AO12: =COUNTIF(L57:L69,AN12) -> 0 | AP12: =AO12/(AQ4-AO8) -> 0 | AQ12: =IF(AP12=0,0,(AP12*((LOG(AP12))/LOG(2)))) -> 0 | AS12: =N12 -> 0 | AT12: =COUNTIF(L70:L81,AS12) -> 0 | AU12: =AT12/(AV4-AT8) -> 0 | AV12: =IF(AU12=0,0,(AU12*((LOG(AU12))/LOG(2)))) -> 0
A13: 11 | B13: 676 | C13: 21 | D13: 688 | K13: 0 | L13: 12 | T13: =N13 -> 0 | U13: =COUNTIF(L7:L19,T13) -> 0 | V13: =U13/(W4-U8) -> 0 | W13: =IF(V13=0,0,(V13*((LOG(V13))/LOG(2)))) -> 0 | Y13: =N13 -> 0 | Z13: =COUNTIF(L20:L31,Y13) -> 0 | AA13: =Z13/(AB4-Z8) -> 0 | AB13: =IF(AA13=0,0,(AA13*((LOG(AA13))/LOG(2)))) -> 0 | AD13: =N13 -> 0 | AE13: =COUNTIF(L32:L44,AD13) -> 0 | AF13: =AE13/(AG4-AE8) -> 0 | AG13: =IF(AF13=0,0,(AF13*((LOG(AF13))/LOG(2)))) -> 0 | AI13: =N13 -> 0 | AJ13: =COUNTIF(L45:L56,AI13) -> 0 | AK13: =AJ13/(AL4-AJ8) -> 0 | AL13: =IF(AK13=0,0,(AK13*((LOG(AK13))/LOG(2)))) -> 0 | AN13: =N13 -> 0 | AO13: =COUNTIF(L57:L69,AN13) -> 0 | AP13: =AO13/(AQ4-AO8) -> 0 | AQ13: =IF(AP13=0,0,(AP13*((LOG(AP13))/LOG(2)))) -> 0 | AS13: =N13 -> 0 | AT13: =COUNTIF(L70:L81,AS13) -> 0 | AU13: =AT13/(AV4-AT8) -> 0 | AV13: =IF(AU13=0,0,(AU13*((LOG(AU13))/LOG(2)))) -> 0
A14: 11 | B14: 785 | C14: 21 | D14: 794 | K14: 0 | L14: 12 | T14: =N14 -> 0 | U14: =COUNTIF(L7:L19,T14) -> 0 | V14: =U14/(W4-U8) -> 0 | W14: =IF(V14=0,0,(V14*((LOG(V14))/LOG(2)))) -> 0 | Y14: =N14 -> 0 | Z14: =COUNTIF(L20:L31,Y14) -> 0 | AA14: =Z14/(AB4-Z8) -> 0 | AB14: =IF(AA14=0,0,(AA14*((LOG(AA14))/LOG(2)))) -> 0 | AD14: =N14 -> 0 | AE14: =COUNTIF(L32:L44,AD14) -> 0 | AF14: =AE14/(AG4-AE8) -> 0 | AG14: =IF(AF14=0,0,(AF14*((LOG(AF14))/LOG(2)))) -> 0 | AI14: =N14 -> 0 | AJ14: =COUNTIF(L45:L56,AI14) -> 0 | AK14: =AJ14/(AL4-AJ8) -> 0 | AL14: =IF(AK14=0,0,(AK14*((LOG(AK14))/LOG(2)))) -> 0 | AN14: =N14 -> 0 | AO14: =COUNTIF(L57:L69,AN14) -> 0 | AP14: =AO14/(AQ4-AO8) -> 0 | AQ14: =IF(AP14=0,0,(AP14*((LOG(AP14))/LOG(2)))) -> 0 | AS14: =N14 -> 0 | AT14: =COUNTIF(L70:L81,AS14) -> 0 | AU14: =AT14/(AV4-AT8) -> 0 | AV14: =IF(AU14=0,0,(AU14*((LOG(AU14))/LOG(2)))) -> 0
A15: 11 | B15: 883 | C15: 21 | D15: 891 | K15: 0 | L15: 12 | P15: =SUM(P7:P14) -> 1 | Q15: =-SUM(Q7:Q14) -> 1.52904131 | V15: =SUM(V7:V14) -> 1 | W15: =-SUM(W7:W14) -> 0 | AA15: =SUM(AA7:AA14) -> 1 | AB15: =-SUM(AB7:AB14) -> 1.298794941 | AF15: =SUM(AF7:AF14) -> 1 | AG15: =-SUM(AG7:AG14) -> 0.6500224216 | AK15: =SUM(AK7:AK14) -> 1 | AL15: =-SUM(AL7:AL14) -> 0.7219280949 | AP15: =SUM(AP7:AP14) -> 1 | AQ15: =-SUM(AQ7:AQ14) -> 0.9182958341 | AU15: =SUM(AU7:AU14) -> 1 | AV15: =-SUM(AV7:AV14) -> 1.521928095
A16: 22 | B16: 984 | C16: 23 | D16: 992 | K16: 0 | L16: 22 | P16: U= | Q16: =Q15/(LOG(Q4)/LOG(2)) -> 0.2454785387 | V16: U1= | W16: =W15/(LOG(W4)/LOG(2)) -> 0 | AA16: U2= | AB16: =AB15/(LOG(AB4)/LOG(2)) -> 0.3622896866 | AF16: U3= | AG16: =AG15/(LOG(AG4)/LOG(2)) -> 0.1756608596 | AK16: U4= | AL16: =AL15/(LOG(AL4)/LOG(2)) -> 0.2013767493 | AP16: U5= | AQ16: =AQ15/(LOG(AQ4)/LOG(2)) -> 0.2481585714 | AU16: U6= | AV16: =AV15/(LOG(AV4)/LOG(2)) -> 0.4245311059
A17: 22 | B17: 1093 | C17: 23 | D17: 1102 | K17: 0 | L17: 22
A18: 11 | B18: 1201 | C18: 21 | D18: 1210 | K18: 0 | L18: 12
A19: 11 | B19: 1303 | C19: 21 | D19: 1316 | K19: 0 | L19: 12 | N19: Total Target Seq
A20: 22 | B20: 1422 | C20: 23 | D20: 1442 | K20: 0 | L20: 22 | N20: =COUNTIF(L7:L81,G3) -> 40 | P20: 13 | Q20: 12 | R20: 13 | S20: 12 | T20: 13 | U20: 12
A21: 22 | B21: 1552 | C21: 23 | D21: 1561 | K21: 0 | L21: 22 | P21: % of reinforcement given in 6 equal intervals based on number of trials
A22: 11 | B22: 1659 | C22: 21 | D22: 1670 | K22: 0 | L22: 12 | P22: %_1 | Q22: %_2 | R22: %_3 | S22: %_4 | T22: %_5 | U22: %_6
A23: 22 | B23: 1772 | C23: 23 | D23: 1780 | K23: 0 | L23: 22 | O23: target sequence | P23: =$G$3 -> 12 | Q23: =$G$3 -> 12 | R23: =$G$3 -> 12 | S23: =$G$3 -> 12 | T23: =$G$3 -> 12 | U23: =$G$3 -> 12
A24: 22 | B24: 1884 | C24: 14 | D24: 1896 | K24: 0 | L24: 21 | O24: total reinforcement | P24: =U8 -> 8 | Q24: =Z8 -> 4 | R24: =AE8 -> 7 | S24: =AJ8 -> 7 | T24: =AO8 -> 7 | U24: =AT8 -> 7
A25: 11 | B25: 1996 | C25: 12 | D25: 2002 | K25: 0 | L25: 11 | O25: % target
A26: 22 | B26: 2110 | C26: 23 | D26: 2118 | K26: 0 | L26: 22 | O26: CCRF
A27: 11 | B27: 2217 | C27: 21 | D27: 2229 | K27: 0 | L27: 12 | O27: % CCRf
A28: 22 | B28: 2332 | C28: 23 | D28: 2346 | K28: 0 | L28: 22 | O28: average response rate | P28: =D19/P20 -> 101.2307692 | Q28: =(D31-D19)/Q20 -> 112.6666667 | R28: =(D44-D31)/R20 -> 110.5384615 | S28: =(D56-D44)/S20 -> 113.8333333 | T28: =(D69-D56)/T20 -> 119.2307692 | U28: =(D81-D69)/U20 -> 122.5833333
A29: 11 | B29: 2443 | C29: 21 | D29: 2455 | K29: 0 | L29: 12
A30: 11 | B30: 2544 | C30: 21 | D30: 2554 | K30: 0 | L30: 12
A31: 22 | B31: 2654 | C31: 14 | D31: 2668 | K31: 0 | L31: 21
A32: 22 | B32: 2776 | C32: 14 | D32: 2789 | K32: 0 | L32: 21
A33: 11 | B33: 2886 | C33: 21 | D33: 2895 | K33: 0 | L33: 12
A34: 11 | B34: 2992 | C34: 21 | D34: 3004 | K34: 0 | L34: 12
A35: 22 | B35: 3105 | C35: 23 | D35: 3117 | K35: 0 | L35: 22
A36: 11 | B36: 3221 | C36: 21 | D36: 3233 | K36: 0 | L36: 12
A37: 11 | B37: 3327 | C37: 21 | D37: 3336 | K37: 0 | L37: 12
A38: 22 | B38: 3437 | C38: 23 | D38: 3446 | K38: 0 | L38: 22
A39: 11 | B39: 3545 | C39: 21 | D39: 3553 | K39: 0 | L39: 12
A40: 22 | B40: 3651 | C40: 23 | D40: 3660 | K40: 0 | L40: 22
A41: 22 | B41: 3768 | C41: 23 | D41: 3780 | K41: 0 | L41: 22
A42: 11 | B42: 3876 | C42: 21 | D42: 3886 | K42: 0 | L42: 12
A43: 11 | B43: 3978 | C43: 21 | D43: 3989 | K43: 0 | L43: 12
A44: 22 | B44: 4087 | C44: 23 | D44: 4105 | K44: 0 | L44: 22
A45: 11 | B45: 4208 | C45: 21 | D45: 4222 | K45: 0 | L45: 12
A46: 22 | B46: 4326 | C46: 23 | D46: 4355 | K46: 0 | L46: 22
A47: 22 | B47: 4462 | C47: 14 | D47: 4478 | K47: 0 | L47: 21
A48: 11 | B48: 4585 | C48: 21 | D48: 4609 | K48: 0 | L48: 12
A49: 11 | B49: 4698 | C49: 21 | D49: 4709 | K49: 0 | L49: 12
A50: 11 | B50: 4795 | C50: 21 | D50: 4805 | K50: 0 | L50: 12
A51: 11 | B51: 4893 | C51: 21 | D51: 4904 | K51: 0 | L51: 12
A52: 11 | B52: 4988 | C52: 21 | D52: 4999 | K52: 0 | L52: 12
A53: 22 | B53: 5118 | C53: 23 | D53: 5126 | K53: 0 | L53: 22
A54: 22 | B54: 5234 | C54: 23 | D54: 5243 | K54: 0 | L54: 22
A55: 11 | B55: 5338 | C55: 21 | D55: 5350 | K55: 0 | L55: 12
A56: 22 | B56: 5458 | C56: 23 | D56: 5471 | K56: 0 | L56: 22
A57: 11 | B57: 5565 | C57: 12 | D57: 5576 | K57: 0 | L57: 11
A58: 11 | B58: 5674 | C58: 21 | D58: 5685 | K58: 0 | L58: 12
A59: 11 | B59: 5773 | C59: 21 | D59: 5783 | K59: 0 | L59: 12
A60: 22 | B60: 5879 | C60: 23 | D60: 5896 | K60: 0 | L60: 22
A61: 11 | B61: 5991 | C61: 21 | D61: 6003 | K61: 0 | L61: 12
A62: 22 | B62: 6098 | C62: 23 | D62: 6120 | K62: 0 | L62: 22
A63: 11 | B63: 6218 | C63: 21 | D63: 6230 | K63: 0 | L63: 12
A64: 11 | B64: 6334 | C64: 12 | D64: 6368 | K64: 0 | L64: 11
A65: 22 | B65: 6495 | C65: 23 | D65: 6515 | K65: 0 | L65: 22
A66: 11 | B66: 6609 | C66: 21 | D66: 6632 | K66: 0 | L66: 12
A67: 11 | B67: 6731 | C67: 21 | D67: 6742 | K67: 0 | L67: 12
A68: 11 | B68: 6829 | C68: 21 | D68: 6841 | K68: 0 | L68: 12
A69: 22 | B69: 6956 | C69: 23 | D69: 7021 | K69: 0 | L69: 22
A70: 11 | B70: 7116 | C70: 21 | D70: 7127 | K70: 0 | L70: 12
A71: 11 | B71: 7237 | C71: 21 | D71: 7250 | K71: 0 | L71: 12
A72: 22 | B72: 7346 | C72: 14 | D72: 7383 | K72: 0 | L72: 21
A73: 11 | B73: 7488 | C73: 21 | D73: 7509 | K73: 0 | L73: 12
A74: 22 | B74: 7607 | C74: 23 | D74: 7617 | K74: 0 | L74: 22
A75: 22 | B75: 7725 | C75: 23 | D75: 7750 | K75: 0 | L75: 22
A76: 11 | B76: 7853 | C76: 21 | D76: 7900 | K76: 0 | L76: 12
A77: 11 | B77: 7990 | C77: 12 | D77: 7997 | K77: 0 | L77: 11
A78: 11 | B78: 8098 | C78: 21 | D78: 8133 | K78: 0 | L78: 12
A79: 22 | B79: 8238 | C79: 14 | D79: 8254 | K79: 0 | L79: 21
A80: 11 | B80: 8349 | C80: 21 | D80: 8371 | K80: 0 | L80: 12
A81: 11 | B81: 8483 | C81: 21 | D81: 8492 | K81: 1 | L81: 12

Sheet !M917940.104
A1: Report for:!M917940.104
A2: Date: | B2: <date>
A3: Hen: | B3: <hen> | F3: Correct Sequence | G3: =Start!J2 -> 12 | P3: Total Sequences in Data | Q3: =4994-COUNTBLANK(L7:L5000) -> 73 | V3: Total Sequences in Block Data | W3: =COUNTA(L7:L18) -> 12 | AA3: Total Sequences in Block Data | AB3: =COUNTA(L19:L30) -> 12 | AF3: Total Sequences in Block Data | AG3: =COUNTA(L31:L43) -> 13 | AK3: Total Sequences in Block Data | AL3: =COUNTA(L44:L55) -> 12 | AP3: Total Sequences in Block Data | AQ3: =COUNTA(L56:L67) -> 12 | AU3: Total Sequences in Block Data | AV3: =COUNTA(L68:L79) -> 12
P4: Total Sequences in Summary | Q4: =SUM(O7:O14) -> 73 | V4: Total Sequences in Block Summary | W4: =SUM(U7:U14) -> 12 | AA4: Total Sequences in Block Summary | AB4: =SUM(Z7:Z14) -> 12 | AF4: Total Sequences in Block Summary | AG4: =SUM(AE7:AE14) -> 13 | AK4: Total Sequences in Block Summary | AL4: =SUM(AJ7:AJ14) -> 12 | AP4: Total Sequences in Block Summary | AQ4: =SUM(AO7:AO14) -> 12 | AU4: Total Sequences in Block Summary | AV4: =SUM(AT7:AT14) -> 12
T5: Block 1 | Y5: Block 2 | AD5: Block 3 | AI5: Block 4 | AN5: Block 5 | AS5: Block 6
A6: Sequence Component 1 | B6: Time 1 | C6: Sequence Component 2 | D6: Time 2 | E6: Sequence Component 3 | F6: Time 3 | G6: Sequence Component 4 | H6: Time 4 | I6: Sequence Component 5 | J6: Time 5 | K6: Correct? 0=No 1=Yes | L6: Sequence | N6: Frequency | P6: Relative Frequency | Q6: Variability | T6: Frequency | V6: Relative Frequency | W6: Variability | Y6: Frequency | AA6: Relative Frequency | AB6: Variability | AD6: Frequency | AF6: Relative Frequency | AG6: Variability | AI6: Frequency | AK6: Relative Frequency | AL6: Variability | AN6: Frequency | AP6: Relative Frequency | AQ6: Variability | AS6: Frequency | AU6: Relative Frequency | AV6: Variability
A7: 22 | B7: 12 | C7: 14 | D7: 37 | K7: 0 | L7: 21 | N7: 11 | O7: =COUNTIF($L$7:$L$500,N7) -> 6 | P7: =O7/$Q$4 -> 0.08219178082 | Q7: =IF(P7=0,0,(P7*((LOG(P7))/LOG(2)))) -> -0.2962900322 | T7: =N7 -> 11 | U7: =COUNTIF(L7:L18,T7) -> 0 | V7: =U7/(W4-U8) -> 0 | W7: =IF(V7=0,0,(V7*((LOG(V7))/LOG(2)))) -> 0 | Y7: =N7 -> 11 | Z7: =COUNTIF(L19:L30,Y7) -> 0 | AA7: =Z7/(AB4-Z8) -> 0 | AB7: =IF(AA7=0,0,(AA7*((LOG(AA7))/LOG(2)))) -> 0 | AD7: =N7 -> 11 | AE7: =COUNTIF(L31:L43,AD7) -> 0 | AF7: =AE7/(AG4-AE8) -> 0 | AG7: =IF(AF7=0,0,(AF7*((LOG(AF7))/LOG(2)))) -> 0 | AI7: =N7 -> 11 | AJ7: =COUNTIF(L44:L55,AI7) -> 2 | AK7: =AJ7/(AL4-AJ8) -> 0.5 | AL7: =IF(AK7=0,0,(AK7*((LOG(AK7))/LOG(2)))) -> -0.5 | AN7: =N7 -> 11 | AO7: =COUNTIF(L56:L67,AN7) -> 0 | AP7: =AO7/(AQ4-AO8) -> 0 | AQ7: =IF(AP7=0,0,(AP7*((LOG(AP7))/LOG(2)))) -> 0 | AS7: =N7 -> 11 | AT7: =COUNTIF(L68:L79,AS7) -> 4 | AU7: =AT7/(AV4-AT8) -> 0.8 | AV7: =IF(AU7=0,0,(AU7*((LOG(AU7))/LOG(2)))) -> -0.2575424759
A8: 22 | B8: 136 | C8: 23 | D8: 144 | K8: 0 | L8: 22 | N8: 12 | O8: =COUNTIF($L$7:$L$500,N8) -> 40 | P8: =O8/$Q$4 -> 0.5479452055 | Q8: =IF(P8=0,0,(P8*((LOG(P8))/LOG(2)))) -> -0.4755597063 | T8: =N8 -> 12 | U8: =COUNTIF(L7:L18,T8) -> 2 | Y8: =N8 -> 12 | Z8: =COUNTIF(L19:L30,Y8) -> 5 | AD8: =N8 -> 12 | AE8: =COUNTIF(L31:L43,AD8) -> 11 | AI8: =N8 -> 12 | AJ8: =COUNTIF(L44:L55,AI8) -> 8 | AN8: =N8 -> 12 | AO8: =COUNTIF(L56:L67,AN8) -> 7 | AS8: =N8 -> 12 | AT8: =COUNTIF(L68:L79,AS8) -> 7
A9: 22 | B9: 255 | C9: 23 | D9: 264 | K9: 0 | L9: 22 | N9: 21 | O9: =COUNTIF($L$7:$L$500,N9) -> 5 | P9: =O9/$Q$4 -> 0.06849315068 | Q9: =IF(P9=0,0,(P9*((LOG(P9))/LOG(2)))) -> -0.2649244153 | T9: =N9 -> 21 | U9: =COUNTIF(L7:L18,T9) -> 1 | V9: =U9/(W4-U8) -> 0.1 | W9: =IF(V9=0,0,(V9*((LOG(V9))/LOG(2)))) -> -0.3321928095 | Y9: =N9 -> 21 | Z9: =COUNTIF(L19:L30,Y9) -> 2 | AA9: =Z9/(AB4-Z8) -> 0.2857142857 | AB9: =IF(AA9=0,0,(AA9*((LOG(AA9))/LOG(2)))) -> -0.5163871206 | AD9: =N9 -> 21 | AE9: =COUNTIF(L31:L43,AD9) -> 1 | AF9: =AE9/(AG4-AE8) -> 0.5 | AG9: =IF(AF9=0,0,(AF9*((LOG(AF9))/LOG(2)))) -> -0.5 | AI9: =N9 -> 21 | AJ9: =COUNTIF(L44:L55,AI9) -> 0 | AK9: =AJ9/(AL4-AJ8) -> 0 | AL9: =IF(AK9=0,0,(AK9*((LOG(AK9))/LOG(2)))) -> 0 | AN9: =N9 -> 21 | AO9: =COUNTIF(L56:L67,AN9) -> 1 | AP9: =AO9/(AQ4-AO8) -> 0.2 | AQ9: =IF(AP9=0,0,(AP9*((LOG(AP9))/LOG(2)))) -> -0.464385619 | AS9: =N9 -> 21 | AT9: =COUNTIF(L68:L79,AS9) -> 0 | AU9: =AT9/(AV4-AT8) -> 0 | AV9: =IF(AU9=0,0,(AU9*((LOG(AU9))/LOG(2)))) -> 0
A10: 22 | B10: 366 | C10: 23 | D10: 375 | K10: 0 | L10: 22 | N10: 22 | O10: =COUNTIF($L$7:$L$500,N10) -> 22 | P10: =O10/$Q$4 -> 0.301369863 | Q10: =IF(P10=0,0,(P10*((LOG(P10))/LOG(2)))) -> -0.5214882834 | T10: =N10 -> 22 | U10: =COUNTIF(L7:L18,T10) -> 9 | V10: =U10/(W4-U8) -> 0.9 | W10: =IF(V10=0,0,(V10*((LOG(V10))/LOG(2)))) -> -0.1368027841 | Y10: =N10 -> 22 | Z10: =COUNTIF(L19:L30,Y10) -> 5 | AA10: =Z10/(AB4-Z8) -> 0.7142857143 | AB10: =IF(AA10=0,0,(AA10*((LOG(AA10))/LOG(2)))) -> -0.346733448 | AD10: =N10 -> 22 | AE10: =COUNTIF(L31:L43,AD10) -> 1 | AF10: =AE10/(AG4-AE8) -> 0.5 | AG10: =IF(AF10=0,0,(AF10*((LOG(AF10))/LOG(2)))) -> -0.5 | AI10: =N10 -> 22 | AJ10: =COUNTIF(L44:L55,AI10) -> 2 | AK10: =AJ10/(AL4-AJ8) -> 0.5 | AL10: =IF(AK10=0,0,(AK10*((LOG(AK10))/LOG(2)))) -> -0.5 | AN10: =N10 -> 22 | AO10: =COUNTIF(L56:L67,AN10) -> 4 | AP10: =AO10/(AQ4-AO8) -> 0.8 | AQ10: =IF(AP10=0,0,(AP10*((LOG(AP10))/LOG(2)))) -> -0.2575424759 | AS10: =N10 -> 22 | AT10: =COUNTIF(L68:L79,AS10) -> 1 | AU10: =AT10/(AV4-AT8) -> 0.2 | AV10: =IF(AU10=0,0,(AU10*((LOG(AU10))/LOG(2)))) -> -0.464385619
A11: 22 | B11: 478 | C11: 23 | D11: 492 | K11: 0 | L11: 22 | T11: =N11 -> 0 | U11: =COUNTIF(L7:L18,T11) -> 0 | V11: =U11/(W4-U8) -> 0 | W11: =IF(V11=0,0,(V11*((LOG(V11))/LOG(2)))) -> 0 | Y11: =N11 -> 0 | Z11: =COUNTIF(L19:L30,Y11) -> 0 | AA11: =Z11/(AB4-Z8) -> 0 | AB11: =IF(AA11=0,0,(AA11*((LOG(AA11))/LOG(2)))) -> 0 | AD11: =N11 -> 0 | AE11: =COUNTIF(L31:L43,AD11) -> 0 | AF11: =AE11/(AG4-AE8) -> 0 | AG11: =IF(AF11=0,0,(AF11*((LOG(AF11))/LOG(2)))) -> 0 | AI11: =N11 -> 0 | AJ11: =COUNTIF(L44:L55,AI11) -> 0 | AK11: =AJ11/(AL4-AJ8) -> 0 | AL11: =IF(AK11=0,0,(AK11*((LOG(AK11))/LOG(2)))) -> 0 | AN11: =N11 -> 0 | AO11: =COUNTIF(L56:L67,AN11) -> 0 | AP11: =AO11/(AQ4-AO8) -> 0 | AQ11: =IF(AP11=0,0,(AP11*((LOG(AP11))/LOG(2)))) -> 0 | AS11: =N11 -> 0 | AT11: =COUNTIF(L68:L79,AS11) -> 0 | AU11: =AT11/(AV4-AT8) -> 0 | AV11: =IF(AU11=0,0,(AU11*((LOG(AU11))/LOG(2)))) -> 0
A12: 22 | B12: 603 | C12: 23 | D12: 613 | K12: 0 | L12: 22 | T12: =N12 -> 0 | U12: =COUNTIF(L7:L18,T12) -> 0 | V12: =U12/(W4-U8) -> 0 | W12: =IF(V12=0,0,(V12*((LOG(V12))/LOG(2)))) -> 0 | Y12: =N12 -> 0 | Z12: =COUNTIF(L19:L30,Y12) -> 0 | AA12: =Z12/(AB4-Z8) -> 0 | AB12: =IF(AA12=0,0,(AA12*((LOG(AA12))/LOG(2)))) -> 0 | AD12: =N12 -> 0 | AE12: =COUNTIF(L31:L43,AD12) -> 0 | AF12: =AE12/(AG4-AE8) -> 0 | AG12: =IF(AF12=0,0,(AF12*((LOG(AF12))/LOG(2)))) -> 0 | AI12: =N12 -> 0 | AJ12: =COUNTIF(L44:L55,AI12) -> 0 | AK12: =AJ12/(AL4-AJ8) -> 0 | AL12: =IF(AK12=0,0,(AK12*((LOG(AK12))/LOG(2)))) -> 0 | AN12: =N12 -> 0 | AO12: =COUNTIF(L56:L67,AN12) -> 0 | AP12: =AO12/(AQ4-AO8) -> 0 | AQ12: =IF(AP12=0,0,(AP12*((LOG(AP12))/LOG(2)))) -> 0 | AS12: =N12 -> 0 | AT12: =COUNTIF(L68:L79,AS12) -> 0 | AU12: =AT12/(AV4-AT8) -> 0 | AV12: =IF(AU12=0,0,(AU12*((LOG(AU12))/LOG(2)))) -> 0
A13: 22 | B13: 717 | C13: 23 | D13: 726 | K13: 0 | L13: 22 | T13: =N13 -> 0 | U13: =COUNTIF(L7:L18,T13) -> 0 | V13: =U13/(W4-U8) -> 0 | W13: =IF(V13=0,0,(V13*((LOG(V13))/LOG(2)))) -> 0 | Y13: =N13 -> 0 | Z13: =COUNTIF(L19:L30,Y13) -> 0 | AA13: =Z13/(AB4-Z8) -> 0 | AB13: =IF(AA13=0,0,(AA13*((LOG(AA13))/LOG(2)))) -> 0 | AD13: =N13 -> 0 | AE13: =COUNTIF(L31:L43,AD13) -> 0 | AF13: =AE13/(AG4-AE8) -> 0 | AG13: =IF(AF13=0,0,(AF13*((LOG(AF13))/LOG(2)))) -> 0 | AI13: =N13 -> 0 | AJ13: =COUNTIF(L44:L55,AI13) -> 0 | AK13: =AJ13/(AL4-AJ8) -> 0 | AL13: =IF(AK13=0,0,(AK13*((LOG(AK13))/LOG(2)))) -> 0 | AN13: =N13 -> 0 | AO13: =COUNTIF(L56:L67,AN13) -> 0 | AP13: =AO13/(AQ4-AO8) -> 0 | AQ13: =IF(AP13=0,0,(AP13*((LOG(AP13))/LOG(2)))) -> 0 | AS13: =N13 -> 0 | AT13: =COUNTIF(L68:L79,AS13) -> 0 | AU13: =AT13/(AV4-AT8) -> 0 | AV13: =IF(AU13=0,0,(AU13*((LOG(AU13))/LOG(2)))) -> 0
A14: 22 | B14: 825 | C14: 23 | D14: 833 | K14: 0 | L14: 22 | T14: =N14 -> 0 | U14: =COUNTIF(L7:L18,T14) -> 0 | V14: =U14/(W4-U8) -> 0 | W14: =IF(V14=0,0,(V14*((LOG(V14))/LOG(2)))) -> 0 | Y14: =N14 -> 0 | Z14: =COUNTIF(L19:L30,Y14) -> 0 | AA14: =Z14/(AB4-Z8) -> 0 | AB14: =IF(AA14=0,0,(AA14*((LOG(AA14))/LOG(2)))) -> 0 | AD14: =N14 -> 0 | AE14: =COUNTIF(L31:L43,AD14) -> 0 | AF14: =AE14/(AG4-AE8) -> 0 | AG14: =IF(AF14=0,0,(AF14*((LOG(AF14))/LOG(2)))) -> 0 | AI14: =N14 -> 0 | AJ14: =COUNTIF(L44:L55,AI14) -> 0 | AK14: =AJ14/(AL4-AJ8) -> 0 | AL14: =IF(AK14=0,0,(AK14*((LOG(AK14))/LOG(2)))) -> 0 | AN14: =N14 -> 0 | AO14: =COUNTIF(L56:L67,AN14) -> 0 | AP14: =AO14/(AQ4-AO8) -> 0 | AQ14: =IF(AP14=0,0,(AP14*((LOG(AP14))/LOG(2)))) -> 0 | AS14: =N14 -> 0 | AT14: =COUNTIF(L68:L79,AS14) -> 0 | AU14: =AT14/(AV4-AT8) -> 0 | AV14: =IF(AU14=0,0,(AU14*((LOG(AU14))/LOG(2)))) -> 0
A15: 11 | B15: 939 | C15: 21 | D15: 950 | K15: 0 | L15: 12 | P15: =SUM(P7:P14) -> 1 | Q15: =-SUM(Q7:Q14) -> 1.558262437 | V15: =SUM(V7:V14) -> 1 | W15: =-SUM(W7:W14) -> 0.4689955936 | AA15: =SUM(AA7:AA14) -> 1 | AB15: =-SUM(AB7:AB14) -> 0.8631205686 | AF15: =SUM(AF7:AF14) -> 1 | AG15: =-SUM(AG7:AG14) -> 1 | AK15: =SUM(AK7:AK14) -> 1 | AL15: =-SUM(AL7:AL14) -> 1 | AP15: =SUM(AP7:AP14) -> 1 | AQ15: =-SUM(AQ7:AQ14) -> 0.7219280949 | AU15: =SUM(AU7:AU14) -> 1 | AV15: =-SUM(AV7:AV14) -> 0.7219280949
A16: 22 | B16: 1052 | C16: 23 | D16: 1080 | K16: 0 | L16: 22 | P16: U= | Q16: =Q15/(LOG(Q4)/LOG(2)) -> 0.2517458164 | V16: U1= | W16: =W15/(LOG(W4)/LOG(2)) -> 0.1308230124 | AA16: U2= | AB16: =AB15/(LOG(AB4)/LOG(2)) -> 0.2407613938 | AF16: U3= | AG16: =AG15/(LOG(AG4)/LOG(2)) -> 0.2702381544 | AK16: U4= | AL16: =AL15/(LOG(AL4)/LOG(2)) -> 0.2789429457 | AP16: U5= | AQ16: =AQ15/(LOG(AQ4)/LOG(2)) -> 0.2013767493 | AU16: U6= | AV16: =AV15/(LOG(AV4)/LOG(2)) -> 0.2013767493
A17: 11 | B17: 1186 | C17: 21 | D17: 1206 | K17: 0 | L17: 12
A18: 22 | B18: 1307 | C18: 23 | D18: 1315 | K18: 0 | L18: 22
A19: 22 | B19: 1416 | C19: 23 | D19: 1426 | K19: 0 | L19: 22 | N19: Total Target Seq
A20: 11 | B20: 1523 | C20: 21 | D20: 1535 | K20: 0 | L20: 12 | N20: =COUNTIF(L7:L79,G3) -> 40 | P20: 12 | Q20: 12 | R20: 13 | S20: 12 | T20: 12 | U20: 12
A21: 11 | B21: 1628 | C21: 21 | D21: 1640 | K21: 0 | L21: 12 | P21: % of reinforcement given in 6 equal intervals based on number of trials
A22: 22 | B22: 1747 | C22: 23 | D22: 1756 | K22: 0 | L22: 22 | P22: %_1 | Q22: %_2 | R22: %_3 | S22: %_4 | T22: %_5 | U22: %_6
A23: 22 | B23: 1872 | C23: 14 | D23: 1885 | K23: 0 | L23: 21 | O23: target sequence | P23: =$G$3 -> 12 | Q23: =$G$3 -> 12 | R23: =$G$3 -> 12 | S23: =$G$3 -> 12 | T23: =$G$3 -> 12 | U23: =$G$3 -> 12
A24: 22 | B24: 2001 | C24: 23 | D24: 2010 | K24: 0 | L24: 22 | O24: total reinforcement | P24: =U8 -> 2 | Q24: =Z8 -> 5 | R24: =AE8 -> 11 | S24: =AJ8 -> 8 | T24: =AO8 -> 7 | U24: =AT8 -> 7
A25: 11 | B25: 2118 | C25: 21 | D25: 2148 | K25: 0 | L25: 12 | O25: % target
A26: 22 | B26: 2261 | C26: 23 | D26: 2271 | K26: 0 | L26: 22 | O26: CCRF
A27: 22 | B27: 2382 | C27: 23 | D27: 2391 | K27: 0 | L27: 22 | O27: % CCRf
A28: 11 | B28: 2487 | C28: 21 | D28: 2498 | K28: 0 | L28: 12 | O28: average response rate | P28: =D18/P20 -> 109.5833333 | Q28: =(D30-D18)/Q20 -> 120.1666667 | R28: =(D43-D30)/R20 -> 115.5384615 | S28: =(D55-D43)/S20 -> 118.4166667 | T28: =(D67-D55)/T20 -> 121.5 | U28: =(D79-D67)/U20 -> 113.3333333
A29: 22 | B29: 2599 | C29: 14 | D29: 2633 | K29: 0 | L29: 21
A30: 11 | B30: 2729 | C30: 21 | D30: 2757 | K30: 0 | L30: 12
A31: 11 | B31: 2853 | C31: 21 | D31: 2865 | K31: 0 | L31: 12
A32: 11 | B32: 2969 | C32: 21 | D32: 2981 | K32: 0 | L32: 12
A33: 11 | B33: 3091 | C33: 21 | D33: 3103 | K33: 0 | L33: 12
A34: 11 | B34: 3191 | C34: 21 | D34: 3202 | K34: 0 | L34: 12
A35: 11 | B35: 3293 | C35: 21 | D35: 3307 | K35: 0 | L35: 12
A36: 11 | B36: 3396 | C36: 21 | D36: 3408 | K36: 0 | L36: 12
A37: 11 | B37: 3501 | C37: 21 | D37: 3510 | K37: 0 | L37: 12
A38: 22 | B38: 3610 | C38: 14 | D38: 3631 | K38: 0 | L38: 21
A39: 11 | B39: 3770 | C39: 21 | D39: 3783 | K39: 0 | L39: 12
A40: 11 | B40: 3872 | C40: 21 | D40: 3884 | K40: 0 | L40: 12
A41: 22 | B41: 3985 | C41: 23 | D41: 4008 | K41: 0 | L41: 22
A42: 11 | B42: 4122 | C42: 21 | D42: 4133 | K42: 0 | L42: 12
A43: 11 | B43: 4225 | C43: 21 | D43: 4259 | K43: 0 | L43: 12
A44: 11 | B44: 4361 | C44: 21 | D44: 4377 | K44: 0 | L44: 12
A45: 11 | B45: 4471 | C45: 21 | D45: 4482 | K45: 0 | L45: 12
A46: 11 | B46: 4576 | C46: 21 | D46: 4588 | K46: 0 | L46: 12
A47: 22 | B47: 4702 | C47: 23 | D47: 4714 | K47: 0 | L47: 22
A48: 11 | B48: 4822 | C48: 12 | D48: 4830 | K48: 0 | L48: 11
A49: 11 | B49: 4926 | C49: 21 | D49: 4959 | K49: 0 | L49: 12
A50: 11 | B50: 5056 | C50: 21 | D50: 5068 | K50: 0 | L50: 12
A51: 11 | B51: 5164 | C51: 21 | D51: 5175 | K51: 0 | L51: 12
A52: 22 | B52: 5281 | C52: 23 | D52: 5290 | K52: 0 | L52: 22
A53: 11 | B53: 5386 | C53: 12 | D53: 5394 | K53: 0 | L53: 11
A54: 11 | B54: 5508 | C54: 21 | D54: 5556 | K54: 0 | L54: 12
A55: 11 | B55: 5669 | C55: 21 | D55: 5680 | K55: 0 | L55: 12
A56: 22 | B56: 5788 | C56: 23 | D56: 5798 | K56: 0 | L56: 22
A57: 11 | B57: 5912 | C57: 21 | D57: 5922 | K57: 0 | L57: 12
A58: 11 | B58: 6015 | C58: 21 | D58: 6026 | K58: 0 | L58: 12
A59: 22 | B59: 6133 | C59: 23 | D59: 6153 | K59: 0 | L59: 22
A60: 11 | B60: 6263 | C60: 21 | D60: 6300 | K60: 0 | L60: 12
A61: 22 | B61: 6413 | C61: 14 | D61: 6430 | K61: 0 | L61: 21
A62: 11 | B62: 6531 | C62: 21 | D62: 6549 | K62: 0 | L62: 12
A63: 22 | B63: 6669 | C63: 23 | D63: 6678 | K63: 0 | L63: 22
A64: 11 | B64: 6777 | C64: 21 | D64: 6796 | K64: 0 | L64: 12
A65: 11 | B65: 6886 | C65: 21 | D65: 6906 | K65: 0 | L65: 12
A66: 22 | B66: 7014 | C66: 23 | D66: 7023 | K66: 0 | L66: 22
A67: 11 | B67: 7127 | C67: 21 | D67: 7138 | K67: 0 | L67: 12
A68: 11 | B68: 7231 | C68: 21 | D68: 7243 | K68: 0 | L68: 12
A69: 11 | B69: 7330 | C69: 21 | D69: 7341 | K69: 0 | L69: 12
A70: 11 | B70: 7439 | C70: 21 | D70: 7451 | K70: 0 | L70: 12
A71: 11 | B71: 7543 | C71: 12 | D71: 7572 | K71: 0 | L71: 11
A72: 11 | B72: 7671 | C72: 21 | D72: 7691 | K72: 0 | L72: 12
A73: 22 | B73: 7820 | C73: 23 | D73: 7838 | K73: 0 | L73: 22
A74: 11 | B74: 7934 | C74: 12 | D74: 7945 | K74: 0 | L74: 11
A75: 11 | B75: 8048 | C75: 21 | D75: 8059 | K75: 0 | L75: 12
A76: 11 | B76: 8151 | C76: 12 | D76: 8155 | K76: 0 | L76: 11
A77: 11 | B77: 8255 | C77: 12 | D77: 8262 | K77: 0 | L77: 11
A78: 11 | B78: 8360 | C78: 21 | D78: 8372 | K78: 0 | L78: 12
A79: 11 | B79: 8468 | C79: 21 | D79: 8498 | K79: 1 | L79: 12

Sheet !M918C10.104
A1: Report for:!M918C10.104
A2: Date: | B2: <date>
A3: Hen: | B3: <hen> | F3: Correct Sequence | G3: =Start!J2 -> 12 | P3: Total Sequences in Data | Q3: =4994-COUNTBLANK(L7:L5000) -> 56 | V3: Total Sequences in Block Data | W3: =COUNTA(L7:L15) -> 9 | AA3: Total Sequences in Block Data | AB3: =COUNTA(L16:L25) -> 10 | AF3: Total Sequences in Block Data | AG3: =COUNTA(L26:L34) -> 9 | AK3: Total Sequences in Block Data | AL3: =COUNTA(L35:L43) -> 9 | AP3: Total Sequences in Block Data | AQ3: =COUNTA(L44:L53) -> 10 | AU3: Total Sequences in Block Data | AV3: =COUNTA(L54:L62) -> 9
P4: Total Sequences in Summary | Q4: =SUM(O7:O14) -> 56 | V4: Total Sequences in Block Summary | W4: =SUM(U7:U14) -> 9 | AA4: Total Sequences in Block Summary | AB4: =SUM(Z7:Z14) -> 10 | AF4: Total Sequences in Block Summary | AG4: =SUM(AE7:AE14) -> 9 | AK4: Total Sequences in Block Summary | AL4: =SUM(AJ7:AJ14) -> 9 | AP4: Total Sequences in Block Summary | AQ4: =SUM(AO7:AO14) -> 10 | AU4: Total Sequences in Block Summary | AV4: =SUM(AT7:AT14) -> 9
T5: Block 1 | Y5: Block 2 | AD5: Block 3 | AI5: Block 4 | AN5: Block 5 | AS5: Block 6
A6: Sequence Component 1 | B6: Time 1 | C6: Sequence Component 2 | D6: Time 2 | E6: Sequence Component 3 | F6: Time 3 | G6: Sequence Component 4 | H6: Time 4 | I6: Sequence Component 5 | J6: Time 5 | K6: Correct? 0=No 1=Yes | L6: Sequence | N6: Frequency | P6: Relative Frequency | Q6: Variability | T6: Frequency | V6: Relative Frequency | W6: Variability | Y6: Frequency | AA6: Relative Frequency | AB6: Variability | AD6: Frequency | AF6: Relative Frequency | AG6: Variability | AI6: Frequency | AK6: Relative Frequency | AL6: Variability | AN6: Frequency | AP6: Relative Frequency | AQ6: Variability | AS6: Frequency | AU6: Relative Frequency | AV6: Variability
A7: 11 | B7: 20 | C7: 21 | D7: 32 | K7: 0 | L7: 12 | N7: 11 | O7: =COUNTIF($L$7:$L$500,N7) -> 4 | P7: =O7/$Q$4 -> 0.07142857143 | Q7: =IF(P7=0,0,(P7*((LOG(P7))/LOG(2)))) -> -0.271953923 | T7: =N7 -> 11 | U7: =COUNTIF(L7:L15,T7) -> 0 | V7: =U7/(W4-U8) -> 0 | W7: =IF(V7=0,0,(V7*((LOG(V7))/LOG(2)))) -> 0 | Y7: =N7 -> 11 | Z7: =COUNTIF(L16:L25,Y7) -> 0 | AA7: =Z7/(AB4-Z8) -> 0 | AB7: =IF(AA7=0,0,(AA7*((LOG(AA7))/LOG(2)))) -> 0 | AD7: =N7 -> 11 | AE7: =COUNTIF(L26:L34,AD7) -> 0 | AF7: =AE7/(AG4-AE8) -> 0 | AG7: =IF(AF7=0,0,(AF7*((LOG(AF7))/LOG(2)))) -> 0 | AI7: =N7 -> 11 | AJ7: =COUNTIF(L35:L43,AI7) -> 1 | AK7: =AJ7/(AL4-AJ8) -> 1 | AL7: =IF(AK7=0,0,(AK7*((LOG(AK7))/LOG(2)))) -> 0 | AN7: =N7 -> 11 | AO7: =COUNTIF(L44:L53,AN7) -> 1 | AP7: =AO7/(AQ4-AO8) -> 1 | AQ7: =IF(AP7=0,0,(AP7*((LOG(AP7))/LOG(2)))) -> 0 | AS7: =N7 -> 11 | AT7: =COUNTIF(L54:L62,AS7) -> 2 | AU7: =AT7/(AV4-AT8) -> 1 | AV7: =IF(AU7=0,0,(AU7*((LOG(AU7))/LOG(2)))) -> 0
A8: 22 | B8: 134 | C8: 23 | D8: 150 | K8: 0 | L8: 22 | N8: 12 | O8: =COUNTIF($L$7:$L$500,N8) -> 40 | P8: =O8/$Q$4 -> 0.7142857143 | Q8: =IF(P8=0,0,(P8*((LOG(P8))/LOG(2)))) -> -0.346733448 | T8: =N8 -> 12 | U8: =COUNTIF(L7:L15,T8) -> 5 | Y8: =N8 -> 12 | Z8: =COUNTIF(L16:L25,Y8) -> 5 | AD8: =N8 -> 12 | AE8: =COUNTIF(L26:L34,AD8) -> 6 | AI8: =N8 -> 12 | AJ8: =COUNTIF(L35:L43,AI8) -> 8 | AN8: =N8 -> 12 | AO8: =COUNTIF(L44:L53,AN8) -> 9 | AS8: =N8 -> 12 | AT8: =COUNTIF(L54:L62,AS8) -> 7
A9: 22 | B9: 261 | C9: 23 | D9: 270 | K9: 0 | L9: 22 | N9: 21 | O9: =COUNTIF($L$7:$L$500,N9) -> 7 | P9: =O9/$Q$4 -> 0.125 | Q9: =IF(P9=0,0,(P9*((LOG(P9))/LOG(2)))) -> -0.375 | T9: =N9 -> 21 | U9: =COUNTIF(L7:L15,T9) -> 2 | V9: =U9/(W4-U8) -> 0.5 | W9: =IF(V9=0,0,(V9*((LOG(V9))/LOG(2)))) -> -0.5 | Y9: =N9 -> 21 | Z9: =COUNTIF(L16:L25,Y9) -> 2 | AA9: =Z9/(AB4-Z8) -> 0.4 | AB9: =IF(AA9=0,0,(AA9*((LOG(AA9))/LOG(2)))) -> -0.528771238 | AD9: =N9 -> 21 | AE9: =COUNTIF(L26:L34,AD9) -> 3 | AF9: =AE9/(AG4-AE8) -> 1 | AG9: =IF(AF9=0,0,(AF9*((LOG(AF9))/LOG(2)))) -> 0 | AI9: =N9 -> 21 | AJ9: =COUNTIF(L35:L43,AI9) -> 0 | AK9: =AJ9/(AL4-AJ8) -> 0 | AL9: =IF(AK9=0,0,(AK9*((LOG(AK9))/LOG(2)))) -> 0 | AN9: =N9 -> 21 | AO9: =COUNTIF(L44:L53,AN9) -> 0 | AP9: =AO9/(AQ4-AO8) -> 0 | AQ9: =IF(AP9=0,0,(AP9*((LOG(AP9))/LOG(2)))) -> 0 | AS9: =N9 -> 21 | AT9: =COUNTIF(L54:L62,AS9) -> 0 | AU9: =AT9/(AV4-AT8) -> 0 | AV9: =IF(AU9=0,0,(AU9*((LOG(AU9))/LOG(2)))) -> 0
A10: 22 | B10: 377 | C10: 14 | D10: 393 | K10: 0 | L10: 21 | N10: 22 | O10: =COUNTIF($L$7:$L$500,N10) -> 5 | P10: =O10/$Q$4 -> 0.08928571429 | Q10: =IF(P10=0,0,(P10*((LOG(P10))/LOG(2)))) -> -0.3111988239 | T10: =N10 -> 22 | U10: =COUNTIF(L7:L15,T10) -> 2 | V10: =U10/(W4-U8) -> 0.5 | W10: =IF(V10=0,0,(V10*((LOG(V10))/LOG(2)))) -> -0.5 | Y10: =N10 -> 22 | Z10: =COUNTIF(L16:L25,Y10) -> 3 | AA10: =Z10/(AB4-Z8) -> 0.6 | AB10: =IF(AA10=0,0,(AA10*((LOG(AA10))/LOG(2)))) -> -0.4421793565 | AD10: =N10 -> 22 | AE10: =COUNTIF(L26:L34,AD10) -> 0 | AF10: =AE10/(AG4-AE8) -> 0 | AG10: =IF(AF10=0,0,(AF10*((LOG(AF10))/LOG(2)))) -> 0 | AI10: =N10 -> 22 | AJ10: =COUNTIF(L35:L43,AI10) -> 0 | AK10: =AJ10/(AL4-AJ8) -> 0 | AL10: =IF(AK10=0,0,(AK10*((LOG(AK10))/LOG(2)))) -> 0 | AN10: =N10 -> 22 | AO10: =COUNTIF(L44:L53,AN10) -> 0 | AP10: =AO10/(AQ4-AO8) -> 0 | AQ10: =IF(AP10=0,0,(AP10*((LOG(AP10))/LOG(2)))) -> 0 | AS10: =N10 -> 22 | AT10: =COUNTIF(L54:L62,AS10) -> 0 | AU10: =AT10/(AV4-AT8) -> 0 | AV10: =IF(AU10=0,0,(AU10*((LOG(AU10))/LOG(2)))) -> 0
A11: 11 | B11: 490 | C11: 21 | D11: 509 | K11: 0 | L11: 12 | T11: =N11 -> 0 | U11: =COUNTIF(L7:L15,T11) -> 0 | V11: =U11/(W4-U8) -> 0 | W11: =IF(V11=0,0,(V11*((LOG(V11))/LOG(2)))) -> 0 | Y11: =N11 -> 0 | Z11: =COUNTIF(L16:L25,Y11) -> 0 | AA11: =Z11/(AB4-Z8) -> 0 | AB11: =IF(AA11=0,0,(AA11*((LOG(AA11))/LOG(2)))) -> 0 | AD11: =N11 -> 0 | AE11: =COUNTIF(L26:L34,AD11) -> 0 | AF11: =AE11/(AG4-AE8) -> 0 | AG11: =IF(AF11=0,0,(AF11*((LOG(AF11))/LOG(2)))) -> 0 | AI11: =N11 -> 0 | AJ11: =COUNTIF(L35:L43,AI11) -> 0 | AK11: =AJ11/(AL4-AJ8) -> 0 | AL11: =IF(AK11=0,0,(AK11*((LOG(AK11))/LOG(2)))) -> 0 | AN11: =N11 -> 0 | AO11: =COUNTIF(L44:L53,AN11) -> 0 | AP11: =AO11/(AQ4-AO8) -> 0 | AQ11: =IF(AP11=0,0,(AP11*((LOG(AP11))/LOG(2)))) -> 0 | AS11: =N11 -> 0 | AT11: =COUNTIF(L54:L62,AS11) -> 0 | AU11: =AT11/(AV4-AT8) -> 0 | AV11: =IF(AU11=0,0,(AU11*((LOG(AU11))/LOG(2)))) -> 0
A12: 11 | B12: 602 | C12: 21 | D12: 611 | K12: 0 | L12: 12 | T12: =N12 -> 0 | U12: =COUNTIF(L7:L15,T12) -> 0 | V12: =U12/(W4-U8) -> 0 | W12: =IF(V12=0,0,(V12*((LOG(V12))/LOG(2)))) -> 0 | Y12: =N12 -> 0 | Z12: =COUNTIF(L16:L25,Y12) -> 0 | AA12: =Z12/(AB4-Z8) -> 0 | AB12: =IF(AA12=0,0,(AA12*((LOG(AA12))/LOG(2)))) -> 0 | AD12: =N12 -> 0 | AE12: =COUNTIF(L26:L34,AD12) -> 0 | AF12: =AE12/(AG4-AE8) -> 0 | AG12: =IF(AF12=0,0,(AF12*((LOG(AF12))/LOG(2)))) -> 0 | AI12: =N12 -> 0 | AJ12: =COUNTIF(L35:L43,AI12) -> 0 | AK12: =AJ12/(AL4-AJ8) -> 0 | AL12: =IF(AK12=0,0,(AK12*((LOG(AK12))/LOG(2)))) -> 0 | AN12: =N12 -> 0 | AO12: =COUNTIF(L44:L53,AN12) -> 0 | AP12: =AO12/(AQ4-AO8) -> 0 | AQ12: =IF(AP12=0,0,(AP12*((LOG(AP12))/LOG(2)))) -> 0 | AS12: =N12 -> 0 | AT12: =COUNTIF(L54:L62,AS12) -> 0 | AU12: =AT12/(AV4-AT8) -> 0 | AV12: =IF(AU12=0,0,(AU12*((LOG(AU12))/LOG(2)))) -> 0
A13: 11 | B13: 698 | C13: 21 | D13: 709 | K13: 0 | L13: 12 | T13: =N13 -> 0 | U13: =COUNTIF(L7:L15,T13) -> 0 | V13: =U13/(W4-U8) -> 0 | W13: =IF(V13=0,0,(V13*((LOG(V13))/LOG(2)))) -> 0 | Y13: =N13 -> 0 | Z13: =COUNTIF(L16:L25,Y13) -> 0 | AA13: =Z13/(AB4-Z8) -> 0 | AB13: =IF(AA13=0,0,(AA13*((LOG(AA13))/LOG(2)))) -> 0 | AD13: =N13 -> 0 | AE13: =COUNTIF(L26:L34,AD13) -> 0 | AF13: =AE13/(AG4-AE8) -> 0 | AG13: =IF(AF13=0,0,(AF13*((LOG(AF13))/LOG(2)))) -> 0 | AI13: =N13 -> 0 | AJ13: =COUNTIF(L35:L43,AI13) -> 0 | AK13: =AJ13/(AL4-AJ8) -> 0 | AL13: =IF(AK13=0,0,(AK13*((LOG(AK13))/LOG(2)))) -> 0 | AN13: =N13 -> 0 | AO13: =COUNTIF(L44:L53,AN13) -> 0 | AP13: =AO13/(AQ4-AO8) -> 0 | AQ13: =IF(AP13=0,0,(AP13*((LOG(AP13))/LOG(2)))) -> 0 | AS13: =N13 -> 0 | AT13: =COUNTIF(L54:L62,AS13) -> 0 | AU13: =AT13/(AV4-AT8) -> 0 | AV13: =IF(AU13=0,0,(AU13*((LOG(AU13))/LOG(2)))) -> 0
A14: 11 | B14: 804 | C14: 21 | D14: 818 | K14: 0 | L14: 12 | T14: =N14 -> 0 | U14: =COUNTIF(L7:L15,T14) -> 0 | V14: =U14/(W4-U8) -> 0 | W14: =IF(V14=0,0,(V14*((LOG(V14))/LOG(2)))) -> 0 | Y14: =N14 -> 0 | Z14: =COUNTIF(L16:L25,Y14) -> 0 | AA14: =Z14/(AB4-Z8) -> 0 | AB14: =IF(AA14=0,0,(AA14*((LOG(AA14))/LOG(2)))) -> 0 | AD14: =N14 -> 0 | AE14: =COUNTIF(L26:L34,AD14) -> 0 | AF14: =AE14/(AG4-AE8) -> 0 | AG14: =IF(AF14=0,0,(AF14*((LOG(AF14))/LOG(2)))) -> 0 | AI14: =N14 -> 0 | AJ14: =COUNTIF(L35:L43,AI14) -> 0 | AK14: =AJ14/(AL4-AJ8) -> 0 | AL14: =IF(AK14=0,0,(AK14*((LOG(AK14))/LOG(2)))) -> 0 | AN14: =N14 -> 0 | AO14: =COUNTIF(L44:L53,AN14) -> 0 | AP14: =AO14/(AQ4-AO8) -> 0 | AQ14: =IF(AP14=0,0,(AP14*((LOG(AP14))/LOG(2)))) -> 0 | AS14: =N14 -> 0 | AT14: =COUNTIF(L54:L62,AS14) -> 0 | AU14: =AT14/(AV4-AT8) -> 0 | AV14: =IF(AU14=0,0,(AU14*((LOG(AU14))/LOG(2)))) -> 0
A15: 22 | B15: 925 | C15: 14 | D15: 941 | K15: 0 | L15: 21 | P15: =SUM(P7:P14) -> 1 | Q15: =-SUM(Q7:Q14) -> 1.304886195 | V15: =SUM(V7:V14) -> 1 | W15: =-SUM(W7:W14) -> 1 | AA15: =SUM(AA7:AA14) -> 1 | AB15: =-SUM(AB7:AB14) -> 0.9709505945 | AF15: =SUM(AF7:AF14) -> 1 | AG15: =-SUM(AG7:AG14) -> 0 | AK15: =SUM(AK7:AK14) -> 1 | AL15: =-SUM(AL7:AL14) -> 0 | AP15: =SUM(AP7:AP14) -> 1 | AQ15: =-SUM(AQ7:AQ14) -> 0 | AU15: =SUM(AU7:AU14) -> 1 | AV15: =-SUM(AV7:AV14) -> 0
A16: 22 | B16: 1049 | C16: 23 | D16: 1058 | K16: 0 | L16: 22 | P16: U= | Q16: =Q15/(LOG(Q4)/LOG(2)) -> 0.2246954444 | V16: U1= | W16: =W15/(LOG(W4)/LOG(2)) -> 0.3154648768 | AA16: U2= | AB16: =AB15/(LOG(AB4)/LOG(2)) -> 0.2922852532 | AF16: U3= | AG16: =AG15/(LOG(AG4)/LOG(2)) -> 0 | AK16: U4= | AL16: =AL15/(LOG(AL4)/LOG(2)) -> 0 | AP16: U5= | AQ16: =AQ15/(LOG(AQ4)/LOG(2)) -> 0 | AU16: U6= | AV16: =AV15/(LOG(AV4)/LOG(2)) -> 0
A17: 22 | B17: 1173 | C17: 23 | D17: 1186 | K17: 0 | L17: 22
A18: 22 | B18: 1299 | C18: 14 | D18: 1315 | K18: 0 | L18: 21
A19: 11 | B19: 1413 | C19: 21 | D19: 1425 | K19: 0 | L19: 12 | N19: Total Target Seq
A20: 11 | B20: 1540 | C20: 21 | D20: 1548 | K20: 0 | L20: 12 | N20: =COUNTIF(L7:L62,G3) -> 40 | P20: 9 | Q20: 10 | R20: 9 | S20: 9 | T20: 10 | U20: 9
A21: 22 | B21: 1654 | C21: 14 | D21: 1668 | K21: 0 | L21: 21 | P21: % of reinforcement given in 6 equal intervals based on number of trials
A22: 22 | B22: 1790 | C22: 23 | D22: 1808 | K22: 0 | L22: 22 | P22: %_1 | Q22: %_2 | R22: %_3 | S22: %_4 | T22: %_5 | U22: %_6
A23: 11 | B23: 1915 | C23: 21 | D23: 1924 | K23: 0 | L23: 12 | O23: target sequence | P23: =$G$3 -> 12 | Q23: =$G$3 -> 12 | R23: =$G$3 -> 12 | S23: =$G$3 -> 12 | T23: =$G$3 -> 12 | U23: =$G$3 -> 12
A24: 11 | B24: 2037 | C24: 21 | D24: 2056 | K24: 0 | L24: 12 | O24: total reinforcement | P24: =U8 -> 5 | Q24: =Z8 -> 5 | R24: =AE8 -> 6 | S24: =AJ8 -> 8 | T24: =AO8 -> 9 | U24: =AT8 -> 7
A25: 11 | B25: 2143 | C25: 21 | D25: 2155 | K25: 0 | L25: 12 | O25: % target
A26: 11 | B26: 2256 | C26: 21 | D26: 2265 | K26: 0 | L26: 12 | O26: CCRF
A27: 22 | B27: 2370 | C27: 14 | D27: 2387 | K27: 0 | L27: 21 | O27: % CCRf
A28: 11 | B28: 2489 | C28: 21 | D28: 2501 | K28: 0 | L28: 12 | O28: average response rate | P28: =D15/P20 -> 104.5555556 | Q28: =(D25-D15)/Q20 -> 121.4 | R28: =(D34-D25)/R20 -> 110.4444444 | S28: =(D43-D34)/S20 -> 111.3333333 | T28: =(D53-D43)/T20 -> 103.7 | U28: =(D62-D53)/U20 -> 105.1111111
A29: 22 | B29: 2614 | C29: 14 | D29: 2629 | K29: 0 | L29: 21
A30: 11 | B30: 2728 | C30: 21 | D30: 2739 | K30: 0 | L30: 12
A31: 11 | B31: 2827 | C31: 21 | D31: 2837 | K31: 0 | L31: 12
A32: 11 | B32: 2924 | C32: 21 | D32: 2935 | K32: 0 | L32: 12
A33: 11 | B33: 3025 | C33: 21 | D33: 3037 | K33: 0 | L33: 12
A34: 22 | B34: 3133 | C34: 14 | D34: 3149 | K34: 0 | L34: 21
A35: 11 | B35: 3246 | C35: 21 | D35: 3258 | K35: 0 | L35: 12
A36: 11 | B36: 3347 | C36: 21 | D36: 3358 | K36: 0 | L36: 12
A37: 11 | B37: 3450 | C37: 21 | D37: 3470 | K37: 0 | L37: 12
A38: 11 | B38: 3563 | C38: 21 | D38: 3575 | K38: 0 | L38: 12
A39: 11 | B39: 3661 | C39: 21 | D39: 3696 | K39: 0 | L39: 12
A40: 11 | B40: 3786 | C40: 12 | D40: 3827 | K40: 0 | L40: 11
A41: 11 | B41: 3926 | C41: 21 | D41: 3937 | K41: 0 | L41: 12
A42: 11 | B42: 4024 | C42: 21 | D42: 4042 | K42: 0 | L42: 12
A43: 11 | B43: 4128 | C43: 21 | D43: 4151 | K43: 0 | L43: 12
A44: 11 | B44: 4248 | C44: 21 | D44: 4259 | K44: 0 | L44: 12
A45: 11 | B45: 4345 | C45: 21 | D45: 4356 | K45: 0 | L45: 12
A46: 11 | B46: 4442 | C46: 12 | D46: 4463 | K46: 0 | L46: 11
A47: 11 | B47: 4562 | C47: 21 | D47: 4573 | K47: 0 | L47: 12
A48: 11 | B48: 4660 | C48: 21 | D48: 4671 | K48: 0 | L48: 12
A49: 11 | B49: 4760 | C49: 21 | D49: 4781 | K49: 0 | L49: 12
A50: 11 | B50: 4866 | C50: 21 | D50: 4877 | K50: 0 | L50: 12
A51: 11 | B51: 4967 | C51: 21 | D51: 4979 | K51: 0 | L51: 12
A52: 11 | B52: 5064 | C52: 21 | D52: 5076 | K52: 0 | L52: 12
A53: 11 | B53: 5177 | C53: 21 | D53: 5188 | K53: 0 | L53: 12
A54: 11 | B54: 5272 | C54: 21 | D54: 5283 | K54: 0 | L54: 12
A55: 11 | B55: 5367 | C55: 21 | D55: 5378 | K55: 0 | L55: 12
A56: 11 | B56: 5468 | C56: 21 | D56: 5480 | K56: 0 | L56: 12
A57: 11 | B57: 5570 | C57: 12 | D57: 5611 | K57: 0 | L57: 11
A58: 11 | B58: 5713 | C58: 21 | D58: 5725 | K58: 0 | L58: 12
A59: 11 | B59: 5821 | C59: 12 | D59: 5828 | K59: 0 | L59: 11
A60: 11 | B60: 5924 | C60: 21 | D60: 5934 | K60: 0 | L60: 12
A61: 11 | B61: 6023 | C61: 21 | D61: 6034 | K61: 0 | L61: 12
A62: 11 | B62: 6122 | C62: 21 | D62: 6134 | K62: 1 | L62: 12

Sheet !M919A50.104
A1: Report for:!M919A50.104
A2: Date: | B2: <date>
A3: Hen: | B3: <hen> | F3: Correct Sequence | G3: =Start!J2 -> 12 | P3: Total Sequences in Data | Q3: =4994-COUNTBLANK(L7:L5000) -> 47 | V3: Total Sequences in Block Data | W3: =COUNTA(L7:L14) -> 8 | AA3: Total Sequences in Block Data | AB3: =COUNTA(L15:L22) -> 8 | AF3: Total Sequences in Block Data | AG3: =COUNTA(L23:L29) -> 7 | AK3: Total Sequences in Block Data | AL3: =COUNTA(L30:L37) -> 8 | AP3: Total Sequences in Block Data | AQ3: =COUNTA(L38:L45) -> 8 | AU3: Total Sequences in Block Data | AV3: =COUNTA(L46:L53) -> 8
P4: Total Sequences in Summary | Q4: =SUM(O7:O14) -> 47 | V4: Total Sequences in Block Summary | W4: =SUM(U7:U14) -> 8 | AA4: Total Sequences in Block Summary | AB4: =SUM(Z7:Z14) -> 8 | AF4: Total Sequences in Block Summary | AG4: =SUM(AE7:AE14) -> 7 | AK4: Total Sequences in Block Summary | AL4: =SUM(AJ7:AJ14) -> 8 | AP4: Total Sequences in Block Summary | AQ4: =SUM(AO7:AO14) -> 8 | AU4: Total Sequences in Block Summary | AV4: =SUM(AT7:AT14) -> 8
T5: Block 1 | Y5: Block 2 | AD5: Block 3 | AI5: Block 4 | AN5: Block 5 | AS5: Block 6
A6: Sequence Component 1 | B6: Time 1 | C6: Sequence Component 2 | D6: Time 2 | E6: Sequence Component 3 | F6: Time 3 | G6: Sequence Component 4 | H6: Time 4 | I6: Sequence Component 5 | J6: Time 5 | K6: Correct? 0=No 1=Yes | L6: Sequence | N6: Frequency | P6: Relative Frequency | Q6: Variability | T6: Frequency | V6: Relative Frequency | W6: Variability | Y6: Frequency | AA6: Relative Frequency | AB6: Variability | AD6: Frequency | AF6: Relative Frequency | AG6: Variability | AI6: Frequency | AK6: Relative Frequency | AL6: Variability | AN6: Frequency | AP6: Relative Frequency | AQ6: Variability | AS6: Frequency | AU6: Relative Frequency | AV6: Variability
A7: 11 | B7: 12 | C7: 21 | D7: 20 | K7: 0 | L7: 12 | N7: 11 | O7: =COUNTIF($L$7:$L$500,N7) -> 6 | P7: =O7/$Q$4 -> 0.1276595745 | Q7: =IF(P7=0,0,(P7*((LOG(P7))/LOG(2)))) -> -0.3791012363 | T7: =N7 -> 11 | U7: =COUNTIF(L7:L14,T7) -> 0 | V7: =U7/(W4-U8) ->  | W7: =IF(V7=0,0,(V7*((LOG(V7))/LOG(2)))) ->  | Y7: =N7 -> 11 | Z7: =COUNTIF(L15:L22,Y7) -> 1 | AA7: =Z7/(AB4-Z8) -> 1 | AB7: =IF(AA7=0,0,(AA7*((LOG(AA7))/LOG(2)))) -> 0 | AD7: =N7 -> 11 | AE7: =COUNTIF(L23:L29,AD7) -> 1 | AF7: =AE7/(AG4-AE8) -> 1 | AG7: =IF(AF7=0,0,(AF7*((LOG(AF7))/LOG(2)))) -> 0 | AI7: =N7 -> 11 | AJ7: =COUNTIF(L30:L37,AI7) -> 1 | AK7: =AJ7/(AL4-AJ8) -> 0.5 | AL7: =IF(AK7=0,0,(AK7*((LOG(AK7))/LOG(2)))) -> -0.5 | AN7: =N7 -> 11 | AO7: =COUNTIF(L38:L45,AN7) -> 2 | AP7: =AO7/(AQ4-AO8) -> 1 | AQ7: =IF(AP7=0,0,(AP7*((LOG(AP7))/LOG(2)))) -> 0 | AS7: =N7 -> 11 | AT7: =COUNTIF(L46:L53,AS7) -> 1 | AU7: =AT7/(AV4-AT8) -> 1 | AV7: =IF(AU7=0,0,(AU7*((LOG(AU7))/LOG(2)))) -> 0
A8: 11 | B8: 110 | C8: 21 | D8: 121 | K8: 0 | L8: 12 | N8: 12 | O8: =COUNTIF($L$7:$L$500,N8) -> 40 | P8: =O8/$Q$4 -> 0.8510638298 | Q8: =IF(P8=0,0,(P8*((LOG(P8))/LOG(2)))) -> -0.1980091547 | T8: =N8 -> 12 | U8: =COUNTIF(L7:L14,T8) -> 8 | Y8: =N8 -> 12 | Z8: =COUNTIF(L15:L22,Y8) -> 7 | AD8: =N8 -> 12 | AE8: =COUNTIF(L23:L29,AD8) -> 6 | AI8: =N8 -> 12 | AJ8: =COUNTIF(L30:L37,AI8) -> 6 | AN8: =N8 -> 12 | AO8: =COUNTIF(L38:L45,AN8) -> 6 | AS8: =N8 -> 12 | AT8: =COUNTIF(L46:L53,AS8) -> 7
A9: 11 | B9: 210 | C9: 21 | D9: 218 | K9: 0 | L9: 12 | N9: 21 | O9: =COUNTIF($L$7:$L$500,N9) -> 0 | P9: =O9/$Q$4 -> 0 | Q9: =IF(P9=0,0,(P9*((LOG(P9))/LOG(2)))) -> 0 | T9: =N9 -> 21 | U9: =COUNTIF(L7:L14,T9) -> 0 | V9: =U9/(W4-U8) ->  | W9: =IF(V9=0,0,(V9*((LOG(V9))/LOG(2)))) ->  | Y9: =N9 -> 21 | Z9: =COUNTIF(L15:L22,Y9) -> 0 | AA9: =Z9/(AB4-Z8) -> 0 | AB9: =IF(AA9=0,0,(AA9*((LOG(AA9))/LOG(2)))) -> 0 | AD9: =N9 -> 21 | AE9: =COUNTIF(L23:L29,AD9) -> 0 | AF9: =AE9/(AG4-AE8) -> 0 | AG9: =IF(AF9=0,0,(AF9*((LOG(AF9))/LOG(2)))) -> 0 | AI9: =N9 -> 21 | AJ9: =COUNTIF(L30:L37,AI9) -> 0 | AK9: =AJ9/(AL4-AJ8) -> 0 | AL9: =IF(AK9=0,0,(AK9*((LOG(AK9))/LOG(2)))) -> 0 | AN9: =N9 -> 21 | AO9: =COUNTIF(L38:L45,AN9) -> 0 | AP9: =AO9/(AQ4-AO8) -> 0 | AQ9: =IF(AP9=0,0,(AP9*((LOG(AP9))/LOG(2)))) -> 0 | AS9: =N9 -> 21 | AT9: =COUNTIF(L46:L53,AS9) -> 0 | AU9: =AT9/(AV4-AT8) -> 0 | AV9: =IF(AU9=0,0,(AU9*((LOG(AU9))/LOG(2)))) -> 0
A10: 11 | B10: 304 | C10: 21 | D10: 313 | K10: 0 | L10: 12 | N10: 22 | O10: =COUNTIF($L$7:$L$500,N10) -> 1 | P10: =O10/$Q$4 -> 0.02127659574 | Q10: =IF(P10=0,0,(P10*((LOG(P10))/LOG(2)))) -> -0.1181827415 | T10: =N10 -> 22 | U10: =COUNTIF(L7:L14,T10) -> 0 | V10: =U10/(W4-U8) ->  | W10: =IF(V10=0,0,(V10*((LOG(V10))/LOG(2)))) ->  | Y10: =N10 -> 22 | Z10: =COUNTIF(L15:L22,Y10) -> 0 | AA10: =Z10/(AB4-Z8) -> 0 | AB10: =IF(AA10=0,0,(AA10*((LOG(AA10))/LOG(2)))) -> 0 | AD10: =N10 -> 22 | AE10: =COUNTIF(L23:L29,AD10) -> 0 | AF10: =AE10/(AG4-AE8) -> 0 | AG10: =IF(AF10=0,0,(AF10*((LOG(AF10))/LOG(2)))) -> 0 | AI10: =N10 -> 22 | AJ10: =COUNTIF(L30:L37,AI10) -> 1 | AK10: =AJ10/(AL4-AJ8) -> 0.5 | AL10: =IF(AK10=0,0,(AK10*((LOG(AK10))/LOG(2)))) -> -0.5 | AN10: =N10 -> 22 | AO10: =COUNTIF(L38:L45,AN10) -> 0 | AP10: =AO10/(AQ4-AO8) -> 0 | AQ10: =IF(AP10=0,0,(AP10*((LOG(AP10))/LOG(2)))) -> 0 | AS10: =N10 -> 22 | AT10: =COUNTIF(L46:L53,AS10) -> 0 | AU10: =AT10/(AV4-AT8) -> 0 | AV10: =IF(AU10=0,0,(AU10*((LOG(AU10))/LOG(2)))) -> 0
A11: 11 | B11: 400 | C11: 21 | D11: 422 | K11: 0 | L11: 12 | T11: =N11 -> 0 | U11: =COUNTIF(L7:L14,T11) -> 0 | V11: =U11/(W4-U8) ->  | W11: =IF(V11=0,0,(V11*((LOG(V11))/LOG(2)))) ->  | Y11: =N11 -> 0 | Z11: =COUNTIF(L15:L22,Y11) -> 0 | AA11: =Z11/(AB4-Z8) -> 0 | AB11: =IF(AA11=0,0,(AA11*((LOG(AA11))/LOG(2)))) -> 0 | AD11: =N11 -> 0 | AE11: =COUNTIF(L23:L29,AD11) -> 0 | AF11: =AE11/(AG4-AE8) -> 0 | AG11: =IF(AF11=0,0,(AF11*((LOG(AF11))/LOG(2)))) -> 0 | AI11: =N11 -> 0 | AJ11: =COUNTIF(L30:L37,AI11) -> 0 | AK11: =AJ11/(AL4-AJ8) -> 0 | AL11: =IF(AK11=0,0,(AK11*((LOG(AK11))/LOG(2)))) -> 0 | AN11: =N11 -> 0 | AO11: =COUNTIF(L38:L45,AN11) -> 0 | AP11: =AO11/(AQ4-AO8) -> 0 | AQ11: =IF(AP11=0,0,(AP11*((LOG(AP11))/LOG(2)))) -> 0 | AS11: =N11 -> 0 | AT11: =COUNTIF(L46:L53,AS11) -> 0 | AU11: =AT11/(AV4-AT8) -> 0 | AV11: =IF(AU11=0,0,(AU11*((LOG(AU11))/LOG(2)))) -> 0
A12: 11 | B12: 509 | C12: 21 | D12: 518 | K12: 0 | L12: 12 | T12: =N12 -> 0 | U12: =COUNTIF(L7:L14,T12) -> 0 | V12: =U12/(W4-U8) ->  | W12: =IF(V12=0,0,(V12*((LOG(V12))/LOG(2)))) ->  | Y12: =N12 -> 0 | Z12: =COUNTIF(L15:L22,Y12) -> 0 | AA12: =Z12/(AB4-Z8) -> 0 | AB12: =IF(AA12=0,0,(AA12*((LOG(AA12))/LOG(2)))) -> 0 | AD12: =N12 -> 0 | AE12: =COUNTIF(L23:L29,AD12) -> 0 | AF12: =AE12/(AG4-AE8) -> 0 | AG12: =IF(AF12=0,0,(AF12*((LOG(AF12))/LOG(2)))) -> 0 | AI12: =N12 -> 0 | AJ12: =COUNTIF(L30:L37,AI12) -> 0 | AK12: =AJ12/(AL4-AJ8) -> 0 | AL12: =IF(AK12=0,0,(AK12*((LOG(AK12))/LOG(2)))) -> 0 | AN12: =N12 -> 0 | AO12: =COUNTIF(L38:L45,AN12) -> 0 | AP12: =AO12/(AQ4-AO8) -> 0 | AQ12: =IF(AP12=0,0,(AP12*((LOG(AP12))/LOG(2)))) -> 0 | AS12: =N12 -> 0 | AT12: =COUNTIF(L46:L53,AS12) -> 0 | AU12: =AT12/(AV4-AT8) -> 0 | AV12: =IF(AU12=0,0,(AU12*((LOG(AU12))/LOG(2)))) -> 0
A13: 11 | B13: 607 | C13: 21 | D13: 616 | K13: 0 | L13: 12 | T13: =N13 -> 0 | U13: =COUNTIF(L7:L14,T13) -> 0 | V13: =U13/(W4-U8) ->  | W13: =IF(V13=0,0,(V13*((LOG(V13))/LOG(2)))) ->  | Y13: =N13 -> 0 | Z13: =COUNTIF(L15:L22,Y13) -> 0 | AA13: =Z13/(AB4-Z8) -> 0 | AB13: =IF(AA13=0,0,(AA13*((LOG(AA13))/LOG(2)))) -> 0 | AD13: =N13 -> 0 | AE13: =COUNTIF(L23:L29,AD13) -> 0 | AF13: =AE13/(AG4-AE8) -> 0 | AG13: =IF(AF13=0,0,(AF13*((LOG(AF13))/LOG(2)))) -> 0 | AI13: =N13 -> 0 | AJ13: =COUNTIF(L30:L37,AI13) -> 0 | AK13: =AJ13/(AL4-AJ8) -> 0 | AL13: =IF(AK13=0,0,(AK13*((LOG(AK13))/LOG(2)))) -> 0 | AN13: =N13 -> 0 | AO13: =COUNTIF(L38:L45,AN13) -> 0 | AP13: =AO13/(AQ4-AO8) -> 0 | AQ13: =IF(AP13=0,0,(AP13*((LOG(AP13))/LOG(2)))) -> 0 | AS13: =N13 -> 0 | AT13: =COUNTIF(L46:L53,AS13) -> 0 | AU13: =AT13/(AV4-AT8) -> 0 | AV13: =IF(AU13=0,0,(AU13*((LOG(AU13))/LOG(2)))) -> 0
A14: 11 | B14: 714 | C14: 21 | D14: 724 | K14: 0 | L14: 12 | T14: =N14 -> 0 | U14: =COUNTIF(L7:L14,T14) -> 0 | V14: =U14/(W4-U8) ->  | W14: =IF(V14=0,0,(V14*((LOG(V14))/LOG(2)))) ->  | Y14: =N14 -> 0 | Z14: =COUNTIF(L15:L22,Y14) -> 0 | AA14: =Z14/(AB4-Z8) -> 0 | AB14: =IF(AA14=0,0,(AA14*((LOG(AA14))/LOG(2)))) -> 0 | AD14: =N14 -> 0 | AE14: =COUNTIF(L23:L29,AD14) -> 0 | AF14: =AE14/(AG4-AE8) -> 0 | AG14: =IF(AF14=0,0,(AF14*((LOG(AF14))/LOG(2)))) -> 0 | AI14: =N14 -> 0 | AJ14: =COUNTIF(L30:L37,AI14) -> 0 | AK14: =AJ14/(AL4-AJ8) -> 0 | AL14: =IF(AK14=0,0,(AK14*((LOG(AK14))/LOG(2)))) -> 0 | AN14: =N14 -> 0 | AO14: =COUNTIF(L38:L45,AN14) -> 0 | AP14: =AO14/(AQ4-AO8) -> 0 | AQ14: =IF(AP14=0,0,(AP14*((LOG(AP14))/LOG(2)))) -> 0 | AS14: =N14 -> 0 | AT14: =COUNTIF(L46:L53,AS14) -> 0 | AU14: =AT14/(AV4-AT8) -> 0 | AV14: =IF(AU14=0,0,(AU14*((LOG(AU14))/LOG(2)))) -> 0
A15: 11 | B15: 809 | C15: 12 | D15: 820 | K15: 0 | L15: 11 | P15: =SUM(P7:P14) -> 1 | Q15: =-SUM(Q7:Q14) -> 0.6952931325 | V15: =SUM(V7:V14) ->  | W15: =-SUM(W7:W14) ->  | AA15: =SUM(AA7:AA14) -> 1 | AB15: =-SUM(AB7:AB14) -> 0 | AF15: =SUM(AF7:AF14) -> 1 | AG15: =-SUM(AG7:AG14) -> 0 | AK15: =SUM(AK7:AK14) -> 1 | AL15: =-SUM(AL7:AL14) -> 1 | AP15: =SUM(AP7:AP14) -> 1 | AQ15: =-SUM(AQ7:AQ14) -> 0 | AU15: =SUM(AU7:AU14) -> 1 | AV15: =-SUM(AV7:AV14) -> 0
A16: 11 | B16: 915 | C16: 21 | D16: 923 | K16: 0 | L16: 12 | P16: U= | Q16: =Q15/(LOG(Q4)/LOG(2)) -> 0.1251745451 | V16: U1= | W16: =W15/(LOG(W4)/LOG(2)) ->  | AA16: U2= | AB16: =AB15/(LOG(AB4)/LOG(2)) -> 0 | AF16: U3= | AG16: =AG15/(LOG(AG4)/LOG(2)) -> 0 | AK16: U4= | AL16: =AL15/(LOG(AL4)/LOG(2)) -> 0.3333333333 | AP16: U5= | AQ16: =AQ15/(LOG(AQ4)/LOG(2)) -> 0 | AU16: U6= | AV16: =AV15/(LOG(AV4)/LOG(2)) -> 0
A17: 11 | B17: 1014 | C17: 21 | D17: 1022 | K17: 0 | L17: 12
A18: 11 | B18: 1108 | C18: 21 | D18: 1119 | K18: 0 | L18: 12
A19: 11 | B19: 1205 | C19: 21 | D19: 1216 | K19: 0 | L19: 12 | N19: Total Target Seq
A20: 11 | B20: 1305 | C20: 21 | D20: 1316 | K20: 0 | L20: 12 | N20: =COUNTIF(L7:L53,G3) -> 40 | P20: 8 | Q20: 8 | R20: 7 | S20: 8 | T20: 8 | U20: 8
A21: 11 | B21: 1402 | C21: 21 | D21: 1412 | K21: 0 | L21: 12 | P21: % of reinforcement given in 6 equal intervals based on number of trials
A22: 11 | B22: 1505 | C22: 21 | D22: 1514 | K22: 0 | L22: 12 | P22: %_1 | Q22: %_2 | R22: %_3 | S22: %_4 | T22: %_5 | U22: %_6
A23: 11 | B23: 1602 | C23: 21 | D23: 1611 | K23: 0 | L23: 12 | O23: target sequence | P23: =$G$3 -> 12 | Q23: =$G$3 -> 12 | R23: =$G$3 -> 12 | S23: =$G$3 -> 12 | T23: =$G$3 -> 12 | U23: =$G$3 -> 12
A24: 11 | B24: 1697 | C24: 21 | D24: 1708 | K24: 0 | L24: 12 | O24: total reinforcement | P24: =U8 -> 8 | Q24: =Z8 -> 7 | R24: =AE8 -> 6 | S24: =AJ8 -> 6 | T24: =AO8 -> 6 | U24: =AT8 -> 7
A25: 11 | B25: 1793 | C25: 21 | D25: 1804 | K25: 0 | L25: 12 | O25: % target
A26: 11 | B26: 1890 | C26: 21 | D26: 1900 | K26: 0 | L26: 12 | O26: CCRF
A27: 11 | B27: 1985 | C27: 21 | D27: 2009 | K27: 0 | L27: 12 | O27: % CCRf
A28: 11 | B28: 2092 | C28: 12 | D28: 2097 | K28: 0 | L28: 11 | O28: average response rate | P28: =D14/P20 -> 90.5 | Q28: =(D22-D14)/Q20 -> 98.75 | R28: =(D29-D22)/R20 -> 98.57142857 | S28: =(D37-D29)/S20 -> 100.75 | T28: =(D45-D37)/T20 -> 106 | U28: =(D53-D45)/U20 -> 100.75
A29: 11 | B29: 2192 | C29: 21 | D29: 2204 | K29: 0 | L29: 12
A30: 11 | B30: 2290 | C30: 21 | D30: 2305 | K30: 0 | L30: 12
A31: 11 | B31: 2392 | C31: 21 | D31: 2403 | K31: 0 | L31: 12
A32: 11 | B32: 2485 | C32: 12 | D32: 2490 | K32: 0 | L32: 11
A33: 11 | B33: 2588 | C33: 21 | D33: 2600 | K33: 0 | L33: 12
A34: 11 | B34: 2686 | C34: 21 | D34: 2697 | K34: 0 | L34: 12
A35: 22 | B35: 2794 | C35: 23 | D35: 2803 | K35: 0 | L35: 22
A36: 11 | B36: 2901 | C36: 21 | D36: 2912 | K36: 0 | L36: 12
A37: 11 | B37: 2999 | C37: 21 | D37: 3010 | K37: 0 | L37: 12
A38: 11 | B38: 3095 | C38: 12 | D38: 3101 | K38: 0 | L38: 11
A39: 11 | B39: 3197 | C39: 21 | D39: 3216 | K39: 0 | L39: 12
A40: 11 | B40: 3305 | C40: 21 | D40: 3314 | K40: 0 | L40: 12
A41: 11 | B41: 3399 | C41: 21 | D41: 3412 | K41: 0 | L41: 12
A42: 11 | B42: 3497 | C42: 21 | D42: 3508 | K42: 0 | L42: 12
A43: 11 | B43: 3593 | C43: 21 | D43: 3606 | K43: 0 | L43: 12
A44: 11 | B44: 3695 | C44: 21 | D44: 3707 | K44: 0 | L44: 12
A45: 11 | B45: 3791 | C45: 12 | D45: 3858 | K45: 0 | L45: 11
A46: 11 | B46: 3957 | C46: 21 | D46: 3969 | K46: 0 | L46: 12
A47: 11 | B47: 4052 | C47: 12 | D47: 4057 | K47: 0 | L47: 11
A48: 11 | B48: 4152 | C48: 21 | D48: 4162 | K48: 0 | L48: 12
A49: 11 | B49: 4247 | C49: 21 | D49: 4257 | K49: 0 | L49: 12
A50: 11 | B50: 4342 | C50: 21 | D50: 4353 | K50: 0 | L50: 12
A51: 11 | B51: 4440 | C51: 21 | D51: 4452 | K51: 0 | L51: 12
A52: 11 | B52: 4540 | C52: 21 | D52: 4563 | K52: 0 | L52: 12
A53: 11 | B53: 4656 | C53: 21 | D53: 4664 | K53: 1 | L53: 12

Sheet !M920B00.104
A1: Report for:!M920B00.104
A2: Date: | B2: <date>
A3: Hen: | B3: <hen> | F3: Correct Sequence | G3: =Start!J2 -> 12 | P3: Total Sequences in Data | Q3: =4994-COUNTBLANK(L7:L5000) -> 60 | V3: Total Sequences in Block Data | W3: =COUNTA(L7:L16) -> 10 | AA3: Total Sequences in Block Data | AB3: =COUNTA(L17:L26) -> 10 | AF3: Total Sequences in Block Data | AG3: =COUNTA(L27:L36) -> 10 | AK3: Total Sequences in Block Data | AL3: =COUNTA(L37:L46) -> 10 | AP3: Total Sequences in Block Data | AQ3: =COUNTA(L47:L56) -> 10 | AU3: Total Sequences in Block Data | AV3: =COUNTA(L57:L66) -> 10
P4: Total Sequences in Summary | Q4: =SUM(O7:O14) -> 60 | V4: Total Sequences in Block Summary | W4: =SUM(U7:U14) -> 10 | AA4: Total Sequences in Block Summary | AB4: =SUM(Z7:Z14) -> 10 | AF4: Total Sequences in Block Summary | AG4: =SUM(AE7:AE14) -> 10 | AK4: Total Sequences in Block Summary | AL4: =SUM(AJ7:AJ14) -> 10 | AP4: Total Sequences in Block Summary | AQ4: =SUM(AO7:AO14) -> 10 | AU4: Total Sequences in Block Summary | AV4: =SUM(AT7:AT14) -> 10
T5: Block 1 | Y5: Block 2 | AD5: Block 3 | AI5: Block 4 | AN5: Block 5 | AS5: Block 6
A6: Sequence Component 1 | B6: Time 1 | C6: Sequence Component 2 | D6: Time 2 | E6: Sequence Component 3 | F6: Time 3 | G6: Sequence Component 4 | H6: Time 4 | I6: Sequence Component 5 | J6: Time 5 | K6: Correct? 0=No 1=Yes | L6: Sequence | N6: Frequency | P6: Relative Frequency | Q6: Variability | T6: Frequency | V6: Relative Frequency | W6: Variability | Y6: Frequency | AA6: Relative Frequency | AB6: Variability | AD6: Frequency | AF6: Relative Frequency | AG6: Variability | AI6: Frequency | AK6: Relative Frequency | AL6: Variability | AN6: Frequency | AP6: Relative Frequency | AQ6: Variability | AS6: Frequency | AU6: Relative Frequency | AV6: Variability
A7: 22 | B7: 7 | C7: 23 | D7: 18 | K7: 0 | L7: 22 | N7: 11 | O7: =COUNTIF($L$7:$L$500,N7) -> 11 | P7: =O7/$Q$4 -> 0.1833333333 | Q7: =IF(P7=0,0,(P7*((LOG(P7))/LOG(2)))) -> -0.4487008124 | T7: =N7 -> 11 | U7: =COUNTIF(L7:L16,T7) -> 1 | V7: =U7/(W4-U8) -> 0.1666666667 | W7: =IF(V7=0,0,(V7*((LOG(V7))/LOG(2)))) -> -0.4308270835 | Y7: =N7 -> 11 | Z7: =COUNTIF(L17:L26,Y7) -> 3 | AA7: =Z7/(AB4-Z8) -> 0.75 | AB7: =IF(AA7=0,0,(AA7*((LOG(AA7))/LOG(2)))) -> -0.3112781245 | AD7: =N7 -> 11 | AE7: =COUNTIF(L27:L36,AD7) -> 1 | AF7: =AE7/(AG4-AE8) -> 0.3333333333 | AG7: =IF(AF7=0,0,(AF7*((LOG(AF7))/LOG(2)))) -> -0.5283208336 | AI7: =N7 -> 11 | AJ7: =COUNTIF(L37:L46,AI7) -> 2 | AK7: =AJ7/(AL4-AJ8) -> 1 | AL7: =IF(AK7=0,0,(AK7*((LOG(AK7))/LOG(2)))) -> 0 | AN7: =N7 -> 11 | AO7: =COUNTIF(L47:L56,AN7) -> 2 | AP7: =AO7/(AQ4-AO8) -> 1 | AQ7: =IF(AP7=0,0,(AP7*((LOG(AP7))/LOG(2)))) -> 0 | AS7: =N7 -> 11 | AT7: =COUNTIF(L57:L66,AS7) -> 2 | AU7: =AT7/(AV4-AT8) -> 0.6666666667 | AV7: =IF(AU7=0,0,(AU7*((LOG(AU7))/LOG(2)))) -> -0.3899750005
A8: 22 | B8: 119 | C8: 14 | D8: 134 | K8: 0 | L8: 21 | N8: 12 | O8: =COUNTIF($L$7:$L$500,N8) -> 40 | P8: =O8/$Q$4 -> 0.6666666667 | Q8: =IF(P8=0,0,(P8*((LOG(P8))/LOG(2)))) -> -0.3899750005 | T8: =N8 -> 12 | U8: =COUNTIF(L7:L16,T8) -> 4 | Y8: =N8 -> 12 | Z8: =COUNTIF(L17:L26,Y8) -> 6 | AD8: =N8 -> 12 | AE8: =COUNTIF(L27:L36,AD8) -> 7 | AI8: =N8 -> 12 | AJ8: =COUNTIF(L37:L46,AI8) -> 8 | AN8: =N8 -> 12 | AO8: =COUNTIF(L47:L56,AN8) -> 8 | AS8: =N8 -> 12 | AT8: =COUNTIF(L57:L66,AS8) -> 7
A9: 22 | B9: 232 | C9: 14 | D9: 241 | K9: 0 | L9: 21 | N9: 21 | O9: =COUNTIF($L$7:$L$500,N9) -> 5 | P9: =O9/$Q$4 -> 0.08333333333 | Q9: =IF(P9=0,0,(P9*((LOG(P9))/LOG(2)))) -> -0.2987468751 | T9: =N9 -> 21 | U9: =COUNTIF(L7:L16,T9) -> 3 | V9: =U9/(W4-U8) -> 0.5 | W9: =IF(V9=0,0,(V9*((LOG(V9))/LOG(2)))) -> -0.5 | Y9: =N9 -> 21 | Z9: =COUNTIF(L17:L26,Y9) -> 1 | AA9: =Z9/(AB4-Z8) -> 0.25 | AB9: =IF(AA9=0,0,(AA9*((LOG(AA9))/LOG(2)))) -> -0.5 | AD9: =N9 -> 21 | AE9: =COUNTIF(L27:L36,AD9) -> 1 | AF9: =AE9/(AG4-AE8) -> 0.3333333333 | AG9: =IF(AF9=0,0,(AF9*((LOG(AF9))/LOG(2)))) -> -0.5283208336 | AI9: =N9 -> 21 | AJ9: =COUNTIF(L37:L46,AI9) -> 0 | AK9: =AJ9/(AL4-AJ8) -> 0 | AL9: =IF(AK9=0,0,(AK9*((LOG(AK9))/LOG(2)))) -> 0 | AN9: =N9 -> 21 | AO9: =COUNTIF(L47:L56,AN9) -> 0 | AP9: =AO9/(AQ4-AO8) -> 0 | AQ9: =IF(AP9=0,0,(AP9*((LOG(AP9))/LOG(2)))) -> 0 | AS9: =N9 -> 21 | AT9: =COUNTIF(L57:L66,AS9) -> 0 | AU9: =AT9/(AV4-AT8) -> 0 | AV9: =IF(AU9=0,0,(AU9*((LOG(AU9))/LOG(2)))) -> 0
A10: 22 | B10: 340 | C10: 14 | D10: 352 | K10: 0 | L10: 21 | N10: 22 | O10: =COUNTIF($L$7:$L$500,N10) -> 4 | P10: =O10/$Q$4 -> 0.06666666667 | Q10: =IF(P10=0,0,(P10*((LOG(P10))/LOG(2)))) -> -0.260459373 | T10: =N10 -> 22 | U10: =COUNTIF(L7:L16,T10) -> 2 | V10: =U10/(W4-U8) -> 0.3333333333 | W10: =IF(V10=0,0,(V10*((LOG(V10))/LOG(2)))) -> -0.5283208336 | Y10: =N10 -> 22 | Z10: =COUNTIF(L17:L26,Y10) -> 0 | AA10: =Z10/(AB4-Z8) -> 0 | AB10: =IF(AA10=0,0,(AA10*((LOG(AA10))/LOG(2)))) -> 0 | AD10: =N10 -> 22 | AE10: =COUNTIF(L27:L36,AD10) -> 1 | AF10: =AE10/(AG4-AE8) -> 0.3333333333 | AG10: =IF(AF10=0,0,(AF10*((LOG(AF10))/LOG(2)))) -> -0.5283208336 | AI10: =N10 -> 22 | AJ10: =COUNTIF(L37:L46,AI10) -> 0 | AK10: =AJ10/(AL4-AJ8) -> 0 | AL10: =IF(AK10=0,0,(AK10*((LOG(AK10))/LOG(2)))) -> 0 | AN10: =N10 -> 22 | AO10: =COUNTIF(L47:L56,AN10) -> 0 | AP10: =AO10/(AQ4-AO8) -> 0 | AQ10: =IF(AP10=0,0,(AP10*((LOG(AP10))/LOG(2)))) -> 0 | AS10: =N10 -> 22 | AT10: =COUNTIF(L57:L66,AS10) -> 1 | AU10: =AT10/(AV4-AT8) -> 0.3333333333 | AV10: =IF(AU10=0,0,(AU10*((LOG(AU10))/LOG(2)))) -> -0.5283208336
A11: 11 | B11: 448 | C11: 21 | D11: 469 | K11: 0 | L11: 12 | T11: =N11 -> 0 | U11: =COUNTIF(L7:L16,T11) -> 0 | V11: =U11/(W4-U8) -> 0 | W11: =IF(V11=0,0,(V11*((LOG(V11))/LOG(2)))) -> 0 | Y11: =N11 -> 0 | Z11: =COUNTIF(L17:L26,Y11) -> 0 | AA11: =Z11/(AB4-Z8) -> 0 | AB11: =IF(AA11=0,0,(AA11*((LOG(AA11))/LOG(2)))) -> 0 | AD11: =N11 -> 0 | AE11: =COUNTIF(L27:L36,AD11) -> 0 | AF11: =AE11/(AG4-AE8) -> 0 | AG11: =IF(AF11=0,0,(AF11*((LOG(AF11))/LOG(2)))) -> 0 | AI11: =N11 -> 0 | AJ11: =COUNTIF(L37:L46,AI11) -> 0 | AK11: =AJ11/(AL4-AJ8) -> 0 | AL11: =IF(AK11=0,0,(AK11*((LOG(AK11))/LOG(2)))) -> 0 | AN11: =N11 -> 0 | AO11: =COUNTIF(L47:L56,AN11) -> 0 | AP11: =AO11/(AQ4-AO8) -> 0 | AQ11: =IF(AP11=0,0,(AP11*((LOG(AP11))/LOG(2)))) -> 0 | AS11: =N11 -> 0 | AT11: =COUNTIF(L57:L66,AS11) -> 0 | AU11: =AT11/(AV4-AT8) -> 0 | AV11: =IF(AU11=0,0,(AU11*((LOG(AU11))/LOG(2)))) -> 0
A12: 11 | B12: 553 | C12: 12 | D12: 560 | K12: 0 | L12: 11 | T12: =N12 -> 0 | U12: =COUNTIF(L7:L16,T12) -> 0 | V12: =U12/(W4-U8) -> 0 | W12: =IF(V12=0,0,(V12*((LOG(V12))/LOG(2)))) -> 0 | Y12: =N12 -> 0 | Z12: =COUNTIF(L17:L26,Y12) -> 0 | AA12: =Z12/(AB4-Z8) -> 0 | AB12: =IF(AA12=0,0,(AA12*((LOG(AA12))/LOG(2)))) -> 0 | AD12: =N12 -> 0 | AE12: =COUNTIF(L27:L36,AD12) -> 0 | AF12: =AE12/(AG4-AE8) -> 0 | AG12: =IF(AF12=0,0,(AF12*((LOG(AF12))/LOG(2)))) -> 0 | AI12: =N12 -> 0 | AJ12: =COUNTIF(L37:L46,AI12) -> 0 | AK12: =AJ12/(AL4-AJ8) -> 0 | AL12: =IF(AK12=0,0,(AK12*((LOG(AK12))/LOG(2)))) -> 0 | AN12: =N12 -> 0 | AO12: =COUNTIF(L47:L56,AN12) -> 0 | AP12: =AO12/(AQ4-AO8) -> 0 | AQ12: =IF(AP12=0,0,(AP12*((LOG(AP12))/LOG(2)))) -> 0 | AS12: =N12 -> 0 | AT12: =COUNTIF(L57:L66,AS12) -> 0 | AU12: =AT12/(AV4-AT8) -> 0 | AV12: =IF(AU12=0,0,(AU12*((LOG(AU12))/LOG(2)))) -> 0
A13: 22 | B13: 658 | C13: 23 | D13: 666 | K13: 0 | L13: 22 | T13: =N13 -> 0 | U13: =COUNTIF(L7:L16,T13) -> 0 | V13: =U13/(W4-U8) -> 0 | W13: =IF(V13=0,0,(V13*((LOG(V13))/LOG(2)))) -> 0 | Y13: =N13 -> 0 | Z13: =COUNTIF(L17:L26,Y13) -> 0 | AA13: =Z13/(AB4-Z8) -> 0 | AB13: =IF(AA13=0,0,(AA13*((LOG(AA13))/LOG(2)))) -> 0 | AD13: =N13 -> 0 | AE13: =COUNTIF(L27:L36,AD13) -> 0 | AF13: =AE13/(AG4-AE8) -> 0 | AG13: =IF(AF13=0,0,(AF13*((LOG(AF13))/LOG(2)))) -> 0 | AI13: =N13 -> 0 | AJ13: =COUNTIF(L37:L46,AI13) -> 0 | AK13: =AJ13/(AL4-AJ8) -> 0 | AL13: =IF(AK13=0,0,(AK13*((LOG(AK13))/LOG(2)))) -> 0 | AN13: =N13 -> 0 | AO13: =COUNTIF(L47:L56,AN13) -> 0 | AP13: =AO13/(AQ4-AO8) -> 0 | AQ13: =IF(AP13=0,0,(AP13*((LOG(AP13))/LOG(2)))) -> 0 | AS13: =N13 -> 0 | AT13: =COUNTIF(L57:L66,AS13) -> 0 | AU13: =AT13/(AV4-AT8) -> 0 | AV13: =IF(AU13=0,0,(AU13*((LOG(AU13))/LOG(2)))) -> 0
A14: 11 | B14: 767 | C14: 21 | D14: 778 | K14: 0 | L14: 12 | T14: =N14 -> 0 | U14: =COUNTIF(L7:L16,T14) -> 0 | V14: =U14/(W4-U8) -> 0 | W14: =IF(V14=0,0,(V14*((LOG(V14))/LOG(2)))) -> 0 | Y14: =N14 -> 0 | Z14: =COUNTIF(L17:L26,Y14) -> 0 | AA14: =Z14/(AB4-Z8) -> 0 | AB14: =IF(AA14=0,0,(AA14*((LOG(AA14))/LOG(2)))) -> 0 | AD14: =N14 -> 0 | AE14: =COUNTIF(L27:L36,AD14) -> 0 | AF14: =AE14/(AG4-AE8) -> 0 | AG14: =IF(AF14=0,0,(AF14*((LOG(AF14))/LOG(2)))) -> 0 | AI14: =N14 -> 0 | AJ14: =COUNTIF(L37:L46,AI14) -> 0 | AK14: =AJ14/(AL4-AJ8) -> 0 | AL14: =IF(AK14=0,0,(AK14*((LOG(AK14))/LOG(2)))) -> 0 | AN14: =N14 -> 0 | AO14: =COUNTIF(L47:L56,AN14) -> 0 | AP14: =AO14/(AQ4-AO8) -> 0 | AQ14: =IF(AP14=0,0,(AP14*((LOG(AP14))/LOG(2)))) -> 0 | AS14: =N14 -> 0 | AT14: =COUNTIF(L57:L66,AS14) -> 0 | AU14: =AT14/(AV4-AT8) -> 0 | AV14: =IF(AU14=0,0,(AU14*((LOG(AU14))/LOG(2)))) -> 0
A15: 11 | B15: 864 | C15: 21 | D15: 875 | K15: 0 | L15: 12 | P15: =SUM(P7:P14) -> 1 | Q15: =-SUM(Q7:Q14) -> 1.397882061 | V15: =SUM(V7:V14) -> 1 | W15: =-SUM(W7:W14) -> 1.459147917 | AA15: =SUM(AA7:AA14) -> 1 | AB15: =-SUM(AB7:AB14) -> 0.8112781245 | AF15: =SUM(AF7:AF14) -> 1 | AG15: =-SUM(AG7:AG14) -> 1.584962501 | AK15: =SUM(AK7:AK14) -> 1 | AL15: =-SUM(AL7:AL14) -> 0 | AP15: =SUM(AP7:AP14) -> 1 | AQ15: =-SUM(AQ7:AQ14) -> 0 | AU15: =SUM(AU7:AU14) -> 1 | AV15: =-SUM(AV7:AV14) -> 0.9182958341
A16: 11 | B16: 957 | C16: 21 | D16: 968 | K16: 0 | L16: 12 | P16: U= | Q16: =Q15/(LOG(Q4)/LOG(2)) -> 0.2366527767 | V16: U1= | W16: =W15/(LOG(W4)/LOG(2)) -> 0.4392472911 | AA16: U2= | AB16: =AB15/(LOG(AB4)/LOG(2)) -> 0.2442190503 | AF16: U3= | AG16: =AG15/(LOG(AG4)/LOG(2)) -> 0.4771212547 | AK16: U4= | AL16: =AL15/(LOG(AL4)/LOG(2)) -> 0 | AP16: U5= | AQ16: =AQ15/(LOG(AQ4)/LOG(2)) -> 0 | AU16: U6= | AV16: =AV15/(LOG(AV4)/LOG(2)) -> 0.2764345909
A17: 22 | B17: 1065 | C17: 14 | D17: 1082 | K17: 0 | L17: 21
A18: 11 | B18: 1178 | C18: 21 | D18: 1189 | K18: 0 | L18: 12
A19: 11 | B19: 1277 | C19: 21 | D19: 1290 | K19: 0 | L19: 12 | N19: Total Target Seq
A20: 11 | B20: 1376 | C20: 21 | D20: 1386 | K20: 0 | L20: 12 | N20: =COUNTIF(L7:L66,G3) -> 40 | P20: 10 | Q20: 10 | R20: 10 | S20: 10 | T20: 10 | U20: 10
A21: 11 | B21: 1471 | C21: 21 | D21: 1482 | K21: 0 | L21: 12 | P21: % of reinforcement given in 6 equal intervals based on number of trials
A22: 11 | B22: 1567 | C22: 21 | D22: 1578 | K22: 0 | L22: 12 | P22: %_1 | Q22: %_2 | R22: %_3 | S22: %_4 | T22: %_5 | U22: %_6
A23: 11 | B23: 1663 | C23: 12 | D23: 1673 | K23: 0 | L23: 11 | O23: target sequence | P23: =$G$3 -> 12 | Q23: =$G$3 -> 12 | R23: =$G$3 -> 12 | S23: =$G$3 -> 12 | T23: =$G$3 -> 12 | U23: =$G$3 -> 12
A24: 11 | B24: 1768 | C24: 12 | D24: 1773 | K24: 0 | L24: 11 | O24: total reinforcement | P24: =U8 -> 4 | Q24: =Z8 -> 6 | R24: =AE8 -> 7 | S24: =AJ8 -> 8 | T24: =AO8 -> 8 | U24: =AT8 -> 7
A25: 11 | B25: 1867 | C25: 12 | D25: 1872 | K25: 0 | L25: 11 | O25: % target
A26: 11 | B26: 1967 | C26: 21 | D26: 1978 | K26: 0 | L26: 12 | O26: CCRF
A27: 22 | B27: 2078 | C27: 23 | D27: 2103 | K27: 0 | L27: 22 | O27: % CCRf
A28: 11 | B28: 2198 | C28: 21 | D28: 2211 | K28: 0 | L28: 12 | O28: average response rate | P28: =D16/P20 -> 96.8 | Q28: =(D26-D16)/Q20 -> 101 | R28: =(D36-D26)/R20 -> 106.2 | S28: =(D46-D36)/S20 -> 97.4 | T28: =(D56-D46)/T20 -> 100.1 | U28: =(D66-D56)/U20 -> 100.9
A29: 11 | B29: 2296 | C29: 21 | D29: 2306 | K29: 0 | L29: 12
A30: 11 | B30: 2390 | C30: 21 | D30: 2401 | K30: 0 | L30: 12
A31: 11 | B31: 2501 | C31: 21 | D31: 2511 | K31: 0 | L31: 12
A32: 11 | B32: 2601 | C32: 21 | D32: 2612 | K32: 0 | L32: 12
A33: 11 | B33: 2698 | C33: 12 | D33: 2701 | K33: 0 | L33: 11
A34: 11 | B34: 2796 | C34: 21 | D34: 2807 | K34: 0 | L34: 12
A35: 22 | B35: 2913 | C35: 14 | D35: 2930 | K35: 0 | L35: 21
A36: 11 | B36: 3026 | C36: 21 | D36: 3040 | K36: 0 | L36: 12
A37: 11 | B37: 3124 | C37: 12 | D37: 3132 | K37: 0 | L37: 11
A38: 11 | B38: 3228 | C38: 21 | D38: 3238 | K38: 0 | L38: 12
A39: 11 | B39: 3324 | C39: 21 | D39: 3334 | K39: 0 | L39: 12
A40: 11 | B40: 3424 | C40: 21 | D40: 3432 | K40: 0 | L40: 12
A41: 11 | B41: 3517 | C41: 21 | D41: 3526 | K41: 0 | L41: 12
A42: 11 | B42: 3610 | C42: 21 | D42: 3620 | K42: 0 | L42: 12
A43: 11 | B43: 3710 | C43: 21 | D43: 3720 | K43: 0 | L43: 12
A44: 11 | B44: 3806 | C44: 21 | D44: 3816 | K44: 0 | L44: 12
A45: 11 | B45: 3899 | C45: 12 | D45: 3907 | K45: 0 | L45: 11
A46: 11 | B46: 4003 | C46: 21 | D46: 4014 | K46: 0 | L46: 12
A47: 11 | B47: 4098 | C47: 21 | D47: 4108 | K47: 0 | L47: 12
A48: 11 | B48: 4194 | C48: 21 | D48: 4205 | K48: 0 | L48: 12
A49: 11 | B49: 4288 | C49: 12 | D49: 4302 | K49: 0 | L49: 11
A50: 11 | B50: 4399 | C50: 21 | D50: 4409 | K50: 0 | L50: 12
A51: 11 | B51: 4494 | C51: 21 | D51: 4505 | K51: 0 | L51: 12
A52: 11 | B52: 4590 | C52: 21 | D52: 4604 | K52: 0 | L52: 12
A53: 11 | B53: 4690 | C53: 21 | D53: 4700 | K53: 0 | L53: 12
A54: 11 | B54: 4788 | C54: 21 | D54: 4799 | K54: 0 | L54: 12
A55: 11 | B55: 4897 | C55: 12 | D55: 4910 | K55: 0 | L55: 11
A56: 11 | B56: 5005 | C56: 21 | D56: 5015 | K56: 0 | L56: 12
A57: 11 | B57: 5101 | C57: 21 | D57: 5109 | K57: 0 | L57: 12
A58: 11 | B58: 5192 | C58: 12 | D58: 5199 | K58: 0 | L58: 11
A59: 11 | B59: 5293 | C59: 21 | D59: 5303 | K59: 0 | L59: 12
A60: 11 | B60: 5389 | C60: 21 | D60: 5400 | K60: 0 | L60: 12
A61: 11 | B61: 5484 | C61: 21 | D61: 5494 | K61: 0 | L61: 12
A62: 11 | B62: 5585 | C62: 21 | D62: 5596 | K62: 0 | L62: 12
A63: 11 | B63: 5680 | C63: 21 | D63: 5690 | K63: 0 | L63: 12
A64: 11 | B64: 5775 | C64: 12 | D64: 5779 | K64: 0 | L64: 11
A65: 22 | B65: 5887 | C65: 23 | D65: 5906 | K65: 0 | L65: 22
A66: 11 | B66: 6001 | C66: 21 | D66: 6024 | K66: 1 | L66: 12

Sheet !M921A40.104
A1: Report for:!M921A40.104
A2: Date: | B2: <date>
A3: Hen: | B3: <hen> | F3: Correct Sequence | G3: =Start!J2 -> 12 | P3: Total Sequences in Data | Q3: =4994-COUNTBLANK(L7:L5000) -> 52 | V3: Total Sequences in Block Data | W3: =COUNTA(L7:L15) -> 9 | AA3: Total Sequences in Block Data | AB3: =COUNTA(L16:L23) -> 8 | AF3: Total Sequences in Block Data | AG3: =COUNTA(L24:L32) -> 9 | AK3: Total Sequences in Block Data | AL3: =COUNTA(L33:L41) -> 9 | AP3: Total Sequences in Block Data | AQ3: =COUNTA(L42:L49) -> 8 | AU3: Total Sequences in Block Data | AV3: =COUNTA(L50:L58) -> 9
P4: Total Sequences in Summary | Q4: =SUM(O7:O14) -> 52 | V4: Total Sequences in Block Summary | W4: =SUM(U7:U14) -> 9 | AA4: Total Sequences in Block Summary | AB4: =SUM(Z7:Z14) -> 8 | AF4: Total Sequences in Block Summary | AG4: =SUM(AE7:AE14) -> 9 | AK4: Total Sequences in Block Summary | AL4: =SUM(AJ7:AJ14) -> 9 | AP4: Total Sequences in Block Summary | AQ4: =SUM(AO7:AO14) -> 8 | AU4: Total Sequences in Block Summary | AV4: =SUM(AT7:AT14) -> 9
T5: Block 1 | Y5: Block 2 | AD5: Block 3 | AI5: Block 4 | AN5: Block 5 | AS5: Block 6
A6: Sequence Component 1 | B6: Time 1 | C6: Sequence Component 2 | D6: Time 2 | E6: Sequence Component 3 | F6: Time 3 | G6: Sequence Component 4 | H6: Time 4 | I6: Sequence Component 5 | J6: Time 5 | K6: Correct? 0=No 1=Yes | L6: Sequence | N6: Frequency | P6: Relative Frequency | Q6: Variability | T6: Frequency | V6: Relative Frequency | W6: Variability | Y6: Frequency | AA6: Relative Frequency | AB6: Variability | AD6: Frequency | AF6: Relative Frequency | AG6: Variability | AI6: Frequency | AK6: Relative Frequency | AL6: Variability | AN6: Frequency | AP6: Relative Frequency | AQ6: Variability | AS6: Frequency | AU6: Relative Frequency | AV6: Variability
A7: 11 | B7: 6 | C7: 21 | D7: 17 | K7: 0 | L7: 12 | N7: 11 | O7: =COUNTIF($L$7:$L$500,N7) -> 4 | P7: =O7/$Q$4 -> 0.07692307692 | Q7: =IF(P7=0,0,(P7*((LOG(P7))/LOG(2)))) -> -0.2846492091 | T7: =N7 -> 11 | U7: =COUNTIF(L7:L15,T7) -> 1 | V7: =U7/(W4-U8) -> 0.3333333333 | W7: =IF(V7=0,0,(V7*((LOG(V7))/LOG(2)))) -> -0.5283208336 | Y7: =N7 -> 11 | Z7: =COUNTIF(L16:L23,Y7) -> 0 | AA7: =Z7/(AB4-Z8) -> 0 | AB7: =IF(AA7=0,0,(AA7*((LOG(AA7))/LOG(2)))) -> 0 | AD7: =N7 -> 11 | AE7: =COUNTIF(L24:L32,AD7) -> 0 | AF7: =AE7/(AG4-AE8) -> 0 | AG7: =IF(AF7=0,0,(AF7*((LOG(AF7))/LOG(2)))) -> 0 | AI7: =N7 -> 11 | AJ7: =COUNTIF(L33:L41,AI7) -> 1 | AK7: =AJ7/(AL4-AJ8) -> 0.3333333333 | AL7: =IF(AK7=0,0,(AK7*((LOG(AK7))/LOG(2)))) -> -0.5283208336 | AN7: =N7 -> 11 | AO7: =COUNTIF(L42:L49,AN7) -> 0 | AP7: =AO7/(AQ4-AO8) ->  | AQ7: =IF(AP7=0,0,(AP7*((LOG(AP7))/LOG(2)))) ->  | AS7: =N7 -> 11 | AT7: =COUNTIF(L50:L58,AS7) -> 2 | AU7: =AT7/(AV4-AT8) -> 1 | AV7: =IF(AU7=0,0,(AU7*((LOG(AU7))/LOG(2)))) -> 0
A8: 11 | B8: 104 | C8: 21 | D8: 116 | K8: 0 | L8: 12 | N8: 12 | O8: =COUNTIF($L$7:$L$500,N8) -> 40 | P8: =O8/$Q$4 -> 0.7692307692 | Q8: =IF(P8=0,0,(P8*((LOG(P8))/LOG(2)))) -> -0.2911627871 | T8: =N8 -> 12 | U8: =COUNTIF(L7:L15,T8) -> 6 | Y8: =N8 -> 12 | Z8: =COUNTIF(L16:L23,Y8) -> 6 | AD8: =N8 -> 12 | AE8: =COUNTIF(L24:L32,AD8) -> 7 | AI8: =N8 -> 12 | AJ8: =COUNTIF(L33:L41,AI8) -> 6 | AN8: =N8 -> 12 | AO8: =COUNTIF(L42:L49,AN8) -> 8 | AS8: =N8 -> 12 | AT8: =COUNTIF(L50:L58,AS8) -> 7
A9: 22 | B9: 216 | C9: 23 | D9: 227 | K9: 0 | L9: 22 | N9: 21 | O9: =COUNTIF($L$7:$L$500,N9) -> 0 | P9: =O9/$Q$4 -> 0 | Q9: =IF(P9=0,0,(P9*((LOG(P9))/LOG(2)))) -> 0 | T9: =N9 -> 21 | U9: =COUNTIF(L7:L15,T9) -> 0 | V9: =U9/(W4-U8) -> 0 | W9: =IF(V9=0,0,(V9*((LOG(V9))/LOG(2)))) -> 0 | Y9: =N9 -> 21 | Z9: =COUNTIF(L16:L23,Y9) -> 0 | AA9: =Z9/(AB4-Z8) -> 0 | AB9: =IF(AA9=0,0,(AA9*((LOG(AA9))/LOG(2)))) -> 0 | AD9: =N9 -> 21 | AE9: =COUNTIF(L24:L32,AD9) -> 0 | AF9: =AE9/(AG4-AE8) -> 0 | AG9: =IF(AF9=0,0,(AF9*((LOG(AF9))/LOG(2)))) -> 0 | AI9: =N9 -> 21 | AJ9: =COUNTIF(L33:L41,AI9) -> 0 | AK9: =AJ9/(AL4-AJ8) -> 0 | AL9: =IF(AK9=0,0,(AK9*((LOG(AK9))/LOG(2)))) -> 0 | AN9: =N9 -> 21 | AO9: =COUNTIF(L42:L49,AN9) -> 0 | AP9: =AO9/(AQ4-AO8) ->  | AQ9: =IF(AP9=0,0,(AP9*((LOG(AP9))/LOG(2)))) ->  | AS9: =N9 -> 21 | AT9: =COUNTIF(L50:L58,AS9) -> 0 | AU9: =AT9/(AV4-AT8) -> 0 | AV9: =IF(AU9=0,0,(AU9*((LOG(AU9))/LOG(2)))) -> 0
A10: 11 | B10: 322 | C10: 21 | D10: 365 | K10: 0 | L10: 12 | N10: 22 | O10: =COUNTIF($L$7:$L$500,N10) -> 8 | P10: =O10/$Q$4 -> 0.1538461538 | Q10: =IF(P10=0,0,(P10*((LOG(P10))/LOG(2)))) -> -0.4154522643 | T10: =N10 -> 22 | U10: =COUNTIF(L7:L15,T10) -> 2 | V10: =U10/(W4-U8) -> 0.6666666667 | W10: =IF(V10=0,0,(V10*((LOG(V10))/LOG(2)))) -> -0.3899750005 | Y10: =N10 -> 22 | Z10: =COUNTIF(L16:L23,Y10) -> 2 | AA10: =Z10/(AB4-Z8) -> 1 | AB10: =IF(AA10=0,0,(AA10*((LOG(AA10))/LOG(2)))) -> 0 | AD10: =N10 -> 22 | AE10: =COUNTIF(L24:L32,AD10) -> 2 | AF10: =AE10/(AG4-AE8) -> 1 | AG10: =IF(AF10=0,0,(AF10*((LOG(AF10))/LOG(2)))) -> 0 | AI10: =N10 -> 22 | AJ10: =COUNTIF(L33:L41,AI10) -> 2 | AK10: =AJ10/(AL4-AJ8) -> 0.6666666667 | AL10: =IF(AK10=0,0,(AK10*((LOG(AK10))/LOG(2)))) -> -0.3899750005 | AN10: =N10 -> 22 | AO10: =COUNTIF(L42:L49,AN10) -> 0 | AP10: =AO10/(AQ4-AO8) ->  | AQ10: =IF(AP10=0,0,(AP10*((LOG(AP10))/LOG(2)))) ->  | AS10: =N10 -> 22 | AT10: =COUNTIF(L50:L58,AS10) -> 0 | AU10: =AT10/(AV4-AT8) -> 0 | AV10: =IF(AU10=0,0,(AU10*((LOG(AU10))/LOG(2)))) -> 0
A11: 11 | B11: 452 | C11: 21 | D11: 463 | K11: 0 | L11: 12 | T11: =N11 -> 0 | U11: =COUNTIF(L7:L15,T11) -> 0 | V11: =U11/(W4-U8) -> 0 | W11: =IF(V11=0,0,(V11*((LOG(V11))/LOG(2)))) -> 0 | Y11: =N11 -> 0 | Z11: =COUNTIF(L16:L23,Y11) -> 0 | AA11: =Z11/(AB4-Z8) -> 0 | AB11: =IF(AA11=0,0,(AA11*((LOG(AA11))/LOG(2)))) -> 0 | AD11: =N11 -> 0 | AE11: =COUNTIF(L24:L32,AD11) -> 0 | AF11: =AE11/(AG4-AE8) -> 0 | AG11: =IF(AF11=0,0,(AF11*((LOG(AF11))/LOG(2)))) -> 0 | AI11: =N11 -> 0 | AJ11: =COUNTIF(L33:L41,AI11) -> 0 | AK11: =AJ11/(AL4-AJ8) -> 0 | AL11: =IF(AK11=0,0,(AK11*((LOG(AK11))/LOG(2)))) -> 0 | AN11: =N11 -> 0 | AO11: =COUNTIF(L42:L49,AN11) -> 0 | AP11: =AO11/(AQ4-AO8) ->  | AQ11: =IF(AP11=0,0,(AP11*((LOG(AP11))/LOG(2)))) ->  | AS11: =N11 -> 0 | AT11: =COUNTIF(L50:L58,AS11) -> 0 | AU11: =AT11/(AV4-AT8) -> 0 | AV11: =IF(AU11=0,0,(AU11*((LOG(AU11))/LOG(2)))) -> 0
A12: 11 | B12: 549 | C12: 21 | D12: 560 | K12: 0 | L12: 12 | T12: =N12 -> 0 | U12: =COUNTIF(L7:L15,T12) -> 0 | V12: =U12/(W4-U8) -> 0 | W12: =IF(V12=0,0,(V12*((LOG(V12))/LOG(2)))) -> 0 | Y12: =N12 -> 0 | Z12: =COUNTIF(L16:L23,Y12) -> 0 | AA12: =Z12/(AB4-Z8) -> 0 | AB12: =IF(AA12=0,0,(AA12*((LOG(AA12))/LOG(2)))) -> 0 | AD12: =N12 -> 0 | AE12: =COUNTIF(L24:L32,AD12) -> 0 | AF12: =AE12/(AG4-AE8) -> 0 | AG12: =IF(AF12=0,0,(AF12*((LOG(AF12))/LOG(2)))) -> 0 | AI12: =N12 -> 0 | AJ12: =COUNTIF(L33:L41,AI12) -> 0 | AK12: =AJ12/(AL4-AJ8) -> 0 | AL12: =IF(AK12=0,0,(AK12*((LOG(AK12))/LOG(2)))) -> 0 | AN12: =N12 -> 0 | AO12: =COUNTIF(L42:L49,AN12) -> 0 | AP12: =AO12/(AQ4-AO8) ->  | AQ12: =IF(AP12=0,0,(AP12*((LOG(AP12))/LOG(2)))) ->  | AS12: =N12 -> 0 | AT12: =COUNTIF(L50:L58,AS12) -> 0 | AU12: =AT12/(AV4-AT8) -> 0 | AV12: =IF(AU12=0,0,(AU12*((LOG(AU12))/LOG(2)))) -> 0
A13: 11 | B13: 646 | C13: 12 | D13: 650 | K13: 0 | L13: 11 | T13: =N13 -> 0 | U13: =COUNTIF(L7:L15,T13) -> 0 | V13: =U13/(W4-U8) -> 0 | W13: =IF(V13=0,0,(V13*((LOG(V13))/LOG(2)))) -> 0 | Y13: =N13 -> 0 | Z13: =COUNTIF(L16:L23,Y13) -> 0 | AA13: =Z13/(AB4-Z8) -> 0 | AB13: =IF(AA13=0,0,(AA13*((LOG(AA13))/LOG(2)))) -> 0 | AD13: =N13 -> 0 | AE13: =COUNTIF(L24:L32,AD13) -> 0 | AF13: =AE13/(AG4-AE8) -> 0 | AG13: =IF(AF13=0,0,(AF13*((LOG(AF13))/LOG(2)))) -> 0 | AI13: =N13 -> 0 | AJ13: =COUNTIF(L33:L41,AI13) -> 0 | AK13: =AJ13/(AL4-AJ8) -> 0 | AL13: =IF(AK13=0,0,(AK13*((LOG(AK13))/LOG(2)))) -> 0 | AN13: =N13 -> 0 | AO13: =COUNTIF(L42:L49,AN13) -> 0 | AP13: =AO13/(AQ4-AO8) ->  | AQ13: =IF(AP13=0,0,(AP13*((LOG(AP13))/LOG(2)))) ->  | AS13: =N13 -> 0 | AT13: =COUNTIF(L50:L58,AS13) -> 0 | AU13: =AT13/(AV4-AT8) -> 0 | AV13: =IF(AU13=0,0,(AU13*((LOG(AU13))/LOG(2)))) -> 0
A14: 22 | B14: 752 | C14: 23 | D14: 765 | K14: 0 | L14: 22 | T14: =N14 -> 0 | U14: =COUNTIF(L7:L15,T14) -> 0 | V14: =U14/(W4-U8) -> 0 | W14: =IF(V14=0,0,(V14*((LOG(V14))/LOG(2)))) -> 0 | Y14: =N14 -> 0 | Z14: =COUNTIF(L16:L23,Y14) -> 0 | AA14: =Z14/(AB4-Z8) -> 0 | AB14: =IF(AA14=0,0,(AA14*((LOG(AA14))/LOG(2)))) -> 0 | AD14: =N14 -> 0 | AE14: =COUNTIF(L24:L32,AD14) -> 0 | AF14: =AE14/(AG4-AE8) -> 0 | AG14: =IF(AF14=0,0,(AF14*((LOG(AF14))/LOG(2)))) -> 0 | AI14: =N14 -> 0 | AJ14: =COUNTIF(L33:L41,AI14) -> 0 | AK14: =AJ14/(AL4-AJ8) -> 0 | AL14: =IF(AK14=0,0,(AK14*((LOG(AK14))/LOG(2)))) -> 0 | AN14: =N14 -> 0 | AO14: =COUNTIF(L42:L49,AN14) -> 0 | AP14: =AO14/(AQ4-AO8) ->  | AQ14: =IF(AP14=0,0,(AP14*((LOG(AP14))/LOG(2)))) ->  | AS14: =N14 -> 0 | AT14: =COUNTIF(L50:L58,AS14) -> 0 | AU14: =AT14/(AV4-AT8) -> 0 | AV14: =IF(AU14=0,0,(AU14*((LOG(AU14))/LOG(2)))) -> 0
A15: 11 | B15: 860 | C15: 21 | D15: 871 | K15: 0 | L15: 12 | P15: =SUM(P7:P14) -> 1 | Q15: =-SUM(Q7:Q14) -> 0.9912642605 | V15: =SUM(V7:V14) -> 1 | W15: =-SUM(W7:W14) -> 0.9182958341 | AA15: =SUM(AA7:AA14) -> 1 | AB15: =-SUM(AB7:AB14) -> 0 | AF15: =SUM(AF7:AF14) -> 1 | AG15: =-SUM(AG7:AG14) -> 0 | AK15: =SUM(AK7:AK14) -> 1 | AL15: =-SUM(AL7:AL14) -> 0.9182958341 | AP15: =SUM(AP7:AP14) ->  | AQ15: =-SUM(AQ7:AQ14) ->  | AU15: =SUM(AU7:AU14) -> 1 | AV15: =-SUM(AV7:AV14) -> 0
A16: 11 | B16: 961 | C16: 21 | D16: 973 | K16: 0 | L16: 12 | P16: U= | Q16: =Q15/(LOG(Q4)/LOG(2)) -> 0.1738925959 | V16: U1= | W16: =W15/(LOG(W4)/LOG(2)) -> 0.2896900821 | AA16: U2= | AB16: =AB15/(LOG(AB4)/LOG(2)) -> 0 | AF16: U3= | AG16: =AG15/(LOG(AG4)/LOG(2)) -> 0 | AK16: U4= | AL16: =AL15/(LOG(AL4)/LOG(2)) -> 0.2896900821 | AP16: U5= | AQ16: =AQ15/(LOG(AQ4)/LOG(2)) ->  | AU16: U6= | AV16: =AV15/(LOG(AV4)/LOG(2)) -> 0
A17: 22 | B17: 1069 | C17: 23 | D17: 1081 | K17: 0 | L17: 22
A18: 11 | B18: 1180 | C18: 21 | D18: 1192 | K18: 0 | L18: 12
A19: 11 | B19: 1277 | C19: 21 | D19: 1287 | K19: 0 | L19: 12 | N19: Total Target Seq
A20: 11 | B20: 1375 | C20: 21 | D20: 1386 | K20: 0 | L20: 12 | N20: =COUNTIF(L7:L58,G3) -> 40 | P20: 9 | Q20: 8 | R20: 9 | S20: 9 | T20: 8 | U20: 9
A21: 22 | B21: 1482 | C21: 23 | D21: 1496 | K21: 0 | L21: 22 | P21: % of reinforcement given in 6 equal intervals based on number of trials
A22: 11 | B22: 1592 | C22: 21 | D22: 1603 | K22: 0 | L22: 12 | P22: %_1 | Q22: %_2 | R22: %_3 | S22: %_4 | T22: %_5 | U22: %_6
A23: 11 | B23: 1687 | C23: 21 | D23: 1698 | K23: 0 | L23: 12 | O23: target sequence | P23: =$G$3 -> 12 | Q23: =$G$3 -> 12 | R23: =$G$3 -> 12 | S23: =$G$3 -> 12 | T23: =$G$3 -> 12 | U23: =$G$3 -> 12
A24: 11 | B24: 1782 | C24: 21 | D24: 1797 | K24: 0 | L24: 12 | O24: total reinforcement | P24: =U8 -> 6 | Q24: =Z8 -> 6 | R24: =AE8 -> 7 | S24: =AJ8 -> 6 | T24: =AO8 -> 8 | U24: =AT8 -> 7
A25: 11 | B25: 1883 | C25: 21 | D25: 1911 | K25: 0 | L25: 12 | O25: % target
A26: 11 | B26: 1996 | C26: 21 | D26: 2007 | K26: 0 | L26: 12 | O26: CCRF
A27: 22 | B27: 2104 | C27: 23 | D27: 2116 | K27: 0 | L27: 22 | O27: % CCRf
A28: 11 | B28: 2212 | C28: 21 | D28: 2223 | K28: 0 | L28: 12 | O28: average response rate | P28: =D15/P20 -> 96.77777778 | Q28: =(D23-D15)/Q20 -> 103.375 | R28: =(D32-D23)/R20 -> 103.6666667 | S28: =(D41-D32)/S20 -> 107.1111111 | T28: =(D49-D41)/T20 -> 108 | U28: =(D58-D49)/U20 -> 101.6666667
A29: 11 | B29: 2309 | C29: 21 | D29: 2320 | K29: 0 | L29: 12
A30: 11 | B30: 2406 | C30: 21 | D30: 2417 | K30: 0 | L30: 12
A31: 11 | B31: 2503 | C31: 21 | D31: 2513 | K31: 0 | L31: 12
A32: 22 | B32: 2615 | C32: 23 | D32: 2631 | K32: 0 | L32: 22
A33: 11 | B33: 2730 | C33: 21 | D33: 2741 | K33: 0 | L33: 12
A34: 11 | B34: 2830 | C34: 21 | D34: 2841 | K34: 0 | L34: 12
A35: 11 | B35: 2925 | C35: 21 | D35: 2940 | K35: 0 | L35: 12
A36: 11 | B36: 3028 | C36: 21 | D36: 3045 | K36: 0 | L36: 12
A37: 11 | B37: 3131 | C37: 21 | D37: 3142 | K37: 0 | L37: 12
A38: 22 | B38: 3242 | C38: 23 | D38: 3277 | K38: 0 | L38: 22
A39: 11 | B39: 3371 | C39: 21 | D39: 3380 | K39: 0 | L39: 12
A40: 11 | B40: 3466 | C40: 12 | D40: 3471 | K40: 0 | L40: 11
A41: 22 | B41: 3584 | C41: 23 | D41: 3595 | K41: 0 | L41: 22
A42: 11 | B42: 3689 | C42: 21 | D42: 3700 | K42: 0 | L42: 12
A43: 11 | B43: 3789 | C43: 21 | D43: 3800 | K43: 0 | L43: 12
A44: 11 | B44: 3929 | C44: 21 | D44: 3938 | K44: 0 | L44: 12
A45: 11 | B45: 4045 | C45: 21 | D45: 4056 | K45: 0 | L45: 12
A46: 11 | B46: 4141 | C46: 21 | D46: 4151 | K46: 0 | L46: 12
A47: 11 | B47: 4237 | C47: 21 | D47: 4248 | K47: 0 | L47: 12
A48: 11 | B48: 4347 | C48: 21 | D48: 4360 | K48: 0 | L48: 12
A49: 11 | B49: 4448 | C49: 21 | D49: 4459 | K49: 0 | L49: 12
A50: 11 | B50: 4555 | C50: 21 | D50: 4568 | K50: 0 | L50: 12
A51: 11 | B51: 4656 | C51: 21 | D51: 4668 | K51: 0 | L51: 12
A52: 11 | B52: 4760 | C52: 21 | D52: 4772 | K52: 0 | L52: 12
A53: 11 | B53: 4865 | C53: 21 | D53: 4877 | K53: 0 | L53: 12
A54: 11 | B54: 4962 | C54: 21 | D54: 4973 | K54: 0 | L54: 12
A55: 11 | B55: 5057 | C55: 12 | D55: 5063 | K55: 0 | L55: 11
A56: 11 | B56: 5161 | C56: 12 | D56: 5170 | K56: 0 | L56: 11
A57: 11 | B57: 5267 | C57: 21 | D57: 5278 | K57: 0 | L57: 12
A58: 11 | B58: 5364 | C58: 21 | D58: 5374 | K58: 1 | L58: 12

Sheet !M922A10.104
A1: Report for:!M922A10.104
A2: Date: | B2: <date>
A3: Hen: | B3: <hen> | F3: Correct Sequence | G3: =Start!J2 -> 12 | P3: Total Sequences in Data | Q3: =4994-COUNTBLANK(L7:L5000) -> 65 | V3: Total Sequences in Block Data | W3: =COUNTA(L7:L17) -> 11 | AA3: Total Sequences in Block Data | AB3: =COUNTA(L18:L28) -> 11 | AF3: Total Sequences in Block Data | AG3: =COUNTA(L29:L38) -> 10 | AK3: Total Sequences in Block Data | AL3: =COUNTA(L39:L49) -> 11 | AP3: Total Sequences in Block Data | AQ3: =COUNTA(L50:L60) -> 11 | AU3: Total Sequences in Block Data | AV3: =COUNTA(L61:L71) -> 11
P4: Total Sequences in Summary | Q4: =SUM(O7:O14) -> 65 | V4: Total Sequences in Block Summary | W4: =SUM(U7:U14) -> 11 | AA4: Total Sequences in Block Summary | AB4: =SUM(Z7:Z14) -> 11 | AF4: Total Sequences in Block Summary | AG4: =SUM(AE7:AE14) -> 10 | AK4: Total Sequences in Block Summary | AL4: =SUM(AJ7:AJ14) -> 11 | AP4: Total Sequences in Block Summary | AQ4: =SUM(AO7:AO14) -> 11 | AU4: Total Sequences in Block Summary | AV4: =SUM(AT7:AT14) -> 11
T5: Block 1 | Y5: Block 2 | AD5: Block 3 | AI5: Block 4 | AN5: Block 5 | AS5: Block 6
A6: Sequence Component 1 | B6: Time 1 | C6: Sequence Component 2 | D6: Time 2 | E6: Sequence Component 3 | F6: Time 3 | G6: Sequence Component 4 | H6: Time 4 | I6: Sequence Component 5 | J6: Time 5 | K6: Correct? 0=No 1=Yes | L6: Sequence | N6: Frequency | P6: Relative Frequency | Q6: Variability | T6: Frequency | V6: Relative Frequency | W6: Variability | Y6: Frequency | AA6: Relative Frequency | AB6: Variability | AD6: Frequency | AF6: Relative Frequency | AG6: Variability | AI6: Frequency | AK6: Relative Frequency | AL6: Variability | AN6: Frequency | AP6: Relative Frequency | AQ6: Variability | AS6: Frequency | AU6: Relative Frequency | AV6: Variability
A7: 11 | B7: 25 | C7: 21 | D7: 35 | K7: 0 | L7: 12 | N7: 11 | O7: =COUNTIF($L$7:$L$500,N7) -> 21 | P7: =O7/$Q$4 -> 0.3230769231 | Q7: =IF(P7=0,0,(P7*((LOG(P7))/LOG(2)))) -> -0.5266316645 | T7: =N7 -> 11 | U7: =COUNTIF(L7:L17,T7) -> 3 | V7: =U7/(W4-U8) -> 0.75 | W7: =IF(V7=0,0,(V7*((LOG(V7))/LOG(2)))) -> -0.3112781245 | Y7: =N7 -> 11 | Z7: =COUNTIF(L18:L28,Y7) -> 7 | AA7: =Z7/(AB4-Z8) -> 1 | AB7: =IF(AA7=0,0,(AA7*((LOG(AA7))/LOG(2)))) -> 0 | AD7: =N7 -> 11 | AE7: =COUNTIF(L29:L38,AD7) -> 2 | AF7: =AE7/(AG4-AE8) -> 1 | AG7: =IF(AF7=0,0,(AF7*((LOG(AF7))/LOG(2)))) -> 0 | AI7: =N7 -> 11 | AJ7: =COUNTIF(L39:L49,AI7) -> 1 | AK7: =AJ7/(AL4-AJ8) -> 0.3333333333 | AL7: =IF(AK7=0,0,(AK7*((LOG(AK7))/LOG(2)))) -> -0.5283208336 | AN7: =N7 -> 11 | AO7: =COUNTIF(L50:L60,AN7) -> 4 | AP7: =AO7/(AQ4-AO8) -> 0.8 | AQ7: =IF(AP7=0,0,(AP7*((LOG(AP7))/LOG(2)))) -> -0.2575424759 | AS7: =N7 -> 11 | AT7: =COUNTIF(L61:L71,AS7) -> 4 | AU7: =AT7/(AV4-AT8) -> 1 | AV7: =IF(AU7=0,0,(AU7*((LOG(AU7))/LOG(2)))) -> 0
A8: 11 | B8: 125 | C8: 21 | D8: 134 | K8: 0 | L8: 12 | N8: 12 | O8: =COUNTIF($L$7:$L$500,N8) -> 40 | P8: =O8/$Q$4 -> 0.6153846154 | Q8: =IF(P8=0,0,(P8*((LOG(P8))/LOG(2)))) -> -0.4310398265 | T8: =N8 -> 12 | U8: =COUNTIF(L7:L17,T8) -> 7 | Y8: =N8 -> 12 | Z8: =COUNTIF(L18:L28,Y8) -> 4 | AD8: =N8 -> 12 | AE8: =COUNTIF(L29:L38,AD8) -> 8 | AI8: =N8 -> 12 | AJ8: =COUNTIF(L39:L49,AI8) -> 8 | AN8: =N8 -> 12 | AO8: =COUNTIF(L50:L60,AN8) -> 6 | AS8: =N8 -> 12 | AT8: =COUNTIF(L61:L71,AS8) -> 7
A9: 22 | B9: 223 | C9: 23 | D9: 233 | K9: 0 | L9: 22 | N9: 21 | O9: =COUNTIF($L$7:$L$500,N9) -> 1 | P9: =O9/$Q$4 -> 0.01538461538 | Q9: =IF(P9=0,0,(P9*((LOG(P9))/LOG(2)))) -> -0.09265181251 | T9: =N9 -> 21 | U9: =COUNTIF(L7:L17,T9) -> 0 | V9: =U9/(W4-U8) -> 0 | W9: =IF(V9=0,0,(V9*((LOG(V9))/LOG(2)))) -> 0 | Y9: =N9 -> 21 | Z9: =COUNTIF(L18:L28,Y9) -> 0 | AA9: =Z9/(AB4-Z8) -> 0 | AB9: =IF(AA9=0,0,(AA9*((LOG(AA9))/LOG(2)))) -> 0 | AD9: =N9 -> 21 | AE9: =COUNTIF(L29:L38,AD9) -> 0 | AF9: =AE9/(AG4-AE8) -> 0 | AG9: =IF(AF9=0,0,(AF9*((LOG(AF9))/LOG(2)))) -> 0 | AI9: =N9 -> 21 | AJ9: =COUNTIF(L39:L49,AI9) -> 1 | AK9: =AJ9/(AL4-AJ8) -> 0.3333333333 | AL9: =IF(AK9=0,0,(AK9*((LOG(AK9))/LOG(2)))) -> -0.5283208336 | AN9: =N9 -> 21 | AO9: =COUNTIF(L50:L60,AN9) -> 0 | AP9: =AO9/(AQ4-AO8) -> 0 | AQ9: =IF(AP9=0,0,(AP9*((LOG(AP9))/LOG(2)))) -> 0 | AS9: =N9 -> 21 | AT9: =COUNTIF(L61:L71,AS9) -> 0 | AU9: =AT9/(AV4-AT8) -> 0 | AV9: =IF(AU9=0,0,(AU9*((LOG(AU9))/LOG(2)))) -> 0
A10: 11 | B10: 330 | C10: 21 | D10: 342 | K10: 0 | L10: 12 | N10: 22 | O10: =COUNTIF($L$7:$L$500,N10) -> 3 | P10: =O10/$Q$4 -> 0.04615384615 | Q10: =IF(P10=0,0,(P10*((LOG(P10))/LOG(2)))) -> -0.2048033221 | T10: =N10 -> 22 | U10: =COUNTIF(L7:L17,T10) -> 1 | V10: =U10/(W4-U8) -> 0.25 | W10: =IF(V10=0,0,(V10*((LOG(V10))/LOG(2)))) -> -0.5 | Y10: =N10 -> 22 | Z10: =COUNTIF(L18:L28,Y10) -> 0 | AA10: =Z10/(AB4-Z8) -> 0 | AB10: =IF(AA10=0,0,(AA10*((LOG(AA10))/LOG(2)))) -> 0 | AD10: =N10 -> 22 | AE10: =COUNTIF(L29:L38,AD10) -> 0 | AF10: =AE10/(AG4-AE8) -> 0 | AG10: =IF(AF10=0,0,(AF10*((LOG(AF10))/LOG(2)))) -> 0 | AI10: =N10 -> 22 | AJ10: =COUNTIF(L39:L49,AI10) -> 1 | AK10: =AJ10/(AL4-AJ8) -> 0.3333333333 | AL10: =IF(AK10=0,0,(AK10*((LOG(AK10))/LOG(2)))) -> -0.5283208336 | AN10: =N10 -> 22 | AO10: =COUNTIF(L50:L60,AN10) -> 1 | AP10: =AO10/(AQ4-AO8) -> 0.2 | AQ10: =IF(AP10=0,0,(AP10*((LOG(AP10))/LOG(2)))) -> -0.464385619 | AS10: =N10 -> 22 | AT10: =COUNTIF(L61:L71,AS10) -> 0 | AU10: =AT10/(AV4-AT8) -> 0 | AV10: =IF(AU10=0,0,(AU10*((LOG(AU10))/LOG(2)))) -> 0
A11: 11 | B11: 437 | C11: 21 | D11: 449 | K11: 0 | L11: 12 | T11: =N11 -> 0 | U11: =COUNTIF(L7:L17,T11) -> 0 | V11: =U11/(W4-U8) -> 0 | W11: =IF(V11=0,0,(V11*((LOG(V11))/LOG(2)))) -> 0 | Y11: =N11 -> 0 | Z11: =COUNTIF(L18:L28,Y11) -> 0 | AA11: =Z11/(AB4-Z8) -> 0 | AB11: =IF(AA11=0,0,(AA11*((LOG(AA11))/LOG(2)))) -> 0 | AD11: =N11 -> 0 | AE11: =COUNTIF(L29:L38,AD11) -> 0 | AF11: =AE11/(AG4-AE8) -> 0 | AG11: =IF(AF11=0,0,(AF11*((LOG(AF11))/LOG(2)))) -> 0 | AI11: =N11 -> 0 | AJ11: =COUNTIF(L39:L49,AI11) -> 0 | AK11: =AJ11/(AL4-AJ8) -> 0 | AL11: =IF(AK11=0,0,(AK11*((LOG(AK11))/LOG(2)))) -> 0 | AN11: =N11 -> 0 | AO11: =COUNTIF(L50:L60,AN11) -> 0 | AP11: =AO11/(AQ4-AO8) -> 0 | AQ11: =IF(AP11=0,0,(AP11*((LOG(AP11))/LOG(2)))) -> 0 | AS11: =N11 -> 0 | AT11: =COUNTIF(L61:L71,AS11) -> 0 | AU11: =AT11/(AV4-AT8) -> 0 | AV11: =IF(AU11=0,0,(AU11*((LOG(AU11))/LOG(2)))) -> 0
A12: 11 | B12: 535 | C12: 21 | D12: 547 | K12: 0 | L12: 12 | T12: =N12 -> 0 | U12: =COUNTIF(L7:L17,T12) -> 0 | V12: =U12/(W4-U8) -> 0 | W12: =IF(V12=0,0,(V12*((LOG(V12))/LOG(2)))) -> 0 | Y12: =N12 -> 0 | Z12: =COUNTIF(L18:L28,Y12) -> 0 | AA12: =Z12/(AB4-Z8) -> 0 | AB12: =IF(AA12=0,0,(AA12*((LOG(AA12))/LOG(2)))) -> 0 | AD12: =N12 -> 0 | AE12: =COUNTIF(L29:L38,AD12) -> 0 | AF12: =AE12/(AG4-AE8) -> 0 | AG12: =IF(AF12=0,0,(AF12*((LOG(AF12))/LOG(2)))) -> 0 | AI12: =N12 -> 0 | AJ12: =COUNTIF(L39:L49,AI12) -> 0 | AK12: =AJ12/(AL4-AJ8) -> 0 | AL12: =IF(AK12=0,0,(AK12*((LOG(AK12))/LOG(2)))) -> 0 | AN12: =N12 -> 0 | AO12: =COUNTIF(L50:L60,AN12) -> 0 | AP12: =AO12/(AQ4-AO8) -> 0 | AQ12: =IF(AP12=0,0,(AP12*((LOG(AP12))/LOG(2)))) -> 0 | AS12: =N12 -> 0 | AT12: =COUNTIF(L61:L71,AS12) -> 0 | AU12: =AT12/(AV4-AT8) -> 0 | AV12: =IF(AU12=0,0,(AU12*((LOG(AU12))/LOG(2)))) -> 0
A13: 11 | B13: 643 | C13: 21 | D13: 654 | K13: 0 | L13: 12 | T13: =N13 -> 0 | U13: =COUNTIF(L7:L17,T13) -> 0 | V13: =U13/(W4-U8) -> 0 | W13: =IF(V13=0,0,(V13*((LOG(V13))/LOG(2)))) -> 0 | Y13: =N13 -> 0 | Z13: =COUNTIF(L18:L28,Y13) -> 0 | AA13: =Z13/(AB4-Z8) -> 0 | AB13: =IF(AA13=0,0,(AA13*((LOG(AA13))/LOG(2)))) -> 0 | AD13: =N13 -> 0 | AE13: =COUNTIF(L29:L38,AD13) -> 0 | AF13: =AE13/(AG4-AE8) -> 0 | AG13: =IF(AF13=0,0,(AF13*((LOG(AF13))/LOG(2)))) -> 0 | AI13: =N13 -> 0 | AJ13: =COUNTIF(L39:L49,AI13) -> 0 | AK13: =AJ13/(AL4-AJ8) -> 0 | AL13: =IF(AK13=0,0,(AK13*((LOG(AK13))/LOG(2)))) -> 0 | AN13: =N13 -> 0 | AO13: =COUNTIF(L50:L60,AN13) -> 0 | AP13: =AO13/(AQ4-AO8) -> 0 | AQ13: =IF(AP13=0,0,(AP13*((LOG(AP13))/LOG(2)))) -> 0 | AS13: =N13 -> 0 | AT13: =COUNTIF(L61:L71,AS13) -> 0 | AU13: =AT13/(AV4-AT8) -> 0 | AV13: =IF(AU13=0,0,(AU13*((LOG(AU13))/LOG(2)))) -> 0
A14: 11 | B14: 740 | C14: 21 | D14: 755 | K14: 0 | L14: 12 | T14: =N14 -> 0 | U14: =COUNTIF(L7:L17,T14) -> 0 | V14: =U14/(W4-U8) -> 0 | W14: =IF(V14=0,0,(V14*((LOG(V14))/LOG(2)))) -> 0 | Y14: =N14 -> 0 | Z14: =COUNTIF(L18:L28,Y14) -> 0 | AA14: =Z14/(AB4-Z8) -> 0 | AB14: =IF(AA14=0,0,(AA14*((LOG(AA14))/LOG(2)))) -> 0 | AD14: =N14 -> 0 | AE14: =COUNTIF(L29:L38,AD14) -> 0 | AF14: =AE14/(AG4-AE8) -> 0 | AG14: =IF(AF14=0,0,(AF14*((LOG(AF14))/LOG(2)))) -> 0 | AI14: =N14 -> 0 | AJ14: =COUNTIF(L39:L49,AI14) -> 0 | AK14: =AJ14/(AL4-AJ8) -> 0 | AL14: =IF(AK14=0,0,(AK14*((LOG(AK14))/LOG(2)))) -> 0 | AN14: =N14 -> 0 | AO14: =COUNTIF(L50:L60,AN14) -> 0 | AP14: =AO14/(AQ4-AO8) -> 0 | AQ14: =IF(AP14=0,0,(AP14*((LOG(AP14))/LOG(2)))) -> 0 | AS14: =N14 -> 0 | AT14: =COUNTIF(L61:L71,AS14) -> 0 | AU14: =AT14/(AV4-AT8) -> 0 | AV14: =IF(AU14=0,0,(AU14*((LOG(AU14))/LOG(2)))) -> 0
A15: 11 | B15: 840 | C15: 12 | D15: 843 | K15: 0 | L15: 11 | P15: =SUM(P7:P14) -> 1 | Q15: =-SUM(Q7:Q14) -> 1.255126626 | V15: =SUM(V7:V14) -> 1 | W15: =-SUM(W7:W14) -> 0.8112781245 | AA15: =SUM(AA7:AA14) -> 1 | AB15: =-SUM(AB7:AB14) -> 0 | AF15: =SUM(AF7:AF14) -> 1 | AG15: =-SUM(AG7:AG14) -> 0 | AK15: =SUM(AK7:AK14) -> 1 | AL15: =-SUM(AL7:AL14) -> 1.584962501 | AP15: =SUM(AP7:AP14) -> 1 | AQ15: =-SUM(AQ7:AQ14) -> 0.7219280949 | AU15: =SUM(AU7:AU14) -> 1 | AV15: =-SUM(AV7:AV14) -> 0
A16: 11 | B16: 939 | C16: 12 | D16: 943 | K16: 0 | L16: 11 | P16: U= | Q16: =Q15/(LOG(Q4)/LOG(2)) -> 0.2084108219 | V16: U1= | W16: =W15/(LOG(W4)/LOG(2)) -> 0.2345119701 | AA16: U2= | AB16: =AB15/(LOG(AB4)/LOG(2)) -> 0 | AF16: U3= | AG16: =AG15/(LOG(AG4)/LOG(2)) -> 0 | AK16: U4= | AL16: =AL15/(LOG(AL4)/LOG(2)) -> 0.45815691 | AP16: U5= | AQ16: =AQ15/(LOG(AQ4)/LOG(2)) -> 0.2086840194 | AU16: U6= | AV16: =AV15/(LOG(AV4)/LOG(2)) -> 0
A17: 11 | B17: 1044 | C17: 12 | D17: 1048 | K17: 0 | L17: 11
A18: 11 | B18: 1144 | C18: 12 | D18: 1152 | K18: 0 | L18: 11
A19: 11 | B19: 1247 | C19: 21 | D19: 1260 | K19: 0 | L19: 12 | N19: Total Target Seq
A20: 11 | B20: 1348 | C20: 21 | D20: 1361 | K20: 0 | L20: 12 | N20: =COUNTIF(L7:L71,G3) -> 40 | P20: 11 | Q20: 11 | R20: 10 | S20: 11 | T20: 11 | U20: 11
A21: 11 | B21: 1449 | C21: 12 | D21: 1453 | K21: 0 | L21: 11 | P21: % of reinforcement given in 6 equal intervals based on number of trials
A22: 11 | B22: 1548 | C22: 21 | D22: 1559 | K22: 0 | L22: 12 | P22: %_1 | Q22: %_2 | R22: %_3 | S22: %_4 | T22: %_5 | U22: %_6
A23: 11 | B23: 1644 | C23: 12 | D23: 1649 | K23: 0 | L23: 11 | O23: target sequence | P23: =$G$3 -> 12 | Q23: =$G$3 -> 12 | R23: =$G$3 -> 12 | S23: =$G$3 -> 12 | T23: =$G$3 -> 12 | U23: =$G$3 -> 12
A24: 11 | B24: 1743 | C24: 12 | D24: 1751 | K24: 0 | L24: 11 | O24: total reinforcement | P24: =U8 -> 7 | Q24: =Z8 -> 4 | R24: =AE8 -> 8 | S24: =AJ8 -> 8 | T24: =AO8 -> 6 | U24: =AT8 -> 7
A25: 11 | B25: 1863 | C25: 12 | D25: 1870 | K25: 0 | L25: 11 | O25: % target
A26: 11 | B26: 1967 | C26: 12 | D26: 1972 | K26: 0 | L26: 11 | O26: CCRF
A27: 11 | B27: 2135 | C27: 21 | D27: 2146 | K27: 0 | L27: 12 | O27: % CCRf
A28: 11 | B28: 2232 | C28: 12 | D28: 2236 | K28: 0 | L28: 11 | O28: average response rate | P28: =D17/P20 -> 95.27272727 | Q28: =(D28-D17)/Q20 -> 108 | R28: =(D38-D28)/R20 -> 106.3 | S28: =(D49-D38)/S20 -> 112.4545455 | T28: =(D60-D49)/T20 -> 106.5454545 | U28: =(D71-D60)/U20 -> 112.5454545
A29: 11 | B29: 2334 | C29: 12 | D29: 2347 | K29: 0 | L29: 11
A30: 11 | B30: 2443 | C30: 21 | D30: 2454 | K30: 0 | L30: 12
A31: 11 | B31: 2540 | C31: 21 | D31: 2558 | K31: 0 | L31: 12
A32: 11 | B32: 2648 | C32: 21 | D32: 2659 | K32: 0 | L32: 12
A33: 11 | B33: 2744 | C33: 21 | D33: 2757 | K33: 0 | L33: 12
A34: 11 | B34: 2847 | C34: 21 | D34: 2860 | K34: 0 | L34: 12
A35: 11 | B35: 2947 | C35: 21 | D35: 2973 | K35: 0 | L35: 12
A36: 11 | B36: 3061 | C36: 12 | D36: 3067 | K36: 0 | L36: 11
A37: 11 | B37: 3165 | C37: 21 | D37: 3177 | K37: 0 | L37: 12
A38: 11 | B38: 3264 | C38: 21 | D38: 3299 | K38: 0 | L38: 12
A39: 11 | B39: 3426 | C39: 21 | D39: 3437 | K39: 0 | L39: 12
A40: 22 | B40: 3543 | C40: 14 | D40: 3573 | K40: 0 | L40: 21
A41: 22 | B41: 3686 | C41: 23 | D41: 3706 | K41: 0 | L41: 22
A42: 11 | B42: 3801 | C42: 21 | D42: 3814 | K42: 0 | L42: 12
A43: 11 | B43: 3918 | C43: 21 | D43: 3930 | K43: 0 | L43: 12
A44: 11 | B44: 4022 | C44: 12 | D44: 4027 | K44: 0 | L44: 11
A45: 11 | B45: 4124 | C45: 21 | D45: 4136 | K45: 0 | L45: 12
A46: 11 | B46: 4225 | C46: 21 | D46: 4240 | K46: 0 | L46: 12
A47: 11 | B47: 4326 | C47: 21 | D47: 4339 | K47: 0 | L47: 12
A48: 11 | B48: 4424 | C48: 21 | D48: 4436 | K48: 0 | L48: 12
A49: 11 | B49: 4522 | C49: 21 | D49: 4536 | K49: 0 | L49: 12
A50: 11 | B50: 4624 | C50: 21 | D50: 4636 | K50: 0 | L50: 12
A51: 11 | B51: 4726 | C51: 21 | D51: 4740 | K51: 0 | L51: 12
A52: 22 | B52: 4850 | C52: 23 | D52: 4864 | K52: 0 | L52: 22
A53: 11 | B53: 4959 | C53: 21 | D53: 4971 | K53: 0 | L53: 12
A54: 11 | B54: 5056 | C54: 21 | D54: 5068 | K54: 0 | L54: 12
A55: 11 | B55: 5154 | C55: 12 | D55: 5174 | K55: 0 | L55: 11
A56: 11 | B56: 5269 | C56: 21 | D56: 5280 | K56: 0 | L56: 12
A57: 11 | B57: 5376 | C57: 12 | D57: 5391 | K57: 0 | L57: 11
A58: 11 | B58: 5491 | C58: 21 | D58: 5504 | K58: 0 | L58: 12
A59: 11 | B59: 5599 | C59: 12 | D59: 5607 | K59: 0 | L59: 11
A60: 11 | B60: 5702 | C60: 12 | D60: 5708 | K60: 0 | L60: 11
A61: 11 | B61: 5805 | C61: 12 | D61: 5810 | K61: 0 | L61: 11
A62: 11 | B62: 5907 | C62: 21 | D62: 5920 | K62: 0 | L62: 12
A63: 11 | B63: 6015 | C63: 21 | D63: 6037 | K63: 0 | L63: 12
A64: 11 | B64: 6129 | C64: 21 | D64: 6152 | K64: 0 | L64: 12
A65: 11 | B65: 6238 | C65: 12 | D65: 6281 | K65: 0 | L65: 11
A66: 11 | B66: 6381 | C66: 21 | D66: 6404 | K66: 0 | L66: 12
A67: 11 | B67: 6496 | C67: 21 | D67: 6522 | K67: 0 | L67: 12
A68: 11 | B68: 6615 | C68: 12 | D68: 6628 | K68: 0 | L68: 11
A69: 11 | B69: 6724 | C69: 12 | D69: 6736 | K69: 0 | L69: 11
A70: 11 | B70: 6831 | C70: 21 | D70: 6843 | K70: 0 | L70: 12
A71: 11 | B71: 6936 | C71: 21 | D71: 6946 | K71: 1 | L71: 12

Sheet !M923B20.104
A1: Report for:!M923B20.104
A2: Date: | B2: <date>
A3: Hen: | B3: <hen> | F3: Correct Sequence | G3: =Start!J2 -> 12 | P3: Total Sequences in Data | Q3: =4994-COUNTBLANK(L7:L5000) -> 54 | V3: Total Sequences in Block Data | W3: =COUNTA(L7:L15) -> 9 | AA3: Total Sequences in Block Data | AB3: =COUNTA(L16:L24) -> 9 | AF3: Total Sequences in Block Data | AG3: =COUNTA(L25:L33) -> 9 | AK3: Total Sequences in Block Data | AL3: =COUNTA(L34:L42) -> 9 | AP3: Total Sequences in Block Data | AQ3: =COUNTA(L43:L51) -> 9 | AU3: Total Sequences in Block Data | AV3: =COUNTA(L52:L60) -> 9
P4: Total Sequences in Summary | Q4: =SUM(O7:O14) -> 54 | V4: Total Sequences in Block Summary | W4: =SUM(U7:U14) -> 9 | AA4: Total Sequences in Block Summary | AB4: =SUM(Z7:Z14) -> 9 | AF4: Total Sequences in Block Summary | AG4: =SUM(AE7:AE14) -> 9 | AK4: Total Sequences in Block Summary | AL4: =SUM(AJ7:AJ14) -> 9 | AP4: Total Sequences in Block Summary | AQ4: =SUM(AO7:AO14) -> 9 | AU4: Total Sequences in Block Summary | AV4: =SUM(AT7:AT14) -> 9
T5: Block 1 | Y5: Block 2 | AD5: Block 3 | AI5: Block 4 | AN5: Block 5 | AS5: Block 6
A6: Sequence Component 1 | B6: Time 1 | C6: Sequence Component 2 | D6: Time 2 | E6: Sequence Component 3 | F6: Time 3 | G6: Sequence Component 4 | H6: Time 4 | I6: Sequence Component 5 | J6: Time 5 | K6: Correct? 0=No 1=Yes | L6: Sequence | N6: Frequency | P6: Relative Frequency | Q6: Variability | T6: Frequency | V6: Relative Frequency | W6: Variability | Y6: Frequency | AA6: Relative Frequency | AB6: Variability | AD6: Frequency | AF6: Relative Frequency | AG6: Variability | AI6: Frequency | AK6: Relative Frequency | AL6: Variability | AN6: Frequency | AP6: Relative Frequency | AQ6: Variability | AS6: Frequency | AU6: Relative Frequency | AV6: Variability
A7: 11 | B7: 10 | C7: 21 | D7: 18 | K7: 0 | L7: 12 | N7: 11 | O7: =COUNTIF($L$7:$L$500,N7) -> 12 | P7: =O7/$Q$4 -> 0.2222222222 | Q7: =IF(P7=0,0,(P7*((LOG(P7))/LOG(2)))) -> -0.4822055559 | T7: =N7 -> 11 | U7: =COUNTIF(L7:L15,T7) -> 7 | V7: =U7/(W4-U8) -> 1 | W7: =IF(V7=0,0,(V7*((LOG(V7))/LOG(2)))) -> 0 | Y7: =N7 -> 11 | Z7: =COUNTIF(L16:L24,Y7) -> 1 | AA7: =Z7/(AB4-Z8) -> 1 | AB7: =IF(AA7=0,0,(AA7*((LOG(AA7))/LOG(2)))) -> 0 | AD7: =N7 -> 11 | AE7: =COUNTIF(L25:L33,AD7) -> 2 | AF7: =AE7/(AG4-AE8) -> 0.6666666667 | AG7: =IF(AF7=0,0,(AF7*((LOG(AF7))/LOG(2)))) -> -0.3899750005 | AI7: =N7 -> 11 | AJ7: =COUNTIF(L34:L42,AI7) -> 1 | AK7: =AJ7/(AL4-AJ8) -> 0.5 | AL7: =IF(AK7=0,0,(AK7*((LOG(AK7))/LOG(2)))) -> -0.5 | AN7: =N7 -> 11 | AO7: =COUNTIF(L43:L51,AN7) -> 1 | AP7: =AO7/(AQ4-AO8) -> 1 | AQ7: =IF(AP7=0,0,(AP7*((LOG(AP7))/LOG(2)))) -> 0 | AS7: =N7 -> 11 | AT7: =COUNTIF(L52:L60,AS7) -> 0 | AU7: =AT7/(AV4-AT8) ->  | AV7: =IF(AU7=0,0,(AU7*((LOG(AU7))/LOG(2)))) -> 
A8: 11 | B8: 111 | C8: 12 | D8: 129 | K8: 0 | L8: 11 | N8: 12 | O8: =COUNTIF($L$7:$L$500,N8) -> 40 | P8: =O8/$Q$4 -> 0.7407407407 | Q8: =IF(P8=0,0,(P8*((LOG(P8))/LOG(2)))) -> -0.3207106721 | T8: =N8 -> 12 | U8: =COUNTIF(L7:L15,T8) -> 2 | Y8: =N8 -> 12 | Z8: =COUNTIF(L16:L24,Y8) -> 8 | AD8: =N8 -> 12 | AE8: =COUNTIF(L25:L33,AD8) -> 6 | AI8: =N8 -> 12 | AJ8: =COUNTIF(L34:L42,AI8) -> 7 | AN8: =N8 -> 12 | AO8: =COUNTIF(L43:L51,AN8) -> 8 | AS8: =N8 -> 12 | AT8: =COUNTIF(L52:L60,AS8) -> 9
A9: 11 | B9: 243 | C9: 12 | D9: 258 | K9: 0 | L9: 11 | N9: 21 | O9: =COUNTIF($L$7:$L$500,N9) -> 0 | P9: =O9/$Q$4 -> 0 | Q9: =IF(P9=0,0,(P9*((LOG(P9))/LOG(2)))) -> 0 | T9: =N9 -> 21 | U9: =COUNTIF(L7:L15,T9) -> 0 | V9: =U9/(W4-U8) -> 0 | W9: =IF(V9=0,0,(V9*((LOG(V9))/LOG(2)))) -> 0 | Y9: =N9 -> 21 | Z9: =COUNTIF(L16:L24,Y9) -> 0 | AA9: =Z9/(AB4-Z8) -> 0 | AB9: =IF(AA9=0,0,(AA9*((LOG(AA9))/LOG(2)))) -> 0 | AD9: =N9 -> 21 | AE9: =COUNTIF(L25:L33,AD9) -> 0 | AF9: =AE9/(AG4-AE8) -> 0 | AG9: =IF(AF9=0,0,(AF9*((LOG(AF9))/LOG(2)))) -> 0 | AI9: =N9 -> 21 | AJ9: =COUNTIF(L34:L42,AI9) -> 0 | AK9: =AJ9/(AL4-AJ8) -> 0 | AL9: =IF(AK9=0,0,(AK9*((LOG(AK9))/LOG(2)))) -> 0 | AN9: =N9 -> 21 | AO9: =COUNTIF(L43:L51,AN9) -> 0 | AP9: =AO9/(AQ4-AO8) -> 0 | AQ9: =IF(AP9=0,0,(AP9*((LOG(AP9))/LOG(2)))) -> 0 | AS9: =N9 -> 21 | AT9: =COUNTIF(L52:L60,AS9) -> 0 | AU9: =AT9/(AV4-AT8) ->  | AV9: =IF(AU9=0,0,(AU9*((LOG(AU9))/LOG(2)))) -> 
A10: 11 | B10: 355 | C10: 12 | D10: 370 | K10: 0 | L10: 11 | N10: 22 | O10: =COUNTIF($L$7:$L$500,N10) -> 2 | P10: =O10/$Q$4 -> 0.03703703704 | Q10: =IF(P10=0,0,(P10*((LOG(P10))/LOG(2)))) -> -0.1761069445 | T10: =N10 -> 22 | U10: =COUNTIF(L7:L15,T10) -> 0 | V10: =U10/(W4-U8) -> 0 | W10: =IF(V10=0,0,(V10*((LOG(V10))/LOG(2)))) -> 0 | Y10: =N10 -> 22 | Z10: =COUNTIF(L16:L24,Y10) -> 0 | AA10: =Z10/(AB4-Z8) -> 0 | AB10: =IF(AA10=0,0,(AA10*((LOG(AA10))/LOG(2)))) -> 0 | AD10: =N10 -> 22 | AE10: =COUNTIF(L25:L33,AD10) -> 1 | AF10: =AE10/(AG4-AE8) -> 0.3333333333 | AG10: =IF(AF10=0,0,(AF10*((LOG(AF10))/LOG(2)))) -> -0.5283208336 | AI10: =N10 -> 22 | AJ10: =COUNTIF(L34:L42,AI10) -> 1 | AK10: =AJ10/(AL4-AJ8) -> 0.5 | AL10: =IF(AK10=0,0,(AK10*((LOG(AK10))/LOG(2)))) -> -0.5 | AN10: =N10 -> 22 | AO10: =COUNTIF(L43:L51,AN10) -> 0 | AP10: =AO10/(AQ4-AO8) -> 0 | AQ10: =IF(AP10=0,0,(AP10*((LOG(AP10))/LOG(2)))) -> 0 | AS10: =N10 -> 22 | AT10: =COUNTIF(L52:L60,AS10) -> 0 | AU10: =AT10/(AV4-AT8) ->  | AV10: =IF(AU10=0,0,(AU10*((LOG(AU10))/LOG(2)))) -> 
A11: 11 | B11: 470 | C11: 12 | D11: 475 | K11: 0 | L11: 11 | T11: =N11 -> 0 | U11: =COUNTIF(L7:L15,T11) -> 0 | V11: =U11/(W4-U8) -> 0 | W11: =IF(V11=0,0,(V11*((LOG(V11))/LOG(2)))) -> 0 | Y11: =N11 -> 0 | Z11: =COUNTIF(L16:L24,Y11) -> 0 | AA11: =Z11/(AB4-Z8) -> 0 | AB11: =IF(AA11=0,0,(AA11*((LOG(AA11))/LOG(2)))) -> 0 | AD11: =N11 -> 0 | AE11: =COUNTIF(L25:L33,AD11) -> 0 | AF11: =AE11/(AG4-AE8) -> 0 | AG11: =IF(AF11=0,0,(AF11*((LOG(AF11))/LOG(2)))) -> 0 | AI11: =N11 -> 0 | AJ11: =COUNTIF(L34:L42,AI11) -> 0 | AK11: =AJ11/(AL4-AJ8) -> 0 | AL11: =IF(AK11=0,0,(AK11*((LOG(AK11))/LOG(2)))) -> 0 | AN11: =N11 -> 0 | AO11: =COUNTIF(L43:L51,AN11) -> 0 | AP11: =AO11/(AQ4-AO8) -> 0 | AQ11: =IF(AP11=0,0,(AP11*((LOG(AP11))/LOG(2)))) -> 0 | AS11: =N11 -> 0 | AT11: =COUNTIF(L52:L60,AS11) -> 0 | AU11: =AT11/(AV4-AT8) ->  | AV11: =IF(AU11=0,0,(AU11*((LOG(AU11))/LOG(2)))) -> 
A12: 11 | B12: 571 | C12: 12 | D12: 576 | K12: 0 | L12: 11 | T12: =N12 -> 0 | U12: =COUNTIF(L7:L15,T12) -> 0 | V12: =U12/(W4-U8) -> 0 | W12: =IF(V12=0,0,(V12*((LOG(V12))/LOG(2)))) -> 0 | Y12: =N12 -> 0 | Z12: =COUNTIF(L16:L24,Y12) -> 0 | AA12: =Z12/(AB4-Z8) -> 0 | AB12: =IF(AA12=0,0,(AA12*((LOG(AA12))/LOG(2)))) -> 0 | AD12: =N12 -> 0 | AE12: =COUNTIF(L25:L33,AD12) -> 0 | AF12: =AE12/(AG4-AE8) -> 0 | AG12: =IF(AF12=0,0,(AF12*((LOG(AF12))/LOG(2)))) -> 0 | AI12: =N12 -> 0 | AJ12: =COUNTIF(L34:L42,AI12) -> 0 | AK12: =AJ12/(AL4-AJ8) -> 0 | AL12: =IF(AK12=0,0,(AK12*((LOG(AK12))/LOG(2)))) -> 0 | AN12: =N12 -> 0 | AO12: =COUNTIF(L43:L51,AN12) -> 0 | AP12: =AO12/(AQ4-AO8) -> 0 | AQ12: =IF(AP12=0,0,(AP12*((LOG(AP12))/LOG(2)))) -> 0 | AS12: =N12 -> 0 | AT12: =COUNTIF(L52:L60,AS12) -> 0 | AU12: =AT12/(AV4-AT8) ->  | AV12: =IF(AU12=0,0,(AU12*((LOG(AU12))/LOG(2)))) -> 
A13: 11 | B13: 677 | C13: 12 | D13: 685 | K13: 0 | L13: 11 | T13: =N13 -> 0 | U13: =COUNTIF(L7:L15,T13) -> 0 | V13: =U13/(W4-U8) -> 0 | W13: =IF(V13=0,0,(V13*((LOG(V13))/LOG(2)))) -> 0 | Y13: =N13 -> 0 | Z13: =COUNTIF(L16:L24,Y13) -> 0 | AA13: =Z13/(AB4-Z8) -> 0 | AB13: =IF(AA13=0,0,(AA13*((LOG(AA13))/LOG(2)))) -> 0 | AD13: =N13 -> 0 | AE13: =COUNTIF(L25:L33,AD13) -> 0 | AF13: =AE13/(AG4-AE8) -> 0 | AG13: =IF(AF13=0,0,(AF13*((LOG(AF13))/LOG(2)))) -> 0 | AI13: =N13 -> 0 | AJ13: =COUNTIF(L34:L42,AI13) -> 0 | AK13: =AJ13/(AL4-AJ8) -> 0 | AL13: =IF(AK13=0,0,(AK13*((LOG(AK13))/LOG(2)))) -> 0 | AN13: =N13 -> 0 | AO13: =COUNTIF(L43:L51,AN13) -> 0 | AP13: =AO13/(AQ4-AO8) -> 0 | AQ13: =IF(AP13=0,0,(AP13*((LOG(AP13))/LOG(2)))) -> 0 | AS13: =N13 -> 0 | AT13: =COUNTIF(L52:L60,AS13) -> 0 | AU13: =AT13/(AV4-AT8) ->  | AV13: =IF(AU13=0,0,(AU13*((LOG(AU13))/LOG(2)))) -> 
A14: 11 | B14: 786 | C14: 12 | D14: 805 | K14: 0 | L14: 11 | T14: =N14 -> 0 | U14: =COUNTIF(L7:L15,T14) -> 0 | V14: =U14/(W4-U8) -> 0 | W14: =IF(V14=0,0,(V14*((LOG(V14))/LOG(2)))) -> 0 | Y14: =N14 -> 0 | Z14: =COUNTIF(L16:L24,Y14) -> 0 | AA14: =Z14/(AB4-Z8) -> 0 | AB14: =IF(AA14=0,0,(AA14*((LOG(AA14))/LOG(2)))) -> 0 | AD14: =N14 -> 0 | AE14: =COUNTIF(L25:L33,AD14) -> 0 | AF14: =AE14/(AG4-AE8) -> 0 | AG14: =IF(AF14=0,0,(AF14*((LOG(AF14))/LOG(2)))) -> 0 | AI14: =N14 -> 0 | AJ14: =COUNTIF(L34:L42,AI14) -> 0 | AK14: =AJ14/(AL4-AJ8) -> 0 | AL14: =IF(AK14=0,0,(AK14*((LOG(AK14))/LOG(2)))) -> 0 | AN14: =N14 -> 0 | AO14: =COUNTIF(L43:L51,AN14) -> 0 | AP14: =AO14/(AQ4-AO8) -> 0 | AQ14: =IF(AP14=0,0,(AP14*((LOG(AP14))/LOG(2)))) -> 0 | AS14: =N14 -> 0 | AT14: =COUNTIF(L52:L60,AS14) -> 0 | AU14: =AT14/(AV4-AT8) ->  | AV14: =IF(AU14=0,0,(AU14*((LOG(AU14))/LOG(2)))) -> 
A15: 11 | B15: 906 | C15: 21 | D15: 917 | K15: 0 | L15: 12 | P15: =SUM(P7:P14) -> 1 | Q15: =-SUM(Q7:Q14) -> 0.9790231725 | V15: =SUM(V7:V14) -> 1 | W15: =-SUM(W7:W14) -> 0 | AA15: =SUM(AA7:AA14) -> 1 | AB15: =-SUM(AB7:AB14) -> 0 | AF15: =SUM(AF7:AF14) -> 1 | AG15: =-SUM(AG7:AG14) -> 0.9182958341 | AK15: =SUM(AK7:AK14) -> 1 | AL15: =-SUM(AL7:AL14) -> 1 | AP15: =SUM(AP7:AP14) -> 1 | AQ15: =-SUM(AQ7:AQ14) -> 0 | AU15: =SUM(AU7:AU14) ->  | AV15: =-SUM(AV7:AV14) -> 
A16: 11 | B16: 1009 | C16: 12 | D16: 1018 | K16: 0 | L16: 11 | P16: U= | Q16: =Q15/(LOG(Q4)/LOG(2)) -> 0.1701202972 | V16: U1= | W16: =W15/(LOG(W4)/LOG(2)) -> 0 | AA16: U2= | AB16: =AB15/(LOG(AB4)/LOG(2)) -> 0 | AF16: U3= | AG16: =AG15/(LOG(AG4)/LOG(2)) -> 0.2896900821 | AK16: U4= | AL16: =AL15/(LOG(AL4)/LOG(2)) -> 0.3154648768 | AP16: U5= | AQ16: =AQ15/(LOG(AQ4)/LOG(2)) -> 0 | AU16: U6= | AV16: =AV15/(LOG(AV4)/LOG(2)) -> 
A17: 11 | B17: 1116 | C17: 21 | D17: 1129 | K17: 0 | L17: 12
A18: 11 | B18: 1228 | C18: 21 | D18: 1239 | K18: 0 | L18: 12
A19: 11 | B19: 1326 | C19: 21 | D19: 1337 | K19: 0 | L19: 12 | N19: Total Target Seq
A20: 11 | B20: 1424 | C20: 21 | D20: 1436 | K20: 0 | L20: 12 | N20: =COUNTIF(L7:L60,G3) -> 40 | P20: 9 | Q20: 9 | R20: 9 | S20: 9 | T20: 9 | U20: 9
A21: 11 | B21: 1521 | C21: 21 | D21: 1530 | K21: 0 | L21: 12 | P21: % of reinforcement given in 6 equal intervals based on number of trials
A22: 11 | B22: 1626 | C22: 21 | D22: 1637 | K22: 0 | L22: 12 | P22: %_1 | Q22: %_2 | R22: %_3 | S22: %_4 | T22: %_5 | U22: %_6
A23: 11 | B23: 1725 | C23: 21 | D23: 1736 | K23: 0 | L23: 12 | O23: target sequence | P23: =$G$3 -> 12 | Q23: =$G$3 -> 12 | R23: =$G$3 -> 12 | S23: =$G$3 -> 12 | T23: =$G$3 -> 12 | U23: =$G$3 -> 12
A24: 11 | B24: 1828 | C24: 21 | D24: 1839 | K24: 0 | L24: 12 | O24: total reinforcement | P24: =U8 -> 2 | Q24: =Z8 -> 8 | R24: =AE8 -> 6 | S24: =AJ8 -> 7 | T24: =AO8 -> 8 | U24: =AT8 -> 9
A25: 22 | B25: 1937 | C25: 23 | D25: 1953 | K25: 0 | L25: 22 | O25: % target
A26: 11 | B26: 2055 | C26: 21 | D26: 2066 | K26: 0 | L26: 12 | O26: CCRF
A27: 11 | B27: 2153 | C27: 21 | D27: 2161 | K27: 0 | L27: 12 | O27: % CCRf
A28: 11 | B28: 2251 | C28: 21 | D28: 2263 | K28: 0 | L28: 12 | O28: average response rate | P28: =D15/P20 -> 101.8888889 | Q28: =(D24-D15)/Q20 -> 102.4444444 | R28: =(D33-D24)/R20 -> 104.6666667 | S28: =(D42-D33)/S20 -> 101.5555556 | T28: =(D51-D42)/T20 -> 100 | U28: =(D60-D51)/U20 -> 99
A29: 11 | B29: 2350 | C29: 12 | D29: 2373 | K29: 0 | L29: 11
A30: 11 | B30: 2468 | C30: 12 | D30: 2471 | K30: 0 | L30: 11
A31: 11 | B31: 2568 | C31: 21 | D31: 2587 | K31: 0 | L31: 12
A32: 11 | B32: 2674 | C32: 21 | D32: 2685 | K32: 0 | L32: 12
A33: 11 | B33: 2770 | C33: 21 | D33: 2781 | K33: 0 | L33: 12
A34: 11 | B34: 2877 | C34: 21 | D34: 2889 | K34: 0 | L34: 12
A35: 11 | B35: 2975 | C35: 21 | D35: 2987 | K35: 0 | L35: 12
A36: 22 | B36: 3085 | C36: 23 | D36: 3097 | K36: 0 | L36: 22
A37: 11 | B37: 3196 | C37: 21 | D37: 3208 | K37: 0 | L37: 12
A38: 11 | B38: 3293 | C38: 12 | D38: 3297 | K38: 0 | L38: 11
A39: 11 | B39: 3393 | C39: 21 | D39: 3404 | K39: 0 | L39: 12
A40: 11 | B40: 3492 | C40: 21 | D40: 3502 | K40: 0 | L40: 12
A41: 11 | B41: 3589 | C41: 21 | D41: 3600 | K41: 0 | L41: 12
A42: 11 | B42: 3684 | C42: 21 | D42: 3695 | K42: 0 | L42: 12
A43: 11 | B43: 3780 | C43: 21 | D43: 3797 | K43: 0 | L43: 12
A44: 11 | B44: 3881 | C44: 21 | D44: 3892 | K44: 0 | L44: 12
A45: 11 | B45: 3980 | C45: 21 | D45: 3991 | K45: 0 | L45: 12
A46: 11 | B46: 4075 | C46: 21 | D46: 4087 | K46: 0 | L46: 12
A47: 11 | B47: 4171 | C47: 21 | D47: 4183 | K47: 0 | L47: 12
A48: 11 | B48: 4267 | C48: 21 | D48: 4280 | K48: 0 | L48: 12
A49: 11 | B49: 4365 | C49: 21 | D49: 4384 | K49: 0 | L49: 12
A50: 11 | B50: 4469 | C50: 12 | D50: 4472 | K50: 0 | L50: 11
A51: 11 | B51: 4575 | C51: 21 | D51: 4595 | K51: 0 | L51: 12
A52: 11 | B52: 4679 | C52: 21 | D52: 4690 | K52: 0 | L52: 12
A53: 11 | B53: 4776 | C53: 21 | D53: 4785 | K53: 0 | L53: 12
A54: 11 | B54: 4868 | C54: 21 | D54: 4880 | K54: 0 | L54: 12
A55: 11 | B55: 4972 | C55: 21 | D55: 4983 | K55: 0 | L55: 12
A56: 11 | B56: 5068 | C56: 21 | D56: 5079 | K56: 0 | L56: 12
A57: 11 | B57: 5163 | C57: 21 | D57: 5196 | K57: 0 | L57: 12
A58: 11 | B58: 5281 | C58: 21 | D58: 5292 | K58: 0 | L58: 12
A59: 11 | B59: 5379 | C59: 21 | D59: 5390 | K59: 0 | L59: 12
A60: 11 | B60: 5476 | C60: 21 | D60: 5486 | K60: 1 | L60: 12

Sheet !M924A50.104
A1: Report for:!M924A50.104
A2: Date: | B2: <date>
A3: Hen: | B3: <hen> | F3: Correct Sequence | G3: =Start!J2 -> 12 | P3: Total Sequences in Data | Q3: =4994-COUNTBLANK(L7:L5000) -> 45 | V3: Total Sequences in Block Data | W3: =COUNTA(L7:L14) -> 8 | AA3: Total Sequences in Block Data | AB3: =COUNTA(L15:L21) -> 7 | AF3: Total Sequences in Block Data | AG3: =COUNTA(L22:L29) -> 8 | AK3: Total Sequences in Block Data | AL3: =COUNTA(L30:L36) -> 7 | AP3: Total Sequences in Block Data | AQ3: =COUNTA(L37:L44) -> 8 | AU3: Total Sequences in Block Data | AV3: =COUNTA(L45:L51) -> 7
P4: Total Sequences in Summary | Q4: =SUM(O7:O14) -> 45 | V4: Total Sequences in Block Summary | W4: =SUM(U7:U14) -> 8 | AA4: Total Sequences in Block Summary | AB4: =SUM(Z7:Z14) -> 7 | AF4: Total Sequences in Block Summary | AG4: =SUM(AE7:AE14) -> 8 | AK4: Total Sequences in Block Summary | AL4: =SUM(AJ7:AJ14) -> 7 | AP4: Total Sequences in Block Summary | AQ4: =SUM(AO7:AO14) -> 8 | AU4: Total Sequences in Block Summary | AV4: =SUM(AT7:AT14) -> 7
T5: Block 1 | Y5: Block 2 | AD5: Block 3 | AI5: Block 4 | AN5: Block 5 | AS5: Block 6
A6: Sequence Component 1 | B6: Time 1 | C6: Sequence Component 2 | D6: Time 2 | E6: Sequence Component 3 | F6: Time 3 | G6: Sequence Component 4 | H6: Time 4 | I6: Sequence Component 5 | J6: Time 5 | K6: Correct? 0=No 1=Yes | L6: Sequence | N6: Frequency | P6: Relative Frequency | Q6: Variability | T6: Frequency | V6: Relative Frequency | W6: Variability | Y6: Frequency | AA6: Relative Frequency | AB6: Variability | AD6: Frequency | AF6: Relative Frequency | AG6: Variability | AI6: Frequency | AK6: Relative Frequency | AL6: Variability | AN6: Frequency | AP6: Relative Frequency | AQ6: Variability | AS6: Frequency | AU6: Relative Frequency | AV6: Variability
A7: 11 | B7: 12 | C7: 21 | D7: 21 | K7: 0 | L7: 12 | N7: 11 | O7: =COUNTIF($L$7:$L$500,N7) -> 2 | P7: =O7/$Q$4 -> 0.04444444444 | Q7: =IF(P7=0,0,(P7*((LOG(P7))/LOG(2)))) -> -0.1996379154 | T7: =N7 -> 11 | U7: =COUNTIF(L7:L14,T7) -> 1 | V7: =U7/(W4-U8) -> 0.5 | W7: =IF(V7=0,0,(V7*((LOG(V7))/LOG(2)))) -> -0.5 | Y7: =N7 -> 11 | Z7: =COUNTIF(L15:L21,Y7) -> 0 | AA7: =Z7/(AB4-Z8) ->  | AB7: =IF(AA7=0,0,(AA7*((LOG(AA7))/LOG(2)))) ->  | AD7: =N7 -> 11 | AE7: =COUNTIF(L22:L29,AD7) -> 0 | AF7: =AE7/(AG4-AE8) -> 0 | AG7: =IF(AF7=0,0,(AF7*((LOG(AF7))/LOG(2)))) -> 0 | AI7: =N7 -> 11 | AJ7: =COUNTIF(L30:L36,AI7) -> 1 | AK7: =AJ7/(AL4-AJ8) -> 1 | AL7: =IF(AK7=0,0,(AK7*((LOG(AK7))/LOG(2)))) -> 0 | AN7: =N7 -> 11 | AO7: =COUNTIF(L37:L44,AN7) -> 0 | AP7: =AO7/(AQ4-AO8) ->  | AQ7: =IF(AP7=0,0,(AP7*((LOG(AP7))/LOG(2)))) ->  | AS7: =N7 -> 11 | AT7: =COUNTIF(L45:L51,AS7) -> 0 | AU7: =AT7/(AV4-AT8) -> 0 | AV7: =IF(AU7=0,0,(AU7*((LOG(AU7))/LOG(2)))) -> 0
A8: 11 | B8: 109 | C8: 21 | D8: 117 | K8: 0 | L8: 12 | N8: 12 | O8: =COUNTIF($L$7:$L$500,N8) -> 40 | P8: =O8/$Q$4 -> 0.8888888889 | Q8: =IF(P8=0,0,(P8*((LOG(P8))/LOG(2)))) -> -0.1510444457 | T8: =N8 -> 12 | U8: =COUNTIF(L7:L14,T8) -> 6 | Y8: =N8 -> 12 | Z8: =COUNTIF(L15:L21,Y8) -> 7 | AD8: =N8 -> 12 | AE8: =COUNTIF(L22:L29,AD8) -> 7 | AI8: =N8 -> 12 | AJ8: =COUNTIF(L30:L36,AI8) -> 6 | AN8: =N8 -> 12 | AO8: =COUNTIF(L37:L44,AN8) -> 8 | AS8: =N8 -> 12 | AT8: =COUNTIF(L45:L51,AS8) -> 6
A9: 22 | B9: 215 | C9: 23 | D9: 224 | K9: 0 | L9: 22 | N9: 21 | O9: =COUNTIF($L$7:$L$500,N9) -> 1 | P9: =O9/$Q$4 -> 0.02222222222 | Q9: =IF(P9=0,0,(P9*((LOG(P9))/LOG(2)))) -> -0.1220411799 | T9: =N9 -> 21 | U9: =COUNTIF(L7:L14,T9) -> 0 | V9: =U9/(W4-U8) -> 0 | W9: =IF(V9=0,0,(V9*((LOG(V9))/LOG(2)))) -> 0 | Y9: =N9 -> 21 | Z9: =COUNTIF(L15:L21,Y9) -> 0 | AA9: =Z9/(AB4-Z8) ->  | AB9: =IF(AA9=0,0,(AA9*((LOG(AA9))/LOG(2)))) ->  | AD9: =N9 -> 21 | AE9: =COUNTIF(L22:L29,AD9) -> 1 | AF9: =AE9/(AG4-AE8) -> 1 | AG9: =IF(AF9=0,0,(AF9*((LOG(AF9))/LOG(2)))) -> 0 | AI9: =N9 -> 21 | AJ9: =COUNTIF(L30:L36,AI9) -> 0 | AK9: =AJ9/(AL4-AJ8) -> 0 | AL9: =IF(AK9=0,0,(AK9*((LOG(AK9))/LOG(2)))) -> 0 | AN9: =N9 -> 21 | AO9: =COUNTIF(L37:L44,AN9) -> 0 | AP9: =AO9/(AQ4-AO8) ->  | AQ9: =IF(AP9=0,0,(AP9*((LOG(AP9))/LOG(2)))) ->  | AS9: =N9 -> 21 | AT9: =COUNTIF(L45:L51,AS9) -> 0 | AU9: =AT9/(AV4-AT8) -> 0 | AV9: =IF(AU9=0,0,(AU9*((LOG(AU9))/LOG(2)))) -> 0
A10: 11 | B10: 320 | C10: 21 | D10: 329 | K10: 0 | L10: 12 | N10: 22 | O10: =COUNTIF($L$7:$L$500,N10) -> 2 | P10: =O10/$Q$4 -> 0.04444444444 | Q10: =IF(P10=0,0,(P10*((LOG(P10))/LOG(2)))) -> -0.1996379154 | T10: =N10 -> 22 | U10: =COUNTIF(L7:L14,T10) -> 1 | V10: =U10/(W4-U8) -> 0.5 | W10: =IF(V10=0,0,(V10*((LOG(V10))/LOG(2)))) -> -0.5 | Y10: =N10 -> 22 | Z10: =COUNTIF(L15:L21,Y10) -> 0 | AA10: =Z10/(AB4-Z8) ->  | AB10: =IF(AA10=0,0,(AA10*((LOG(AA10))/LOG(2)))) ->  | AD10: =N10 -> 22 | AE10: =COUNTIF(L22:L29,AD10) -> 0 | AF10: =AE10/(AG4-AE8) -> 0 | AG10: =IF(AF10=0,0,(AF10*((LOG(AF10))/LOG(2)))) -> 0 | AI10: =N10 -> 22 | AJ10: =COUNTIF(L30:L36,AI10) -> 0 | AK10: =AJ10/(AL4-AJ8) -> 0 | AL10: =IF(AK10=0,0,(AK10*((LOG(AK10))/LOG(2)))) -> 0 | AN10: =N10 -> 22 | AO10: =COUNTIF(L37:L44,AN10) -> 0 | AP10: =AO10/(AQ4-AO8) ->  | AQ10: =IF(AP10=0,0,(AP10*((LOG(AP10))/LOG(2)))) ->  | AS10: =N10 -> 22 | AT10: =COUNTIF(L45:L51,AS10) -> 1 | AU10: =AT10/(AV4-AT8) -> 1 | AV10: =IF(AU10=0,0,(AU10*((LOG(AU10))/LOG(2)))) -> 0
A11: 11 | B11: 422 | C11: 21 | D11: 433 | K11: 0 | L11: 12 | T11: =N11 -> 0 | U11: =COUNTIF(L7:L14,T11) -> 0 | V11: =U11/(W4-U8) -> 0 | W11: =IF(V11=0,0,(V11*((LOG(V11))/LOG(2)))) -> 0 | Y11: =N11 -> 0 | Z11: =COUNTIF(L15:L21,Y11) -> 0 | AA11: =Z11/(AB4-Z8) ->  | AB11: =IF(AA11=0,0,(AA11*((LOG(AA11))/LOG(2)))) ->  | AD11: =N11 -> 0 | AE11: =COUNTIF(L22:L29,AD11) -> 0 | AF11: =AE11/(AG4-AE8) -> 0 | AG11: =IF(AF11=0,0,(AF11*((LOG(AF11))/LOG(2)))) -> 0 | AI11: =N11 -> 0 | AJ11: =COUNTIF(L30:L36,AI11) -> 0 | AK11: =AJ11/(AL4-AJ8) -> 0 | AL11: =IF(AK11=0,0,(AK11*((LOG(AK11))/LOG(2)))) -> 0 | AN11: =N11 -> 0 | AO11: =COUNTIF(L37:L44,AN11) -> 0 | AP11: =AO11/(AQ4-AO8) ->  | AQ11: =IF(AP11=0,0,(AP11*((LOG(AP11))/LOG(2)))) ->  | AS11: =N11 -> 0 | AT11: =COUNTIF(L45:L51,AS11) -> 0 | AU11: =AT11/(AV4-AT8) -> 0 | AV11: =IF(AU11=0,0,(AU11*((LOG(AU11))/LOG(2)))) -> 0
A12: 11 | B12: 521 | C12: 21 | D12: 533 | K12: 0 | L12: 12 | T12: =N12 -> 0 | U12: =COUNTIF(L7:L14,T12) -> 0 | V12: =U12/(W4-U8) -> 0 | W12: =IF(V12=0,0,(V12*((LOG(V12))/LOG(2)))) -> 0 | Y12: =N12 -> 0 | Z12: =COUNTIF(L15:L21,Y12) -> 0 | AA12: =Z12/(AB4-Z8) ->  | AB12: =IF(AA12=0,0,(AA12*((LOG(AA12))/LOG(2)))) ->  | AD12: =N12 -> 0 | AE12: =COUNTIF(L22:L29,AD12) -> 0 | AF12: =AE12/(AG4-AE8) -> 0 | AG12: =IF(AF12=0,0,(AF12*((LOG(AF12))/LOG(2)))) -> 0 | AI12: =N12 -> 0 | AJ12: =COUNTIF(L30:L36,AI12) -> 0 | AK12: =AJ12/(AL4-AJ8) -> 0 | AL12: =IF(AK12=0,0,(AK12*((LOG(AK12))/LOG(2)))) -> 0 | AN12: =N12 -> 0 | AO12: =COUNTIF(L37:L44,AN12) -> 0 | AP12: =AO12/(AQ4-AO8) ->  | AQ12: =IF(AP12=0,0,(AP12*((LOG(AP12))/LOG(2)))) ->  | AS12: =N12 -> 0 | AT12: =COUNTIF(L45:L51,AS12) -> 0 | AU12: =AT12/(AV4-AT8) -> 0 | AV12: =IF(AU12=0,0,(AU12*((LOG(AU12))/LOG(2)))) -> 0
A13: 11 | B13: 621 | C13: 21 | D13: 632 | K13: 0 | L13: 12 | T13: =N13 -> 0 | U13: =COUNTIF(L7:L14,T13) -> 0 | V13: =U13/(W4-U8) -> 0 | W13: =IF(V13=0,0,(V13*((LOG(V13))/LOG(2)))) -> 0 | Y13: =N13 -> 0 | Z13: =COUNTIF(L15:L21,Y13) -> 0 | AA13: =Z13/(AB4-Z8) ->  | AB13: =IF(AA13=0,0,(AA13*((LOG(AA13))/LOG(2)))) ->  | AD13: =N13 -> 0 | AE13: =COUNTIF(L22:L29,AD13) -> 0 | AF13: =AE13/(AG4-AE8) -> 0 | AG13: =IF(AF13=0,0,(AF13*((LOG(AF13))/LOG(2)))) -> 0 | AI13: =N13 -> 0 | AJ13: =COUNTIF(L30:L36,AI13) -> 0 | AK13: =AJ13/(AL4-AJ8) -> 0 | AL13: =IF(AK13=0,0,(AK13*((LOG(AK13))/LOG(2)))) -> 0 | AN13: =N13 -> 0 | AO13: =COUNTIF(L37:L44,AN13) -> 0 | AP13: =AO13/(AQ4-AO8) ->  | AQ13: =IF(AP13=0,0,(AP13*((LOG(AP13))/LOG(2)))) ->  | AS13: =N13 -> 0 | AT13: =COUNTIF(L45:L51,AS13) -> 0 | AU13: =AT13/(AV4-AT8) -> 0 | AV13: =IF(AU13=0,0,(AU13*((LOG(AU13))/LOG(2)))) -> 0
A14: 11 | B14: 719 | C14: 12 | D14: 724 | K14: 0 | L14: 11 | T14: =N14 -> 0 | U14: =COUNTIF(L7:L14,T14) -> 0 | V14: =U14/(W4-U8) -> 0 | W14: =IF(V14=0,0,(V14*((LOG(V14))/LOG(2)))) -> 0 | Y14: =N14 -> 0 | Z14: =COUNTIF(L15:L21,Y14) -> 0 | AA14: =Z14/(AB4-Z8) ->  | AB14: =IF(AA14=0,0,(AA14*((LOG(AA14))/LOG(2)))) ->  | AD14: =N14 -> 0 | AE14: =COUNTIF(L22:L29,AD14) -> 0 | AF14: =AE14/(AG4-AE8) -> 0 | AG14: =IF(AF14=0,0,(AF14*((LOG(AF14))/LOG(2)))) -> 0 | AI14: =N14 -> 0 | AJ14: =COUNTIF(L30:L36,AI14) -> 0 | AK14: =AJ14/(AL4-AJ8) -> 0 | AL14: =IF(AK14=0,0,(AK14*((LOG(AK14))/LOG(2)))) -> 0 | AN14: =N14 -> 0 | AO14: =COUNTIF(L37:L44,AN14) -> 0 | AP14: =AO14/(AQ4-AO8) ->  | AQ14: =IF(AP14=0,0,(AP14*((LOG(AP14))/LOG(2)))) ->  | AS14: =N14 -> 0 | AT14: =COUNTIF(L45:L51,AS14) -> 0 | AU14: =AT14/(AV4-AT8) -> 0 | AV14: =IF(AU14=0,0,(AU14*((LOG(AU14))/LOG(2)))) -> 0
A15: 11 | B15: 818 | C15: 21 | D15: 834 | K15: 0 | L15: 12 | P15: =SUM(P7:P14) -> 1 | Q15: =-SUM(Q7:Q14) -> 0.6723614564 | V15: =SUM(V7:V14) -> 1 | W15: =-SUM(W7:W14) -> 1 | AA15: =SUM(AA7:AA14) ->  | AB15: =-SUM(AB7:AB14) ->  | AF15: =SUM(AF7:AF14) -> 1 | AG15: =-SUM(AG7:AG14) -> 0 | AK15: =SUM(AK7:AK14) -> 1 | AL15: =-SUM(AL7:AL14) -> 0 | AP15: =SUM(AP7:AP14) ->  | AQ15: =-SUM(AQ7:AQ14) ->  | AU15: =SUM(AU7:AU14) -> 1 | AV15: =-SUM(AV7:AV14) -> 0
A16: 11 | B16: 920 | C16: 21 | D16: 931 | K16: 0 | L16: 12 | P16: U= | Q16: =Q15/(LOG(Q4)/LOG(2)) -> 0.122428886 | V16: U1= | W16: =W15/(LOG(W4)/LOG(2)) -> 0.3333333333 | AA16: U2= | AB16: =AB15/(LOG(AB4)/LOG(2)) ->  | AF16: U3= | AG16: =AG15/(LOG(AG4)/LOG(2)) -> 0 | AK16: U4= | AL16: =AL15/(LOG(AL4)/LOG(2)) -> 0 | AP16: U5= | AQ16: =AQ15/(LOG(AQ4)/LOG(2)) ->  | AU16: U6= | AV16: =AV15/(LOG(AV4)/LOG(2)) -> 0
A17: 11 | B17: 1015 | C17: 21 | D17: 1027 | K17: 0 | L17: 12
A18: 11 | B18: 1113 | C18: 21 | D18: 1124 | K18: 0 | L18: 12
A19: 11 | B19: 1211 | C19: 21 | D19: 1222 | K19: 0 | L19: 12 | N19: Total Target Seq
A20: 11 | B20: 1308 | C20: 21 | D20: 1319 | K20: 0 | L20: 12 | N20: =COUNTIF(L7:L51,G3) -> 40 | P20: 8 | Q20: 7 | R20: 8 | S20: 7 | T20: 8 | U20: 7
A21: 11 | B21: 1404 | C21: 21 | D21: 1416 | K21: 0 | L21: 12 | P21: % of reinforcement given in 6 equal intervals based on number of trials
A22: 11 | B22: 1509 | C22: 21 | D22: 1521 | K22: 0 | L22: 12 | P22: %_1 | Q22: %_2 | R22: %_3 | S22: %_4 | T22: %_5 | U22: %_6
A23: 22 | B23: 1623 | C23: 14 | D23: 1656 | K23: 0 | L23: 21 | O23: target sequence | P23: =$G$3 -> 12 | Q23: =$G$3 -> 12 | R23: =$G$3 -> 12 | S23: =$G$3 -> 12 | T23: =$G$3 -> 12 | U23: =$G$3 -> 12
A24: 11 | B24: 1752 | C24: 21 | D24: 1765 | K24: 0 | L24: 12 | O24: total reinforcement | P24: =U8 -> 6 | Q24: =Z8 -> 7 | R24: =AE8 -> 7 | S24: =AJ8 -> 6 | T24: =AO8 -> 8 | U24: =AT8 -> 6
A25: 11 | B25: 1854 | C25: 21 | D25: 1866 | K25: 0 | L25: 12 | O25: % target
A26: 11 | B26: 1953 | C26: 21 | D26: 1964 | K26: 0 | L26: 12 | O26: CCRF
A27: 11 | B27: 2049 | C27: 21 | D27: 2060 | K27: 0 | L27: 12 | O27: % CCRf
A28: 11 | B28: 2146 | C28: 21 | D28: 2157 | K28: 0 | L28: 12 | O28: average response rate | P28: =D14/P20 -> 90.5 | Q28: =(D21-D14)/Q20 -> 98.85714286 | R28: =(D29-D21)/R20 -> 104.625 | S28: =(D36-D29)/S20 -> 97.14285714 | T28: =(D44-D36)/T20 -> 98 | U28: =(D51-D44)/U20 -> 105
A29: 11 | B29: 2242 | C29: 21 | D29: 2253 | K29: 0 | L29: 12
A30: 11 | B30: 2338 | C30: 21 | D30: 2349 | K30: 0 | L30: 12
A31: 11 | B31: 2435 | C31: 21 | D31: 2446 | K31: 0 | L31: 12
A32: 11 | B32: 2531 | C32: 21 | D32: 2542 | K32: 0 | L32: 12
A33: 11 | B33: 2628 | C33: 21 | D33: 2639 | K33: 0 | L33: 12
A34: 11 | B34: 2724 | C34: 12 | D34: 2729 | K34: 0 | L34: 11
A35: 11 | B35: 2826 | C35: 21 | D35: 2837 | K35: 0 | L35: 12
A36: 11 | B36: 2922 | C36: 21 | D36: 2933 | K36: 0 | L36: 12
A37: 11 | B37: 3018 | C37: 21 | D37: 3032 | K37: 0 | L37: 12
A38: 11 | B38: 3116 | C38: 21 | D38: 3128 | K38: 0 | L38: 12
A39: 11 | B39: 3215 | C39: 21 | D39: 3226 | K39: 0 | L39: 12
A40: 11 | B40: 3313 | C40: 21 | D40: 3324 | K40: 0 | L40: 12
A41: 11 | B41: 3409 | C41: 21 | D41: 3420 | K41: 0 | L41: 12
A42: 11 | B42: 3513 | C42: 21 | D42: 3521 | K42: 0 | L42: 12
A43: 11 | B43: 3608 | C43: 21 | D43: 3619 | K43: 0 | L43: 12
A44: 11 | B44: 3705 | C44: 21 | D44: 3717 | K44: 0 | L44: 12
A45: 22 | B45: 3822 | C45: 23 | D45: 3858 | K45: 0 | L45: 22
A46: 11 | B46: 3957 | C46: 21 | D46: 3969 | K46: 0 | L46: 12
A47: 11 | B47: 4055 | C47: 21 | D47: 4065 | K47: 0 | L47: 12
A48: 11 | B48: 4152 | C48: 21 | D48: 4163 | K48: 0 | L48: 12
A49: 11 | B49: 4247 | C49: 21 | D49: 4258 | K49: 0 | L49: 12
A50: 11 | B50: 4344 | C50: 21 | D50: 4356 | K50: 0 | L50: 12
A51: 11 | B51: 4441 | C51: 21 | D51: 4452 | K51: 1 | L51: 12

Sheet !M925820.104
A1: Report for:!M925820.104
A2: Date: | B2: <date>
A3: Hen: | B3: <hen> | F3: Correct Sequence | G3: =Start!J2 -> 12 | P3: Total Sequences in Data | Q3: =4994-COUNTBLANK(L7:L5000) -> 46 | V3: Total Sequences in Block Data | W3: =COUNTA(L7:L14) -> 8 | AA3: Total Sequences in Block Data | AB3: =COUNTA(L15:L21) -> 7 | AF3: Total Sequences in Block Data | AG3: =COUNTA(L22:L29) -> 8 | AK3: Total Sequences in Block Data | AL3: =COUNTA(L30:L37) -> 8 | AP3: Total Sequences in Block Data | AQ3: =COUNTA(L38:L44) -> 7 | AU3: Total Sequences in Block Data | AV3: =COUNTA(L45:L52) -> 8
P4: Total Sequences in Summary | Q4: =SUM(O7:O14) -> 46 | V4: Total Sequences in Block Summary | W4: =SUM(U7:U14) -> 8 | AA4: Total Sequences in Block Summary | AB4: =SUM(Z7:Z14) -> 7 | AF4: Total Sequences in Block Summary | AG4: =SUM(AE7:AE14) -> 8 | AK4: Total Sequences in Block Summary | AL4: =SUM(AJ7:AJ14) -> 8 | AP4: Total Sequences in Block Summary | AQ4: =SUM(AO7:AO14) -> 7 | AU4: Total Sequences in Block Summary | AV4: =SUM(AT7:AT14) -> 8
T5: Block 1 | Y5: Block 2 | AD5: Block 3 | AI5: Block 4 | AN5: Block 5 | AS5: Block 6
A6: Sequence Component 1 | B6: Time 1 | C6: Sequence Component 2 | D6: Time 2 | E6: Sequence Component 3 | F6: Time 3 | G6: Sequence Component 4 | H6: Time 4 | I6: Sequence Component 5 | J6: Time 5 | K6: Correct? 0=No 1=Yes | L6: Sequence | N6: Frequency | P6: Relative Frequency | Q6: Variability | T6: Frequency | V6: Relative Frequency | W6: Variability | Y6: Frequency | AA6: Relative Frequency | AB6: Variability | AD6: Frequency | AF6: Relative Frequency | AG6: Variability | AI6: Frequency | AK6: Relative Frequency | AL6: Variability | AN6: Frequency | AP6: Relative Frequency | AQ6: Variability | AS6: Frequency | AU6: Relative Frequency | AV6: Variability
A7: 11 | B7: 13 | C7: 21 | D7: 21 | K7: 0 | L7: 12 | N7: 11 | O7: =COUNTIF($L$7:$L$500,N7) -> 5 | P7: =O7/$Q$4 -> 0.1086956522 | Q7: =IF(P7=0,0,(P7*((LOG(P7))/LOG(2)))) -> -0.3480036806 | T7: =N7 -> 11 | U7: =COUNTIF(L7:L14,T7) -> 0 | V7: =U7/(W4-U8) ->  | W7: =IF(V7=0,0,(V7*((LOG(V7))/LOG(2)))) ->  | Y7: =N7 -> 11 | Z7: =COUNTIF(L15:L21,Y7) -> 0 | AA7: =Z7/(AB4-Z8) ->  | AB7: =IF(AA7=0,0,(AA7*((LOG(AA7))/LOG(2)))) ->  | AD7: =N7 -> 11 | AE7: =COUNTIF(L22:L29,AD7) -> 2 | AF7: =AE7/(AG4-AE8) -> 1 | AG7: =IF(AF7=0,0,(AF7*((LOG(AF7))/LOG(2)))) -> 0 | AI7: =N7 -> 11 | AJ7: =COUNTIF(L30:L37,AI7) -> 2 | AK7: =AJ7/(AL4-AJ8) -> 0.6666666667 | AL7: =IF(AK7=0,0,(AK7*((LOG(AK7))/LOG(2)))) -> -0.3899750005 | AN7: =N7 -> 11 | AO7: =COUNTIF(L38:L44,AN7) -> 0 | AP7: =AO7/(AQ4-AO8) ->  | AQ7: =IF(AP7=0,0,(AP7*((LOG(AP7))/LOG(2)))) ->  | AS7: =N7 -> 11 | AT7: =COUNTIF(L45:L52,AS7) -> 1 | AU7: =AT7/(AV4-AT8) -> 1 | AV7: =IF(AU7=0,0,(AU7*((LOG(AU7))/LOG(2)))) -> 0
A8: 11 | B8: 109 | C8: 21 | D8: 120 | K8: 0 | L8: 12 | N8: 12 | O8: =COUNTIF($L$7:$L$500,N8) -> 40 | P8: =O8/$Q$4 -> 0.8695652174 | Q8: =IF(P8=0,0,(P8*((LOG(P8))/LOG(2)))) -> -0.1753337923 | T8: =N8 -> 12 | U8: =COUNTIF(L7:L14,T8) -> 8 | Y8: =N8 -> 12 | Z8: =COUNTIF(L15:L21,Y8) -> 7 | AD8: =N8 -> 12 | AE8: =COUNTIF(L22:L29,AD8) -> 6 | AI8: =N8 -> 12 | AJ8: =COUNTIF(L30:L37,AI8) -> 5 | AN8: =N8 -> 12 | AO8: =COUNTIF(L38:L44,AN8) -> 7 | AS8: =N8 -> 12 | AT8: =COUNTIF(L45:L52,AS8) -> 7
A9: 11 | B9: 208 | C9: 21 | D9: 220 | K9: 0 | L9: 12 | N9: 21 | O9: =COUNTIF($L$7:$L$500,N9) -> 0 | P9: =O9/$Q$4 -> 0 | Q9: =IF(P9=0,0,(P9*((LOG(P9))/LOG(2)))) -> 0 | T9: =N9 -> 21 | U9: =COUNTIF(L7:L14,T9) -> 0 | V9: =U9/(W4-U8) ->  | W9: =IF(V9=0,0,(V9*((LOG(V9))/LOG(2)))) ->  | Y9: =N9 -> 21 | Z9: =COUNTIF(L15:L21,Y9) -> 0 | AA9: =Z9/(AB4-Z8) ->  | AB9: =IF(AA9=0,0,(AA9*((LOG(AA9))/LOG(2)))) ->  | AD9: =N9 -> 21 | AE9: =COUNTIF(L22:L29,AD9) -> 0 | AF9: =AE9/(AG4-AE8) -> 0 | AG9: =IF(AF9=0,0,(AF9*((LOG(AF9))/LOG(2)))) -> 0 | AI9: =N9 -> 21 | AJ9: =COUNTIF(L30:L37,AI9) -> 0 | AK9: =AJ9/(AL4-AJ8) -> 0 | AL9: =IF(AK9=0,0,(AK9*((LOG(AK9))/LOG(2)))) -> 0 | AN9: =N9 -> 21 | AO9: =COUNTIF(L38:L44,AN9) -> 0 | AP9: =AO9/(AQ4-AO8) ->  | AQ9: =IF(AP9=0,0,(AP9*((LOG(AP9))/LOG(2)))) ->  | AS9: =N9 -> 21 | AT9: =COUNTIF(L45:L52,AS9) -> 0 | AU9: =AT9/(AV4-AT8) -> 0 | AV9: =IF(AU9=0,0,(AU9*((LOG(AU9))/LOG(2)))) -> 0
A10: 11 | B10: 305 | C10: 21 | D10: 316 | K10: 0 | L10: 12 | N10: 22 | O10: =COUNTIF($L$7:$L$500,N10) -> 1 | P10: =O10/$Q$4 -> 0.02173913043 | Q10: =IF(P10=0,0,(P10*((LOG(P10))/LOG(2)))) -> -0.1200774338 | T10: =N10 -> 22 | U10: =COUNTIF(L7:L14,T10) -> 0 | V10: =U10/(W4-U8) ->  | W10: =IF(V10=0,0,(V10*((LOG(V10))/LOG(2)))) ->  | Y10: =N10 -> 22 | Z10: =COUNTIF(L15:L21,Y10) -> 0 | AA10: =Z10/(AB4-Z8) ->  | AB10: =IF(AA10=0,0,(AA10*((LOG(AA10))/LOG(2)))) ->  | AD10: =N10 -> 22 | AE10: =COUNTIF(L22:L29,AD10) -> 0 | AF10: =AE10/(AG4-AE8) -> 0 | AG10: =IF(AF10=0,0,(AF10*((LOG(AF10))/LOG(2)))) -> 0 | AI10: =N10 -> 22 | AJ10: =COUNTIF(L30:L37,AI10) -> 1 | AK10: =AJ10/(AL4-AJ8) -> 0.3333333333 | AL10: =IF(AK10=0,0,(AK10*((LOG(AK10))/LOG(2)))) -> -0.5283208336 | AN10: =N10 -> 22 | AO10: =COUNTIF(L38:L44,AN10) -> 0 | AP10: =AO10/(AQ4-AO8) ->  | AQ10: =IF(AP10=0,0,(AP10*((LOG(AP10))/LOG(2)))) ->  | AS10: =N10 -> 22 | AT10: =COUNTIF(L45:L52,AS10) -> 0 | AU10: =AT10/(AV4-AT8) -> 0 | AV10: =IF(AU10=0,0,(AU10*((LOG(AU10))/LOG(2)))) -> 0
A11: 11 | B11: 406 | C11: 21 | D11: 417 | K11: 0 | L11: 12 | T11: =N11 -> 0 | U11: =COUNTIF(L7:L14,T11) -> 0 | V11: =U11/(W4-U8) ->  | W11: =IF(V11=0,0,(V11*((LOG(V11))/LOG(2)))) ->  | Y11: =N11 -> 0 | Z11: =COUNTIF(L15:L21,Y11) -> 0 | AA11: =Z11/(AB4-Z8) ->  | AB11: =IF(AA11=0,0,(AA11*((LOG(AA11))/LOG(2)))) ->  | AD11: =N11 -> 0 | AE11: =COUNTIF(L22:L29,AD11) -> 0 | AF11: =AE11/(AG4-AE8) -> 0 | AG11: =IF(AF11=0,0,(AF11*((LOG(AF11))/LOG(2)))) -> 0 | AI11: =N11 -> 0 | AJ11: =COUNTIF(L30:L37,AI11) -> 0 | AK11: =AJ11/(AL4-AJ8) -> 0 | AL11: =IF(AK11=0,0,(AK11*((LOG(AK11))/LOG(2)))) -> 0 | AN11: =N11 -> 0 | AO11: =COUNTIF(L38:L44,AN11) -> 0 | AP11: =AO11/(AQ4-AO8) ->  | AQ11: =IF(AP11=0,0,(AP11*((LOG(AP11))/LOG(2)))) ->  | AS11: =N11 -> 0 | AT11: =COUNTIF(L45:L52,AS11) -> 0 | AU11: =AT11/(AV4-AT8) -> 0 | AV11: =IF(AU11=0,0,(AU11*((LOG(AU11))/LOG(2)))) -> 0
A12: 11 | B12: 504 | C12: 21 | D12: 516 | K12: 0 | L12: 12 | T12: =N12 -> 0 | U12: =COUNTIF(L7:L14,T12) -> 0 | V12: =U12/(W4-U8) ->  | W12: =IF(V12=0,0,(V12*((LOG(V12))/LOG(2)))) ->  | Y12: =N12 -> 0 | Z12: =COUNTIF(L15:L21,Y12) -> 0 | AA12: =Z12/(AB4-Z8) ->  | AB12: =IF(AA12=0,0,(AA12*((LOG(AA12))/LOG(2)))) ->  | AD12: =N12 -> 0 | AE12: =COUNTIF(L22:L29,AD12) -> 0 | AF12: =AE12/(AG4-AE8) -> 0 | AG12: =IF(AF12=0,0,(AF12*((LOG(AF12))/LOG(2)))) -> 0 | AI12: =N12 -> 0 | AJ12: =COUNTIF(L30:L37,AI12) -> 0 | AK12: =AJ12/(AL4-AJ8) -> 0 | AL12: =IF(AK12=0,0,(AK12*((LOG(AK12))/LOG(2)))) -> 0 | AN12: =N12 -> 0 | AO12: =COUNTIF(L38:L44,AN12) -> 0 | AP12: =AO12/(AQ4-AO8) ->  | AQ12: =IF(AP12=0,0,(AP12*((LOG(AP12))/LOG(2)))) ->  | AS12: =N12 -> 0 | AT12: =COUNTIF(L45:L52,AS12) -> 0 | AU12: =AT12/(AV4-AT8) -> 0 | AV12: =IF(AU12=0,0,(AU12*((LOG(AU12))/LOG(2)))) -> 0
A13: 11 | B13: 601 | C13: 21 | D13: 611 | K13: 0 | L13: 12 | T13: =N13 -> 0 | U13: =COUNTIF(L7:L14,T13) -> 0 | V13: =U13/(W4-U8) ->  | W13: =IF(V13=0,0,(V13*((LOG(V13))/LOG(2)))) ->  | Y13: =N13 -> 0 | Z13: =COUNTIF(L15:L21,Y13) -> 0 | AA13: =Z13/(AB4-Z8) ->  | AB13: =IF(AA13=0,0,(AA13*((LOG(AA13))/LOG(2)))) ->  | AD13: =N13 -> 0 | AE13: =COUNTIF(L22:L29,AD13) -> 0 | AF13: =AE13/(AG4-AE8) -> 0 | AG13: =IF(AF13=0,0,(AF13*((LOG(AF13))/LOG(2)))) -> 0 | AI13: =N13 -> 0 | AJ13: =COUNTIF(L30:L37,AI13) -> 0 | AK13: =AJ13/(AL4-AJ8) -> 0 | AL13: =IF(AK13=0,0,(AK13*((LOG(AK13))/LOG(2)))) -> 0 | AN13: =N13 -> 0 | AO13: =COUNTIF(L38:L44,AN13) -> 0 | AP13: =AO13/(AQ4-AO8) ->  | AQ13: =IF(AP13=0,0,(AP13*((LOG(AP13))/LOG(2)))) ->  | AS13: =N13 -> 0 | AT13: =COUNTIF(L45:L52,AS13) -> 0 | AU13: =AT13/(AV4-AT8) -> 0 | AV13: =IF(AU13=0,0,(AU13*((LOG(AU13))/LOG(2)))) -> 0
A14: 11 | B14: 697 | C14: 21 | D14: 708 | K14: 0 | L14: 12 | T14: =N14 -> 0 | U14: =COUNTIF(L7:L14,T14) -> 0 | V14: =U14/(W4-U8) ->  | W14: =IF(V14=0,0,(V14*((LOG(V14))/LOG(2)))) ->  | Y14: =N14 -> 0 | Z14: =COUNTIF(L15:L21,Y14) -> 0 | AA14: =Z14/(AB4-Z8) ->  | AB14: =IF(AA14=0,0,(AA14*((LOG(AA14))/LOG(2)))) ->  | AD14: =N14 -> 0 | AE14: =COUNTIF(L22:L29,AD14) -> 0 | AF14: =AE14/(AG4-AE8) -> 0 | AG14: =IF(AF14=0,0,(AF14*((LOG(AF14))/LOG(2)))) -> 0 | AI14: =N14 -> 0 | AJ14: =COUNTIF(L30:L37,AI14) -> 0 | AK14: =AJ14/(AL4-AJ8) -> 0 | AL14: =IF(AK14=0,0,(AK14*((LOG(AK14))/LOG(2)))) -> 0 | AN14: =N14 -> 0 | AO14: =COUNTIF(L38:L44,AN14) -> 0 | AP14: =AO14/(AQ4-AO8) ->  | AQ14: =IF(AP14=0,0,(AP14*((LOG(AP14))/LOG(2)))) ->  | AS14: =N14 -> 0 | AT14: =COUNTIF(L45:L52,AS14) -> 0 | AU14: =AT14/(AV4-AT8) -> 0 | AV14: =IF(AU14=0,0,(AU14*((LOG(AU14))/LOG(2)))) -> 0
A15: 11 | B15: 802 | C15: 21 | D15: 814 | K15: 0 | L15: 12 | P15: =SUM(P7:P14) -> 1 | Q15: =-SUM(Q7:Q14) -> 0.6434149067 | V15: =SUM(V7:V14) ->  | W15: =-SUM(W7:W14) ->  | AA15: =SUM(AA7:AA14) ->  | AB15: =-SUM(AB7:AB14) ->  | AF15: =SUM(AF7:AF14) -> 1 | AG15: =-SUM(AG7:AG14) -> 0 | AK15: =SUM(AK7:AK14) -> 1 | AL15: =-SUM(AL7:AL14) -> 0.9182958341 | AP15: =SUM(AP7:AP14) ->  | AQ15: =-SUM(AQ7:AQ14) ->  | AU15: =SUM(AU7:AU14) -> 1 | AV15: =-SUM(AV7:AV14) -> 0
A16: 11 | B16: 904 | C16: 21 | D16: 917 | K16: 0 | L16: 12 | P16: U= | Q16: =Q15/(LOG(Q4)/LOG(2)) -> 0.1164855055 | V16: U1= | W16: =W15/(LOG(W4)/LOG(2)) ->  | AA16: U2= | AB16: =AB15/(LOG(AB4)/LOG(2)) ->  | AF16: U3= | AG16: =AG15/(LOG(AG4)/LOG(2)) -> 0 | AK16: U4= | AL16: =AL15/(LOG(AL4)/LOG(2)) -> 0.3060986114 | AP16: U5= | AQ16: =AQ15/(LOG(AQ4)/LOG(2)) ->  | AU16: U6= | AV16: =AV15/(LOG(AV4)/LOG(2)) -> 0
A17: 11 | B17: 1007 | C17: 21 | D17: 1020 | K17: 0 | L17: 12
A18: 11 | B18: 1105 | C18: 21 | D18: 1116 | K18: 0 | L18: 12
A19: 11 | B19: 1202 | C19: 21 | D19: 1214 | K19: 0 | L19: 12 | N19: Total Target Seq
A20: 11 | B20: 1298 | C20: 21 | D20: 1310 | K20: 0 | L20: 12 | N20: =COUNTIF(L7:L52,G3) -> 40 | P20: 8 | Q20: 7 | R20: 8 | S20: 8 | T20: 7 | U20: 8
A21: 11 | B21: 1396 | C21: 21 | D21: 1407 | K21: 0 | L21: 12 | P21: % of reinforcement given in 6 equal intervals based on number of trials
A22: 11 | B22: 1492 | C22: 21 | D22: 1503 | K22: 0 | L22: 12 | P22: %_1 | Q22: %_2 | R22: %_3 | S22: %_4 | T22: %_5 | U22: %_6
A23: 11 | B23: 1591 | C23: 21 | D23: 1602 | K23: 0 | L23: 12 | O23: target sequence | P23: =$G$3 -> 12 | Q23: =$G$3 -> 12 | R23: =$G$3 -> 12 | S23: =$G$3 -> 12 | T23: =$G$3 -> 12 | U23: =$G$3 -> 12
A24: 11 | B24: 1688 | C24: 12 | D24: 1711 | K24: 0 | L24: 11 | O24: total reinforcement | P24: =U8 -> 8 | Q24: =Z8 -> 7 | R24: =AE8 -> 6 | S24: =AJ8 -> 5 | T24: =AO8 -> 7 | U24: =AT8 -> 7
A25: 11 | B25: 1807 | C25: 12 | D25: 1812 | K25: 0 | L25: 11 | O25: % target
A26: 11 | B26: 1907 | C26: 21 | D26: 1921 | K26: 0 | L26: 12 | O26: CCRF
A27: 11 | B27: 2008 | C27: 21 | D27: 2020 | K27: 0 | L27: 12 | O27: % CCRf
A28: 11 | B28: 2109 | C28: 21 | D28: 2120 | K28: 0 | L28: 12 | O28: average response rate | P28: =D14/P20 -> 88.5 | Q28: =(D21-D14)/Q20 -> 99.85714286 | R28: =(D29-D21)/R20 -> 101.25 | S28: =(D37-D29)/S20 -> 102.5 | T28: =(D44-D37)/T20 -> 104.2857143 | U28: =(D52-D44)/U20 -> 101.5
A29: 11 | B29: 2206 | C29: 21 | D29: 2217 | K29: 0 | L29: 12
A30: 11 | B30: 2301 | C30: 21 | D30: 2312 | K30: 0 | L30: 12
A31: 11 | B31: 2397 | C31: 12 | D31: 2402 | K31: 0 | L31: 11
A32: 22 | B32: 2514 | C32: 23 | D32: 2535 | K32: 0 | L32: 22
A33: 11 | B33: 2631 | C33: 21 | D33: 2645 | K33: 0 | L33: 12
A34: 11 | B34: 2728 | C34: 12 | D34: 2732 | K34: 0 | L34: 11
A35: 11 | B35: 2827 | C35: 21 | D35: 2838 | K35: 0 | L35: 12
A36: 11 | B36: 2927 | C36: 21 | D36: 2941 | K36: 0 | L36: 12
A37: 11 | B37: 3026 | C37: 21 | D37: 3037 | K37: 0 | L37: 12
A38: 11 | B38: 3123 | C38: 21 | D38: 3133 | K38: 0 | L38: 12
A39: 11 | B39: 3219 | C39: 21 | D39: 3230 | K39: 0 | L39: 12
A40: 11 | B40: 3316 | C40: 21 | D40: 3327 | K40: 0 | L40: 12
A41: 11 | B41: 3419 | C41: 21 | D41: 3472 | K41: 0 | L41: 12
A42: 11 | B42: 3562 | C42: 21 | D42: 3573 | K42: 0 | L42: 12
A43: 11 | B43: 3659 | C43: 21 | D43: 3670 | K43: 0 | L43: 12
A44: 11 | B44: 3755 | C44: 21 | D44: 3767 | K44: 0 | L44: 12
A45: 11 | B45: 3853 | C45: 21 | D45: 3863 | K45: 0 | L45: 12
A46: 11 | B46: 3948 | C46: 21 | D46: 3959 | K46: 0 | L46: 12
A47: 11 | B47: 4045 | C47: 21 | D47: 4056 | K47: 0 | L47: 12
A48: 11 | B48: 4143 | C48: 21 | D48: 4155 | K48: 0 | L48: 12
A49: 11 | B49: 4239 | C49: 21 | D49: 4270 | K49: 0 | L49: 12
A50: 11 | B50: 4359 | C50: 12 | D50: 4364 | K50: 0 | L50: 11
A51: 11 | B51: 4460 | C51: 21 | D51: 4471 | K51: 0 | L51: 12
A52: 11 | B52: 4560 | C52: 21 | D52: 4579 | K52: 1 | L52: 12

Sheet !M926840.104
A1: Report for:!M926840.104
A2: Date: | B2: <date>
A3: Hen: | B3: <hen> | F3: Correct Sequence | G3: =Start!J2 -> 12 | P3: Total Sequences in Data | Q3: =4994-COUNTBLANK(L7:L5000) -> 44 | V3: Total Sequences in Block Data | W3: =COUNTA(L7:L13) -> 7 | AA3: Total Sequences in Block Data | AB3: =COUNTA(L14:L21) -> 8 | AF3: Total Sequences in Block Data | AG3: =COUNTA(L22:L28) -> 7 | AK3: Total Sequences in Block Data | AL3: =COUNTA(L29:L35) -> 7 | AP3: Total Sequences in Block Data | AQ3: =COUNTA(L36:L43) -> 8 | AU3: Total Sequences in Block Data | AV3: =COUNTA(L44:L50) -> 7
P4: Total Sequences in Summary | Q4: =SUM(O7:O14) -> 44 | V4: Total Sequences in Block Summary | W4: =SUM(U7:U14) -> 7 | AA4: Total Sequences in Block Summary | AB4: =SUM(Z7:Z14) -> 8 | AF4: Total Sequences in Block Summary | AG4: =SUM(AE7:AE14) -> 7 | AK4: Total Sequences in Block Summary | AL4: =SUM(AJ7:AJ14) -> 7 | AP4: Total Sequences in Block Summary | AQ4: =SUM(AO7:AO14) -> 8 | AU4: Total Sequences in Block Summary | AV4: =SUM(AT7:AT14) -> 7
T5: Block 1 | Y5: Block 2 | AD5: Block 3 | AI5: Block 4 | AN5: Block 5 | AS5: Block 6
A6: Sequence Component 1 | B6: Time 1 | C6: Sequence Component 2 | D6: Time 2 | E6: Sequence Component 3 | F6: Time 3 | G6: Sequence Component 4 | H6: Time 4 | I6: Sequence Component 5 | J6: Time 5 | K6: Correct? 0=No 1=Yes | L6: Sequence | N6: Frequency | P6: Relative Frequency | Q6: Variability | T6: Frequency | V6: Relative Frequency | W6: Variability | Y6: Frequency | AA6: Relative Frequency | AB6: Variability | AD6: Frequency | AF6: Relative Frequency | AG6: Variability | AI6: Frequency | AK6: Relative Frequency | AL6: Variability | AN6: Frequency | AP6: Relative Frequency | AQ6: Variability | AS6: Frequency | AU6: Relative Frequency | AV6: Variability
A7: 11 | B7: 18 | C7: 21 | D7: 28 | K7: 0 | L7: 12 | N7: 11 | O7: =COUNTIF($L$7:$L$500,N7) -> 3 | P7: =O7/$Q$4 -> 0.06818181818 | Q7: =IF(P7=0,0,(P7*((LOG(P7))/LOG(2)))) -> -0.2641683489 | T7: =N7 -> 11 | U7: =COUNTIF(L7:L13,T7) -> 0 | V7: =U7/(W4-U8) ->  | W7: =IF(V7=0,0,(V7*((LOG(V7))/LOG(2)))) ->  | Y7: =N7 -> 11 | Z7: =COUNTIF(L14:L21,Y7) -> 1 | AA7: =Z7/(AB4-Z8) -> 0.5 | AB7: =IF(AA7=0,0,(AA7*((LOG(AA7))/LOG(2)))) -> -0.5 | AD7: =N7 -> 11 | AE7: =COUNTIF(L22:L28,AD7) -> 0 | AF7: =AE7/(AG4-AE8) ->  | AG7: =IF(AF7=0,0,(AF7*((LOG(AF7))/LOG(2)))) ->  | AI7: =N7 -> 11 | AJ7: =COUNTIF(L29:L35,AI7) -> 0 | AK7: =AJ7/(AL4-AJ8) ->  | AL7: =IF(AK7=0,0,(AK7*((LOG(AK7))/LOG(2)))) ->  | AN7: =N7 -> 11 | AO7: =COUNTIF(L36:L43,AN7) -> 1 | AP7: =AO7/(AQ4-AO8) -> 1 | AQ7: =IF(AP7=0,0,(AP7*((LOG(AP7))/LOG(2)))) -> 0 | AS7: =N7 -> 11 | AT7: =COUNTIF(L44:L50,AS7) -> 1 | AU7: =AT7/(AV4-AT8) -> 1 | AV7: =IF(AU7=0,0,(AU7*((LOG(AU7))/LOG(2)))) -> 0
A8: 11 | B8: 116 | C8: 21 | D8: 127 | K8: 0 | L8: 12 | N8: 12 | O8: =COUNTIF($L$7:$L$500,N8) -> 40 | P8: =O8/$Q$4 -> 0.9090909091 | Q8: =IF(P8=0,0,(P8*((LOG(P8))/LOG(2)))) -> -0.1250032034 | T8: =N8 -> 12 | U8: =COUNTIF(L7:L13,T8) -> 7 | Y8: =N8 -> 12 | Z8: =COUNTIF(L14:L21,Y8) -> 6 | AD8: =N8 -> 12 | AE8: =COUNTIF(L22:L28,AD8) -> 7 | AI8: =N8 -> 12 | AJ8: =COUNTIF(L29:L35,AI8) -> 7 | AN8: =N8 -> 12 | AO8: =COUNTIF(L36:L43,AN8) -> 7 | AS8: =N8 -> 12 | AT8: =COUNTIF(L44:L50,AS8) -> 6
A9: 11 | B9: 212 | C9: 21 | D9: 224 | K9: 0 | L9: 12 | N9: 21 | O9: =COUNTIF($L$7:$L$500,N9) -> 0 | P9: =O9/$Q$4 -> 0 | Q9: =IF(P9=0,0,(P9*((LOG(P9))/LOG(2)))) -> 0 | T9: =N9 -> 21 | U9: =COUNTIF(L7:L13,T9) -> 0 | V9: =U9/(W4-U8) ->  | W9: =IF(V9=0,0,(V9*((LOG(V9))/LOG(2)))) ->  | Y9: =N9 -> 21 | Z9: =COUNTIF(L14:L21,Y9) -> 0 | AA9: =Z9/(AB4-Z8) -> 0 | AB9: =IF(AA9=0,0,(AA9*((LOG(AA9))/LOG(2)))) -> 0 | AD9: =N9 -> 21 | AE9: =COUNTIF(L22:L28,AD9) -> 0 | AF9: =AE9/(AG4-AE8) ->  | AG9: =IF(AF9=0,0,(AF9*((LOG(AF9))/LOG(2)))) ->  | AI9: =N9 -> 21 | AJ9: =COUNTIF(L29:L35,AI9) -> 0 | AK9: =AJ9/(AL4-AJ8) ->  | AL9: =IF(AK9=0,0,(AK9*((LOG(AK9))/LOG(2)))) ->  | AN9: =N9 -> 21 | AO9: =COUNTIF(L36:L43,AN9) -> 0 | AP9: =AO9/(AQ4-AO8) -> 0 | AQ9: =IF(AP9=0,0,(AP9*((LOG(AP9))/LOG(2)))) -> 0 | AS9: =N9 -> 21 | AT9: =COUNTIF(L44:L50,AS9) -> 0 | AU9: =AT9/(AV4-AT8) -> 0 | AV9: =IF(AU9=0,0,(AU9*((LOG(AU9))/LOG(2)))) -> 0
A10: 11 | B10: 309 | C10: 21 | D10: 320 | K10: 0 | L10: 12 | N10: 22 | O10: =COUNTIF($L$7:$L$500,N10) -> 1 | P10: =O10/$Q$4 -> 0.02272727273 | Q10: =IF(P10=0,0,(P10*((LOG(P10))/LOG(2)))) -> -0.1240779913 | T10: =N10 -> 22 | U10: =COUNTIF(L7:L13,T10) -> 0 | V10: =U10/(W4-U8) ->  | W10: =IF(V10=0,0,(V10*((LOG(V10))/LOG(2)))) ->  | Y10: =N10 -> 22 | Z10: =COUNTIF(L14:L21,Y10) -> 1 | AA10: =Z10/(AB4-Z8) -> 0.5 | AB10: =IF(AA10=0,0,(AA10*((LOG(AA10))/LOG(2)))) -> -0.5 | AD10: =N10 -> 22 | AE10: =COUNTIF(L22:L28,AD10) -> 0 | AF10: =AE10/(AG4-AE8) ->  | AG10: =IF(AF10=0,0,(AF10*((LOG(AF10))/LOG(2)))) ->  | AI10: =N10 -> 22 | AJ10: =COUNTIF(L29:L35,AI10) -> 0 | AK10: =AJ10/(AL4-AJ8) ->  | AL10: =IF(AK10=0,0,(AK10*((LOG(AK10))/LOG(2)))) ->  | AN10: =N10 -> 22 | AO10: =COUNTIF(L36:L43,AN10) -> 0 | AP10: =AO10/(AQ4-AO8) -> 0 | AQ10: =IF(AP10=0,0,(AP10*((LOG(AP10))/LOG(2)))) -> 0 | AS10: =N10 -> 22 | AT10: =COUNTIF(L44:L50,AS10) -> 0 | AU10: =AT10/(AV4-AT8) -> 0 | AV10: =IF(AU10=0,0,(AU10*((LOG(AU10))/LOG(2)))) -> 0
A11: 11 | B11: 408 | C11: 21 | D11: 420 | K11: 0 | L11: 12 | T11: =N11 -> 0 | U11: =COUNTIF(L7:L13,T11) -> 0 | V11: =U11/(W4-U8) ->  | W11: =IF(V11=0,0,(V11*((LOG(V11))/LOG(2)))) ->  | Y11: =N11 -> 0 | Z11: =COUNTIF(L14:L21,Y11) -> 0 | AA11: =Z11/(AB4-Z8) -> 0 | AB11: =IF(AA11=0,0,(AA11*((LOG(AA11))/LOG(2)))) -> 0 | AD11: =N11 -> 0 | AE11: =COUNTIF(L22:L28,AD11) -> 0 | AF11: =AE11/(AG4-AE8) ->  | AG11: =IF(AF11=0,0,(AF11*((LOG(AF11))/LOG(2)))) ->  | AI11: =N11 -> 0 | AJ11: =COUNTIF(L29:L35,AI11) -> 0 | AK11: =AJ11/(AL4-AJ8) ->  | AL11: =IF(AK11=0,0,(AK11*((LOG(AK11))/LOG(2)))) ->  | AN11: =N11 -> 0 | AO11: =COUNTIF(L36:L43,AN11) -> 0 | AP11: =AO11/(AQ4-AO8) -> 0 | AQ11: =IF(AP11=0,0,(AP11*((LOG(AP11))/LOG(2)))) -> 0 | AS11: =N11 -> 0 | AT11: =COUNTIF(L44:L50,AS11) -> 0 | AU11: =AT11/(AV4-AT8) -> 0 | AV11: =IF(AU11=0,0,(AU11*((LOG(AU11))/LOG(2)))) -> 0
A12: 11 | B12: 508 | C12: 21 | D12: 516 | K12: 0 | L12: 12 | T12: =N12 -> 0 | U12: =COUNTIF(L7:L13,T12) -> 0 | V12: =U12/(W4-U8) ->  | W12: =IF(V12=0,0,(V12*((LOG(V12))/LOG(2)))) ->  | Y12: =N12 -> 0 | Z12: =COUNTIF(L14:L21,Y12) -> 0 | AA12: =Z12/(AB4-Z8) -> 0 | AB12: =IF(AA12=0,0,(AA12*((LOG(AA12))/LOG(2)))) -> 0 | AD12: =N12 -> 0 | AE12: =COUNTIF(L22:L28,AD12) -> 0 | AF12: =AE12/(AG4-AE8) ->  | AG12: =IF(AF12=0,0,(AF12*((LOG(AF12))/LOG(2)))) ->  | AI12: =N12 -> 0 | AJ12: =COUNTIF(L29:L35,AI12) -> 0 | AK12: =AJ12/(AL4-AJ8) ->  | AL12: =IF(AK12=0,0,(AK12*((LOG(AK12))/LOG(2)))) ->  | AN12: =N12 -> 0 | AO12: =COUNTIF(L36:L43,AN12) -> 0 | AP12: =AO12/(AQ4-AO8) -> 0 | AQ12: =IF(AP12=0,0,(AP12*((LOG(AP12))/LOG(2)))) -> 0 | AS12: =N12 -> 0 | AT12: =COUNTIF(L44:L50,AS12) -> 0 | AU12: =AT12/(AV4-AT8) -> 0 | AV12: =IF(AU12=0,0,(AU12*((LOG(AU12))/LOG(2)))) -> 0
A13: 11 | B13: 603 | C13: 21 | D13: 615 | K13: 0 | L13: 12 | T13: =N13 -> 0 | U13: =COUNTIF(L7:L13,T13) -> 0 | V13: =U13/(W4-U8) ->  | W13: =IF(V13=0,0,(V13*((LOG(V13))/LOG(2)))) ->  | Y13: =N13 -> 0 | Z13: =COUNTIF(L14:L21,Y13) -> 0 | AA13: =Z13/(AB4-Z8) -> 0 | AB13: =IF(AA13=0,0,(AA13*((LOG(AA13))/LOG(2)))) -> 0 | AD13: =N13 -> 0 | AE13: =COUNTIF(L22:L28,AD13) -> 0 | AF13: =AE13/(AG4-AE8) ->  | AG13: =IF(AF13=0,0,(AF13*((LOG(AF13))/LOG(2)))) ->  | AI13: =N13 -> 0 | AJ13: =COUNTIF(L29:L35,AI13) -> 0 | AK13: =AJ13/(AL4-AJ8) ->  | AL13: =IF(AK13=0,0,(AK13*((LOG(AK13))/LOG(2)))) ->  | AN13: =N13 -> 0 | AO13: =COUNTIF(L36:L43,AN13) -> 0 | AP13: =AO13/(AQ4-AO8) -> 0 | AQ13: =IF(AP13=0,0,(AP13*((LOG(AP13))/LOG(2)))) -> 0 | AS13: =N13 -> 0 | AT13: =COUNTIF(L44:L50,AS13) -> 0 | AU13: =AT13/(AV4-AT8) -> 0 | AV13: =IF(AU13=0,0,(AU13*((LOG(AU13))/LOG(2)))) -> 0
A14: 11 | B14: 700 | C14: 21 | D14: 711 | K14: 0 | L14: 12 | T14: =N14 -> 0 | U14: =COUNTIF(L7:L13,T14) -> 0 | V14: =U14/(W4-U8) ->  | W14: =IF(V14=0,0,(V14*((LOG(V14))/LOG(2)))) ->  | Y14: =N14 -> 0 | Z14: =COUNTIF(L14:L21,Y14) -> 0 | AA14: =Z14/(AB4-Z8) -> 0 | AB14: =IF(AA14=0,0,(AA14*((LOG(AA14))/LOG(2)))) -> 0 | AD14: =N14 -> 0 | AE14: =COUNTIF(L22:L28,AD14) -> 0 | AF14: =AE14/(AG4-AE8) ->  | AG14: =IF(AF14=0,0,(AF14*((LOG(AF14))/LOG(2)))) ->  | AI14: =N14 -> 0 | AJ14: =COUNTIF(L29:L35,AI14) -> 0 | AK14: =AJ14/(AL4-AJ8) ->  | AL14: =IF(AK14=0,0,(AK14*((LOG(AK14))/LOG(2)))) ->  | AN14: =N14 -> 0 | AO14: =COUNTIF(L36:L43,AN14) -> 0 | AP14: =AO14/(AQ4-AO8) -> 0 | AQ14: =IF(AP14=0,0,(AP14*((LOG(AP14))/LOG(2)))) -> 0 | AS14: =N14 -> 0 | AT14: =COUNTIF(L44:L50,AS14) -> 0 | AU14: =AT14/(AV4-AT8) -> 0 | AV14: =IF(AU14=0,0,(AU14*((LOG(AU14))/LOG(2)))) -> 0
A15: 11 | B15: 797 | C15: 21 | D15: 808 | K15: 0 | L15: 12 | P15: =SUM(P7:P14) -> 1 | Q15: =-SUM(Q7:Q14) -> 0.5132495437 | V15: =SUM(V7:V14) ->  | W15: =-SUM(W7:W14) ->  | AA15: =SUM(AA7:AA14) -> 1 | AB15: =-SUM(AB7:AB14) -> 1 | AF15: =SUM(AF7:AF14) ->  | AG15: =-SUM(AG7:AG14) ->  | AK15: =SUM(AK7:AK14) ->  | AL15: =-SUM(AL7:AL14) ->  | AP15: =SUM(AP7:AP14) -> 1 | AQ15: =-SUM(AQ7:AQ14) -> 0 | AU15: =SUM(AU7:AU14) -> 1 | AV15: =-SUM(AV7:AV14) -> 0
A16: 11 | B16: 896 | C16: 21 | D16: 908 | K16: 0 | L16: 12 | P16: U= | Q16: =Q15/(LOG(Q4)/LOG(2)) -> 0.09401153445 | V16: U1= | W16: =W15/(LOG(W4)/LOG(2)) ->  | AA16: U2= | AB16: =AB15/(LOG(AB4)/LOG(2)) -> 0.3333333333 | AF16: U3= | AG16: =AG15/(LOG(AG4)/LOG(2)) ->  | AK16: U4= | AL16: =AL15/(LOG(AL4)/LOG(2)) ->  | AP16: U5= | AQ16: =AQ15/(LOG(AQ4)/LOG(2)) -> 0 | AU16: U6= | AV16: =AV15/(LOG(AV4)/LOG(2)) -> 0
A17: 11 | B17: 994 | C17: 21 | D17: 1005 | K17: 0 | L17: 12
A18: 11 | B18: 1091 | C18: 12 | D18: 1095 | K18: 0 | L18: 11
A19: 11 | B19: 1193 | C19: 21 | D19: 1204 | K19: 0 | L19: 12 | N19: Total Target Seq
A20: 22 | B20: 1304 | C20: 23 | D20: 1325 | K20: 0 | L20: 22 | N20: =COUNTIF(L7:L50,G3) -> 40 | P20: 7 | Q20: 8 | R20: 7 | S20: 7 | T20: 8 | U20: 7
A21: 11 | B21: 1420 | C21: 21 | D21: 1430 | K21: 0 | L21: 12 | P21: % of reinforcement given in 6 equal intervals based on number of trials
A22: 11 | B22: 1521 | C22: 21 | D22: 1531 | K22: 0 | L22: 12 | P22: %_1 | Q22: %_2 | R22: %_3 | S22: %_4 | T22: %_5 | U22: %_6
A23: 11 | B23: 1619 | C23: 21 | D23: 1629 | K23: 0 | L23: 12 | O23: target sequence | P23: =$G$3 -> 12 | Q23: =$G$3 -> 12 | R23: =$G$3 -> 12 | S23: =$G$3 -> 12 | T23: =$G$3 -> 12 | U23: =$G$3 -> 12
A24: 11 | B24: 1722 | C24: 21 | D24: 1733 | K24: 0 | L24: 12 | O24: total reinforcement | P24: =U8 -> 7 | Q24: =Z8 -> 6 | R24: =AE8 -> 7 | S24: =AJ8 -> 7 | T24: =AO8 -> 7 | U24: =AT8 -> 6
A25: 11 | B25: 1820 | C25: 21 | D25: 1831 | K25: 0 | L25: 12 | O25: % target
A26: 11 | B26: 1917 | C26: 21 | D26: 1927 | K26: 0 | L26: 12 | O26: CCRF
A27: 11 | B27: 2012 | C27: 21 | D27: 2023 | K27: 0 | L27: 12 | O27: % CCRf
A28: 11 | B28: 2108 | C28: 21 | D28: 2121 | K28: 0 | L28: 12 | O28: average response rate | P28: =D13/P20 -> 87.85714286 | Q28: =(D21-D13)/Q20 -> 101.875 | R28: =(D28-D21)/R20 -> 98.71428571 | S28: =(D35-D28)/S20 -> 100.8571429 | T28: =(D43-D35)/T20 -> 97.25 | U28: =(D50-D43)/U20 -> 96.42857143
A29: 11 | B29: 2205 | C29: 21 | D29: 2217 | K29: 0 | L29: 12
A30: 11 | B30: 2303 | C30: 21 | D30: 2314 | K30: 0 | L30: 12
A31: 11 | B31: 2400 | C31: 21 | D31: 2412 | K31: 0 | L31: 12
A32: 11 | B32: 2495 | C32: 21 | D32: 2534 | K32: 0 | L32: 12
A33: 11 | B33: 2620 | C33: 21 | D33: 2631 | K33: 0 | L33: 12
A34: 11 | B34: 2718 | C34: 21 | D34: 2730 | K34: 0 | L34: 12
A35: 11 | B35: 2816 | C35: 21 | D35: 2827 | K35: 0 | L35: 12
A36: 11 | B36: 2911 | C36: 12 | D36: 2915 | K36: 0 | L36: 11
A37: 11 | B37: 3010 | C37: 21 | D37: 3021 | K37: 0 | L37: 12
A38: 11 | B38: 3105 | C38: 21 | D38: 3115 | K38: 0 | L38: 12
A39: 11 | B39: 3200 | C39: 21 | D39: 3212 | K39: 0 | L39: 12
A40: 11 | B40: 3299 | C40: 21 | D40: 3311 | K40: 0 | L40: 12
A41: 11 | B41: 3397 | C41: 21 | D41: 3410 | K41: 0 | L41: 12
A42: 11 | B42: 3497 | C42: 21 | D42: 3508 | K42: 0 | L42: 12
A43: 11 | B43: 3594 | C43: 21 | D43: 3605 | K43: 0 | L43: 12
A44: 11 | B44: 3690 | C44: 21 | D44: 3702 | K44: 0 | L44: 12
A45: 11 | B45: 3786 | C45: 21 | D45: 3798 | K45: 0 | L45: 12
A46: 11 | B46: 3882 | C46: 21 | D46: 3893 | K46: 0 | L46: 12
A47: 11 | B47: 3978 | C47: 21 | D47: 3988 | K47: 0 | L47: 12
A48: 11 | B48: 4072 | C48: 12 | D48: 4076 | K48: 0 | L48: 11
A49: 11 | B49: 4173 | C49: 21 | D49: 4185 | K49: 0 | L49: 12
A50: 11 | B50: 4269 | C50: 21 | D50: 4280 | K50: 1 | L50: 12

Sheet !M927930.104
A1: Report for:!M927930.104
A2: Date: | B2: <date>
A3: Hen: | B3: <hen> | F3: Correct Sequence | G3: =Start!J2 -> 12 | P3: Total Sequences in Data | Q3: =4994-COUNTBLANK(L7:L5000) -> 44 | V3: Total Sequences in Block Data | W3: =COUNTA(L7:L13) -> 7 | AA3: Total Sequences in Block Data | AB3: =COUNTA(L14:L21) -> 8 | AF3: Total Sequences in Block Data | AG3: =COUNTA(L22:L28) -> 7 | AK3: Total Sequences in Block Data | AL3: =COUNTA(L29:L35) -> 7 | AP3: Total Sequences in Block Data | AQ3: =COUNTA(L36:L43) -> 8 | AU3: Total Sequences in Block Data | AV3: =COUNTA(L44:L50) -> 7
P4: Total Sequences in Summary | Q4: =SUM(O7:O14) -> 44 | V4: Total Sequences in Block Summary | W4: =SUM(U7:U14) -> 7 | AA4: Total Sequences in Block Summary | AB4: =SUM(Z7:Z14) -> 8 | AF4: Total Sequences in Block Summary | AG4: =SUM(AE7:AE14) -> 7 | AK4: Total Sequences in Block Summary | AL4: =SUM(AJ7:AJ14) -> 7 | AP4: Total Sequences in Block Summary | AQ4: =SUM(AO7:AO14) -> 8 | AU4: Total Sequences in Block Summary | AV4: =SUM(AT7:AT14) -> 7
T5: Block 1 | Y5: Block 2 | AD5: Block 3 | AI5: Block 4 | AN5: Block 5 | AS5: Block 6
A6: Sequence Component 1 | B6: Time 1 | C6: Sequence Component 2 | D6: Time 2 | E6: Sequence Component 3 | F6: Time 3 | G6: Sequence Component 4 | H6: Time 4 | I6: Sequence Component 5 | J6: Time 5 | K6: Correct? 0=No 1=Yes | L6: Sequence | N6: Frequency | P6: Relative Frequency | Q6: Variability | T6: Frequency | V6: Relative Frequency | W6: Variability | Y6: Frequency | AA6: Relative Frequency | AB6: Variability | AD6: Frequency | AF6: Relative Frequency | AG6: Variability | AI6: Frequency | AK6: Relative Frequency | AL6: Variability | AN6: Frequency | AP6: Relative Frequency | AQ6: Variability | AS6: Frequency | AU6: Relative Frequency | AV6: Variability
A7: 11 | B7: 10 | C7: 21 | D7: 20 | K7: 0 | L7: 12 | N7: 11 | O7: =COUNTIF($L$7:$L$500,N7) -> 3 | P7: =O7/$Q$4 -> 0.06818181818 | Q7: =IF(P7=0,0,(P7*((LOG(P7))/LOG(2)))) -> -0.2641683489 | T7: =N7 -> 11 | U7: =COUNTIF(L7:L13,T7) -> 1 | V7: =U7/(W4-U8) -> 1 | W7: =IF(V7=0,0,(V7*((LOG(V7))/LOG(2)))) -> 0 | Y7: =N7 -> 11 | Z7: =COUNTIF(L14:L21,Y7) -> 0 | AA7: =Z7/(AB4-Z8) -> 0 | AB7: =IF(AA7=0,0,(AA7*((LOG(AA7))/LOG(2)))) -> 0 | AD7: =N7 -> 11 | AE7: =COUNTIF(L22:L28,AD7) -> 2 | AF7: =AE7/(AG4-AE8) -> 1 | AG7: =IF(AF7=0,0,(AF7*((LOG(AF7))/LOG(2)))) -> 0 | AI7: =N7 -> 11 | AJ7: =COUNTIF(L29:L35,AI7) -> 0 | AK7: =AJ7/(AL4-AJ8) ->  | AL7: =IF(AK7=0,0,(AK7*((LOG(AK7))/LOG(2)))) ->  | AN7: =N7 -> 11 | AO7: =COUNTIF(L36:L43,AN7) -> 0 | AP7: =AO7/(AQ4-AO8) ->  | AQ7: =IF(AP7=0,0,(AP7*((LOG(AP7))/LOG(2)))) ->  | AS7: =N7 -> 11 | AT7: =COUNTIF(L44:L50,AS7) -> 0 | AU7: =AT7/(AV4-AT8) ->  | AV7: =IF(AU7=0,0,(AU7*((LOG(AU7))/LOG(2)))) -> 
A8: 11 | B8: 107 | C8: 21 | D8: 116 | K8: 0 | L8: 12 | N8: 12 | O8: =COUNTIF($L$7:$L$500,N8) -> 40 | P8: =O8/$Q$4 -> 0.9090909091 | Q8: =IF(P8=0,0,(P8*((LOG(P8))/LOG(2)))) -> -0.1250032034 | T8: =N8 -> 12 | U8: =COUNTIF(L7:L13,T8) -> 6 | Y8: =N8 -> 12 | Z8: =COUNTIF(L14:L21,Y8) -> 7 | AD8: =N8 -> 12 | AE8: =COUNTIF(L22:L28,AD8) -> 5 | AI8: =N8 -> 12 | AJ8: =COUNTIF(L29:L35,AI8) -> 7 | AN8: =N8 -> 12 | AO8: =COUNTIF(L36:L43,AN8) -> 8 | AS8: =N8 -> 12 | AT8: =COUNTIF(L44:L50,AS8) -> 7
A9: 11 | B9: 204 | C9: 21 | D9: 214 | K9: 0 | L9: 12 | N9: 21 | O9: =COUNTIF($L$7:$L$500,N9) -> 1 | P9: =O9/$Q$4 -> 0.02272727273 | Q9: =IF(P9=0,0,(P9*((LOG(P9))/LOG(2)))) -> -0.1240779913 | T9: =N9 -> 21 | U9: =COUNTIF(L7:L13,T9) -> 0 | V9: =U9/(W4-U8) -> 0 | W9: =IF(V9=0,0,(V9*((LOG(V9))/LOG(2)))) -> 0 | Y9: =N9 -> 21 | Z9: =COUNTIF(L14:L21,Y9) -> 1 | AA9: =Z9/(AB4-Z8) -> 1 | AB9: =IF(AA9=0,0,(AA9*((LOG(AA9))/LOG(2)))) -> 0 | AD9: =N9 -> 21 | AE9: =COUNTIF(L22:L28,AD9) -> 0 | AF9: =AE9/(AG4-AE8) -> 0 | AG9: =IF(AF9=0,0,(AF9*((LOG(AF9))/LOG(2)))) -> 0 | AI9: =N9 -> 21 | AJ9: =COUNTIF(L29:L35,AI9) -> 0 | AK9: =AJ9/(AL4-AJ8) ->  | AL9: =IF(AK9=0,0,(AK9*((LOG(AK9))/LOG(2)))) ->  | AN9: =N9 -> 21 | AO9: =COUNTIF(L36:L43,AN9) -> 0 | AP9: =AO9/(AQ4-AO8) ->  | AQ9: =IF(AP9=0,0,(AP9*((LOG(AP9))/LOG(2)))) ->  | AS9: =N9 -> 21 | AT9: =COUNTIF(L44:L50,AS9) -> 0 | AU9: =AT9/(AV4-AT8) ->  | AV9: =IF(AU9=0,0,(AU9*((LOG(AU9))/LOG(2)))) -> 
A10: 11 | B10: 299 | C10: 21 | D10: 310 | K10: 0 | L10: 12 | N10: 22 | O10: =COUNTIF($L$7:$L$500,N10) -> 0 | P10: =O10/$Q$4 -> 0 | Q10: =IF(P10=0,0,(P10*((LOG(P10))/LOG(2)))) -> 0 | T10: =N10 -> 22 | U10: =COUNTIF(L7:L13,T10) -> 0 | V10: =U10/(W4-U8) -> 0 | W10: =IF(V10=0,0,(V10*((LOG(V10))/LOG(2)))) -> 0 | Y10: =N10 -> 22 | Z10: =COUNTIF(L14:L21,Y10) -> 0 | AA10: =Z10/(AB4-Z8) -> 0 | AB10: =IF(AA10=0,0,(AA10*((LOG(AA10))/LOG(2)))) -> 0 | AD10: =N10 -> 22 | AE10: =COUNTIF(L22:L28,AD10) -> 0 | AF10: =AE10/(AG4-AE8) -> 0 | AG10: =IF(AF10=0,0,(AF10*((LOG(AF10))/LOG(2)))) -> 0 | AI10: =N10 -> 22 | AJ10: =COUNTIF(L29:L35,AI10) -> 0 | AK10: =AJ10/(AL4-AJ8) ->  | AL10: =IF(AK10=0,0,(AK10*((LOG(AK10))/LOG(2)))) ->  | AN10: =N10 -> 22 | AO10: =COUNTIF(L36:L43,AN10) -> 0 | AP10: =AO10/(AQ4-AO8) ->  | AQ10: =IF(AP10=0,0,(AP10*((LOG(AP10))/LOG(2)))) ->  | AS10: =N10 -> 22 | AT10: =COUNTIF(L44:L50,AS10) -> 0 | AU10: =AT10/(AV4-AT8) ->  | AV10: =IF(AU10=0,0,(AU10*((LOG(AU10))/LOG(2)))) -> 
A11: 11 | B11: 396 | C11: 12 | D11: 405 | K11: 0 | L11: 11 | T11: =N11 -> 0 | U11: =COUNTIF(L7:L13,T11) -> 0 | V11: =U11/(W4-U8) -> 0 | W11: =IF(V11=0,0,(V11*((LOG(V11))/LOG(2)))) -> 0 | Y11: =N11 -> 0 | Z11: =COUNTIF(L14:L21,Y11) -> 0 | AA11: =Z11/(AB4-Z8) -> 0 | AB11: =IF(AA11=0,0,(AA11*((LOG(AA11))/LOG(2)))) -> 0 | AD11: =N11 -> 0 | AE11: =COUNTIF(L22:L28,AD11) -> 0 | AF11: =AE11/(AG4-AE8) -> 0 | AG11: =IF(AF11=0,0,(AF11*((LOG(AF11))/LOG(2)))) -> 0 | AI11: =N11 -> 0 | AJ11: =COUNTIF(L29:L35,AI11) -> 0 | AK11: =AJ11/(AL4-AJ8) ->  | AL11: =IF(AK11=0,0,(AK11*((LOG(AK11))/LOG(2)))) ->  | AN11: =N11 -> 0 | AO11: =COUNTIF(L36:L43,AN11) -> 0 | AP11: =AO11/(AQ4-AO8) ->  | AQ11: =IF(AP11=0,0,(AP11*((LOG(AP11))/LOG(2)))) ->  | AS11: =N11 -> 0 | AT11: =COUNTIF(L44:L50,AS11) -> 0 | AU11: =AT11/(AV4-AT8) ->  | AV11: =IF(AU11=0,0,(AU11*((LOG(AU11))/LOG(2)))) -> 
A12: 11 | B12: 501 | C12: 21 | D12: 512 | K12: 0 | L12: 12 | T12: =N12 -> 0 | U12: =COUNTIF(L7:L13,T12) -> 0 | V12: =U12/(W4-U8) -> 0 | W12: =IF(V12=0,0,(V12*((LOG(V12))/LOG(2)))) -> 0 | Y12: =N12 -> 0 | Z12: =COUNTIF(L14:L21,Y12) -> 0 | AA12: =Z12/(AB4-Z8) -> 0 | AB12: =IF(AA12=0,0,(AA12*((LOG(AA12))/LOG(2)))) -> 0 | AD12: =N12 -> 0 | AE12: =COUNTIF(L22:L28,AD12) -> 0 | AF12: =AE12/(AG4-AE8) -> 0 | AG12: =IF(AF12=0,0,(AF12*((LOG(AF12))/LOG(2)))) -> 0 | AI12: =N12 -> 0 | AJ12: =COUNTIF(L29:L35,AI12) -> 0 | AK12: =AJ12/(AL4-AJ8) ->  | AL12: =IF(AK12=0,0,(AK12*((LOG(AK12))/LOG(2)))) ->  | AN12: =N12 -> 0 | AO12: =COUNTIF(L36:L43,AN12) -> 0 | AP12: =AO12/(AQ4-AO8) ->  | AQ12: =IF(AP12=0,0,(AP12*((LOG(AP12))/LOG(2)))) ->  | AS12: =N12 -> 0 | AT12: =COUNTIF(L44:L50,AS12) -> 0 | AU12: =AT12/(AV4-AT8) ->  | AV12: =IF(AU12=0,0,(AU12*((LOG(AU12))/LOG(2)))) -> 
A13: 11 | B13: 598 | C13: 21 | D13: 610 | K13: 0 | L13: 12 | T13: =N13 -> 0 | U13: =COUNTIF(L7:L13,T13) -> 0 | V13: =U13/(W4-U8) -> 0 | W13: =IF(V13=0,0,(V13*((LOG(V13))/LOG(2)))) -> 0 | Y13: =N13 -> 0 | Z13: =COUNTIF(L14:L21,Y13) -> 0 | AA13: =Z13/(AB4-Z8) -> 0 | AB13: =IF(AA13=0,0,(AA13*((LOG(AA13))/LOG(2)))) -> 0 | AD13: =N13 -> 0 | AE13: =COUNTIF(L22:L28,AD13) -> 0 | AF13: =AE13/(AG4-AE8) -> 0 | AG13: =IF(AF13=0,0,(AF13*((LOG(AF13))/LOG(2)))) -> 0 | AI13: =N13 -> 0 | AJ13: =COUNTIF(L29:L35,AI13) -> 0 | AK13: =AJ13/(AL4-AJ8) ->  | AL13: =IF(AK13=0,0,(AK13*((LOG(AK13))/LOG(2)))) ->  | AN13: =N13 -> 0 | AO13: =COUNTIF(L36:L43,AN13) -> 0 | AP13: =AO13/(AQ4-AO8) ->  | AQ13: =IF(AP13=0,0,(AP13*((LOG(AP13))/LOG(2)))) ->  | AS13: =N13 -> 0 | AT13: =COUNTIF(L44:L50,AS13) -> 0 | AU13: =AT13/(AV4-AT8) ->  | AV13: =IF(AU13=0,0,(AU13*((LOG(AU13))/LOG(2)))) -> 
A14: 11 | B14: 704 | C14: 21 | D14: 712 | K14: 0 | L14: 12 | T14: =N14 -> 0 | U14: =COUNTIF(L7:L13,T14) -> 0 | V14: =U14/(W4-U8) -> 0 | W14: =IF(V14=0,0,(V14*((LOG(V14))/LOG(2)))) -> 0 | Y14: =N14 -> 0 | Z14: =COUNTIF(L14:L21,Y14) -> 0 | AA14: =Z14/(AB4-Z8) -> 0 | AB14: =IF(AA14=0,0,(AA14*((LOG(AA14))/LOG(2)))) -> 0 | AD14: =N14 -> 0 | AE14: =COUNTIF(L22:L28,AD14) -> 0 | AF14: =AE14/(AG4-AE8) -> 0 | AG14: =IF(AF14=0,0,(AF14*((LOG(AF14))/LOG(2)))) -> 0 | AI14: =N14 -> 0 | AJ14: =COUNTIF(L29:L35,AI14) -> 0 | AK14: =AJ14/(AL4-AJ8) ->  | AL14: =IF(AK14=0,0,(AK14*((LOG(AK14))/LOG(2)))) ->  | AN14: =N14 -> 0 | AO14: =COUNTIF(L36:L43,AN14) -> 0 | AP14: =AO14/(AQ4-AO8) ->  | AQ14: =IF(AP14=0,0,(AP14*((LOG(AP14))/LOG(2)))) ->  | AS14: =N14 -> 0 | AT14: =COUNTIF(L44:L50,AS14) -> 0 | AU14: =AT14/(AV4-AT8) ->  | AV14: =IF(AU14=0,0,(AU14*((LOG(AU14))/LOG(2)))) -> 
A15: 11 | B15: 799 | C15: 21 | D15: 807 | K15: 0 | L15: 12 | P15: =SUM(P7:P14) -> 1 | Q15: =-SUM(Q7:Q14) -> 0.5132495437 | V15: =SUM(V7:V14) -> 1 | W15: =-SUM(W7:W14) -> 0 | AA15: =SUM(AA7:AA14) -> 1 | AB15: =-SUM(AB7:AB14) -> 0 | AF15: =SUM(AF7:AF14) -> 1 | AG15: =-SUM(AG7:AG14) -> 0 | AK15: =SUM(AK7:AK14) ->  | AL15: =-SUM(AL7:AL14) ->  | AP15: =SUM(AP7:AP14) ->  | AQ15: =-SUM(AQ7:AQ14) ->  | AU15: =SUM(AU7:AU14) ->  | AV15: =-SUM(AV7:AV14) -> 
A16: 22 | B16: 901 | C16: 14 | D16: 919 | K16: 0 | L16: 21 | P16: U= | Q16: =Q15/(LOG(Q4)/LOG(2)) -> 0.09401153445 | V16: U1= | W16: =W15/(LOG(W4)/LOG(2)) -> 0 | AA16: U2= | AB16: =AB15/(LOG(AB4)/LOG(2)) -> 0 | AF16: U3= | AG16: =AG15/(LOG(AG4)/LOG(2)) -> 0 | AK16: U4= | AL16: =AL15/(LOG(AL4)/LOG(2)) ->  | AP16: U5= | AQ16: =AQ15/(LOG(AQ4)/LOG(2)) ->  | AU16: U6= | AV16: =AV15/(LOG(AV4)/LOG(2)) -> 
A17: 11 | B17: 1019 | C17: 21 | D17: 1031 | K17: 0 | L17: 12
A18: 11 | B18: 1117 | C18: 21 | D18: 1128 | K18: 0 | L18: 12
A19: 11 | B19: 1213 | C19: 21 | D19: 1223 | K19: 0 | L19: 12 | N19: Total Target Seq
A20: 11 | B20: 1321 | C20: 21 | D20: 1333 | K20: 0 | L20: 12 | N20: =COUNTIF(L7:L50,G3) -> 40 | P20: 7 | Q20: 8 | R20: 7 | S20: 7 | T20: 8 | U20: 7
A21: 11 | B21: 1418 | C21: 21 | D21: 1429 | K21: 0 | L21: 12 | P21: % of reinforcement given in 6 equal intervals based on number of trials
A22: 11 | B22: 1515 | C22: 21 | D22: 1526 | K22: 0 | L22: 12 | P22: %_1 | Q22: %_2 | R22: %_3 | S22: %_4 | T22: %_5 | U22: %_6
A23: 11 | B23: 1616 | C23: 21 | D23: 1625 | K23: 0 | L23: 12 | O23: target sequence | P23: =$G$3 -> 12 | Q23: =$G$3 -> 12 | R23: =$G$3 -> 12 | S23: =$G$3 -> 12 | T23: =$G$3 -> 12 | U23: =$G$3 -> 12
A24: 11 | B24: 1711 | C24: 21 | D24: 1723 | K24: 0 | L24: 12 | O24: total reinforcement | P24: =U8 -> 6 | Q24: =Z8 -> 7 | R24: =AE8 -> 5 | S24: =AJ8 -> 7 | T24: =AO8 -> 8 | U24: =AT8 -> 7
A25: 11 | B25: 1809 | C25: 12 | D25: 1814 | K25: 0 | L25: 11 | O25: % target
A26: 11 | B26: 1909 | C26: 21 | D26: 1920 | K26: 0 | L26: 12 | O26: CCRF
A27: 11 | B27: 2005 | C27: 21 | D27: 2017 | K27: 0 | L27: 12 | O27: % CCRf
A28: 11 | B28: 2102 | C28: 12 | D28: 2106 | K28: 0 | L28: 11 | O28: average response rate | P28: =D13/P20 -> 87.14285714 | Q28: =(D21-D13)/Q20 -> 102.375 | R28: =(D28-D21)/R20 -> 96.71428571 | S28: =(D35-D28)/S20 -> 99.85714286 | T28: =(D43-D35)/T20 -> 96.875 | U28: =(D50-D43)/U20 -> 96.28571429
A29: 11 | B29: 2202 | C29: 21 | D29: 2213 | K29: 0 | L29: 12
A30: 11 | B30: 2300 | C30: 21 | D30: 2311 | K30: 0 | L30: 12
A31: 11 | B31: 2395 | C31: 21 | D31: 2407 | K31: 0 | L31: 12
A32: 11 | B32: 2492 | C32: 21 | D32: 2503 | K32: 0 | L32: 12
A33: 11 | B33: 2594 | C33: 21 | D33: 2603 | K33: 0 | L33: 12
A34: 11 | B34: 2692 | C34: 21 | D34: 2704 | K34: 0 | L34: 12
A35: 11 | B35: 2793 | C35: 21 | D35: 2805 | K35: 0 | L35: 12
A36: 11 | B36: 2892 | C36: 21 | D36: 2901 | K36: 0 | L36: 12
A37: 11 | B37: 2993 | C37: 21 | D37: 3002 | K37: 0 | L37: 12
A38: 11 | B38: 3087 | C38: 21 | D38: 3097 | K38: 0 | L38: 12
A39: 11 | B39: 3183 | C39: 21 | D39: 3194 | K39: 0 | L39: 12
A40: 11 | B40: 3279 | C40: 21 | D40: 3289 | K40: 0 | L40: 12
A41: 11 | B41: 3374 | C41: 21 | D41: 3386 | K41: 0 | L41: 12
A42: 11 | B42: 3473 | C42: 21 | D42: 3484 | K42: 0 | L42: 12
A43: 11 | B43: 3569 | C43: 21 | D43: 3580 | K43: 0 | L43: 12
A44: 11 | B44: 3664 | C44: 21 | D44: 3674 | K44: 0 | L44: 12
A45: 11 | B45: 3760 | C45: 21 | D45: 3771 | K45: 0 | L45: 12
A46: 11 | B46: 3860 | C46: 21 | D46: 3870 | K46: 0 | L46: 12
A47: 11 | B47: 3955 | C47: 21 | D47: 3966 | K47: 0 | L47: 12
A48: 11 | B48: 4051 | C48: 21 | D48: 4063 | K48: 0 | L48: 12
A49: 11 | B49: 4150 | C49: 21 | D49: 4162 | K49: 0 | L49: 12
A50: 11 | B50: 4246 | C50: 21 | D50: 4254 | K50: 1 | L50: 12

Sheet !M928A50.104
A1: Report for:!M928A50.104
A2: Date: | B2: <date>
A3: Hen: | B3: <hen> | F3: Correct Sequence | G3: =Start!J2 -> 12 | P3: Total Sequences in Data | Q3: =4994-COUNTBLANK(L7:L5000) -> 45 | V3: Total Sequences in Block Data | W3: =COUNTA(L7:L14) -> 8 | AA3: Total Sequences in Block Data | AB3: =COUNTA(L15:L21) -> 7 | AF3: Total Sequences in Block Data | AG3: =COUNTA(L22:L29) -> 8 | AK3: Total Sequences in Block Data | AL3: =COUNTA(L30:L36) -> 7 | AP3: Total Sequences in Block Data | AQ3: =COUNTA(L37:L44) -> 8 | AU3: Total Sequences in Block Data | AV3: =COUNTA(L45:L51) -> 7
P4: Total Sequences in Summary | Q4: =SUM(O7:O14) -> 45 | V4: Total Sequences in Block Summary | W4: =SUM(U7:U14) -> 8 | AA4: Total Sequences in Block Summary | AB4: =SUM(Z7:Z14) -> 7 | AF4: Total Sequences in Block Summary | AG4: =SUM(AE7:AE14) -> 8 | AK4: Total Sequences in Block Summary | AL4: =SUM(AJ7:AJ14) -> 7 | AP4: Total Sequences in Block Summary | AQ4: =SUM(AO7:AO14) -> 8 | AU4: Total Sequences in Block Summary | AV4: =SUM(AT7:AT14) -> 7
T5: Block 1 | Y5: Block 2 | AD5: Block 3 | AI5: Block 4 | AN5: Block 5 | AS5: Block 6
A6: Sequence Component 1 | B6: Time 1 | C6: Sequence Component 2 | D6: Time 2 | E6: Sequence Component 3 | F6: Time 3 | G6: Sequence Component 4 | H6: Time 4 | I6: Sequence Component 5 | J6: Time 5 | K6: Correct? 0=No 1=Yes | L6: Sequence | N6: Frequency | P6: Relative Frequency | Q6: Variability | T6: Frequency | V6: Relative Frequency | W6: Variability | Y6: Frequency | AA6: Relative Frequency | AB6: Variability | AD6: Frequency | AF6: Relative Frequency | AG6: Variability | AI6: Frequency | AK6: Relative Frequency | AL6: Variability | AN6: Frequency | AP6: Relative Frequency | AQ6: Variability | AS6: Frequency | AU6: Relative Frequency | AV6: Variability
A7: 11 | B7: 6 | C7: 21 | D7: 15 | K7: 0 | L7: 12 | N7: 11 | O7: =COUNTIF($L$7:$L$500,N7) -> 2 | P7: =O7/$Q$4 -> 0.04444444444 | Q7: =IF(P7=0,0,(P7*((LOG(P7))/LOG(2)))) -> -0.1996379154 | T7: =N7 -> 11 | U7: =COUNTIF(L7:L14,T7) -> 0 | V7: =U7/(W4-U8) -> 0 | W7: =IF(V7=0,0,(V7*((LOG(V7))/LOG(2)))) -> 0 | Y7: =N7 -> 11 | Z7: =COUNTIF(L15:L21,Y7) -> 0 | AA7: =Z7/(AB4-Z8) -> 0 | AB7: =IF(AA7=0,0,(AA7*((LOG(AA7))/LOG(2)))) -> 0 | AD7: =N7 -> 11 | AE7: =COUNTIF(L22:L29,AD7) -> 0 | AF7: =AE7/(AG4-AE8) ->  | AG7: =IF(AF7=0,0,(AF7*((LOG(AF7))/LOG(2)))) ->  | AI7: =N7 -> 11 | AJ7: =COUNTIF(L30:L36,AI7) -> 0 | AK7: =AJ7/(AL4-AJ8) ->  | AL7: =IF(AK7=0,0,(AK7*((LOG(AK7))/LOG(2)))) ->  | AN7: =N7 -> 11 | AO7: =COUNTIF(L37:L44,AN7) -> 1 | AP7: =AO7/(AQ4-AO8) -> 1 | AQ7: =IF(AP7=0,0,(AP7*((LOG(AP7))/LOG(2)))) -> 0 | AS7: =N7 -> 11 | AT7: =COUNTIF(L45:L51,AS7) -> 1 | AU7: =AT7/(AV4-AT8) -> 1 | AV7: =IF(AU7=0,0,(AU7*((LOG(AU7))/LOG(2)))) -> 0
A8: 22 | B8: 111 | C8: 23 | D8: 126 | K8: 0 | L8: 22 | N8: 12 | O8: =COUNTIF($L$7:$L$500,N8) -> 40 | P8: =O8/$Q$4 -> 0.8888888889 | Q8: =IF(P8=0,0,(P8*((LOG(P8))/LOG(2)))) -> -0.1510444457 | T8: =N8 -> 12 | U8: =COUNTIF(L7:L14,T8) -> 6 | Y8: =N8 -> 12 | Z8: =COUNTIF(L15:L21,Y8) -> 6 | AD8: =N8 -> 12 | AE8: =COUNTIF(L22:L29,AD8) -> 8 | AI8: =N8 -> 12 | AJ8: =COUNTIF(L30:L36,AI8) -> 7 | AN8: =N8 -> 12 | AO8: =COUNTIF(L37:L44,AN8) -> 7 | AS8: =N8 -> 12 | AT8: =COUNTIF(L45:L51,AS8) -> 6
A9: 11 | B9: 222 | C9: 21 | D9: 232 | K9: 0 | L9: 12 | N9: 21 | O9: =COUNTIF($L$7:$L$500,N9) -> 2 | P9: =O9/$Q$4 -> 0.04444444444 | Q9: =IF(P9=0,0,(P9*((LOG(P9))/LOG(2)))) -> -0.1996379154 | T9: =N9 -> 21 | U9: =COUNTIF(L7:L14,T9) -> 1 | V9: =U9/(W4-U8) -> 0.5 | W9: =IF(V9=0,0,(V9*((LOG(V9))/LOG(2)))) -> -0.5 | Y9: =N9 -> 21 | Z9: =COUNTIF(L15:L21,Y9) -> 1 | AA9: =Z9/(AB4-Z8) -> 1 | AB9: =IF(AA9=0,0,(AA9*((LOG(AA9))/LOG(2)))) -> 0 | AD9: =N9 -> 21 | AE9: =COUNTIF(L22:L29,AD9) -> 0 | AF9: =AE9/(AG4-AE8) ->  | AG9: =IF(AF9=0,0,(AF9*((LOG(AF9))/LOG(2)))) ->  | AI9: =N9 -> 21 | AJ9: =COUNTIF(L30:L36,AI9) -> 0 | AK9: =AJ9/(AL4-AJ8) ->  | AL9: =IF(AK9=0,0,(AK9*((LOG(AK9))/LOG(2)))) ->  | AN9: =N9 -> 21 | AO9: =COUNTIF(L37:L44,AN9) -> 0 | AP9: =AO9/(AQ4-AO8) -> 0 | AQ9: =IF(AP9=0,0,(AP9*((LOG(AP9))/LOG(2)))) -> 0 | AS9: =N9 -> 21 | AT9: =COUNTIF(L45:L51,AS9) -> 0 | AU9: =AT9/(AV4-AT8) -> 0 | AV9: =IF(AU9=0,0,(AU9*((LOG(AU9))/LOG(2)))) -> 0
A10: 11 | B10: 319 | C10: 21 | D10: 329 | K10: 0 | L10: 12 | N10: 22 | O10: =COUNTIF($L$7:$L$500,N10) -> 1 | P10: =O10/$Q$4 -> 0.02222222222 | Q10: =IF(P10=0,0,(P10*((LOG(P10))/LOG(2)))) -> -0.1220411799 | T10: =N10 -> 22 | U10: =COUNTIF(L7:L14,T10) -> 1 | V10: =U10/(W4-U8) -> 0.5 | W10: =IF(V10=0,0,(V10*((LOG(V10))/LOG(2)))) -> -0.5 | Y10: =N10 -> 22 | Z10: =COUNTIF(L15:L21,Y10) -> 0 | AA10: =Z10/(AB4-Z8) -> 0 | AB10: =IF(AA10=0,0,(AA10*((LOG(AA10))/LOG(2)))) -> 0 | AD10: =N10 -> 22 | AE10: =COUNTIF(L22:L29,AD10) -> 0 | AF10: =AE10/(AG4-AE8) ->  | AG10: =IF(AF10=0,0,(AF10*((LOG(AF10))/LOG(2)))) ->  | AI10: =N10 -> 22 | AJ10: =COUNTIF(L30:L36,AI10) -> 0 | AK10: =AJ10/(AL4-AJ8) ->  | AL10: =IF(AK10=0,0,(AK10*((LOG(AK10))/LOG(2)))) ->  | AN10: =N10 -> 22 | AO10: =COUNTIF(L37:L44,AN10) -> 0 | AP10: =AO10/(AQ4-AO8) -> 0 | AQ10: =IF(AP10=0,0,(AP10*((LOG(AP10))/LOG(2)))) -> 0 | AS10: =N10 -> 22 | AT10: =COUNTIF(L45:L51,AS10) -> 0 | AU10: =AT10/(AV4-AT8) -> 0 | AV10: =IF(AU10=0,0,(AU10*((LOG(AU10))/LOG(2)))) -> 0
A11: 11 | B11: 415 | C11: 21 | D11: 427 | K11: 0 | L11: 12 | T11: =N11 -> 0 | U11: =COUNTIF(L7:L14,T11) -> 0 | V11: =U11/(W4-U8) -> 0 | W11: =IF(V11=0,0,(V11*((LOG(V11))/LOG(2)))) -> 0 | Y11: =N11 -> 0 | Z11: =COUNTIF(L15:L21,Y11) -> 0 | AA11: =Z11/(AB4-Z8) -> 0 | AB11: =IF(AA11=0,0,(AA11*((LOG(AA11))/LOG(2)))) -> 0 | AD11: =N11 -> 0 | AE11: =COUNTIF(L22:L29,AD11) -> 0 | AF11: =AE11/(AG4-AE8) ->  | AG11: =IF(AF11=0,0,(AF11*((LOG(AF11))/LOG(2)))) ->  | AI11: =N11 -> 0 | AJ11: =COUNTIF(L30:L36,AI11) -> 0 | AK11: =AJ11/(AL4-AJ8) ->  | AL11: =IF(AK11=0,0,(AK11*((LOG(AK11))/LOG(2)))) ->  | AN11: =N11 -> 0 | AO11: =COUNTIF(L37:L44,AN11) -> 0 | AP11: =AO11/(AQ4-AO8) -> 0 | AQ11: =IF(AP11=0,0,(AP11*((LOG(AP11))/LOG(2)))) -> 0 | AS11: =N11 -> 0 | AT11: =COUNTIF(L45:L51,AS11) -> 0 | AU11: =AT11/(AV4-AT8) -> 0 | AV11: =IF(AU11=0,0,(AU11*((LOG(AU11))/LOG(2)))) -> 0
A12: 11 | B12: 513 | C12: 21 | D12: 525 | K12: 0 | L12: 12 | T12: =N12 -> 0 | U12: =COUNTIF(L7:L14,T12) -> 0 | V12: =U12/(W4-U8) -> 0 | W12: =IF(V12=0,0,(V12*((LOG(V12))/LOG(2)))) -> 0 | Y12: =N12 -> 0 | Z12: =COUNTIF(L15:L21,Y12) -> 0 | AA12: =Z12/(AB4-Z8) -> 0 | AB12: =IF(AA12=0,0,(AA12*((LOG(AA12))/LOG(2)))) -> 0 | AD12: =N12 -> 0 | AE12: =COUNTIF(L22:L29,AD12) -> 0 | AF12: =AE12/(AG4-AE8) ->  | AG12: =IF(AF12=0,0,(AF12*((LOG(AF12))/LOG(2)))) ->  | AI12: =N12 -> 0 | AJ12: =COUNTIF(L30:L36,AI12) -> 0 | AK12: =AJ12/(AL4-AJ8) ->  | AL12: =IF(AK12=0,0,(AK12*((LOG(AK12))/LOG(2)))) ->  | AN12: =N12 -> 0 | AO12: =COUNTIF(L37:L44,AN12) -> 0 | AP12: =AO12/(AQ4-AO8) -> 0 | AQ12: =IF(AP12=0,0,(AP12*((LOG(AP12))/LOG(2)))) -> 0 | AS12: =N12 -> 0 | AT12: =COUNTIF(L45:L51,AS12) -> 0 | AU12: =AT12/(AV4-AT8) -> 0 | AV12: =IF(AU12=0,0,(AU12*((LOG(AU12))/LOG(2)))) -> 0
A13: 22 | B13: 620 | C13: 14 | D13: 638 | K13: 0 | L13: 21 | T13: =N13 -> 0 | U13: =COUNTIF(L7:L14,T13) -> 0 | V13: =U13/(W4-U8) -> 0 | W13: =IF(V13=0,0,(V13*((LOG(V13))/LOG(2)))) -> 0 | Y13: =N13 -> 0 | Z13: =COUNTIF(L15:L21,Y13) -> 0 | AA13: =Z13/(AB4-Z8) -> 0 | AB13: =IF(AA13=0,0,(AA13*((LOG(AA13))/LOG(2)))) -> 0 | AD13: =N13 -> 0 | AE13: =COUNTIF(L22:L29,AD13) -> 0 | AF13: =AE13/(AG4-AE8) ->  | AG13: =IF(AF13=0,0,(AF13*((LOG(AF13))/LOG(2)))) ->  | AI13: =N13 -> 0 | AJ13: =COUNTIF(L30:L36,AI13) -> 0 | AK13: =AJ13/(AL4-AJ8) ->  | AL13: =IF(AK13=0,0,(AK13*((LOG(AK13))/LOG(2)))) ->  | AN13: =N13 -> 0 | AO13: =COUNTIF(L37:L44,AN13) -> 0 | AP13: =AO13/(AQ4-AO8) -> 0 | AQ13: =IF(AP13=0,0,(AP13*((LOG(AP13))/LOG(2)))) -> 0 | AS13: =N13 -> 0 | AT13: =COUNTIF(L45:L51,AS13) -> 0 | AU13: =AT13/(AV4-AT8) -> 0 | AV13: =IF(AU13=0,0,(AU13*((LOG(AU13))/LOG(2)))) -> 0
A14: 11 | B14: 733 | C14: 21 | D14: 745 | K14: 0 | L14: 12 | T14: =N14 -> 0 | U14: =COUNTIF(L7:L14,T14) -> 0 | V14: =U14/(W4-U8) -> 0 | W14: =IF(V14=0,0,(V14*((LOG(V14))/LOG(2)))) -> 0 | Y14: =N14 -> 0 | Z14: =COUNTIF(L15:L21,Y14) -> 0 | AA14: =Z14/(AB4-Z8) -> 0 | AB14: =IF(AA14=0,0,(AA14*((LOG(AA14))/LOG(2)))) -> 0 | AD14: =N14 -> 0 | AE14: =COUNTIF(L22:L29,AD14) -> 0 | AF14: =AE14/(AG4-AE8) ->  | AG14: =IF(AF14=0,0,(AF14*((LOG(AF14))/LOG(2)))) ->  | AI14: =N14 -> 0 | AJ14: =COUNTIF(L30:L36,AI14) -> 0 | AK14: =AJ14/(AL4-AJ8) ->  | AL14: =IF(AK14=0,0,(AK14*((LOG(AK14))/LOG(2)))) ->  | AN14: =N14 -> 0 | AO14: =COUNTIF(L37:L44,AN14) -> 0 | AP14: =AO14/(AQ4-AO8) -> 0 | AQ14: =IF(AP14=0,0,(AP14*((LOG(AP14))/LOG(2)))) -> 0 | AS14: =N14 -> 0 | AT14: =COUNTIF(L45:L51,AS14) -> 0 | AU14: =AT14/(AV4-AT8) -> 0 | AV14: =IF(AU14=0,0,(AU14*((LOG(AU14))/LOG(2)))) -> 0
A15: 11 | B15: 830 | C15: 21 | D15: 840 | K15: 0 | L15: 12 | P15: =SUM(P7:P14) -> 1 | Q15: =-SUM(Q7:Q14) -> 0.6723614564 | V15: =SUM(V7:V14) -> 1 | W15: =-SUM(W7:W14) -> 1 | AA15: =SUM(AA7:AA14) -> 1 | AB15: =-SUM(AB7:AB14) -> 0 | AF15: =SUM(AF7:AF14) ->  | AG15: =-SUM(AG7:AG14) ->  | AK15: =SUM(AK7:AK14) ->  | AL15: =-SUM(AL7:AL14) ->  | AP15: =SUM(AP7:AP14) -> 1 | AQ15: =-SUM(AQ7:AQ14) -> 0 | AU15: =SUM(AU7:AU14) -> 1 | AV15: =-SUM(AV7:AV14) -> 0
A16: 22 | B16: 937 | C16: 14 | D16: 953 | K16: 0 | L16: 21 | P16: U= | Q16: =Q15/(LOG(Q4)/LOG(2)) -> 0.122428886 | V16: U1= | W16: =W15/(LOG(W4)/LOG(2)) -> 0.3333333333 | AA16: U2= | AB16: =AB15/(LOG(AB4)/LOG(2)) -> 0 | AF16: U3= | AG16: =AG15/(LOG(AG4)/LOG(2)) ->  | AK16: U4= | AL16: =AL15/(LOG(AL4)/LOG(2)) ->  | AP16: U5= | AQ16: =AQ15/(LOG(AQ4)/LOG(2)) -> 0 | AU16: U6= | AV16: =AV15/(LOG(AV4)/LOG(2)) -> 0
A17: 11 | B17: 1049 | C17: 21 | D17: 1058 | K17: 0 | L17: 12
A18: 11 | B18: 1144 | C18: 21 | D18: 1155 | K18: 0 | L18: 12
A19: 11 | B19: 1240 | C19: 21 | D19: 1252 | K19: 0 | L19: 12 | N19: Total Target Seq
A20: 11 | B20: 1337 | C20: 21 | D20: 1347 | K20: 0 | L20: 12 | N20: =COUNTIF(L7:L51,G3) -> 40 | P20: 8 | Q20: 7 | R20: 8 | S20: 7 | T20: 8 | U20: 7
A21: 11 | B21: 1431 | C21: 21 | D21: 1442 | K21: 0 | L21: 12 | P21: % of reinforcement given in 6 equal intervals based on number of trials
A22: 11 | B22: 1527 | C22: 21 | D22: 1538 | K22: 0 | L22: 12 | P22: %_1 | Q22: %_2 | R22: %_3 | S22: %_4 | T22: %_5 | U22: %_6
A23: 11 | B23: 1627 | C23: 21 | D23: 1637 | K23: 0 | L23: 12 | O23: target sequence | P23: =$G$3 -> 12 | Q23: =$G$3 -> 12 | R23: =$G$3 -> 12 | S23: =$G$3 -> 12 | T23: =$G$3 -> 12 | U23: =$G$3 -> 12
A24: 11 | B24: 1725 | C24: 21 | D24: 1737 | K24: 0 | L24: 12 | O24: total reinforcement | P24: =U8 -> 6 | Q24: =Z8 -> 6 | R24: =AE8 -> 8 | S24: =AJ8 -> 7 | T24: =AO8 -> 7 | U24: =AT8 -> 6
A25: 11 | B25: 1823 | C25: 21 | D25: 1833 | K25: 0 | L25: 12 | O25: % target
A26: 11 | B26: 1920 | C26: 21 | D26: 1931 | K26: 0 | L26: 12 | O26: CCRF
A27: 11 | B27: 2016 | C27: 21 | D27: 2027 | K27: 0 | L27: 12 | O27: % CCRf
A28: 11 | B28: 2112 | C28: 21 | D28: 2123 | K28: 0 | L28: 12 | O28: average response rate | P28: =D14/P20 -> 93.125 | Q28: =(D21-D14)/Q20 -> 99.57142857 | R28: =(D29-D21)/R20 -> 97.125 | S28: =(D36-D29)/S20 -> 97.71428571 | T28: =(D44-D36)/T20 -> 97 | U28: =(D51-D44)/U20 -> 96.71428571
A29: 11 | B29: 2208 | C29: 21 | D29: 2219 | K29: 0 | L29: 12
A30: 11 | B30: 2304 | C30: 21 | D30: 2317 | K30: 0 | L30: 12
A31: 11 | B31: 2406 | C31: 21 | D31: 2417 | K31: 0 | L31: 12
A32: 11 | B32: 2503 | C32: 21 | D32: 2513 | K32: 0 | L32: 12
A33: 11 | B33: 2598 | C33: 21 | D33: 2610 | K33: 0 | L33: 12
A34: 11 | B34: 2696 | C34: 21 | D34: 2708 | K34: 0 | L34: 12
A35: 11 | B35: 2793 | C35: 21 | D35: 2805 | K35: 0 | L35: 12
A36: 11 | B36: 2892 | C36: 21 | D36: 2903 | K36: 0 | L36: 12
A37: 11 | B37: 2990 | C37: 21 | D37: 3001 | K37: 0 | L37: 12
A38: 11 | B38: 3087 | C38: 21 | D38: 3098 | K38: 0 | L38: 12
A39: 11 | B39: 3183 | C39: 21 | D39: 3194 | K39: 0 | L39: 12
A40: 11 | B40: 3281 | C40: 21 | D40: 3292 | K40: 0 | L40: 12
A41: 11 | B41: 3376 | C41: 21 | D41: 3387 | K41: 0 | L41: 12
A42: 11 | B42: 3472 | C42: 21 | D42: 3483 | K42: 0 | L42: 12
A43: 11 | B43: 3569 | C43: 12 | D43: 3573 | K43: 0 | L43: 11
A44: 11 | B44: 3669 | C44: 21 | D44: 3679 | K44: 0 | L44: 12
A45: 11 | B45: 3763 | C45: 12 | D45: 3768 | K45: 0 | L45: 11
A46: 11 | B46: 3864 | C46: 21 | D46: 3875 | K46: 0 | L46: 12
A47: 11 | B47: 3959 | C47: 21 | D47: 3970 | K47: 0 | L47: 12
A48: 11 | B48: 4056 | C48: 21 | D48: 4068 | K48: 0 | L48: 12
A49: 11 | B49: 4154 | C49: 21 | D49: 4163 | K49: 0 | L49: 12
A50: 11 | B50: 4249 | C50: 21 | D50: 4260 | K50: 0 | L50: 12
A51: 11 | B51: 4346 | C51: 21 | D51: 4356 | K51: 1 | L51: 12

Sheet !M930A20.104
A1: Report for:!M930A20.104
A2: Date: | B2: <date>
A3: Hen: | B3: <hen> | F3: Correct Sequence | G3: =Start!J2 -> 12 | P3: Total Sequences in Data | Q3: =4994-COUNTBLANK(L7:L5000) -> 41 | V3: Total Sequences in Block Data | W3: =COUNTA(L7:L13) -> 7 | AA3: Total Sequences in Block Data | AB3: =COUNTA(L14:L20) -> 7 | AF3: Total Sequences in Block Data | AG3: =COUNTA(L21:L26) -> 6 | AK3: Total Sequences in Block Data | AL3: =COUNTA(L27:L33) -> 7 | AP3: Total Sequences in Block Data | AQ3: =COUNTA(L34:L40) -> 7 | AU3: Total Sequences in Block Data | AV3: =COUNTA(L41:L47) -> 7
P4: Total Sequences in Summary | Q4: =SUM(O7:O14) -> 41 | V4: Total Sequences in Block Summary | W4: =SUM(U7:U14) -> 7 | AA4: Total Sequences in Block Summary | AB4: =SUM(Z7:Z14) -> 7 | AF4: Total Sequences in Block Summary | AG4: =SUM(AE7:AE14) -> 6 | AK4: Total Sequences in Block Summary | AL4: =SUM(AJ7:AJ14) -> 7 | AP4: Total Sequences in Block Summary | AQ4: =SUM(AO7:AO14) -> 7 | AU4: Total Sequences in Block Summary | AV4: =SUM(AT7:AT14) -> 7
T5: Block 1 | Y5: Block 2 | AD5: Block 3 | AI5: Block 4 | AN5: Block 5 | AS5: Block 6
A6: Sequence Component 1 | B6: Time 1 | C6: Sequence Component 2 | D6: Time 2 | E6: Sequence Component 3 | F6: Time 3 | G6: Sequence Component 4 | H6: Time 4 | I6: Sequence Component 5 | J6: Time 5 | K6: Correct? 0=No 1=Yes | L6: Sequence | N6: Frequency | P6: Relative Frequency | Q6: Variability | T6: Frequency | V6: Relative Frequency | W6: Variability | Y6: Frequency | AA6: Relative Frequency | AB6: Variability | AD6: Frequency | AF6: Relative Frequency | AG6: Variability | AI6: Frequency | AK6: Relative Frequency | AL6: Variability | AN6: Frequency | AP6: Relative Frequency | AQ6: Variability | AS6: Frequency | AU6: Relative Frequency | AV6: Variability
A7: 11 | B7: 7 | C7: 21 | D7: 16 | K7: 0 | L7: 12 | N7: 11 | O7: =COUNTIF($L$7:$L$500,N7) -> 0 | P7: =O7/$Q$4 -> 0 | Q7: =IF(P7=0,0,(P7*((LOG(P7))/LOG(2)))) -> 0 | T7: =N7 -> 11 | U7: =COUNTIF(L7:L13,T7) -> 0 | V7: =U7/(W4-U8) -> 0 | W7: =IF(V7=0,0,(V7*((LOG(V7))/LOG(2)))) -> 0 | Y7: =N7 -> 11 | Z7: =COUNTIF(L14:L20,Y7) -> 0 | AA7: =Z7/(AB4-Z8) ->  | AB7: =IF(AA7=0,0,(AA7*((LOG(AA7))/LOG(2)))) ->  | AD7: =N7 -> 11 | AE7: =COUNTIF(L21:L26,AD7) -> 0 | AF7: =AE7/(AG4-AE8) ->  | AG7: =IF(AF7=0,0,(AF7*((LOG(AF7))/LOG(2)))) ->  | AI7: =N7 -> 11 | AJ7: =COUNTIF(L27:L33,AI7) -> 0 | AK7: =AJ7/(AL4-AJ8) ->  | AL7: =IF(AK7=0,0,(AK7*((LOG(AK7))/LOG(2)))) ->  | AN7: =N7 -> 11 | AO7: =COUNTIF(L34:L40,AN7) -> 0 | AP7: =AO7/(AQ4-AO8) ->  | AQ7: =IF(AP7=0,0,(AP7*((LOG(AP7))/LOG(2)))) ->  | AS7: =N7 -> 11 | AT7: =COUNTIF(L41:L47,AS7) -> 0 | AU7: =AT7/(AV4-AT8) ->  | AV7: =IF(AU7=0,0,(AU7*((LOG(AU7))/LOG(2)))) -> 
A8: 11 | B8: 104 | C8: 21 | D8: 115 | K8: 0 | L8: 12 | N8: 12 | O8: =COUNTIF($L$7:$L$500,N8) -> 40 | P8: =O8/$Q$4 -> 0.9756097561 | Q8: =IF(P8=0,0,(P8*((LOG(P8))/LOG(2)))) -> -0.03475503388 | T8: =N8 -> 12 | U8: =COUNTIF(L7:L13,T8) -> 6 | Y8: =N8 -> 12 | Z8: =COUNTIF(L14:L20,Y8) -> 7 | AD8: =N8 -> 12 | AE8: =COUNTIF(L21:L26,AD8) -> 6 | AI8: =N8 -> 12 | AJ8: =COUNTIF(L27:L33,AI8) -> 7 | AN8: =N8 -> 12 | AO8: =COUNTIF(L34:L40,AN8) -> 7 | AS8: =N8 -> 12 | AT8: =COUNTIF(L41:L47,AS8) -> 7
A9: 22 | B9: 207 | C9: 14 | D9: 224 | K9: 0 | L9: 21 | N9: 21 | O9: =COUNTIF($L$7:$L$500,N9) -> 1 | P9: =O9/$Q$4 -> 0.0243902439 | Q9: =IF(P9=0,0,(P9*((LOG(P9))/LOG(2)))) -> -0.1306720001 | T9: =N9 -> 21 | U9: =COUNTIF(L7:L13,T9) -> 1 | V9: =U9/(W4-U8) -> 1 | W9: =IF(V9=0,0,(V9*((LOG(V9))/LOG(2)))) -> 0 | Y9: =N9 -> 21 | Z9: =COUNTIF(L14:L20,Y9) -> 0 | AA9: =Z9/(AB4-Z8) ->  | AB9: =IF(AA9=0,0,(AA9*((LOG(AA9))/LOG(2)))) ->  | AD9: =N9 -> 21 | AE9: =COUNTIF(L21:L26,AD9) -> 0 | AF9: =AE9/(AG4-AE8) ->  | AG9: =IF(AF9=0,0,(AF9*((LOG(AF9))/LOG(2)))) ->  | AI9: =N9 -> 21 | AJ9: =COUNTIF(L27:L33,AI9) -> 0 | AK9: =AJ9/(AL4-AJ8) ->  | AL9: =IF(AK9=0,0,(AK9*((LOG(AK9))/LOG(2)))) ->  | AN9: =N9 -> 21 | AO9: =COUNTIF(L34:L40,AN9) -> 0 | AP9: =AO9/(AQ4-AO8) ->  | AQ9: =IF(AP9=0,0,(AP9*((LOG(AP9))/LOG(2)))) ->  | AS9: =N9 -> 21 | AT9: =COUNTIF(L41:L47,AS9) -> 0 | AU9: =AT9/(AV4-AT8) ->  | AV9: =IF(AU9=0,0,(AU9*((LOG(AU9))/LOG(2)))) -> 
A10: 11 | B10: 320 | C10: 21 | D10: 331 | K10: 0 | L10: 12 | N10: 22 | O10: =COUNTIF($L$7:$L$500,N10) -> 0 | P10: =O10/$Q$4 -> 0 | Q10: =IF(P10=0,0,(P10*((LOG(P10))/LOG(2)))) -> 0 | T10: =N10 -> 22 | U10: =COUNTIF(L7:L13,T10) -> 0 | V10: =U10/(W4-U8) -> 0 | W10: =IF(V10=0,0,(V10*((LOG(V10))/LOG(2)))) -> 0 | Y10: =N10 -> 22 | Z10: =COUNTIF(L14:L20,Y10) -> 0 | AA10: =Z10/(AB4-Z8) ->  | AB10: =IF(AA10=0,0,(AA10*((LOG(AA10))/LOG(2)))) ->  | AD10: =N10 -> 22 | AE10: =COUNTIF(L21:L26,AD10) -> 0 | AF10: =AE10/(AG4-AE8) ->  | AG10: =IF(AF10=0,0,(AF10*((LOG(AF10))/LOG(2)))) ->  | AI10: =N10 -> 22 | AJ10: =COUNTIF(L27:L33,AI10) -> 0 | AK10: =AJ10/(AL4-AJ8) ->  | AL10: =IF(AK10=0,0,(AK10*((LOG(AK10))/LOG(2)))) ->  | AN10: =N10 -> 22 | AO10: =COUNTIF(L34:L40,AN10) -> 0 | AP10: =AO10/(AQ4-AO8) ->  | AQ10: =IF(AP10=0,0,(AP10*((LOG(AP10))/LOG(2)))) ->  | AS10: =N10 -> 22 | AT10: =COUNTIF(L41:L47,AS10) -> 0 | AU10: =AT10/(AV4-AT8) ->  | AV10: =IF(AU10=0,0,(AU10*((LOG(AU10))/LOG(2)))) -> 
A11: 11 | B11: 419 | C11: 21 | D11: 430 | K11: 0 | L11: 12 | T11: =N11 -> 0 | U11: =COUNTIF(L7:L13,T11) -> 0 | V11: =U11/(W4-U8) -> 0 | W11: =IF(V11=0,0,(V11*((LOG(V11))/LOG(2)))) -> 0 | Y11: =N11 -> 0 | Z11: =COUNTIF(L14:L20,Y11) -> 0 | AA11: =Z11/(AB4-Z8) ->  | AB11: =IF(AA11=0,0,(AA11*((LOG(AA11))/LOG(2)))) ->  | AD11: =N11 -> 0 | AE11: =COUNTIF(L21:L26,AD11) -> 0 | AF11: =AE11/(AG4-AE8) ->  | AG11: =IF(AF11=0,0,(AF11*((LOG(AF11))/LOG(2)))) ->  | AI11: =N11 -> 0 | AJ11: =COUNTIF(L27:L33,AI11) -> 0 | AK11: =AJ11/(AL4-AJ8) ->  | AL11: =IF(AK11=0,0,(AK11*((LOG(AK11))/LOG(2)))) ->  | AN11: =N11 -> 0 | AO11: =COUNTIF(L34:L40,AN11) -> 0 | AP11: =AO11/(AQ4-AO8) ->  | AQ11: =IF(AP11=0,0,(AP11*((LOG(AP11))/LOG(2)))) ->  | AS11: =N11 -> 0 | AT11: =COUNTIF(L41:L47,AS11) -> 0 | AU11: =AT11/(AV4-AT8) ->  | AV11: =IF(AU11=0,0,(AU11*((LOG(AU11))/LOG(2)))) -> 
A12: 11 | B12: 515 | C12: 21 | D12: 525 | K12: 0 | L12: 12 | T12: =N12 -> 0 | U12: =COUNTIF(L7:L13,T12) -> 0 | V12: =U12/(W4-U8) -> 0 | W12: =IF(V12=0,0,(V12*((LOG(V12))/LOG(2)))) -> 0 | Y12: =N12 -> 0 | Z12: =COUNTIF(L14:L20,Y12) -> 0 | AA12: =Z12/(AB4-Z8) ->  | AB12: =IF(AA12=0,0,(AA12*((LOG(AA12))/LOG(2)))) ->  | AD12: =N12 -> 0 | AE12: =COUNTIF(L21:L26,AD12) -> 0 | AF12: =AE12/(AG4-AE8) ->  | AG12: =IF(AF12=0,0,(AF12*((LOG(AF12))/LOG(2)))) ->  | AI12: =N12 -> 0 | AJ12: =COUNTIF(L27:L33,AI12) -> 0 | AK12: =AJ12/(AL4-AJ8) ->  | AL12: =IF(AK12=0,0,(AK12*((LOG(AK12))/LOG(2)))) ->  | AN12: =N12 -> 0 | AO12: =COUNTIF(L34:L40,AN12) -> 0 | AP12: =AO12/(AQ4-AO8) ->  | AQ12: =IF(AP12=0,0,(AP12*((LOG(AP12))/LOG(2)))) ->  | AS12: =N12 -> 0 | AT12: =COUNTIF(L41:L47,AS12) -> 0 | AU12: =AT12/(AV4-AT8) ->  | AV12: =IF(AU12=0,0,(AU12*((LOG(AU12))/LOG(2)))) -> 
A13: 11 | B13: 610 | C13: 21 | D13: 622 | K13: 0 | L13: 12 | T13: =N13 -> 0 | U13: =COUNTIF(L7:L13,T13) -> 0 | V13: =U13/(W4-U8) -> 0 | W13: =IF(V13=0,0,(V13*((LOG(V13))/LOG(2)))) -> 0 | Y13: =N13 -> 0 | Z13: =COUNTIF(L14:L20,Y13) -> 0 | AA13: =Z13/(AB4-Z8) ->  | AB13: =IF(AA13=0,0,(AA13*((LOG(AA13))/LOG(2)))) ->  | AD13: =N13 -> 0 | AE13: =COUNTIF(L21:L26,AD13) -> 0 | AF13: =AE13/(AG4-AE8) ->  | AG13: =IF(AF13=0,0,(AF13*((LOG(AF13))/LOG(2)))) ->  | AI13: =N13 -> 0 | AJ13: =COUNTIF(L27:L33,AI13) -> 0 | AK13: =AJ13/(AL4-AJ8) ->  | AL13: =IF(AK13=0,0,(AK13*((LOG(AK13))/LOG(2)))) ->  | AN13: =N13 -> 0 | AO13: =COUNTIF(L34:L40,AN13) -> 0 | AP13: =AO13/(AQ4-AO8) ->  | AQ13: =IF(AP13=0,0,(AP13*((LOG(AP13))/LOG(2)))) ->  | AS13: =N13 -> 0 | AT13: =COUNTIF(L41:L47,AS13) -> 0 | AU13: =AT13/(AV4-AT8) ->  | AV13: =IF(AU13=0,0,(AU13*((LOG(AU13))/LOG(2)))) -> 
A14: 11 | B14: 707 | C14: 21 | D14: 718 | K14: 0 | L14: 12 | T14: =N14 -> 0 | U14: =COUNTIF(L7:L13,T14) -> 0 | V14: =U14/(W4-U8) -> 0 | W14: =IF(V14=0,0,(V14*((LOG(V14))/LOG(2)))) -> 0 | Y14: =N14 -> 0 | Z14: =COUNTIF(L14:L20,Y14) -> 0 | AA14: =Z14/(AB4-Z8) ->  | AB14: =IF(AA14=0,0,(AA14*((LOG(AA14))/LOG(2)))) ->  | AD14: =N14 -> 0 | AE14: =COUNTIF(L21:L26,AD14) -> 0 | AF14: =AE14/(AG4-AE8) ->  | AG14: =IF(AF14=0,0,(AF14*((LOG(AF14))/LOG(2)))) ->  | AI14: =N14 -> 0 | AJ14: =COUNTIF(L27:L33,AI14) -> 0 | AK14: =AJ14/(AL4-AJ8) ->  | AL14: =IF(AK14=0,0,(AK14*((LOG(AK14))/LOG(2)))) ->  | AN14: =N14 -> 0 | AO14: =COUNTIF(L34:L40,AN14) -> 0 | AP14: =AO14/(AQ4-AO8) ->  | AQ14: =IF(AP14=0,0,(AP14*((LOG(AP14))/LOG(2)))) ->  | AS14: =N14 -> 0 | AT14: =COUNTIF(L41:L47,AS14) -> 0 | AU14: =AT14/(AV4-AT8) ->  | AV14: =IF(AU14=0,0,(AU14*((LOG(AU14))/LOG(2)))) -> 
A15: 11 | B15: 804 | C15: 21 | D15: 814 | K15: 0 | L15: 12 | P15: =SUM(P7:P14) -> 1 | Q15: =-SUM(Q7:Q14) -> 0.165427034 | V15: =SUM(V7:V14) -> 1 | W15: =-SUM(W7:W14) -> 0 | AA15: =SUM(AA7:AA14) ->  | AB15: =-SUM(AB7:AB14) ->  | AF15: =SUM(AF7:AF14) ->  | AG15: =-SUM(AG7:AG14) ->  | AK15: =SUM(AK7:AK14) ->  | AL15: =-SUM(AL7:AL14) ->  | AP15: =SUM(AP7:AP14) ->  | AQ15: =-SUM(AQ7:AQ14) ->  | AU15: =SUM(AU7:AU14) ->  | AV15: =-SUM(AV7:AV14) -> 
A16: 11 | B16: 899 | C16: 21 | D16: 911 | K16: 0 | L16: 12 | P16: U= | Q16: =Q15/(LOG(Q4)/LOG(2)) -> 0.03087735478 | V16: U1= | W16: =W15/(LOG(W4)/LOG(2)) -> 0 | AA16: U2= | AB16: =AB15/(LOG(AB4)/LOG(2)) ->  | AF16: U3= | AG16: =AG15/(LOG(AG4)/LOG(2)) ->  | AK16: U4= | AL16: =AL15/(LOG(AL4)/LOG(2)) ->  | AP16: U5= | AQ16: =AQ15/(LOG(AQ4)/LOG(2)) ->  | AU16: U6= | AV16: =AV15/(LOG(AV4)/LOG(2)) -> 
A17: 11 | B17: 998 | C17: 21 | D17: 1009 | K17: 0 | L17: 12
A18: 11 | B18: 1094 | C18: 21 | D18: 1107 | K18: 0 | L18: 12
A19: 11 | B19: 1197 | C19: 21 | D19: 1209 | K19: 0 | L19: 12 | N19: Total Target Seq
A20: 11 | B20: 1298 | C20: 21 | D20: 1310 | K20: 0 | L20: 12 | N20: =COUNTIF(L7:L47,G3) -> 40 | P20: 7 | Q20: 7 | R20: 6 | S20: 7 | T20: 7 | U20: 7
A21: 11 | B21: 1396 | C21: 21 | D21: 1407 | K21: 0 | L21: 12 | P21: % of reinforcement given in 6 equal intervals based on number of trials
A22: 11 | B22: 1493 | C22: 21 | D22: 1505 | K22: 0 | L22: 12 | P22: %_1 | Q22: %_2 | R22: %_3 | S22: %_4 | T22: %_5 | U22: %_6
A23: 11 | B23: 1590 | C23: 21 | D23: 1601 | K23: 0 | L23: 12 | O23: target sequence | P23: =$G$3 -> 12 | Q23: =$G$3 -> 12 | R23: =$G$3 -> 12 | S23: =$G$3 -> 12 | T23: =$G$3 -> 12 | U23: =$G$3 -> 12
A24: 11 | B24: 1686 | C24: 21 | D24: 1698 | K24: 0 | L24: 12 | O24: total reinforcement | P24: =U8 -> 6 | Q24: =Z8 -> 7 | R24: =AE8 -> 6 | S24: =AJ8 -> 7 | T24: =AO8 -> 7 | U24: =AT8 -> 7
A25: 11 | B25: 1784 | C25: 21 | D25: 1795 | K25: 0 | L25: 12 | O25: % target
A26: 11 | B26: 1882 | C26: 21 | D26: 1897 | K26: 0 | L26: 12 | O26: CCRF
A27: 11 | B27: 1985 | C27: 21 | D27: 1998 | K27: 0 | L27: 12 | O27: % CCRf
A28: 11 | B28: 2084 | C28: 21 | D28: 2095 | K28: 0 | L28: 12 | O28: average response rate | P28: =D13/P20 -> 88.85714286 | Q28: =(D20-D13)/Q20 -> 98.28571429 | R28: =(D26-D20)/R20 -> 97.83333333 | S28: =(D33-D26)/S20 -> 97.71428571 | T28: =(D40-D33)/T20 -> 98.14285714 | U28: =(D47-D40)/U20 -> 96.42857143
A29: 11 | B29: 2180 | C29: 21 | D29: 2191 | K29: 0 | L29: 12
A30: 11 | B30: 2277 | C30: 21 | D30: 2289 | K30: 0 | L30: 12
A31: 11 | B31: 2374 | C31: 21 | D31: 2385 | K31: 0 | L31: 12
A32: 11 | B32: 2472 | C32: 21 | D32: 2481 | K32: 0 | L32: 12
A33: 11 | B33: 2567 | C33: 21 | D33: 2581 | K33: 0 | L33: 12
A34: 11 | B34: 2667 | C34: 21 | D34: 2677 | K34: 0 | L34: 12
A35: 11 | B35: 2764 | C35: 21 | D35: 2775 | K35: 0 | L35: 12
A36: 11 | B36: 2859 | C36: 21 | D36: 2872 | K36: 0 | L36: 12
A37: 11 | B37: 2958 | C37: 21 | D37: 2968 | K37: 0 | L37: 12
A38: 11 | B38: 3054 | C38: 21 | D38: 3064 | K38: 0 | L38: 12
A39: 11 | B39: 3149 | C39: 21 | D39: 3160 | K39: 0 | L39: 12
A40: 11 | B40: 3255 | C40: 21 | D40: 3268 | K40: 0 | L40: 12
A41: 11 | B41: 3354 | C41: 21 | D41: 3366 | K41: 0 | L41: 12
A42: 11 | B42: 3451 | C42: 21 | D42: 3462 | K42: 0 | L42: 12
A43: 11 | B43: 3548 | C43: 21 | D43: 3557 | K43: 0 | L43: 12
A44: 11 | B44: 3643 | C44: 21 | D44: 3655 | K44: 0 | L44: 12
A45: 11 | B45: 3739 | C45: 21 | D45: 3750 | K45: 0 | L45: 12
A46: 11 | B46: 3836 | C46: 21 | D46: 3847 | K46: 0 | L46: 12
A47: 11 | B47: 3931 | C47: 21 | D47: 3943 | K47: 1 | L47: 12

Sheet !MA01830.104
A1: Report for:!MA01830.104
A2: Date: | B2: <date>
A3: Hen: | B3: <hen> | F3: Correct Sequence | G3: =Start!J2 -> 12 | P3: Total Sequences in Data | Q3: =4994-COUNTBLANK(L7:L5000) -> 46 | V3: Total Sequences in Block Data | W3: =COUNTA(L7:L14) -> 8 | AA3: Total Sequences in Block Data | AB3: =COUNTA(L15:L21) -> 7 | AF3: Total Sequences in Block Data | AG3: =COUNTA(L22:L29) -> 8 | AK3: Total Sequences in Block Data | AL3: =COUNTA(L30:L37) -> 8 | AP3: Total Sequences in Block Data | AQ3: =COUNTA(L38:L44) -> 7 | AU3: Total Sequences in Block Data | AV3: =COUNTA(L45:L52) -> 8
P4: Total Sequences in Summary | Q4: =SUM(O7:O14) -> 46 | V4: Total Sequences in Block Summary | W4: =SUM(U7:U14) -> 8 | AA4: Total Sequences in Block Summary | AB4: =SUM(Z7:Z14) -> 7 | AF4: Total Sequences in Block Summary | AG4: =SUM(AE7:AE14) -> 8 | AK4: Total Sequences in Block Summary | AL4: =SUM(AJ7:AJ14) -> 8 | AP4: Total Sequences in Block Summary | AQ4: =SUM(AO7:AO14) -> 7 | AU4: Total Sequences in Block Summary | AV4: =SUM(AT7:AT14) -> 8
T5: Block 1 | Y5: Block 2 | AD5: Block 3 | AI5: Block 4 | AN5: Block 5 | AS5: Block 6
A6: Sequence Component 1 | B6: Time 1 | C6: Sequence Component 2 | D6: Time 2 | E6: Sequence Component 3 | F6: Time 3 | G6: Sequence Component 4 | H6: Time 4 | I6: Sequence Component 5 | J6: Time 5 | K6: Correct? 0=No 1=Yes | L6: Sequence | N6: Frequency | P6: Relative Frequency | Q6: Variability | T6: Frequency | V6: Relative Frequency | W6: Variability | Y6: Frequency | AA6: Relative Frequency | AB6: Variability | AD6: Frequency | AF6: Relative Frequency | AG6: Variability | AI6: Frequency | AK6: Relative Frequency | AL6: Variability | AN6: Frequency | AP6: Relative Frequency | AQ6: Variability | AS6: Frequency | AU6: Relative Frequency | AV6: Variability
A7: 11 | B7: 9 | C7: 21 | D7: 17 | K7: 0 | L7: 12 | N7: 11 | O7: =COUNTIF($L$7:$L$500,N7) -> 2 | P7: =O7/$Q$4 -> 0.04347826087 | Q7: =IF(P7=0,0,(P7*((LOG(P7))/LOG(2)))) -> -0.1966766068 | T7: =N7 -> 11 | U7: =COUNTIF(L7:L14,T7) -> 0 | V7: =U7/(W4-U8) -> 0 | W7: =IF(V7=0,0,(V7*((LOG(V7))/LOG(2)))) -> 0 | Y7: =N7 -> 11 | Z7: =COUNTIF(L15:L21,Y7) -> 0 | AA7: =Z7/(AB4-Z8) ->  | AB7: =IF(AA7=0,0,(AA7*((LOG(AA7))/LOG(2)))) ->  | AD7: =N7 -> 11 | AE7: =COUNTIF(L22:L29,AD7) -> 0 | AF7: =AE7/(AG4-AE8) -> 0 | AG7: =IF(AF7=0,0,(AF7*((LOG(AF7))/LOG(2)))) -> 0 | AI7: =N7 -> 11 | AJ7: =COUNTIF(L30:L37,AI7) -> 0 | AK7: =AJ7/(AL4-AJ8) -> 0 | AL7: =IF(AK7=0,0,(AK7*((LOG(AK7))/LOG(2)))) -> 0 | AN7: =N7 -> 11 | AO7: =COUNTIF(L38:L44,AN7) -> 1 | AP7: =AO7/(AQ4-AO8) -> 0.5 | AQ7: =IF(AP7=0,0,(AP7*((LOG(AP7))/LOG(2)))) -> -0.5 | AS7: =N7 -> 11 | AT7: =COUNTIF(L45:L52,AS7) -> 1 | AU7: =AT7/(AV4-AT8) -> 1 | AV7: =IF(AU7=0,0,(AU7*((LOG(AU7))/LOG(2)))) -> 0
A8: 11 | B8: 112 | C8: 21 | D8: 122 | K8: 0 | L8: 12 | N8: 12 | O8: =COUNTIF($L$7:$L$500,N8) -> 40 | P8: =O8/$Q$4 -> 0.8695652174 | Q8: =IF(P8=0,0,(P8*((LOG(P8))/LOG(2)))) -> -0.1753337923 | T8: =N8 -> 12 | U8: =COUNTIF(L7:L14,T8) -> 7 | Y8: =N8 -> 12 | Z8: =COUNTIF(L15:L21,Y8) -> 7 | AD8: =N8 -> 12 | AE8: =COUNTIF(L22:L29,AD8) -> 7 | AI8: =N8 -> 12 | AJ8: =COUNTIF(L30:L37,AI8) -> 7 | AN8: =N8 -> 12 | AO8: =COUNTIF(L38:L44,AN8) -> 5 | AS8: =N8 -> 12 | AT8: =COUNTIF(L45:L52,AS8) -> 7
A9: 11 | B9: 209 | C9: 21 | D9: 226 | K9: 0 | L9: 12 | N9: 21 | O9: =COUNTIF($L$7:$L$500,N9) -> 2 | P9: =O9/$Q$4 -> 0.04347826087 | Q9: =IF(P9=0,0,(P9*((LOG(P9))/LOG(2)))) -> -0.1966766068 | T9: =N9 -> 21 | U9: =COUNTIF(L7:L14,T9) -> 1 | V9: =U9/(W4-U8) -> 1 | W9: =IF(V9=0,0,(V9*((LOG(V9))/LOG(2)))) -> 0 | Y9: =N9 -> 21 | Z9: =COUNTIF(L15:L21,Y9) -> 0 | AA9: =Z9/(AB4-Z8) ->  | AB9: =IF(AA9=0,0,(AA9*((LOG(AA9))/LOG(2)))) ->  | AD9: =N9 -> 21 | AE9: =COUNTIF(L22:L29,AD9) -> 0 | AF9: =AE9/(AG4-AE8) -> 0 | AG9: =IF(AF9=0,0,(AF9*((LOG(AF9))/LOG(2)))) -> 0 | AI9: =N9 -> 21 | AJ9: =COUNTIF(L30:L37,AI9) -> 1 | AK9: =AJ9/(AL4-AJ8) -> 1 | AL9: =IF(AK9=0,0,(AK9*((LOG(AK9))/LOG(2)))) -> 0 | AN9: =N9 -> 21 | AO9: =COUNTIF(L38:L44,AN9) -> 0 | AP9: =AO9/(AQ4-AO8) -> 0 | AQ9: =IF(AP9=0,0,(AP9*((LOG(AP9))/LOG(2)))) -> 0 | AS9: =N9 -> 21 | AT9: =COUNTIF(L45:L52,AS9) -> 0 | AU9: =AT9/(AV4-AT8) -> 0 | AV9: =IF(AU9=0,0,(AU9*((LOG(AU9))/LOG(2)))) -> 0
A10: 22 | B10: 324 | C10: 14 | D10: 345 | K10: 0 | L10: 21 | N10: 22 | O10: =COUNTIF($L$7:$L$500,N10) -> 2 | P10: =O10/$Q$4 -> 0.04347826087 | Q10: =IF(P10=0,0,(P10*((LOG(P10))/LOG(2)))) -> -0.1966766068 | T10: =N10 -> 22 | U10: =COUNTIF(L7:L14,T10) -> 0 | V10: =U10/(W4-U8) -> 0 | W10: =IF(V10=0,0,(V10*((LOG(V10))/LOG(2)))) -> 0 | Y10: =N10 -> 22 | Z10: =COUNTIF(L15:L21,Y10) -> 0 | AA10: =Z10/(AB4-Z8) ->  | AB10: =IF(AA10=0,0,(AA10*((LOG(AA10))/LOG(2)))) ->  | AD10: =N10 -> 22 | AE10: =COUNTIF(L22:L29,AD10) -> 1 | AF10: =AE10/(AG4-AE8) -> 1 | AG10: =IF(AF10=0,0,(AF10*((LOG(AF10))/LOG(2)))) -> 0 | AI10: =N10 -> 22 | AJ10: =COUNTIF(L30:L37,AI10) -> 0 | AK10: =AJ10/(AL4-AJ8) -> 0 | AL10: =IF(AK10=0,0,(AK10*((LOG(AK10))/LOG(2)))) -> 0 | AN10: =N10 -> 22 | AO10: =COUNTIF(L38:L44,AN10) -> 1 | AP10: =AO10/(AQ4-AO8) -> 0.5 | AQ10: =IF(AP10=0,0,(AP10*((LOG(AP10))/LOG(2)))) -> -0.5 | AS10: =N10 -> 22 | AT10: =COUNTIF(L45:L52,AS10) -> 0 | AU10: =AT10/(AV4-AT8) -> 0 | AV10: =IF(AU10=0,0,(AU10*((LOG(AU10))/LOG(2)))) -> 0
A11: 11 | B11: 442 | C11: 21 | D11: 454 | K11: 0 | L11: 12 | T11: =N11 -> 0 | U11: =COUNTIF(L7:L14,T11) -> 0 | V11: =U11/(W4-U8) -> 0 | W11: =IF(V11=0,0,(V11*((LOG(V11))/LOG(2)))) -> 0 | Y11: =N11 -> 0 | Z11: =COUNTIF(L15:L21,Y11) -> 0 | AA11: =Z11/(AB4-Z8) ->  | AB11: =IF(AA11=0,0,(AA11*((LOG(AA11))/LOG(2)))) ->  | AD11: =N11 -> 0 | AE11: =COUNTIF(L22:L29,AD11) -> 0 | AF11: =AE11/(AG4-AE8) -> 0 | AG11: =IF(AF11=0,0,(AF11*((LOG(AF11))/LOG(2)))) -> 0 | AI11: =N11 -> 0 | AJ11: =COUNTIF(L30:L37,AI11) -> 0 | AK11: =AJ11/(AL4-AJ8) -> 0 | AL11: =IF(AK11=0,0,(AK11*((LOG(AK11))/LOG(2)))) -> 0 | AN11: =N11 -> 0 | AO11: =COUNTIF(L38:L44,AN11) -> 0 | AP11: =AO11/(AQ4-AO8) -> 0 | AQ11: =IF(AP11=0,0,(AP11*((LOG(AP11))/LOG(2)))) -> 0 | AS11: =N11 -> 0 | AT11: =COUNTIF(L45:L52,AS11) -> 0 | AU11: =AT11/(AV4-AT8) -> 0 | AV11: =IF(AU11=0,0,(AU11*((LOG(AU11))/LOG(2)))) -> 0
A12: 11 | B12: 542 | C12: 21 | D12: 555 | K12: 0 | L12: 12 | T12: =N12 -> 0 | U12: =COUNTIF(L7:L14,T12) -> 0 | V12: =U12/(W4-U8) -> 0 | W12: =IF(V12=0,0,(V12*((LOG(V12))/LOG(2)))) -> 0 | Y12: =N12 -> 0 | Z12: =COUNTIF(L15:L21,Y12) -> 0 | AA12: =Z12/(AB4-Z8) ->  | AB12: =IF(AA12=0,0,(AA12*((LOG(AA12))/LOG(2)))) ->  | AD12: =N12 -> 0 | AE12: =COUNTIF(L22:L29,AD12) -> 0 | AF12: =AE12/(AG4-AE8) -> 0 | AG12: =IF(AF12=0,0,(AF12*((LOG(AF12))/LOG(2)))) -> 0 | AI12: =N12 -> 0 | AJ12: =COUNTIF(L30:L37,AI12) -> 0 | AK12: =AJ12/(AL4-AJ8) -> 0 | AL12: =IF(AK12=0,0,(AK12*((LOG(AK12))/LOG(2)))) -> 0 | AN12: =N12 -> 0 | AO12: =COUNTIF(L38:L44,AN12) -> 0 | AP12: =AO12/(AQ4-AO8) -> 0 | AQ12: =IF(AP12=0,0,(AP12*((LOG(AP12))/LOG(2)))) -> 0 | AS12: =N12 -> 0 | AT12: =COUNTIF(L45:L52,AS12) -> 0 | AU12: =AT12/(AV4-AT8) -> 0 | AV12: =IF(AU12=0,0,(AU12*((LOG(AU12))/LOG(2)))) -> 0
A13: 11 | B13: 644 | C13: 21 | D13: 656 | K13: 0 | L13: 12 | T13: =N13 -> 0 | U13: =COUNTIF(L7:L14,T13) -> 0 | V13: =U13/(W4-U8) -> 0 | W13: =IF(V13=0,0,(V13*((LOG(V13))/LOG(2)))) -> 0 | Y13: =N13 -> 0 | Z13: =COUNTIF(L15:L21,Y13) -> 0 | AA13: =Z13/(AB4-Z8) ->  | AB13: =IF(AA13=0,0,(AA13*((LOG(AA13))/LOG(2)))) ->  | AD13: =N13 -> 0 | AE13: =COUNTIF(L22:L29,AD13) -> 0 | AF13: =AE13/(AG4-AE8) -> 0 | AG13: =IF(AF13=0,0,(AF13*((LOG(AF13))/LOG(2)))) -> 0 | AI13: =N13 -> 0 | AJ13: =COUNTIF(L30:L37,AI13) -> 0 | AK13: =AJ13/(AL4-AJ8) -> 0 | AL13: =IF(AK13=0,0,(AK13*((LOG(AK13))/LOG(2)))) -> 0 | AN13: =N13 -> 0 | AO13: =COUNTIF(L38:L44,AN13) -> 0 | AP13: =AO13/(AQ4-AO8) -> 0 | AQ13: =IF(AP13=0,0,(AP13*((LOG(AP13))/LOG(2)))) -> 0 | AS13: =N13 -> 0 | AT13: =COUNTIF(L45:L52,AS13) -> 0 | AU13: =AT13/(AV4-AT8) -> 0 | AV13: =IF(AU13=0,0,(AU13*((LOG(AU13))/LOG(2)))) -> 0
A14: 11 | B14: 745 | C14: 21 | D14: 757 | K14: 0 | L14: 12 | T14: =N14 -> 0 | U14: =COUNTIF(L7:L14,T14) -> 0 | V14: =U14/(W4-U8) -> 0 | W14: =IF(V14=0,0,(V14*((LOG(V14))/LOG(2)))) -> 0 | Y14: =N14 -> 0 | Z14: =COUNTIF(L15:L21,Y14) -> 0 | AA14: =Z14/(AB4-Z8) ->  | AB14: =IF(AA14=0,0,(AA14*((LOG(AA14))/LOG(2)))) ->  | AD14: =N14 -> 0 | AE14: =COUNTIF(L22:L29,AD14) -> 0 | AF14: =AE14/(AG4-AE8) -> 0 | AG14: =IF(AF14=0,0,(AF14*((LOG(AF14))/LOG(2)))) -> 0 | AI14: =N14 -> 0 | AJ14: =COUNTIF(L30:L37,AI14) -> 0 | AK14: =AJ14/(AL4-AJ8) -> 0 | AL14: =IF(AK14=0,0,(AK14*((LOG(AK14))/LOG(2)))) -> 0 | AN14: =N14 -> 0 | AO14: =COUNTIF(L38:L44,AN14) -> 0 | AP14: =AO14/(AQ4-AO8) -> 0 | AQ14: =IF(AP14=0,0,(AP14*((LOG(AP14))/LOG(2)))) -> 0 | AS14: =N14 -> 0 | AT14: =COUNTIF(L45:L52,AS14) -> 0 | AU14: =AT14/(AV4-AT8) -> 0 | AV14: =IF(AU14=0,0,(AU14*((LOG(AU14))/LOG(2)))) -> 0
A15: 11 | B15: 842 | C15: 21 | D15: 854 | K15: 0 | L15: 12 | P15: =SUM(P7:P14) -> 1 | Q15: =-SUM(Q7:Q14) -> 0.7653636127 | V15: =SUM(V7:V14) -> 1 | W15: =-SUM(W7:W14) -> 0 | AA15: =SUM(AA7:AA14) ->  | AB15: =-SUM(AB7:AB14) ->  | AF15: =SUM(AF7:AF14) -> 1 | AG15: =-SUM(AG7:AG14) -> 0 | AK15: =SUM(AK7:AK14) -> 1 | AL15: =-SUM(AL7:AL14) -> 0 | AP15: =SUM(AP7:AP14) -> 1 | AQ15: =-SUM(AQ7:AQ14) -> 1 | AU15: =SUM(AU7:AU14) -> 1 | AV15: =-SUM(AV7:AV14) -> 0
A16: 11 | B16: 944 | C16: 21 | D16: 956 | K16: 0 | L16: 12 | P16: U= | Q16: =Q15/(LOG(Q4)/LOG(2)) -> 0.1385634159 | V16: U1= | W16: =W15/(LOG(W4)/LOG(2)) -> 0 | AA16: U2= | AB16: =AB15/(LOG(AB4)/LOG(2)) ->  | AF16: U3= | AG16: =AG15/(LOG(AG4)/LOG(2)) -> 0 | AK16: U4= | AL16: =AL15/(LOG(AL4)/LOG(2)) -> 0 | AP16: U5= | AQ16: =AQ15/(LOG(AQ4)/LOG(2)) -> 0.3562071871 | AU16: U6= | AV16: =AV15/(LOG(AV4)/LOG(2)) -> 0
A17: 11 | B17: 1043 | C17: 21 | D17: 1056 | K17: 0 | L17: 12
A18: 11 | B18: 1145 | C18: 21 | D18: 1157 | K18: 0 | L18: 12
A19: 11 | B19: 1244 | C19: 21 | D19: 1254 | K19: 0 | L19: 12 | N19: Total Target Seq
A20: 11 | B20: 1345 | C20: 21 | D20: 1356 | K20: 0 | L20: 12 | N20: =COUNTIF(L7:L52,G3) -> 40 | P20: 8 | Q20: 7 | R20: 8 | S20: 8 | T20: 7 | U20: 8
A21: 11 | B21: 1443 | C21: 21 | D21: 1453 | K21: 0 | L21: 12 | P21: % of reinforcement given in 6 equal intervals based on number of trials
A22: 11 | B22: 1543 | C22: 21 | D22: 1553 | K22: 0 | L22: 12 | P22: %_1 | Q22: %_2 | R22: %_3 | S22: %_4 | T22: %_5 | U22: %_6
A23: 11 | B23: 1647 | C23: 21 | D23: 1657 | K23: 0 | L23: 12 | O23: target sequence | P23: =$G$3 -> 12 | Q23: =$G$3 -> 12 | R23: =$G$3 -> 12 | S23: =$G$3 -> 12 | T23: =$G$3 -> 12 | U23: =$G$3 -> 12
A24: 11 | B24: 1744 | C24: 21 | D24: 1754 | K24: 0 | L24: 12 | O24: total reinforcement | P24: =U8 -> 7 | Q24: =Z8 -> 7 | R24: =AE8 -> 7 | S24: =AJ8 -> 7 | T24: =AO8 -> 5 | U24: =AT8 -> 7
A25: 11 | B25: 1840 | C25: 21 | D25: 1852 | K25: 0 | L25: 12 | O25: % target
A26: 11 | B26: 1946 | C26: 21 | D26: 1960 | K26: 0 | L26: 12 | O26: CCRF
A27: 11 | B27: 2045 | C27: 21 | D27: 2056 | K27: 0 | L27: 12 | O27: % CCRf
A28: 22 | B28: 2157 | C28: 23 | D28: 2166 | K28: 0 | L28: 22 | O28: average response rate | P28: =D14/P20 -> 94.625 | Q28: =(D21-D14)/Q20 -> 99.42857143 | R28: =(D29-D21)/R20 -> 102.5 | S28: =(D37-D29)/S20 -> 101.75 | T28: =(D44-D37)/T20 -> 102 | U28: =(D52-D44)/U20 -> 103.625
A29: 11 | B29: 2262 | C29: 21 | D29: 2273 | K29: 0 | L29: 12
A30: 11 | B30: 2359 | C30: 21 | D30: 2369 | K30: 0 | L30: 12
A31: 22 | B31: 2471 | C31: 14 | D31: 2488 | K31: 0 | L31: 21
A32: 11 | B32: 2584 | C32: 21 | D32: 2597 | K32: 0 | L32: 12
A33: 11 | B33: 2683 | C33: 21 | D33: 2697 | K33: 0 | L33: 12
A34: 11 | B34: 2783 | C34: 21 | D34: 2794 | K34: 0 | L34: 12
A35: 11 | B35: 2880 | C35: 21 | D35: 2892 | K35: 0 | L35: 12
A36: 11 | B36: 2978 | C36: 21 | D36: 2989 | K36: 0 | L36: 12
A37: 11 | B37: 3074 | C37: 21 | D37: 3087 | K37: 0 | L37: 12
A38: 11 | B38: 3173 | C38: 21 | D38: 3185 | K38: 0 | L38: 12
A39: 11 | B39: 3270 | C39: 21 | D39: 3281 | K39: 0 | L39: 12
A40: 11 | B40: 3367 | C40: 21 | D40: 3378 | K40: 0 | L40: 12
A41: 11 | B41: 3472 | C41: 21 | D41: 3483 | K41: 0 | L41: 12
A42: 22 | B42: 3584 | C42: 23 | D42: 3593 | K42: 0 | L42: 22
A43: 11 | B43: 3690 | C43: 12 | D43: 3695 | K43: 0 | L43: 11
A44: 11 | B44: 3791 | C44: 21 | D44: 3801 | K44: 0 | L44: 12
A45: 11 | B45: 3886 | C45: 21 | D45: 3898 | K45: 0 | L45: 12
A46: 11 | B46: 3985 | C46: 21 | D46: 3996 | K46: 0 | L46: 12
A47: 11 | B47: 4081 | C47: 21 | D47: 4092 | K47: 0 | L47: 12
A48: 11 | B48: 4178 | C48: 21 | D48: 4190 | K48: 0 | L48: 12
A49: 11 | B49: 4277 | C49: 12 | D49: 4281 | K49: 0 | L49: 11
A50: 11 | B50: 4382 | C50: 21 | D50: 4392 | K50: 0 | L50: 12
A51: 11 | B51: 4482 | C51: 21 | D51: 4493 | K51: 0 | L51: 12
A52: 11 | B52: 4583 | C52: 21 | D52: 4630 | K52: 1 | L52: 12

Sheet !MA02920.104
A1: Report for:!MA02920.104
A2: Date: | B2: <date>
A3: Hen: | B3: <hen> | F3: Correct Sequence | G3: =Start!J2 -> 12 | P3: Total Sequences in Data | Q3: =4994-COUNTBLANK(L7:L5000) -> 45 | V3: Total Sequences in Block Data | W3: =COUNTA(L7:L14) -> 8 | AA3: Total Sequences in Block Data | AB3: =COUNTA(L15:L21) -> 7 | AF3: Total Sequences in Block Data | AG3: =COUNTA(L22:L29) -> 8 | AK3: Total Sequences in Block Data | AL3: =COUNTA(L30:L36) -> 7 | AP3: Total Sequences in Block Data | AQ3: =COUNTA(L37:L44) -> 8 | AU3: Total Sequences in Block Data | AV3: =COUNTA(L45:L51) -> 7
P4: Total Sequences in Summary | Q4: =SUM(O7:O14) -> 45 | V4: Total Sequences in Block Summary | W4: =SUM(U7:U14) -> 8 | AA4: Total Sequences in Block Summary | AB4: =SUM(Z7:Z14) -> 7 | AF4: Total Sequences in Block Summary | AG4: =SUM(AE7:AE14) -> 8 | AK4: Total Sequences in Block Summary | AL4: =SUM(AJ7:AJ14) -> 7 | AP4: Total Sequences in Block Summary | AQ4: =SUM(AO7:AO14) -> 8 | AU4: Total Sequences in Block Summary | AV4: =SUM(AT7:AT14) -> 7
T5: Block 1 | Y5: Block 2 | AD5: Block 3 | AI5: Block 4 | AN5: Block 5 | AS5: Block 6
A6: Sequence Component 1 | B6: Time 1 | C6: Sequence Component 2 | D6: Time 2 | E6: Sequence Component 3 | F6: Time 3 | G6: Sequence Component 4 | H6: Time 4 | I6: Sequence Component 5 | J6: Time 5 | K6: Correct? 0=No 1=Yes | L6: Sequence | N6: Frequency | P6: Relative Frequency | Q6: Variability | T6: Frequency | V6: Relative Frequency | W6: Variability | Y6: Frequency | AA6: Relative Frequency | AB6: Variability | AD6: Frequency | AF6: Relative Frequency | AG6: Variability | AI6: Frequency | AK6: Relative Frequency | AL6: Variability | AN6: Frequency | AP6: Relative Frequency | AQ6: Variability | AS6: Frequency | AU6: Relative Frequency | AV6: Variability
A7: 11 | B7: 7 | C7: 21 | D7: 15 | K7: 0 | L7: 12 | N7: 11 | O7: =COUNTIF($L$7:$L$500,N7) -> 0 | P7: =O7/$Q$4 -> 0 | Q7: =IF(P7=0,0,(P7*((LOG(P7))/LOG(2)))) -> 0 | T7: =N7 -> 11 | U7: =COUNTIF(L7:L14,T7) -> 0 | V7: =U7/(W4-U8) -> 0 | W7: =IF(V7=0,0,(V7*((LOG(V7))/LOG(2)))) -> 0 | Y7: =N7 -> 11 | Z7: =COUNTIF(L15:L21,Y7) -> 0 | AA7: =Z7/(AB4-Z8) -> 0 | AB7: =IF(AA7=0,0,(AA7*((LOG(AA7))/LOG(2)))) -> 0 | AD7: =N7 -> 11 | AE7: =COUNTIF(L22:L29,AD7) -> 0 | AF7: =AE7/(AG4-AE8) -> 0 | AG7: =IF(AF7=0,0,(AF7*((LOG(AF7))/LOG(2)))) -> 0 | AI7: =N7 -> 11 | AJ7: =COUNTIF(L30:L36,AI7) -> 0 | AK7: =AJ7/(AL4-AJ8) ->  | AL7: =IF(AK7=0,0,(AK7*((LOG(AK7))/LOG(2)))) ->  | AN7: =N7 -> 11 | AO7: =COUNTIF(L37:L44,AN7) -> 0 | AP7: =AO7/(AQ4-AO8) -> 0 | AQ7: =IF(AP7=0,0,(AP7*((LOG(AP7))/LOG(2)))) -> 0 | AS7: =N7 -> 11 | AT7: =COUNTIF(L45:L51,AS7) -> 0 | AU7: =AT7/(AV4-AT8) ->  | AV7: =IF(AU7=0,0,(AU7*((LOG(AU7))/LOG(2)))) -> 
A8: 11 | B8: 102 | C8: 21 | D8: 112 | K8: 0 | L8: 12 | N8: 12 | O8: =COUNTIF($L$7:$L$500,N8) -> 40 | P8: =O8/$Q$4 -> 0.8888888889 | Q8: =IF(P8=0,0,(P8*((LOG(P8))/LOG(2)))) -> -0.1510444457 | T8: =N8 -> 12 | U8: =COUNTIF(L7:L14,T8) -> 7 | Y8: =N8 -> 12 | Z8: =COUNTIF(L15:L21,Y8) -> 6 | AD8: =N8 -> 12 | AE8: =COUNTIF(L22:L29,AD8) -> 7 | AI8: =N8 -> 12 | AJ8: =COUNTIF(L30:L36,AI8) -> 7 | AN8: =N8 -> 12 | AO8: =COUNTIF(L37:L44,AN8) -> 6 | AS8: =N8 -> 12 | AT8: =COUNTIF(L45:L51,AS8) -> 7
A9: 11 | B9: 200 | C9: 21 | D9: 226 | K9: 0 | L9: 12 | N9: 21 | O9: =COUNTIF($L$7:$L$500,N9) -> 1 | P9: =O9/$Q$4 -> 0.02222222222 | Q9: =IF(P9=0,0,(P9*((LOG(P9))/LOG(2)))) -> -0.1220411799 | T9: =N9 -> 21 | U9: =COUNTIF(L7:L14,T9) -> 0 | V9: =U9/(W4-U8) -> 0 | W9: =IF(V9=0,0,(V9*((LOG(V9))/LOG(2)))) -> 0 | Y9: =N9 -> 21 | Z9: =COUNTIF(L15:L21,Y9) -> 0 | AA9: =Z9/(AB4-Z8) -> 0 | AB9: =IF(AA9=0,0,(AA9*((LOG(AA9))/LOG(2)))) -> 0 | AD9: =N9 -> 21 | AE9: =COUNTIF(L22:L29,AD9) -> 1 | AF9: =AE9/(AG4-AE8) -> 1 | AG9: =IF(AF9=0,0,(AF9*((LOG(AF9))/LOG(2)))) -> 0 | AI9: =N9 -> 21 | AJ9: =COUNTIF(L30:L36,AI9) -> 0 | AK9: =AJ9/(AL4-AJ8) ->  | AL9: =IF(AK9=0,0,(AK9*((LOG(AK9))/LOG(2)))) ->  | AN9: =N9 -> 21 | AO9: =COUNTIF(L37:L44,AN9) -> 0 | AP9: =AO9/(AQ4-AO8) -> 0 | AQ9: =IF(AP9=0,0,(AP9*((LOG(AP9))/LOG(2)))) -> 0 | AS9: =N9 -> 21 | AT9: =COUNTIF(L45:L51,AS9) -> 0 | AU9: =AT9/(AV4-AT8) ->  | AV9: =IF(AU9=0,0,(AU9*((LOG(AU9))/LOG(2)))) -> 
A10: 11 | B10: 332 | C10: 21 | D10: 345 | K10: 0 | L10: 12 | N10: 22 | O10: =COUNTIF($L$7:$L$500,N10) -> 4 | P10: =O10/$Q$4 -> 0.08888888889 | Q10: =IF(P10=0,0,(P10*((LOG(P10))/LOG(2)))) -> -0.3103869419 | T10: =N10 -> 22 | U10: =COUNTIF(L7:L14,T10) -> 1 | V10: =U10/(W4-U8) -> 1 | W10: =IF(V10=0,0,(V10*((LOG(V10))/LOG(2)))) -> 0 | Y10: =N10 -> 22 | Z10: =COUNTIF(L15:L21,Y10) -> 1 | AA10: =Z10/(AB4-Z8) -> 1 | AB10: =IF(AA10=0,0,(AA10*((LOG(AA10))/LOG(2)))) -> 0 | AD10: =N10 -> 22 | AE10: =COUNTIF(L22:L29,AD10) -> 0 | AF10: =AE10/(AG4-AE8) -> 0 | AG10: =IF(AF10=0,0,(AF10*((LOG(AF10))/LOG(2)))) -> 0 | AI10: =N10 -> 22 | AJ10: =COUNTIF(L30:L36,AI10) -> 0 | AK10: =AJ10/(AL4-AJ8) ->  | AL10: =IF(AK10=0,0,(AK10*((LOG(AK10))/LOG(2)))) ->  | AN10: =N10 -> 22 | AO10: =COUNTIF(L37:L44,AN10) -> 2 | AP10: =AO10/(AQ4-AO8) -> 1 | AQ10: =IF(AP10=0,0,(AP10*((LOG(AP10))/LOG(2)))) -> 0 | AS10: =N10 -> 22 | AT10: =COUNTIF(L45:L51,AS10) -> 0 | AU10: =AT10/(AV4-AT8) ->  | AV10: =IF(AU10=0,0,(AU10*((LOG(AU10))/LOG(2)))) -> 
A11: 11 | B11: 433 | C11: 21 | D11: 442 | K11: 0 | L11: 12 | T11: =N11 -> 0 | U11: =COUNTIF(L7:L14,T11) -> 0 | V11: =U11/(W4-U8) -> 0 | W11: =IF(V11=0,0,(V11*((LOG(V11))/LOG(2)))) -> 0 | Y11: =N11 -> 0 | Z11: =COUNTIF(L15:L21,Y11) -> 0 | AA11: =Z11/(AB4-Z8) -> 0 | AB11: =IF(AA11=0,0,(AA11*((LOG(AA11))/LOG(2)))) -> 0 | AD11: =N11 -> 0 | AE11: =COUNTIF(L22:L29,AD11) -> 0 | AF11: =AE11/(AG4-AE8) -> 0 | AG11: =IF(AF11=0,0,(AF11*((LOG(AF11))/LOG(2)))) -> 0 | AI11: =N11 -> 0 | AJ11: =COUNTIF(L30:L36,AI11) -> 0 | AK11: =AJ11/(AL4-AJ8) ->  | AL11: =IF(AK11=0,0,(AK11*((LOG(AK11))/LOG(2)))) ->  | AN11: =N11 -> 0 | AO11: =COUNTIF(L37:L44,AN11) -> 0 | AP11: =AO11/(AQ4-AO8) -> 0 | AQ11: =IF(AP11=0,0,(AP11*((LOG(AP11))/LOG(2)))) -> 0 | AS11: =N11 -> 0 | AT11: =COUNTIF(L45:L51,AS11) -> 0 | AU11: =AT11/(AV4-AT8) ->  | AV11: =IF(AU11=0,0,(AU11*((LOG(AU11))/LOG(2)))) -> 
A12: 11 | B12: 529 | C12: 21 | D12: 538 | K12: 0 | L12: 12 | T12: =N12 -> 0 | U12: =COUNTIF(L7:L14,T12) -> 0 | V12: =U12/(W4-U8) -> 0 | W12: =IF(V12=0,0,(V12*((LOG(V12))/LOG(2)))) -> 0 | Y12: =N12 -> 0 | Z12: =COUNTIF(L15:L21,Y12) -> 0 | AA12: =Z12/(AB4-Z8) -> 0 | AB12: =IF(AA12=0,0,(AA12*((LOG(AA12))/LOG(2)))) -> 0 | AD12: =N12 -> 0 | AE12: =COUNTIF(L22:L29,AD12) -> 0 | AF12: =AE12/(AG4-AE8) -> 0 | AG12: =IF(AF12=0,0,(AF12*((LOG(AF12))/LOG(2)))) -> 0 | AI12: =N12 -> 0 | AJ12: =COUNTIF(L30:L36,AI12) -> 0 | AK12: =AJ12/(AL4-AJ8) ->  | AL12: =IF(AK12=0,0,(AK12*((LOG(AK12))/LOG(2)))) ->  | AN12: =N12 -> 0 | AO12: =COUNTIF(L37:L44,AN12) -> 0 | AP12: =AO12/(AQ4-AO8) -> 0 | AQ12: =IF(AP12=0,0,(AP12*((LOG(AP12))/LOG(2)))) -> 0 | AS12: =N12 -> 0 | AT12: =COUNTIF(L45:L51,AS12) -> 0 | AU12: =AT12/(AV4-AT8) ->  | AV12: =IF(AU12=0,0,(AU12*((LOG(AU12))/LOG(2)))) -> 
A13: 11 | B13: 624 | C13: 21 | D13: 636 | K13: 0 | L13: 12 | T13: =N13 -> 0 | U13: =COUNTIF(L7:L14,T13) -> 0 | V13: =U13/(W4-U8) -> 0 | W13: =IF(V13=0,0,(V13*((LOG(V13))/LOG(2)))) -> 0 | Y13: =N13 -> 0 | Z13: =COUNTIF(L15:L21,Y13) -> 0 | AA13: =Z13/(AB4-Z8) -> 0 | AB13: =IF(AA13=0,0,(AA13*((LOG(AA13))/LOG(2)))) -> 0 | AD13: =N13 -> 0 | AE13: =COUNTIF(L22:L29,AD13) -> 0 | AF13: =AE13/(AG4-AE8) -> 0 | AG13: =IF(AF13=0,0,(AF13*((LOG(AF13))/LOG(2)))) -> 0 | AI13: =N13 -> 0 | AJ13: =COUNTIF(L30:L36,AI13) -> 0 | AK13: =AJ13/(AL4-AJ8) ->  | AL13: =IF(AK13=0,0,(AK13*((LOG(AK13))/LOG(2)))) ->  | AN13: =N13 -> 0 | AO13: =COUNTIF(L37:L44,AN13) -> 0 | AP13: =AO13/(AQ4-AO8) -> 0 | AQ13: =IF(AP13=0,0,(AP13*((LOG(AP13))/LOG(2)))) -> 0 | AS13: =N13 -> 0 | AT13: =COUNTIF(L45:L51,AS13) -> 0 | AU13: =AT13/(AV4-AT8) ->  | AV13: =IF(AU13=0,0,(AU13*((LOG(AU13))/LOG(2)))) -> 
A14: 22 | B14: 738 | C14: 23 | D14: 761 | K14: 0 | L14: 22 | T14: =N14 -> 0 | U14: =COUNTIF(L7:L14,T14) -> 0 | V14: =U14/(W4-U8) -> 0 | W14: =IF(V14=0,0,(V14*((LOG(V14))/LOG(2)))) -> 0 | Y14: =N14 -> 0 | Z14: =COUNTIF(L15:L21,Y14) -> 0 | AA14: =Z14/(AB4-Z8) -> 0 | AB14: =IF(AA14=0,0,(AA14*((LOG(AA14))/LOG(2)))) -> 0 | AD14: =N14 -> 0 | AE14: =COUNTIF(L22:L29,AD14) -> 0 | AF14: =AE14/(AG4-AE8) -> 0 | AG14: =IF(AF14=0,0,(AF14*((LOG(AF14))/LOG(2)))) -> 0 | AI14: =N14 -> 0 | AJ14: =COUNTIF(L30:L36,AI14) -> 0 | AK14: =AJ14/(AL4-AJ8) ->  | AL14: =IF(AK14=0,0,(AK14*((LOG(AK14))/LOG(2)))) ->  | AN14: =N14 -> 0 | AO14: =COUNTIF(L37:L44,AN14) -> 0 | AP14: =AO14/(AQ4-AO8) -> 0 | AQ14: =IF(AP14=0,0,(AP14*((LOG(AP14))/LOG(2)))) -> 0 | AS14: =N14 -> 0 | AT14: =COUNTIF(L45:L51,AS14) -> 0 | AU14: =AT14/(AV4-AT8) ->  | AV14: =IF(AU14=0,0,(AU14*((LOG(AU14))/LOG(2)))) -> 
A15: 11 | B15: 857 | C15: 21 | D15: 867 | K15: 0 | L15: 12 | P15: =SUM(P7:P14) -> 1 | Q15: =-SUM(Q7:Q14) -> 0.5834725675 | V15: =SUM(V7:V14) -> 1 | W15: =-SUM(W7:W14) -> 0 | AA15: =SUM(AA7:AA14) -> 1 | AB15: =-SUM(AB7:AB14) -> 0 | AF15: =SUM(AF7:AF14) -> 1 | AG15: =-SUM(AG7:AG14) -> 0 | AK15: =SUM(AK7:AK14) ->  | AL15: =-SUM(AL7:AL14) ->  | AP15: =SUM(AP7:AP14) -> 1 | AQ15: =-SUM(AQ7:AQ14) -> 0 | AU15: =SUM(AU7:AU14) ->  | AV15: =-SUM(AV7:AV14) -> 
A16: 22 | B16: 968 | C16: 23 | D16: 983 | K16: 0 | L16: 22 | P16: U= | Q16: =Q15/(LOG(Q4)/LOG(2)) -> 0.1062432948 | V16: U1= | W16: =W15/(LOG(W4)/LOG(2)) -> 0 | AA16: U2= | AB16: =AB15/(LOG(AB4)/LOG(2)) -> 0 | AF16: U3= | AG16: =AG15/(LOG(AG4)/LOG(2)) -> 0 | AK16: U4= | AL16: =AL15/(LOG(AL4)/LOG(2)) ->  | AP16: U5= | AQ16: =AQ15/(LOG(AQ4)/LOG(2)) -> 0 | AU16: U6= | AV16: =AV15/(LOG(AV4)/LOG(2)) -> 
A17: 11 | B17: 1082 | C17: 21 | D17: 1091 | K17: 0 | L17: 12
A18: 11 | B18: 1180 | C18: 21 | D18: 1190 | K18: 0 | L18: 12
A19: 11 | B19: 1275 | C19: 21 | D19: 1288 | K19: 0 | L19: 12 | N19: Total Target Seq
A20: 11 | B20: 1375 | C20: 21 | D20: 1387 | K20: 0 | L20: 12 | N20: =COUNTIF(L7:L51,G3) -> 40 | P20: 8 | Q20: 7 | R20: 8 | S20: 7 | T20: 8 | U20: 7
A21: 11 | B21: 1473 | C21: 21 | D21: 1483 | K21: 0 | L21: 12 | P21: % of reinforcement given in 6 equal intervals based on number of trials
A22: 22 | B22: 1584 | C22: 14 | D22: 1601 | K22: 0 | L22: 21 | P22: %_1 | Q22: %_2 | R22: %_3 | S22: %_4 | T22: %_5 | U22: %_6
A23: 11 | B23: 1697 | C23: 21 | D23: 1707 | K23: 0 | L23: 12 | O23: target sequence | P23: =$G$3 -> 12 | Q23: =$G$3 -> 12 | R23: =$G$3 -> 12 | S23: =$G$3 -> 12 | T23: =$G$3 -> 12 | U23: =$G$3 -> 12
A24: 11 | B24: 1792 | C24: 21 | D24: 1806 | K24: 0 | L24: 12 | O24: total reinforcement | P24: =U8 -> 7 | Q24: =Z8 -> 6 | R24: =AE8 -> 7 | S24: =AJ8 -> 7 | T24: =AO8 -> 6 | U24: =AT8 -> 7
A25: 11 | B25: 1891 | C25: 21 | D25: 1903 | K25: 0 | L25: 12 | O25: % target
A26: 11 | B26: 1987 | C26: 21 | D26: 1999 | K26: 0 | L26: 12 | O26: CCRF
A27: 11 | B27: 2105 | C27: 21 | D27: 2126 | K27: 0 | L27: 12 | O27: % CCRf
A28: 11 | B28: 2215 | C28: 21 | D28: 2226 | K28: 0 | L28: 12 | O28: average response rate | P28: =D14/P20 -> 95.125 | Q28: =(D21-D14)/Q20 -> 103.1428571 | R28: =(D29-D21)/R20 -> 105.125 | S28: =(D36-D29)/S20 -> 98.28571429 | T28: =(D44-D36)/T20 -> 104.125 | U28: =(D51-D44)/U20 -> 100.7142857
A29: 11 | B29: 2312 | C29: 21 | D29: 2324 | K29: 0 | L29: 12
A30: 11 | B30: 2409 | C30: 21 | D30: 2418 | K30: 0 | L30: 12
A31: 11 | B31: 2504 | C31: 21 | D31: 2514 | K31: 0 | L31: 12
A32: 11 | B32: 2600 | C32: 21 | D32: 2611 | K32: 0 | L32: 12
A33: 11 | B33: 2711 | C33: 21 | D33: 2723 | K33: 0 | L33: 12
A34: 11 | B34: 2810 | C34: 21 | D34: 2821 | K34: 0 | L34: 12
A35: 11 | B35: 2906 | C35: 21 | D35: 2918 | K35: 0 | L35: 12
A36: 11 | B36: 3003 | C36: 21 | D36: 3012 | K36: 0 | L36: 12
A37: 11 | B37: 3097 | C37: 21 | D37: 3106 | K37: 0 | L37: 12
A38: 22 | B38: 3204 | C38: 23 | D38: 3223 | K38: 0 | L38: 22
A39: 11 | B39: 3320 | C39: 21 | D39: 3331 | K39: 0 | L39: 12
A40: 11 | B40: 3415 | C40: 21 | D40: 3427 | K40: 0 | L40: 12
A41: 11 | B41: 3513 | C41: 21 | D41: 3524 | K41: 0 | L41: 12
A42: 22 | B42: 3622 | C42: 23 | D42: 3641 | K42: 0 | L42: 22
A43: 11 | B43: 3737 | C43: 21 | D43: 3749 | K43: 0 | L43: 12
A44: 11 | B44: 3835 | C44: 21 | D44: 3845 | K44: 0 | L44: 12
A45: 11 | B45: 3930 | C45: 21 | D45: 3942 | K45: 0 | L45: 12
A46: 11 | B46: 4031 | C46: 21 | D46: 4042 | K46: 0 | L46: 12
A47: 11 | B47: 4128 | C47: 21 | D47: 4140 | K47: 0 | L47: 12
A48: 11 | B48: 4237 | C48: 21 | D48: 4248 | K48: 0 | L48: 12
A49: 11 | B49: 4333 | C49: 21 | D49: 4356 | K49: 0 | L49: 12
A50: 11 | B50: 4442 | C50: 21 | D50: 4453 | K50: 0 | L50: 12
A51: 11 | B51: 4539 | C51: 21 | D51: 4550 | K51: 1 | L51: 12

Sheet !MA03820.104
A1: Report for:!MA03820.104
A2: Date: | B2: <date>
A3: Hen: | B3: <hen> | F3: Correct Sequence | G3: =Start!J2 -> 12 | P3: Total Sequences in Data | Q3: =4994-COUNTBLANK(L7:L5000) -> 47 | V3: Total Sequences in Block Data | W3: =COUNTA(L7:L14) -> 8 | AA3: Total Sequences in Block Data | AB3: =COUNTA(L15:L22) -> 8 | AF3: Total Sequences in Block Data | AG3: =COUNTA(L23:L29) -> 7 | AK3: Total Sequences in Block Data | AL3: =COUNTA(L30:L37) -> 8 | AP3: Total Sequences in Block Data | AQ3: =COUNTA(L38:L45) -> 8 | AU3: Total Sequences in Block Data | AV3: =COUNTA(L46:L53) -> 8
P4: Total Sequences in Summary | Q4: =SUM(O7:O14) -> 47 | V4: Total Sequences in Block Summary | W4: =SUM(U7:U14) -> 8 | AA4: Total Sequences in Block Summary | AB4: =SUM(Z7:Z14) -> 8 | AF4: Total Sequences in Block Summary | AG4: =SUM(AE7:AE14) -> 7 | AK4: Total Sequences in Block Summary | AL4: =SUM(AJ7:AJ14) -> 8 | AP4: Total Sequences in Block Summary | AQ4: =SUM(AO7:AO14) -> 8 | AU4: Total Sequences in Block Summary | AV4: =SUM(AT7:AT14) -> 8
T5: Block 1 | Y5: Block 2 | AD5: Block 3 | AI5: Block 4 | AN5: Block 5 | AS5: Block 6
A6: Sequence Component 1 | B6: Time 1 | C6: Sequence Component 2 | D6: Time 2 | E6: Sequence Component 3 | F6: Time 3 | G6: Sequence Component 4 | H6: Time 4 | I6: Sequence Component 5 | J6: Time 5 | K6: Correct? 0=No 1=Yes | L6: Sequence | N6: Frequency | P6: Relative Frequency | Q6: Variability | T6: Frequency | V6: Relative Frequency | W6: Variability | Y6: Frequency | AA6: Relative Frequency | AB6: Variability | AD6: Frequency | AF6: Relative Frequency | AG6: Variability | AI6: Frequency | AK6: Relative Frequency | AL6: Variability | AN6: Frequency | AP6: Relative Frequency | AQ6: Variability | AS6: Frequency | AU6: Relative Frequency | AV6: Variability
A7: 22 | B7: 12 | C7: 23 | D7: 42 | K7: 0 | L7: 22 | N7: 11 | O7: =COUNTIF($L$7:$L$500,N7) -> 2 | P7: =O7/$Q$4 -> 0.04255319149 | Q7: =IF(P7=0,0,(P7*((LOG(P7))/LOG(2)))) -> -0.1938122916 | T7: =N7 -> 11 | U7: =COUNTIF(L7:L14,T7) -> 0 | V7: =U7/(W4-U8) -> 0 | W7: =IF(V7=0,0,(V7*((LOG(V7))/LOG(2)))) -> 0 | Y7: =N7 -> 11 | Z7: =COUNTIF(L15:L22,Y7) -> 1 | AA7: =Z7/(AB4-Z8) -> 0.3333333333 | AB7: =IF(AA7=0,0,(AA7*((LOG(AA7))/LOG(2)))) -> -0.5283208336 | AD7: =N7 -> 11 | AE7: =COUNTIF(L23:L29,AD7) -> 0 | AF7: =AE7/(AG4-AE8) ->  | AG7: =IF(AF7=0,0,(AF7*((LOG(AF7))/LOG(2)))) ->  | AI7: =N7 -> 11 | AJ7: =COUNTIF(L30:L37,AI7) -> 0 | AK7: =AJ7/(AL4-AJ8) ->  | AL7: =IF(AK7=0,0,(AK7*((LOG(AK7))/LOG(2)))) ->  | AN7: =N7 -> 11 | AO7: =COUNTIF(L38:L45,AN7) -> 0 | AP7: =AO7/(AQ4-AO8) -> 0 | AQ7: =IF(AP7=0,0,(AP7*((LOG(AP7))/LOG(2)))) -> 0 | AS7: =N7 -> 11 | AT7: =COUNTIF(L46:L53,AS7) -> 1 | AU7: =AT7/(AV4-AT8) -> 1 | AV7: =IF(AU7=0,0,(AU7*((LOG(AU7))/LOG(2)))) -> 0
A8: 11 | B8: 139 | C8: 21 | D8: 151 | K8: 0 | L8: 12 | N8: 12 | O8: =COUNTIF($L$7:$L$500,N8) -> 40 | P8: =O8/$Q$4 -> 0.8510638298 | Q8: =IF(P8=0,0,(P8*((LOG(P8))/LOG(2)))) -> -0.1980091547 | T8: =N8 -> 12 | U8: =COUNTIF(L7:L14,T8) -> 6 | Y8: =N8 -> 12 | Z8: =COUNTIF(L15:L22,Y8) -> 5 | AD8: =N8 -> 12 | AE8: =COUNTIF(L23:L29,AD8) -> 7 | AI8: =N8 -> 12 | AJ8: =COUNTIF(L30:L37,AI8) -> 8 | AN8: =N8 -> 12 | AO8: =COUNTIF(L38:L45,AN8) -> 7 | AS8: =N8 -> 12 | AT8: =COUNTIF(L46:L53,AS8) -> 7
A9: 11 | B9: 246 | C9: 21 | D9: 259 | K9: 0 | L9: 12 | N9: 21 | O9: =COUNTIF($L$7:$L$500,N9) -> 2 | P9: =O9/$Q$4 -> 0.04255319149 | Q9: =IF(P9=0,0,(P9*((LOG(P9))/LOG(2)))) -> -0.1938122916 | T9: =N9 -> 21 | U9: =COUNTIF(L7:L14,T9) -> 1 | V9: =U9/(W4-U8) -> 0.5 | W9: =IF(V9=0,0,(V9*((LOG(V9))/LOG(2)))) -> -0.5 | Y9: =N9 -> 21 | Z9: =COUNTIF(L15:L22,Y9) -> 1 | AA9: =Z9/(AB4-Z8) -> 0.3333333333 | AB9: =IF(AA9=0,0,(AA9*((LOG(AA9))/LOG(2)))) -> -0.5283208336 | AD9: =N9 -> 21 | AE9: =COUNTIF(L23:L29,AD9) -> 0 | AF9: =AE9/(AG4-AE8) ->  | AG9: =IF(AF9=0,0,(AF9*((LOG(AF9))/LOG(2)))) ->  | AI9: =N9 -> 21 | AJ9: =COUNTIF(L30:L37,AI9) -> 0 | AK9: =AJ9/(AL4-AJ8) ->  | AL9: =IF(AK9=0,0,(AK9*((LOG(AK9))/LOG(2)))) ->  | AN9: =N9 -> 21 | AO9: =COUNTIF(L38:L45,AN9) -> 0 | AP9: =AO9/(AQ4-AO8) -> 0 | AQ9: =IF(AP9=0,0,(AP9*((LOG(AP9))/LOG(2)))) -> 0 | AS9: =N9 -> 21 | AT9: =COUNTIF(L46:L53,AS9) -> 0 | AU9: =AT9/(AV4-AT8) -> 0 | AV9: =IF(AU9=0,0,(AU9*((LOG(AU9))/LOG(2)))) -> 0
A10: 11 | B10: 350 | C10: 21 | D10: 359 | K10: 0 | L10: 12 | N10: 22 | O10: =COUNTIF($L$7:$L$500,N10) -> 3 | P10: =O10/$Q$4 -> 0.06382978723 | Q10: =IF(P10=0,0,(P10*((LOG(P10))/LOG(2)))) -> -0.2533804054 | T10: =N10 -> 22 | U10: =COUNTIF(L7:L14,T10) -> 1 | V10: =U10/(W4-U8) -> 0.5 | W10: =IF(V10=0,0,(V10*((LOG(V10))/LOG(2)))) -> -0.5 | Y10: =N10 -> 22 | Z10: =COUNTIF(L15:L22,Y10) -> 1 | AA10: =Z10/(AB4-Z8) -> 0.3333333333 | AB10: =IF(AA10=0,0,(AA10*((LOG(AA10))/LOG(2)))) -> -0.5283208336 | AD10: =N10 -> 22 | AE10: =COUNTIF(L23:L29,AD10) -> 0 | AF10: =AE10/(AG4-AE8) ->  | AG10: =IF(AF10=0,0,(AF10*((LOG(AF10))/LOG(2)))) ->  | AI10: =N10 -> 22 | AJ10: =COUNTIF(L30:L37,AI10) -> 0 | AK10: =AJ10/(AL4-AJ8) ->  | AL10: =IF(AK10=0,0,(AK10*((LOG(AK10))/LOG(2)))) ->  | AN10: =N10 -> 22 | AO10: =COUNTIF(L38:L45,AN10) -> 1 | AP10: =AO10/(AQ4-AO8) -> 1 | AQ10: =IF(AP10=0,0,(AP10*((LOG(AP10))/LOG(2)))) -> 0 | AS10: =N10 -> 22 | AT10: =COUNTIF(L46:L53,AS10) -> 0 | AU10: =AT10/(AV4-AT8) -> 0 | AV10: =IF(AU10=0,0,(AU10*((LOG(AU10))/LOG(2)))) -> 0
A11: 11 | B11: 445 | C11: 21 | D11: 457 | K11: 0 | L11: 12 | T11: =N11 -> 0 | U11: =COUNTIF(L7:L14,T11) -> 0 | V11: =U11/(W4-U8) -> 0 | W11: =IF(V11=0,0,(V11*((LOG(V11))/LOG(2)))) -> 0 | Y11: =N11 -> 0 | Z11: =COUNTIF(L15:L22,Y11) -> 0 | AA11: =Z11/(AB4-Z8) -> 0 | AB11: =IF(AA11=0,0,(AA11*((LOG(AA11))/LOG(2)))) -> 0 | AD11: =N11 -> 0 | AE11: =COUNTIF(L23:L29,AD11) -> 0 | AF11: =AE11/(AG4-AE8) ->  | AG11: =IF(AF11=0,0,(AF11*((LOG(AF11))/LOG(2)))) ->  | AI11: =N11 -> 0 | AJ11: =COUNTIF(L30:L37,AI11) -> 0 | AK11: =AJ11/(AL4-AJ8) ->  | AL11: =IF(AK11=0,0,(AK11*((LOG(AK11))/LOG(2)))) ->  | AN11: =N11 -> 0 | AO11: =COUNTIF(L38:L45,AN11) -> 0 | AP11: =AO11/(AQ4-AO8) -> 0 | AQ11: =IF(AP11=0,0,(AP11*((LOG(AP11))/LOG(2)))) -> 0 | AS11: =N11 -> 0 | AT11: =COUNTIF(L46:L53,AS11) -> 0 | AU11: =AT11/(AV4-AT8) -> 0 | AV11: =IF(AU11=0,0,(AU11*((LOG(AU11))/LOG(2)))) -> 0
A12: 11 | B12: 543 | C12: 21 | D12: 553 | K12: 0 | L12: 12 | T12: =N12 -> 0 | U12: =COUNTIF(L7:L14,T12) -> 0 | V12: =U12/(W4-U8) -> 0 | W12: =IF(V12=0,0,(V12*((LOG(V12))/LOG(2)))) -> 0 | Y12: =N12 -> 0 | Z12: =COUNTIF(L15:L22,Y12) -> 0 | AA12: =Z12/(AB4-Z8) -> 0 | AB12: =IF(AA12=0,0,(AA12*((LOG(AA12))/LOG(2)))) -> 0 | AD12: =N12 -> 0 | AE12: =COUNTIF(L23:L29,AD12) -> 0 | AF12: =AE12/(AG4-AE8) ->  | AG12: =IF(AF12=0,0,(AF12*((LOG(AF12))/LOG(2)))) ->  | AI12: =N12 -> 0 | AJ12: =COUNTIF(L30:L37,AI12) -> 0 | AK12: =AJ12/(AL4-AJ8) ->  | AL12: =IF(AK12=0,0,(AK12*((LOG(AK12))/LOG(2)))) ->  | AN12: =N12 -> 0 | AO12: =COUNTIF(L38:L45,AN12) -> 0 | AP12: =AO12/(AQ4-AO8) -> 0 | AQ12: =IF(AP12=0,0,(AP12*((LOG(AP12))/LOG(2)))) -> 0 | AS12: =N12 -> 0 | AT12: =COUNTIF(L46:L53,AS12) -> 0 | AU12: =AT12/(AV4-AT8) -> 0 | AV12: =IF(AU12=0,0,(AU12*((LOG(AU12))/LOG(2)))) -> 0
A13: 11 | B13: 640 | C13: 21 | D13: 652 | K13: 0 | L13: 12 | T13: =N13 -> 0 | U13: =COUNTIF(L7:L14,T13) -> 0 | V13: =U13/(W4-U8) -> 0 | W13: =IF(V13=0,0,(V13*((LOG(V13))/LOG(2)))) -> 0 | Y13: =N13 -> 0 | Z13: =COUNTIF(L15:L22,Y13) -> 0 | AA13: =Z13/(AB4-Z8) -> 0 | AB13: =IF(AA13=0,0,(AA13*((LOG(AA13))/LOG(2)))) -> 0 | AD13: =N13 -> 0 | AE13: =COUNTIF(L23:L29,AD13) -> 0 | AF13: =AE13/(AG4-AE8) ->  | AG13: =IF(AF13=0,0,(AF13*((LOG(AF13))/LOG(2)))) ->  | AI13: =N13 -> 0 | AJ13: =COUNTIF(L30:L37,AI13) -> 0 | AK13: =AJ13/(AL4-AJ8) ->  | AL13: =IF(AK13=0,0,(AK13*((LOG(AK13))/LOG(2)))) ->  | AN13: =N13 -> 0 | AO13: =COUNTIF(L38:L45,AN13) -> 0 | AP13: =AO13/(AQ4-AO8) -> 0 | AQ13: =IF(AP13=0,0,(AP13*((LOG(AP13))/LOG(2)))) -> 0 | AS13: =N13 -> 0 | AT13: =COUNTIF(L46:L53,AS13) -> 0 | AU13: =AT13/(AV4-AT8) -> 0 | AV13: =IF(AU13=0,0,(AU13*((LOG(AU13))/LOG(2)))) -> 0
A14: 22 | B14: 753 | C14: 14 | D14: 780 | K14: 0 | L14: 21 | T14: =N14 -> 0 | U14: =COUNTIF(L7:L14,T14) -> 0 | V14: =U14/(W4-U8) -> 0 | W14: =IF(V14=0,0,(V14*((LOG(V14))/LOG(2)))) -> 0 | Y14: =N14 -> 0 | Z14: =COUNTIF(L15:L22,Y14) -> 0 | AA14: =Z14/(AB4-Z8) -> 0 | AB14: =IF(AA14=0,0,(AA14*((LOG(AA14))/LOG(2)))) -> 0 | AD14: =N14 -> 0 | AE14: =COUNTIF(L23:L29,AD14) -> 0 | AF14: =AE14/(AG4-AE8) ->  | AG14: =IF(AF14=0,0,(AF14*((LOG(AF14))/LOG(2)))) ->  | AI14: =N14 -> 0 | AJ14: =COUNTIF(L30:L37,AI14) -> 0 | AK14: =AJ14/(AL4-AJ8) ->  | AL14: =IF(AK14=0,0,(AK14*((LOG(AK14))/LOG(2)))) ->  | AN14: =N14 -> 0 | AO14: =COUNTIF(L38:L45,AN14) -> 0 | AP14: =AO14/(AQ4-AO8) -> 0 | AQ14: =IF(AP14=0,0,(AP14*((LOG(AP14))/LOG(2)))) -> 0 | AS14: =N14 -> 0 | AT14: =COUNTIF(L46:L53,AS14) -> 0 | AU14: =AT14/(AV4-AT8) -> 0 | AV14: =IF(AU14=0,0,(AU14*((LOG(AU14))/LOG(2)))) -> 0
A15: 11 | B15: 876 | C15: 21 | D15: 885 | K15: 0 | L15: 12 | P15: =SUM(P7:P14) -> 1 | Q15: =-SUM(Q7:Q14) -> 0.8390141432 | V15: =SUM(V7:V14) -> 1 | W15: =-SUM(W7:W14) -> 1 | AA15: =SUM(AA7:AA14) -> 1 | AB15: =-SUM(AB7:AB14) -> 1.584962501 | AF15: =SUM(AF7:AF14) ->  | AG15: =-SUM(AG7:AG14) ->  | AK15: =SUM(AK7:AK14) ->  | AL15: =-SUM(AL7:AL14) ->  | AP15: =SUM(AP7:AP14) -> 1 | AQ15: =-SUM(AQ7:AQ14) -> 0 | AU15: =SUM(AU7:AU14) -> 1 | AV15: =-SUM(AV7:AV14) -> 0
A16: 11 | B16: 974 | C16: 21 | D16: 986 | K16: 0 | L16: 12 | P16: U= | Q16: =Q15/(LOG(Q4)/LOG(2)) -> 0.1510488293 | V16: U1= | W16: =W15/(LOG(W4)/LOG(2)) -> 0.3333333333 | AA16: U2= | AB16: =AB15/(LOG(AB4)/LOG(2)) -> 0.5283208336 | AF16: U3= | AG16: =AG15/(LOG(AG4)/LOG(2)) ->  | AK16: U4= | AL16: =AL15/(LOG(AL4)/LOG(2)) ->  | AP16: U5= | AQ16: =AQ15/(LOG(AQ4)/LOG(2)) -> 0 | AU16: U6= | AV16: =AV15/(LOG(AV4)/LOG(2)) -> 0
A17: 11 | B17: 1073 | C17: 21 | D17: 1085 | K17: 0 | L17: 12
A18: 22 | B18: 1195 | C18: 14 | D18: 1212 | K18: 0 | L18: 21
A19: 11 | B19: 1310 | C19: 21 | D19: 1322 | K19: 0 | L19: 12 | N19: Total Target Seq
A20: 22 | B20: 1425 | C20: 23 | D20: 1448 | K20: 0 | L20: 22 | N20: =COUNTIF(L7:L53,G3) -> 40 | P20: 8 | Q20: 8 | R20: 7 | S20: 8 | T20: 8 | U20: 8
A21: 11 | B21: 1545 | C21: 21 | D21: 1556 | K21: 0 | L21: 12 | P21: % of reinforcement given in 6 equal intervals based on number of trials
A22: 11 | B22: 1643 | C22: 12 | D22: 1648 | K22: 0 | L22: 11 | P22: %_1 | Q22: %_2 | R22: %_3 | S22: %_4 | T22: %_5 | U22: %_6
A23: 11 | B23: 1744 | C23: 21 | D23: 1755 | K23: 0 | L23: 12 | O23: target sequence | P23: =$G$3 -> 12 | Q23: =$G$3 -> 12 | R23: =$G$3 -> 12 | S23: =$G$3 -> 12 | T23: =$G$3 -> 12 | U23: =$G$3 -> 12
A24: 11 | B24: 1845 | C24: 21 | D24: 1857 | K24: 0 | L24: 12 | O24: total reinforcement | P24: =U8 -> 6 | Q24: =Z8 -> 5 | R24: =AE8 -> 7 | S24: =AJ8 -> 8 | T24: =AO8 -> 7 | U24: =AT8 -> 7
A25: 11 | B25: 1945 | C25: 21 | D25: 1957 | K25: 0 | L25: 12 | O25: % target
A26: 11 | B26: 2047 | C26: 21 | D26: 2059 | K26: 0 | L26: 12 | O26: CCRF
A27: 11 | B27: 2145 | C27: 21 | D27: 2154 | K27: 0 | L27: 12 | O27: % CCRf
A28: 11 | B28: 2248 | C28: 21 | D28: 2261 | K28: 0 | L28: 12 | O28: average response rate | P28: =D14/P20 -> 97.5 | Q28: =(D22-D14)/Q20 -> 108.5 | R28: =(D29-D22)/R20 -> 101.7142857 | S28: =(D37-D29)/S20 -> 100.75 | T28: =(D45-D37)/T20 -> 105.5 | U28: =(D53-D45)/U20 -> 98.125
A29: 11 | B29: 2351 | C29: 21 | D29: 2360 | K29: 0 | L29: 12
A30: 11 | B30: 2447 | C30: 21 | D30: 2458 | K30: 0 | L30: 12
A31: 11 | B31: 2546 | C31: 21 | D31: 2555 | K31: 0 | L31: 12
A32: 11 | B32: 2640 | C32: 21 | D32: 2651 | K32: 0 | L32: 12
A33: 11 | B33: 2737 | C33: 21 | D33: 2747 | K33: 0 | L33: 12
A34: 11 | B34: 2833 | C34: 21 | D34: 2847 | K34: 0 | L34: 12
A35: 11 | B35: 2939 | C35: 21 | D35: 2951 | K35: 0 | L35: 12
A36: 11 | B36: 3037 | C36: 21 | D36: 3064 | K36: 0 | L36: 12
A37: 11 | B37: 3154 | C37: 21 | D37: 3166 | K37: 0 | L37: 12
A38: 11 | B38: 3252 | C38: 21 | D38: 3262 | K38: 0 | L38: 12
A39: 11 | B39: 3350 | C39: 21 | D39: 3360 | K39: 0 | L39: 12
A40: 22 | B40: 3462 | C40: 23 | D40: 3487 | K40: 0 | L40: 22
A41: 11 | B41: 3583 | C41: 21 | D41: 3594 | K41: 0 | L41: 12
A42: 11 | B42: 3684 | C42: 21 | D42: 3694 | K42: 0 | L42: 12
A43: 11 | B43: 3782 | C43: 21 | D43: 3804 | K43: 0 | L43: 12
A44: 11 | B44: 3897 | C44: 21 | D44: 3909 | K44: 0 | L44: 12
A45: 11 | B45: 3998 | C45: 21 | D45: 4010 | K45: 0 | L45: 12
A46: 11 | B46: 4096 | C46: 21 | D46: 4107 | K46: 0 | L46: 12
A47: 11 | B47: 4192 | C47: 21 | D47: 4202 | K47: 0 | L47: 12
A48: 11 | B48: 4288 | C48: 21 | D48: 4299 | K48: 0 | L48: 12
A49: 11 | B49: 4385 | C49: 21 | D49: 4395 | K49: 0 | L49: 12
A50: 11 | B50: 4481 | C50: 21 | D50: 4493 | K50: 0 | L50: 12
A51: 11 | B51: 4577 | C51: 12 | D51: 4585 | K51: 0 | L51: 11
A52: 11 | B52: 4686 | C52: 21 | D52: 4698 | K52: 0 | L52: 12
A53: 11 | B53: 4783 | C53: 21 | D53: 4795 | K53: 1 | L53: 12

Sheet !MA04930.104
A1: Report for:!MA04930.104
A2: Date: | B2: <date>
A3: Hen: | B3: <hen> | F3: Correct Sequence | G3: =Start!J2 -> 12 | P3: Total Sequences in Data | Q3: =4994-COUNTBLANK(L7:L5000) -> 45 | V3: Total Sequences in Block Data | W3: =COUNTA(L7:L14) -> 8 | AA3: Total Sequences in Block Data | AB3: =COUNTA(L15:L21) -> 7 | AF3: Total Sequences in Block Data | AG3: =COUNTA(L22:L29) -> 8 | AK3: Total Sequences in Block Data | AL3: =COUNTA(L30:L36) -> 7 | AP3: Total Sequences in Block Data | AQ3: =COUNTA(L37:L44) -> 8 | AU3: Total Sequences in Block Data | AV3: =COUNTA(L45:L51) -> 7
P4: Total Sequences in Summary | Q4: =SUM(O7:O14) -> 45 | V4: Total Sequences in Block Summary | W4: =SUM(U7:U14) -> 8 | AA4: Total Sequences in Block Summary | AB4: =SUM(Z7:Z14) -> 7 | AF4: Total Sequences in Block Summary | AG4: =SUM(AE7:AE14) -> 8 | AK4: Total Sequences in Block Summary | AL4: =SUM(AJ7:AJ14) -> 7 | AP4: Total Sequences in Block Summary | AQ4: =SUM(AO7:AO14) -> 8 | AU4: Total Sequences in Block Summary | AV4: =SUM(AT7:AT14) -> 7
T5: Block 1 | Y5: Block 2 | AD5: Block 3 | AI5: Block 4 | AN5: Block 5 | AS5: Block 6
A6: Sequence Component 1 | B6: Time 1 | C6: Sequence Component 2 | D6: Time 2 | E6: Sequence Component 3 | F6: Time 3 | G6: Sequence Component 4 | H6: Time 4 | I6: Sequence Component 5 | J6: Time 5 | K6: Correct? 0=No 1=Yes | L6: Sequence | N6: Frequency | P6: Relative Frequency | Q6: Variability | T6: Frequency | V6: Relative Frequency | W6: Variability | Y6: Frequency | AA6: Relative Frequency | AB6: Variability | AD6: Frequency | AF6: Relative Frequency | AG6: Variability | AI6: Frequency | AK6: Relative Frequency | AL6: Variability | AN6: Frequency | AP6: Relative Frequency | AQ6: Variability | AS6: Frequency | AU6: Relative Frequency | AV6: Variability
A7: 22 | B7: 17 | C7: 23 | D7: 30 | K7: 0 | L7: 22 | N7: 11 | O7: =COUNTIF($L$7:$L$500,N7) -> 0 | P7: =O7/$Q$4 -> 0 | Q7: =IF(P7=0,0,(P7*((LOG(P7))/LOG(2)))) -> 0 | T7: =N7 -> 11 | U7: =COUNTIF(L7:L14,T7) -> 0 | V7: =U7/(W4-U8) -> 0 | W7: =IF(V7=0,0,(V7*((LOG(V7))/LOG(2)))) -> 0 | Y7: =N7 -> 11 | Z7: =COUNTIF(L15:L21,Y7) -> 0 | AA7: =Z7/(AB4-Z8) ->  | AB7: =IF(AA7=0,0,(AA7*((LOG(AA7))/LOG(2)))) ->  | AD7: =N7 -> 11 | AE7: =COUNTIF(L22:L29,AD7) -> 0 | AF7: =AE7/(AG4-AE8) -> 0 | AG7: =IF(AF7=0,0,(AF7*((LOG(AF7))/LOG(2)))) -> 0 | AI7: =N7 -> 11 | AJ7: =COUNTIF(L30:L36,AI7) -> 0 | AK7: =AJ7/(AL4-AJ8) ->  | AL7: =IF(AK7=0,0,(AK7*((LOG(AK7))/LOG(2)))) ->  | AN7: =N7 -> 11 | AO7: =COUNTIF(L37:L44,AN7) -> 0 | AP7: =AO7/(AQ4-AO8) ->  | AQ7: =IF(AP7=0,0,(AP7*((LOG(AP7))/LOG(2)))) ->  | AS7: =N7 -> 11 | AT7: =COUNTIF(L45:L51,AS7) -> 0 | AU7: =AT7/(AV4-AT8) -> 0 | AV7: =IF(AU7=0,0,(AU7*((LOG(AU7))/LOG(2)))) -> 0
A8: 11 | B8: 128 | C8: 21 | D8: 140 | K8: 0 | L8: 12 | N8: 12 | O8: =COUNTIF($L$7:$L$500,N8) -> 40 | P8: =O8/$Q$4 -> 0.8888888889 | Q8: =IF(P8=0,0,(P8*((LOG(P8))/LOG(2)))) -> -0.1510444457 | T8: =N8 -> 12 | U8: =COUNTIF(L7:L14,T8) -> 5 | Y8: =N8 -> 12 | Z8: =COUNTIF(L15:L21,Y8) -> 7 | AD8: =N8 -> 12 | AE8: =COUNTIF(L22:L29,AD8) -> 7 | AI8: =N8 -> 12 | AJ8: =COUNTIF(L30:L36,AI8) -> 7 | AN8: =N8 -> 12 | AO8: =COUNTIF(L37:L44,AN8) -> 8 | AS8: =N8 -> 12 | AT8: =COUNTIF(L45:L51,AS8) -> 6
A9: 11 | B9: 227 | C9: 21 | D9: 237 | K9: 0 | L9: 12 | N9: 21 | O9: =COUNTIF($L$7:$L$500,N9) -> 2 | P9: =O9/$Q$4 -> 0.04444444444 | Q9: =IF(P9=0,0,(P9*((LOG(P9))/LOG(2)))) -> -0.1996379154 | T9: =N9 -> 21 | U9: =COUNTIF(L7:L14,T9) -> 2 | V9: =U9/(W4-U8) -> 0.6666666667 | W9: =IF(V9=0,0,(V9*((LOG(V9))/LOG(2)))) -> -0.3899750005 | Y9: =N9 -> 21 | Z9: =COUNTIF(L15:L21,Y9) -> 0 | AA9: =Z9/(AB4-Z8) ->  | AB9: =IF(AA9=0,0,(AA9*((LOG(AA9))/LOG(2)))) ->  | AD9: =N9 -> 21 | AE9: =COUNTIF(L22:L29,AD9) -> 0 | AF9: =AE9/(AG4-AE8) -> 0 | AG9: =IF(AF9=0,0,(AF9*((LOG(AF9))/LOG(2)))) -> 0 | AI9: =N9 -> 21 | AJ9: =COUNTIF(L30:L36,AI9) -> 0 | AK9: =AJ9/(AL4-AJ8) ->  | AL9: =IF(AK9=0,0,(AK9*((LOG(AK9))/LOG(2)))) ->  | AN9: =N9 -> 21 | AO9: =COUNTIF(L37:L44,AN9) -> 0 | AP9: =AO9/(AQ4-AO8) ->  | AQ9: =IF(AP9=0,0,(AP9*((LOG(AP9))/LOG(2)))) ->  | AS9: =N9 -> 21 | AT9: =COUNTIF(L45:L51,AS9) -> 0 | AU9: =AT9/(AV4-AT8) -> 0 | AV9: =IF(AU9=0,0,(AU9*((LOG(AU9))/LOG(2)))) -> 0
A10: 22 | B10: 338 | C10: 14 | D10: 355 | K10: 0 | L10: 21 | N10: 22 | O10: =COUNTIF($L$7:$L$500,N10) -> 3 | P10: =O10/$Q$4 -> 0.06666666667 | Q10: =IF(P10=0,0,(P10*((LOG(P10))/LOG(2)))) -> -0.260459373 | T10: =N10 -> 22 | U10: =COUNTIF(L7:L14,T10) -> 1 | V10: =U10/(W4-U8) -> 0.3333333333 | W10: =IF(V10=0,0,(V10*((LOG(V10))/LOG(2)))) -> -0.5283208336 | Y10: =N10 -> 22 | Z10: =COUNTIF(L15:L21,Y10) -> 0 | AA10: =Z10/(AB4-Z8) ->  | AB10: =IF(AA10=0,0,(AA10*((LOG(AA10))/LOG(2)))) ->  | AD10: =N10 -> 22 | AE10: =COUNTIF(L22:L29,AD10) -> 1 | AF10: =AE10/(AG4-AE8) -> 1 | AG10: =IF(AF10=0,0,(AF10*((LOG(AF10))/LOG(2)))) -> 0 | AI10: =N10 -> 22 | AJ10: =COUNTIF(L30:L36,AI10) -> 0 | AK10: =AJ10/(AL4-AJ8) ->  | AL10: =IF(AK10=0,0,(AK10*((LOG(AK10))/LOG(2)))) ->  | AN10: =N10 -> 22 | AO10: =COUNTIF(L37:L44,AN10) -> 0 | AP10: =AO10/(AQ4-AO8) ->  | AQ10: =IF(AP10=0,0,(AP10*((LOG(AP10))/LOG(2)))) ->  | AS10: =N10 -> 22 | AT10: =COUNTIF(L45:L51,AS10) -> 1 | AU10: =AT10/(AV4-AT8) -> 1 | AV10: =IF(AU10=0,0,(AU10*((LOG(AU10))/LOG(2)))) -> 0
A11: 11 | B11: 453 | C11: 21 | D11: 463 | K11: 0 | L11: 12 | T11: =N11 -> 0 | U11: =COUNTIF(L7:L14,T11) -> 0 | V11: =U11/(W4-U8) -> 0 | W11: =IF(V11=0,0,(V11*((LOG(V11))/LOG(2)))) -> 0 | Y11: =N11 -> 0 | Z11: =COUNTIF(L15:L21,Y11) -> 0 | AA11: =Z11/(AB4-Z8) ->  | AB11: =IF(AA11=0,0,(AA11*((LOG(AA11))/LOG(2)))) ->  | AD11: =N11 -> 0 | AE11: =COUNTIF(L22:L29,AD11) -> 0 | AF11: =AE11/(AG4-AE8) -> 0 | AG11: =IF(AF11=0,0,(AF11*((LOG(AF11))/LOG(2)))) -> 0 | AI11: =N11 -> 0 | AJ11: =COUNTIF(L30:L36,AI11) -> 0 | AK11: =AJ11/(AL4-AJ8) ->  | AL11: =IF(AK11=0,0,(AK11*((LOG(AK11))/LOG(2)))) ->  | AN11: =N11 -> 0 | AO11: =COUNTIF(L37:L44,AN11) -> 0 | AP11: =AO11/(AQ4-AO8) ->  | AQ11: =IF(AP11=0,0,(AP11*((LOG(AP11))/LOG(2)))) ->  | AS11: =N11 -> 0 | AT11: =COUNTIF(L45:L51,AS11) -> 0 | AU11: =AT11/(AV4-AT8) -> 0 | AV11: =IF(AU11=0,0,(AU11*((LOG(AU11))/LOG(2)))) -> 0
A12: 22 | B12: 560 | C12: 14 | D12: 585 | K12: 0 | L12: 21 | T12: =N12 -> 0 | U12: =COUNTIF(L7:L14,T12) -> 0 | V12: =U12/(W4-U8) -> 0 | W12: =IF(V12=0,0,(V12*((LOG(V12))/LOG(2)))) -> 0 | Y12: =N12 -> 0 | Z12: =COUNTIF(L15:L21,Y12) -> 0 | AA12: =Z12/(AB4-Z8) ->  | AB12: =IF(AA12=0,0,(AA12*((LOG(AA12))/LOG(2)))) ->  | AD12: =N12 -> 0 | AE12: =COUNTIF(L22:L29,AD12) -> 0 | AF12: =AE12/(AG4-AE8) -> 0 | AG12: =IF(AF12=0,0,(AF12*((LOG(AF12))/LOG(2)))) -> 0 | AI12: =N12 -> 0 | AJ12: =COUNTIF(L30:L36,AI12) -> 0 | AK12: =AJ12/(AL4-AJ8) ->  | AL12: =IF(AK12=0,0,(AK12*((LOG(AK12))/LOG(2)))) ->  | AN12: =N12 -> 0 | AO12: =COUNTIF(L37:L44,AN12) -> 0 | AP12: =AO12/(AQ4-AO8) ->  | AQ12: =IF(AP12=0,0,(AP12*((LOG(AP12))/LOG(2)))) ->  | AS12: =N12 -> 0 | AT12: =COUNTIF(L45:L51,AS12) -> 0 | AU12: =AT12/(AV4-AT8) -> 0 | AV12: =IF(AU12=0,0,(AU12*((LOG(AU12))/LOG(2)))) -> 0
A13: 11 | B13: 681 | C13: 21 | D13: 690 | K13: 0 | L13: 12 | T13: =N13 -> 0 | U13: =COUNTIF(L7:L14,T13) -> 0 | V13: =U13/(W4-U8) -> 0 | W13: =IF(V13=0,0,(V13*((LOG(V13))/LOG(2)))) -> 0 | Y13: =N13 -> 0 | Z13: =COUNTIF(L15:L21,Y13) -> 0 | AA13: =Z13/(AB4-Z8) ->  | AB13: =IF(AA13=0,0,(AA13*((LOG(AA13))/LOG(2)))) ->  | AD13: =N13 -> 0 | AE13: =COUNTIF(L22:L29,AD13) -> 0 | AF13: =AE13/(AG4-AE8) -> 0 | AG13: =IF(AF13=0,0,(AF13*((LOG(AF13))/LOG(2)))) -> 0 | AI13: =N13 -> 0 | AJ13: =COUNTIF(L30:L36,AI13) -> 0 | AK13: =AJ13/(AL4-AJ8) ->  | AL13: =IF(AK13=0,0,(AK13*((LOG(AK13))/LOG(2)))) ->  | AN13: =N13 -> 0 | AO13: =COUNTIF(L37:L44,AN13) -> 0 | AP13: =AO13/(AQ4-AO8) ->  | AQ13: =IF(AP13=0,0,(AP13*((LOG(AP13))/LOG(2)))) ->  | AS13: =N13 -> 0 | AT13: =COUNTIF(L45:L51,AS13) -> 0 | AU13: =AT13/(AV4-AT8) -> 0 | AV13: =IF(AU13=0,0,(AU13*((LOG(AU13))/LOG(2)))) -> 0
A14: 11 | B14: 786 | C14: 21 | D14: 798 | K14: 0 | L14: 12 | T14: =N14 -> 0 | U14: =COUNTIF(L7:L14,T14) -> 0 | V14: =U14/(W4-U8) -> 0 | W14: =IF(V14=0,0,(V14*((LOG(V14))/LOG(2)))) -> 0 | Y14: =N14 -> 0 | Z14: =COUNTIF(L15:L21,Y14) -> 0 | AA14: =Z14/(AB4-Z8) ->  | AB14: =IF(AA14=0,0,(AA14*((LOG(AA14))/LOG(2)))) ->  | AD14: =N14 -> 0 | AE14: =COUNTIF(L22:L29,AD14) -> 0 | AF14: =AE14/(AG4-AE8) -> 0 | AG14: =IF(AF14=0,0,(AF14*((LOG(AF14))/LOG(2)))) -> 0 | AI14: =N14 -> 0 | AJ14: =COUNTIF(L30:L36,AI14) -> 0 | AK14: =AJ14/(AL4-AJ8) ->  | AL14: =IF(AK14=0,0,(AK14*((LOG(AK14))/LOG(2)))) ->  | AN14: =N14 -> 0 | AO14: =COUNTIF(L37:L44,AN14) -> 0 | AP14: =AO14/(AQ4-AO8) ->  | AQ14: =IF(AP14=0,0,(AP14*((LOG(AP14))/LOG(2)))) ->  | AS14: =N14 -> 0 | AT14: =COUNTIF(L45:L51,AS14) -> 0 | AU14: =AT14/(AV4-AT8) -> 0 | AV14: =IF(AU14=0,0,(AU14*((LOG(AU14))/LOG(2)))) -> 0
A15: 11 | B15: 893 | C15: 21 | D15: 901 | K15: 0 | L15: 12 | P15: =SUM(P7:P14) -> 1 | Q15: =-SUM(Q7:Q14) -> 0.6111417342 | V15: =SUM(V7:V14) -> 1 | W15: =-SUM(W7:W14) -> 0.9182958341 | AA15: =SUM(AA7:AA14) ->  | AB15: =-SUM(AB7:AB14) ->  | AF15: =SUM(AF7:AF14) -> 1 | AG15: =-SUM(AG7:AG14) -> 0 | AK15: =SUM(AK7:AK14) ->  | AL15: =-SUM(AL7:AL14) ->  | AP15: =SUM(AP7:AP14) ->  | AQ15: =-SUM(AQ7:AQ14) ->  | AU15: =SUM(AU7:AU14) -> 1 | AV15: =-SUM(AV7:AV14) -> 0
A16: 11 | B16: 987 | C16: 21 | D16: 997 | K16: 0 | L16: 12 | P16: U= | Q16: =Q15/(LOG(Q4)/LOG(2)) -> 0.1112815153 | V16: U1= | W16: =W15/(LOG(W4)/LOG(2)) -> 0.3060986114 | AA16: U2= | AB16: =AB15/(LOG(AB4)/LOG(2)) ->  | AF16: U3= | AG16: =AG15/(LOG(AG4)/LOG(2)) -> 0 | AK16: U4= | AL16: =AL15/(LOG(AL4)/LOG(2)) ->  | AP16: U5= | AQ16: =AQ15/(LOG(AQ4)/LOG(2)) ->  | AU16: U6= | AV16: =AV15/(LOG(AV4)/LOG(2)) -> 0
A17: 11 | B17: 1082 | C17: 21 | D17: 1093 | K17: 0 | L17: 12
A18: 11 | B18: 1180 | C18: 21 | D18: 1190 | K18: 0 | L18: 12
A19: 11 | B19: 1277 | C19: 21 | D19: 1292 | K19: 0 | L19: 12 | N19: Total Target Seq
A20: 11 | B20: 1381 | C20: 21 | D20: 1389 | K20: 0 | L20: 12 | N20: =COUNTIF(L7:L51,G3) -> 40 | P20: 8 | Q20: 7 | R20: 8 | S20: 7 | T20: 8 | U20: 7
A21: 11 | B21: 1476 | C21: 21 | D21: 1487 | K21: 0 | L21: 12 | P21: % of reinforcement given in 6 equal intervals based on number of trials
A22: 11 | B22: 1574 | C22: 21 | D22: 1585 | K22: 0 | L22: 12 | P22: %_1 | Q22: %_2 | R22: %_3 | S22: %_4 | T22: %_5 | U22: %_6
A23: 11 | B23: 1673 | C23: 21 | D23: 1681 | K23: 0 | L23: 12 | O23: target sequence | P23: =$G$3 -> 12 | Q23: =$G$3 -> 12 | R23: =$G$3 -> 12 | S23: =$G$3 -> 12 | T23: =$G$3 -> 12 | U23: =$G$3 -> 12
A24: 11 | B24: 1769 | C24: 21 | D24: 1781 | K24: 0 | L24: 12 | O24: total reinforcement | P24: =U8 -> 5 | Q24: =Z8 -> 7 | R24: =AE8 -> 7 | S24: =AJ8 -> 7 | T24: =AO8 -> 8 | U24: =AT8 -> 6
A25: 11 | B25: 1866 | C25: 21 | D25: 1878 | K25: 0 | L25: 12 | O25: % target
A26: 22 | B26: 1972 | C26: 23 | D26: 2005 | K26: 0 | L26: 22 | O26: CCRF
A27: 11 | B27: 2105 | C27: 21 | D27: 2117 | K27: 0 | L27: 12 | O27: % CCRf
A28: 11 | B28: 2210 | C28: 21 | D28: 2220 | K28: 0 | L28: 12 | O28: average response rate | P28: =D14/P20 -> 99.75 | Q28: =(D21-D14)/Q20 -> 98.42857143 | R28: =(D29-D21)/R20 -> 103.75 | S28: =(D36-D29)/S20 -> 99.85714286 | T28: =(D44-D36)/T20 -> 99.5 | U28: =(D51-D44)/U20 -> 105.8571429
A29: 11 | B29: 2306 | C29: 21 | D29: 2317 | K29: 0 | L29: 12
A30: 11 | B30: 2405 | C30: 21 | D30: 2419 | K30: 0 | L30: 12
A31: 11 | B31: 2507 | C31: 21 | D31: 2520 | K31: 0 | L31: 12
A32: 11 | B32: 2607 | C32: 21 | D32: 2618 | K32: 0 | L32: 12
A33: 11 | B33: 2705 | C33: 21 | D33: 2717 | K33: 0 | L33: 12
A34: 11 | B34: 2806 | C34: 21 | D34: 2817 | K34: 0 | L34: 12
A35: 11 | B35: 2903 | C35: 21 | D35: 2913 | K35: 0 | L35: 12
A36: 11 | B36: 3002 | C36: 21 | D36: 3016 | K36: 0 | L36: 12
A37: 11 | B37: 3101 | C37: 21 | D37: 3114 | K37: 0 | L37: 12
A38: 11 | B38: 3200 | C38: 21 | D38: 3211 | K38: 0 | L38: 12
A39: 11 | B39: 3303 | C39: 21 | D39: 3314 | K39: 0 | L39: 12
A40: 11 | B40: 3402 | C40: 21 | D40: 3412 | K40: 0 | L40: 12
A41: 11 | B41: 3502 | C41: 21 | D41: 3516 | K41: 0 | L41: 12
A42: 11 | B42: 3601 | C42: 21 | D42: 3612 | K42: 0 | L42: 12
A43: 11 | B43: 3703 | C43: 21 | D43: 3713 | K43: 0 | L43: 12
A44: 11 | B44: 3800 | C44: 21 | D44: 3812 | K44: 0 | L44: 12
A45: 11 | B45: 3902 | C45: 21 | D45: 3914 | K45: 0 | L45: 12
A46: 11 | B46: 4001 | C46: 21 | D46: 4012 | K46: 0 | L46: 12
A47: 11 | B47: 4097 | C47: 21 | D47: 4106 | K47: 0 | L47: 12
A48: 22 | B48: 4203 | C48: 23 | D48: 4241 | K48: 0 | L48: 22
A49: 11 | B49: 4341 | C49: 21 | D49: 4352 | K49: 0 | L49: 12
A50: 11 | B50: 4439 | C50: 21 | D50: 4451 | K50: 0 | L50: 12
A51: 11 | B51: 4538 | C51: 21 | D51: 4553 | K51: 1 | L51: 12

Sheet !MA05930.104
A1: Report for:!MA05930.104
A2: Date: | B2: <date>
A3: Hen: | B3: <hen> | F3: Correct Sequence | G3: =Start!J2 -> 12 | P3: Total Sequences in Data | Q3: =4994-COUNTBLANK(L7:L5000) -> 51 | V3: Total Sequences in Block Data | W3: =COUNTA(L7:L15) -> 9 | AA3: Total Sequences in Block Data | AB3: =COUNTA(L16:L23) -> 8 | AF3: Total Sequences in Block Data | AG3: =COUNTA(L24:L32) -> 9 | AK3: Total Sequences in Block Data | AL3: =COUNTA(L33:L40) -> 8 | AP3: Total Sequences in Block Data | AQ3: =COUNTA(L41:L49) -> 9 | AU3: Total Sequences in Block Data | AV3: =COUNTA(L50:L57) -> 8
P4: Total Sequences in Summary | Q4: =SUM(O7:O14) -> 51 | V4: Total Sequences in Block Summary | W4: =SUM(U7:U14) -> 9 | AA4: Total Sequences in Block Summary | AB4: =SUM(Z7:Z14) -> 8 | AF4: Total Sequences in Block Summary | AG4: =SUM(AE7:AE14) -> 9 | AK4: Total Sequences in Block Summary | AL4: =SUM(AJ7:AJ14) -> 8 | AP4: Total Sequences in Block Summary | AQ4: =SUM(AO7:AO14) -> 9 | AU4: Total Sequences in Block Summary | AV4: =SUM(AT7:AT14) -> 8
T5: Block 1 | Y5: Block 2 | AD5: Block 3 | AI5: Block 4 | AN5: Block 5 | AS5: Block 6
A6: Sequence Component 1 | B6: Time 1 | C6: Sequence Component 2 | D6: Time 2 | E6: Sequence Component 3 | F6: Time 3 | G6: Sequence Component 4 | H6: Time 4 | I6: Sequence Component 5 | J6: Time 5 | K6: Correct? 0=No 1=Yes | L6: Sequence | N6: Frequency | P6: Relative Frequency | Q6: Variability | T6: Frequency | V6: Relative Frequency | W6: Variability | Y6: Frequency | AA6: Relative Frequency | AB6: Variability | AD6: Frequency | AF6: Relative Frequency | AG6: Variability | AI6: Frequency | AK6: Relative Frequency | AL6: Variability | AN6: Frequency | AP6: Relative Frequency | AQ6: Variability | AS6: Frequency | AU6: Relative Frequency | AV6: Variability
A7: 22 | B7: 20 | C7: 23 | D7: 40 | K7: 0 | L7: 22 | N7: 11 | O7: =COUNTIF($L$7:$L$500,N7) -> 1 | P7: =O7/$Q$4 -> 0.01960784314 | Q7: =IF(P7=0,0,(P7*((LOG(P7))/LOG(2)))) -> -0.1112240263 | T7: =N7 -> 11 | U7: =COUNTIF(L7:L15,T7) -> 1 | V7: =U7/(W4-U8) -> 0.3333333333 | W7: =IF(V7=0,0,(V7*((LOG(V7))/LOG(2)))) -> -0.5283208336 | Y7: =N7 -> 11 | Z7: =COUNTIF(L16:L23,Y7) -> 0 | AA7: =Z7/(AB4-Z8) ->  | AB7: =IF(AA7=0,0,(AA7*((LOG(AA7))/LOG(2)))) ->  | AD7: =N7 -> 11 | AE7: =COUNTIF(L24:L32,AD7) -> 0 | AF7: =AE7/(AG4-AE8) ->  | AG7: =IF(AF7=0,0,(AF7*((LOG(AF7))/LOG(2)))) ->  | AI7: =N7 -> 11 | AJ7: =COUNTIF(L33:L40,AI7) -> 0 | AK7: =AJ7/(AL4-AJ8) -> 0 | AL7: =IF(AK7=0,0,(AK7*((LOG(AK7))/LOG(2)))) -> 0 | AN7: =N7 -> 11 | AO7: =COUNTIF(L41:L49,AN7) -> 0 | AP7: =AO7/(AQ4-AO8) -> 0 | AQ7: =IF(AP7=0,0,(AP7*((LOG(AP7))/LOG(2)))) -> 0 | AS7: =N7 -> 11 | AT7: =COUNTIF(L50:L57,AS7) -> 0 | AU7: =AT7/(AV4-AT8) -> 0 | AV7: =IF(AU7=0,0,(AU7*((LOG(AU7))/LOG(2)))) -> 0
A8: 11 | B8: 136 | C8: 21 | D8: 150 | K8: 0 | L8: 12 | N8: 12 | O8: =COUNTIF($L$7:$L$500,N8) -> 40 | P8: =O8/$Q$4 -> 0.7843137255 | Q8: =IF(P8=0,0,(P8*((LOG(P8))/LOG(2)))) -> -0.2748998016 | T8: =N8 -> 12 | U8: =COUNTIF(L7:L15,T8) -> 6 | Y8: =N8 -> 12 | Z8: =COUNTIF(L16:L23,Y8) -> 8 | AD8: =N8 -> 12 | AE8: =COUNTIF(L24:L32,AD8) -> 9 | AI8: =N8 -> 12 | AJ8: =COUNTIF(L33:L40,AI8) -> 5 | AN8: =N8 -> 12 | AO8: =COUNTIF(L41:L49,AN8) -> 6 | AS8: =N8 -> 12 | AT8: =COUNTIF(L50:L57,AS8) -> 6
A9: 11 | B9: 241 | C9: 21 | D9: 251 | K9: 0 | L9: 12 | N9: 21 | O9: =COUNTIF($L$7:$L$500,N9) -> 3 | P9: =O9/$Q$4 -> 0.05882352941 | Q9: =IF(P9=0,0,(P9*((LOG(P9))/LOG(2)))) -> -0.2404389907 | T9: =N9 -> 21 | U9: =COUNTIF(L7:L15,T9) -> 0 | V9: =U9/(W4-U8) -> 0 | W9: =IF(V9=0,0,(V9*((LOG(V9))/LOG(2)))) -> 0 | Y9: =N9 -> 21 | Z9: =COUNTIF(L16:L23,Y9) -> 0 | AA9: =Z9/(AB4-Z8) ->  | AB9: =IF(AA9=0,0,(AA9*((LOG(AA9))/LOG(2)))) ->  | AD9: =N9 -> 21 | AE9: =COUNTIF(L24:L32,AD9) -> 0 | AF9: =AE9/(AG4-AE8) ->  | AG9: =IF(AF9=0,0,(AF9*((LOG(AF9))/LOG(2)))) ->  | AI9: =N9 -> 21 | AJ9: =COUNTIF(L33:L40,AI9) -> 1 | AK9: =AJ9/(AL4-AJ8) -> 0.3333333333 | AL9: =IF(AK9=0,0,(AK9*((LOG(AK9))/LOG(2)))) -> -0.5283208336 | AN9: =N9 -> 21 | AO9: =COUNTIF(L41:L49,AN9) -> 1 | AP9: =AO9/(AQ4-AO8) -> 0.3333333333 | AQ9: =IF(AP9=0,0,(AP9*((LOG(AP9))/LOG(2)))) -> -0.5283208336 | AS9: =N9 -> 21 | AT9: =COUNTIF(L50:L57,AS9) -> 1 | AU9: =AT9/(AV4-AT8) -> 0.5 | AV9: =IF(AU9=0,0,(AU9*((LOG(AU9))/LOG(2)))) -> -0.5
A10: 11 | B10: 338 | C10: 21 | D10: 354 | K10: 0 | L10: 12 | N10: 22 | O10: =COUNTIF($L$7:$L$500,N10) -> 7 | P10: =O10/$Q$4 -> 0.137254902 | Q10: =IF(P10=0,0,(P10*((LOG(P10))/LOG(2)))) -> -0.3932449596 | T10: =N10 -> 22 | U10: =COUNTIF(L7:L15,T10) -> 2 | V10: =U10/(W4-U8) -> 0.6666666667 | W10: =IF(V10=0,0,(V10*((LOG(V10))/LOG(2)))) -> -0.3899750005 | Y10: =N10 -> 22 | Z10: =COUNTIF(L16:L23,Y10) -> 0 | AA10: =Z10/(AB4-Z8) ->  | AB10: =IF(AA10=0,0,(AA10*((LOG(AA10))/LOG(2)))) ->  | AD10: =N10 -> 22 | AE10: =COUNTIF(L24:L32,AD10) -> 0 | AF10: =AE10/(AG4-AE8) ->  | AG10: =IF(AF10=0,0,(AF10*((LOG(AF10))/LOG(2)))) ->  | AI10: =N10 -> 22 | AJ10: =COUNTIF(L33:L40,AI10) -> 2 | AK10: =AJ10/(AL4-AJ8) -> 0.6666666667 | AL10: =IF(AK10=0,0,(AK10*((LOG(AK10))/LOG(2)))) -> -0.3899750005 | AN10: =N10 -> 22 | AO10: =COUNTIF(L41:L49,AN10) -> 2 | AP10: =AO10/(AQ4-AO8) -> 0.6666666667 | AQ10: =IF(AP10=0,0,(AP10*((LOG(AP10))/LOG(2)))) -> -0.3899750005 | AS10: =N10 -> 22 | AT10: =COUNTIF(L50:L57,AS10) -> 1 | AU10: =AT10/(AV4-AT8) -> 0.5 | AV10: =IF(AU10=0,0,(AU10*((LOG(AU10))/LOG(2)))) -> -0.5
A11: 11 | B11: 439 | C11: 21 | D11: 451 | K11: 0 | L11: 12 | T11: =N11 -> 0 | U11: =COUNTIF(L7:L15,T11) -> 0 | V11: =U11/(W4-U8) -> 0 | W11: =IF(V11=0,0,(V11*((LOG(V11))/LOG(2)))) -> 0 | Y11: =N11 -> 0 | Z11: =COUNTIF(L16:L23,Y11) -> 0 | AA11: =Z11/(AB4-Z8) ->  | AB11: =IF(AA11=0,0,(AA11*((LOG(AA11))/LOG(2)))) ->  | AD11: =N11 -> 0 | AE11: =COUNTIF(L24:L32,AD11) -> 0 | AF11: =AE11/(AG4-AE8) ->  | AG11: =IF(AF11=0,0,(AF11*((LOG(AF11))/LOG(2)))) ->  | AI11: =N11 -> 0 | AJ11: =COUNTIF(L33:L40,AI11) -> 0 | AK11: =AJ11/(AL4-AJ8) -> 0 | AL11: =IF(AK11=0,0,(AK11*((LOG(AK11))/LOG(2)))) -> 0 | AN11: =N11 -> 0 | AO11: =COUNTIF(L41:L49,AN11) -> 0 | AP11: =AO11/(AQ4-AO8) -> 0 | AQ11: =IF(AP11=0,0,(AP11*((LOG(AP11))/LOG(2)))) -> 0 | AS11: =N11 -> 0 | AT11: =COUNTIF(L50:L57,AS11) -> 0 | AU11: =AT11/(AV4-AT8) -> 0 | AV11: =IF(AU11=0,0,(AU11*((LOG(AU11))/LOG(2)))) -> 0
A12: 22 | B12: 547 | C12: 23 | D12: 570 | K12: 0 | L12: 22 | T12: =N12 -> 0 | U12: =COUNTIF(L7:L15,T12) -> 0 | V12: =U12/(W4-U8) -> 0 | W12: =IF(V12=0,0,(V12*((LOG(V12))/LOG(2)))) -> 0 | Y12: =N12 -> 0 | Z12: =COUNTIF(L16:L23,Y12) -> 0 | AA12: =Z12/(AB4-Z8) ->  | AB12: =IF(AA12=0,0,(AA12*((LOG(AA12))/LOG(2)))) ->  | AD12: =N12 -> 0 | AE12: =COUNTIF(L24:L32,AD12) -> 0 | AF12: =AE12/(AG4-AE8) ->  | AG12: =IF(AF12=0,0,(AF12*((LOG(AF12))/LOG(2)))) ->  | AI12: =N12 -> 0 | AJ12: =COUNTIF(L33:L40,AI12) -> 0 | AK12: =AJ12/(AL4-AJ8) -> 0 | AL12: =IF(AK12=0,0,(AK12*((LOG(AK12))/LOG(2)))) -> 0 | AN12: =N12 -> 0 | AO12: =COUNTIF(L41:L49,AN12) -> 0 | AP12: =AO12/(AQ4-AO8) -> 0 | AQ12: =IF(AP12=0,0,(AP12*((LOG(AP12))/LOG(2)))) -> 0 | AS12: =N12 -> 0 | AT12: =COUNTIF(L50:L57,AS12) -> 0 | AU12: =AT12/(AV4-AT8) -> 0 | AV12: =IF(AU12=0,0,(AU12*((LOG(AU12))/LOG(2)))) -> 0
A13: 11 | B13: 664 | C13: 12 | D13: 668 | K13: 0 | L13: 11 | T13: =N13 -> 0 | U13: =COUNTIF(L7:L15,T13) -> 0 | V13: =U13/(W4-U8) -> 0 | W13: =IF(V13=0,0,(V13*((LOG(V13))/LOG(2)))) -> 0 | Y13: =N13 -> 0 | Z13: =COUNTIF(L16:L23,Y13) -> 0 | AA13: =Z13/(AB4-Z8) ->  | AB13: =IF(AA13=0,0,(AA13*((LOG(AA13))/LOG(2)))) ->  | AD13: =N13 -> 0 | AE13: =COUNTIF(L24:L32,AD13) -> 0 | AF13: =AE13/(AG4-AE8) ->  | AG13: =IF(AF13=0,0,(AF13*((LOG(AF13))/LOG(2)))) ->  | AI13: =N13 -> 0 | AJ13: =COUNTIF(L33:L40,AI13) -> 0 | AK13: =AJ13/(AL4-AJ8) -> 0 | AL13: =IF(AK13=0,0,(AK13*((LOG(AK13))/LOG(2)))) -> 0 | AN13: =N13 -> 0 | AO13: =COUNTIF(L41:L49,AN13) -> 0 | AP13: =AO13/(AQ4-AO8) -> 0 | AQ13: =IF(AP13=0,0,(AP13*((LOG(AP13))/LOG(2)))) -> 0 | AS13: =N13 -> 0 | AT13: =COUNTIF(L50:L57,AS13) -> 0 | AU13: =AT13/(AV4-AT8) -> 0 | AV13: =IF(AU13=0,0,(AU13*((LOG(AU13))/LOG(2)))) -> 0
A14: 11 | B14: 766 | C14: 21 | D14: 778 | K14: 0 | L14: 12 | T14: =N14 -> 0 | U14: =COUNTIF(L7:L15,T14) -> 0 | V14: =U14/(W4-U8) -> 0 | W14: =IF(V14=0,0,(V14*((LOG(V14))/LOG(2)))) -> 0 | Y14: =N14 -> 0 | Z14: =COUNTIF(L16:L23,Y14) -> 0 | AA14: =Z14/(AB4-Z8) ->  | AB14: =IF(AA14=0,0,(AA14*((LOG(AA14))/LOG(2)))) ->  | AD14: =N14 -> 0 | AE14: =COUNTIF(L24:L32,AD14) -> 0 | AF14: =AE14/(AG4-AE8) ->  | AG14: =IF(AF14=0,0,(AF14*((LOG(AF14))/LOG(2)))) ->  | AI14: =N14 -> 0 | AJ14: =COUNTIF(L33:L40,AI14) -> 0 | AK14: =AJ14/(AL4-AJ8) -> 0 | AL14: =IF(AK14=0,0,(AK14*((LOG(AK14))/LOG(2)))) -> 0 | AN14: =N14 -> 0 | AO14: =COUNTIF(L41:L49,AN14) -> 0 | AP14: =AO14/(AQ4-AO8) -> 0 | AQ14: =IF(AP14=0,0,(AP14*((LOG(AP14))/LOG(2)))) -> 0 | AS14: =N14 -> 0 | AT14: =COUNTIF(L50:L57,AS14) -> 0 | AU14: =AT14/(AV4-AT8) -> 0 | AV14: =IF(AU14=0,0,(AU14*((LOG(AU14))/LOG(2)))) -> 0
A15: 11 | B15: 865 | C15: 21 | D15: 877 | K15: 0 | L15: 12 | P15: =SUM(P7:P14) -> 1 | Q15: =-SUM(Q7:Q14) -> 1.019807778 | V15: =SUM(V7:V14) -> 1 | W15: =-SUM(W7:W14) -> 0.9182958341 | AA15: =SUM(AA7:AA14) ->  | AB15: =-SUM(AB7:AB14) ->  | AF15: =SUM(AF7:AF14) ->  | AG15: =-SUM(AG7:AG14) ->  | AK15: =SUM(AK7:AK14) -> 1 | AL15: =-SUM(AL7:AL14) -> 0.9182958341 | AP15: =SUM(AP7:AP14) -> 1 | AQ15: =-SUM(AQ7:AQ14) -> 0.9182958341 | AU15: =SUM(AU7:AU14) -> 1 | AV15: =-SUM(AV7:AV14) -> 1
A16: 11 | B16: 967 | C16: 21 | D16: 979 | K16: 0 | L16: 12 | P16: U= | Q16: =Q15/(LOG(Q4)/LOG(2)) -> 0.179783376 | V16: U1= | W16: =W15/(LOG(W4)/LOG(2)) -> 0.2896900821 | AA16: U2= | AB16: =AB15/(LOG(AB4)/LOG(2)) ->  | AF16: U3= | AG16: =AG15/(LOG(AG4)/LOG(2)) ->  | AK16: U4= | AL16: =AL15/(LOG(AL4)/LOG(2)) -> 0.3060986114 | AP16: U5= | AQ16: =AQ15/(LOG(AQ4)/LOG(2)) -> 0.2896900821 | AU16: U6= | AV16: =AV15/(LOG(AV4)/LOG(2)) -> 0.3333333333
A17: 11 | B17: 1067 | C17: 21 | D17: 1079 | K17: 0 | L17: 12
A18: 11 | B18: 1164 | C18: 21 | D18: 1175 | K18: 0 | L18: 12
A19: 11 | B19: 1261 | C19: 21 | D19: 1272 | K19: 0 | L19: 12 | N19: Total Target Seq
A20: 11 | B20: 1358 | C20: 21 | D20: 1370 | K20: 0 | L20: 12 | N20: =COUNTIF(L7:L57,G3) -> 40 | P20: 9 | Q20: 8 | R20: 9 | S20: 8 | T20: 9 | U20: 8
A21: 11 | B21: 1456 | C21: 21 | D21: 1469 | K21: 0 | L21: 12 | P21: % of reinforcement given in 6 equal intervals based on number of trials
A22: 11 | B22: 1554 | C22: 21 | D22: 1565 | K22: 0 | L22: 12 | P22: %_1 | Q22: %_2 | R22: %_3 | S22: %_4 | T22: %_5 | U22: %_6
A23: 11 | B23: 1653 | C23: 21 | D23: 1665 | K23: 0 | L23: 12 | O23: target sequence | P23: =$G$3 -> 12 | Q23: =$G$3 -> 12 | R23: =$G$3 -> 12 | S23: =$G$3 -> 12 | T23: =$G$3 -> 12 | U23: =$G$3 -> 12
A24: 11 | B24: 1750 | C24: 21 | D24: 1762 | K24: 0 | L24: 12 | O24: total reinforcement | P24: =U8 -> 6 | Q24: =Z8 -> 8 | R24: =AE8 -> 9 | S24: =AJ8 -> 5 | T24: =AO8 -> 6 | U24: =AT8 -> 6
A25: 11 | B25: 1852 | C25: 21 | D25: 1863 | K25: 0 | L25: 12 | O25: % target
A26: 11 | B26: 1949 | C26: 21 | D26: 1963 | K26: 0 | L26: 12 | O26: CCRF
A27: 11 | B27: 2048 | C27: 21 | D27: 2059 | K27: 0 | L27: 12 | O27: % CCRf
A28: 11 | B28: 2146 | C28: 21 | D28: 2157 | K28: 0 | L28: 12 | O28: average response rate | P28: =D15/P20 -> 97.44444444 | Q28: =(D23-D15)/Q20 -> 98.5 | R28: =(D32-D23)/R20 -> 99.77777778 | S28: =(D40-D32)/S20 -> 111.75 | T28: =(D49-D40)/T20 -> 115.5555556 | U28: =(D57-D49)/U20 -> 108
A29: 11 | B29: 2244 | C29: 21 | D29: 2259 | K29: 0 | L29: 12
A30: 11 | B30: 2345 | C30: 21 | D30: 2357 | K30: 0 | L30: 12
A31: 11 | B31: 2448 | C31: 21 | D31: 2460 | K31: 0 | L31: 12
A32: 11 | B32: 2551 | C32: 21 | D32: 2563 | K32: 0 | L32: 12
A33: 11 | B33: 2648 | C33: 21 | D33: 2659 | K33: 0 | L33: 12
A34: 11 | B34: 2747 | C34: 21 | D34: 2759 | K34: 0 | L34: 12
A35: 11 | B35: 2845 | C35: 21 | D35: 2858 | K35: 0 | L35: 12
A36: 22 | B36: 2956 | C36: 23 | D36: 2974 | K36: 0 | L36: 22
A37: 22 | B37: 3086 | C37: 23 | D37: 3106 | K37: 0 | L37: 22
A38: 11 | B38: 3205 | C38: 21 | D38: 3216 | K38: 0 | L38: 12
A39: 22 | B39: 3318 | C39: 14 | D39: 3343 | K39: 0 | L39: 21
A40: 11 | B40: 3442 | C40: 21 | D40: 3457 | K40: 0 | L40: 12
A41: 11 | B41: 3541 | C41: 21 | D41: 3557 | K41: 0 | L41: 12
A42: 22 | B42: 3660 | C42: 14 | D42: 3680 | K42: 0 | L42: 21
A43: 11 | B43: 3781 | C43: 21 | D43: 3795 | K43: 0 | L43: 12
A44: 11 | B44: 3883 | C44: 21 | D44: 3895 | K44: 0 | L44: 12
A45: 11 | B45: 3981 | C45: 21 | D45: 3994 | K45: 0 | L45: 12
A46: 22 | B46: 4109 | C46: 23 | D46: 4164 | K46: 0 | L46: 22
A47: 11 | B47: 4261 | C47: 21 | D47: 4273 | K47: 0 | L47: 12
A48: 22 | B48: 4377 | C48: 23 | D48: 4390 | K48: 0 | L48: 22
A49: 11 | B49: 4485 | C49: 21 | D49: 4497 | K49: 0 | L49: 12
A50: 11 | B50: 4582 | C50: 21 | D50: 4595 | K50: 0 | L50: 12
A51: 22 | B51: 4697 | C51: 14 | D51: 4713 | K51: 0 | L51: 21
A52: 22 | B52: 4826 | C52: 23 | D52: 4853 | K52: 0 | L52: 22
A53: 11 | B53: 4953 | C53: 21 | D53: 4964 | K53: 0 | L53: 12
A54: 11 | B54: 5051 | C54: 21 | D54: 5062 | K54: 0 | L54: 12
A55: 11 | B55: 5148 | C55: 21 | D55: 5159 | K55: 0 | L55: 12
A56: 11 | B56: 5246 | C56: 21 | D56: 5264 | K56: 0 | L56: 12
A57: 11 | B57: 5349 | C57: 21 | D57: 5361 | K57: 1 | L57: 12

Sheet !MA06900.104
A1: Report for:!MA06900.104
A2: Date: | B2: <date>
A3: Hen: | B3: <hen> | F3: Correct Sequence | G3: =Start!J2 -> 12 | P3: Total Sequences in Data | Q3: =4994-COUNTBLANK(L7:L5000) -> 51 | V3: Total Sequences in Block Data | W3: =COUNTA(L7:L15) -> 9 | AA3: Total Sequences in Block Data | AB3: =COUNTA(L16:L23) -> 8 | AF3: Total Sequences in Block Data | AG3: =COUNTA(L24:L32) -> 9 | AK3: Total Sequences in Block Data | AL3: =COUNTA(L33:L40) -> 8 | AP3: Total Sequences in Block Data | AQ3: =COUNTA(L41:L49) -> 9 | AU3: Total Sequences in Block Data | AV3: =COUNTA(L50:L57) -> 8
P4: Total Sequences in Summary | Q4: =SUM(O7:O14) -> 51 | V4: Total Sequences in Block Summary | W4: =SUM(U7:U14) -> 9 | AA4: Total Sequences in Block Summary | AB4: =SUM(Z7:Z14) -> 8 | AF4: Total Sequences in Block Summary | AG4: =SUM(AE7:AE14) -> 9 | AK4: Total Sequences in Block Summary | AL4: =SUM(AJ7:AJ14) -> 8 | AP4: Total Sequences in Block Summary | AQ4: =SUM(AO7:AO14) -> 9 | AU4: Total Sequences in Block Summary | AV4: =SUM(AT7:AT14) -> 8
T5: Block 1 | Y5: Block 2 | AD5: Block 3 | AI5: Block 4 | AN5: Block 5 | AS5: Block 6
A6: Sequence Component 1 | B6: Time 1 | C6: Sequence Component 2 | D6: Time 2 | E6: Sequence Component 3 | F6: Time 3 | G6: Sequence Component 4 | H6: Time 4 | I6: Sequence Component 5 | J6: Time 5 | K6: Correct? 0=No 1=Yes | L6: Sequence | N6: Frequency | P6: Relative Frequency | Q6: Variability | T6: Frequency | V6: Relative Frequency | W6: Variability | Y6: Frequency | AA6: Relative Frequency | AB6: Variability | AD6: Frequency | AF6: Relative Frequency | AG6: Variability | AI6: Frequency | AK6: Relative Frequency | AL6: Variability | AN6: Frequency | AP6: Relative Frequency | AQ6: Variability | AS6: Frequency | AU6: Relative Frequency | AV6: Variability
A7: 22 | B7: 16 | C7: 23 | D7: 37 | K7: 0 | L7: 22 | N7: 11 | O7: =COUNTIF($L$7:$L$500,N7) -> 4 | P7: =O7/$Q$4 -> 0.07843137255 | Q7: =IF(P7=0,0,(P7*((LOG(P7))/LOG(2)))) -> -0.2880333602 | T7: =N7 -> 11 | U7: =COUNTIF(L7:L15,T7) -> 1 | V7: =U7/(W4-U8) -> 0.25 | W7: =IF(V7=0,0,(V7*((LOG(V7))/LOG(2)))) -> -0.5 | Y7: =N7 -> 11 | Z7: =COUNTIF(L16:L23,Y7) -> 1 | AA7: =Z7/(AB4-Z8) -> 1 | AB7: =IF(AA7=0,0,(AA7*((LOG(AA7))/LOG(2)))) -> 0 | AD7: =N7 -> 11 | AE7: =COUNTIF(L24:L32,AD7) -> 1 | AF7: =AE7/(AG4-AE8) -> 0.5 | AG7: =IF(AF7=0,0,(AF7*((LOG(AF7))/LOG(2)))) -> -0.5 | AI7: =N7 -> 11 | AJ7: =COUNTIF(L33:L40,AI7) -> 1 | AK7: =AJ7/(AL4-AJ8) -> 0.5 | AL7: =IF(AK7=0,0,(AK7*((LOG(AK7))/LOG(2)))) -> -0.5 | AN7: =N7 -> 11 | AO7: =COUNTIF(L41:L49,AN7) -> 0 | AP7: =AO7/(AQ4-AO8) -> 0 | AQ7: =IF(AP7=0,0,(AP7*((LOG(AP7))/LOG(2)))) -> 0 | AS7: =N7 -> 11 | AT7: =COUNTIF(L50:L57,AS7) -> 0 | AU7: =AT7/(AV4-AT8) -> 0 | AV7: =IF(AU7=0,0,(AU7*((LOG(AU7))/LOG(2)))) -> 0
A8: 22 | B8: 145 | C8: 23 | D8: 166 | K8: 0 | L8: 22 | N8: 12 | O8: =COUNTIF($L$7:$L$500,N8) -> 40 | P8: =O8/$Q$4 -> 0.7843137255 | Q8: =IF(P8=0,0,(P8*((LOG(P8))/LOG(2)))) -> -0.2748998016 | T8: =N8 -> 12 | U8: =COUNTIF(L7:L15,T8) -> 5 | Y8: =N8 -> 12 | Z8: =COUNTIF(L16:L23,Y8) -> 7 | AD8: =N8 -> 12 | AE8: =COUNTIF(L24:L32,AD8) -> 7 | AI8: =N8 -> 12 | AJ8: =COUNTIF(L33:L40,AI8) -> 6 | AN8: =N8 -> 12 | AO8: =COUNTIF(L41:L49,AN8) -> 8 | AS8: =N8 -> 12 | AT8: =COUNTIF(L50:L57,AS8) -> 7
